Workbook

Sheet Instructions
I7: A | J7: B | K7: C | L7: D
H8: 1
H9: 2 | J9: Sample1 | K9: Sample2 | L9: END
H10: 3 | I10: Variant 1 | J10: 1000 | K10: 1
H11: 4 | I11: Variant 2 | J11: 1 | K11: 53
H12: 5 | I12: Variant 3 | J12: 1 | K12: 3562
H13: 6 | I13: Variant 4 | J13: 2 | K13: 10
H14: 7 | I14: Variant 5 | J14: 126 | K14: 1
H15: 8 | I15: Variant 6 | J15: 2 | K15: 1
H16: 9 | I16: Variant 7 | J16: 6000 | K16: 59
H17: 10 | I17: Variant 8 | J17: 18 | K17: 1583
H18: 11 | I18: Variant 9 | J18: 37 | K18: 1

Sheet Data
B2: Test 1 | C2: Test 2 | D2: Test 3
A3: Pore-DAB*103 | B3: 6 | C3: 1294 | D3: 796
A4: Pore-DAB*120 | B4: 0 | C4: 12 | D4: 28
A5: Pore-DAB*130 | B5: 0 | C5: 0 | D5: 0
A6: Pore-DAB*133 | B6: 4 | C6: 14 | D6: 17
A7: Pore-DAB*138 | B7: 0 | C7: 1 | D7: 10
A8: Pore-DAB*201 | B8: 3 | C8: 1114 | D8: 2430
A9: Pore-DAB*202 | B9: 1265 | C9: 38 | D9: 792
A10: Pore-DAB*203 | B10: 1181 | C10: 6 | D10: 3
A11: Pore-DAB*204 | B11: 1169 | C11: 5 | D11: 7
A12: Pore-DAB*205 | B12: 3 | C12: 1095 | D12: 93
A13: Pore-DAB*206 | B13: 1 | C13: 53 | D13: 18
A14: Pore-DAB*207 | B14: 0 | C14: 0 | D14: 1
A15: Pore-DAB*208 | B15: 0 | C15: 4 | D15: 6
A16: Pore-DAB*209 | B16: 1139 | C16: 984 | D16: 73
A17: Pore-DAB*210 | B17: 2 | C17: 5 | D17: 1
A18: Pore-DAB*211 | B18: 0 | C18: 0 | D18: 0
A19: Pore-DAB*212 | B19: 1254 | C19: 6 | D19: 1
A20: Pore-DAB*213 | B20: 0 | C20: 0 | D20: 0
A21: Pore-DAB*214 | B21: 0 | C21: 0 | D21: 0
A22: Pore-DAB*215 | B22: 0 | C22: 0 | D22: 0
A23: Pore-DAB*216 | B23: 2 | C23: 27 | D23: 34
A24: Pore-DAB*217 | B24: 0 | C24: 0 | D24: 0
A25: Pore-DAB*218 | B25: 0 | C25: 0 | D25: 0
A26: Pore-DAB*219 | B26: 0 | C26: 0 | D26: 0
A27: Pore-DAB*220 | B27: 0 | C27: 0 | D27: 0
A28: Pore-DAB*221 | B28: 0 | C28: 0 | D28: 0
A29: Pore-DAB*222 | B29: 0 | C29: 0 | D29: 0
A30: Pore-DAB*223 | B30: 0 | C30: 0 | D30: 0
A31: Pore-DAB*224 | B31: 0 | C31: 0 | D31: 0
A32: Pore-DAB*225 | B32: 0 | C32: 0 | D32: 0
A33: Pore-DAB*226 | B33: 0 | C33: 0 | D33: 0
A34: Pore-DAB*227 | B34: 0 | C34: 0 | D34: 0
A35: Pore-DAB*228 | B35: 0 | C35: 0 | D35: 0
A36: Pore-DAB*229 | B36: 0 | C36: 0 | D36: 0
A37: Pore-DAB*230 | B37: 0 | C37: 0 | D37: 0
A38: Pore-DAB*231 | B38: 0 | C38: 0 | D38: 0
A39: Pore-DAB*232 | B39: 0 | C39: 0 | D39: 0
A40: Pore-DAB*233 | B40: 0 | C40: 0 | D40: 0
A41: Pore-DAB*234 | B41: 0 | C41: 0 | D41: 0
A42: Pore-DAB*235 | B42: 0 | C42: 0 | D42: 0
A43: Pore-DAB*236 | B43: 1 | C43: 0 | D43: 6
A44: Pore-DAB*237 | B44: 0 | C44: 0 | D44: 0
A45: Pore-DAB*238 | B45: 0 | C45: 0 | D45: 0
A46: Pore-DAB*239 | B46: 0 | C46: 0 | D46: 0
A47: Pore-DAB*240 | B47: 0 | C47: 0 | D47: 0
A48: Pore-DAB*241 | B48: 0 | C48: 0 | D48: 0
A49: Pore-DAB*242 | B49: 0 | C49: 0 | D49: 0
A50: Pore-DAB*243 | B50: 0 | C50: 0 | D50: 0
A51: Pore-DAB*244 | B51: 0 | C51: 0 | D51: 0
A52: Pore-DAB*245 | B52: 0 | C52: 0 | D52: 0
A53: Pore-DAB*246 | B53: 0 | C53: 0 | D53: 0
A54: Pore-DAB*247 | B54: 0 | C54: 0 | D54: 0
A55: Pore-DAB*248 | B55: 0 | C55: 0 | D55: 0
A56: Pore-DAB*249 | B56: 0 | C56: 0 | D56: 0
A57: Pore-DAB*250 | B57: 5 | C57: 0 | D57: 0
A58: Pore-DAB*251 | B58: 1 | C58: 0 | D58: 0
A59: Pore-DAB*252 | B59: 0 | C59: 0 | D59: 0
A60: Pore-DAB*253 | B60: 0 | C60: 0 | D60: 0
A61: Pore-DAB*254 | B61: 0 | C61: 0 | D61: 0
A62: Pore-DAB*255 | B62: 0 | C62: 0 | D62: 0
A63: Pore-DAB*256 | B63: 0 | C63: 0 | D63: 0
A64: Pore-DAB*257 | B64: 0 | C64: 0 | D64: 1
A65: Pore-DAB*258 | B65: 0 | C65: 0 | D65: 0
A66: Pore-DAB*259 | B66: 0 | C66: 0 | D66: 0
A67: Pore-DAB*260 | B67: 0 | C67: 1 | D67: 0
A68: Pore-DAB*261 | B68: 0 | C68: 0 | D68: 0
A69: Pore-DAB*262 | B69: 0 | C69: 0 | D69: 0
A70: Pore-DAB*263 | B70: 0 | C70: 0 | D70: 0
A71: Pore-DAB*264 | B71: 0 | C71: 0 | D71: 0
A72: Pore-DAB*265 | B72: 0 | C72: 0 | D72: 0
A73: Pore-DAB*266 | B73: 2 | C73: 2 | D73: 2
A74: Pore-DAB*267 | B74: 0 | C74: 0 | D74: 1
A75: Pore-DAB*268 | B75: 0 | C75: 0 | D75: 0
A76: Pore-DAB*269 | B76: 0 | C76: 0 | D76: 0
A77: Pore-DAB*270 | B77: 0 | C77: 0 | D77: 0
A78: Pore-DAB*271 | B78: 1 | C78: 0 | D78: 0
A79: Pore-DAB*272 | B79: 0 | C79: 0 | D79: 0
A80: Pore-DAB*273 | B80: 0 | C80: 0 | D80: 0
A81: Pore-DAB*274 | B81: 0 | C81: 0 | D81: 0
A82: Pore-DAB*275 | B82: 0 | C82: 0 | D82: 0
A83: Pore-DAB*276 | B83: 0 | C83: 0 | D83: 0
A84: Pore-DAB*277 | B84: 0 | C84: 0 | D84: 1
A85: Pore-DAB*278 | B85: 0 | C85: 0 | D85: 0
A86: Pore-DAB*279 | B86: 0 | C86: 0 | D86: 0
A87: Pore-DAB*280 | B87: 0 | C87: 0 | D87: 0
A88: Pore-DAB*281 | B88: 0 | C88: 0 | D88: 0
A89: Pore-DAB*282 | B89: 0 | C89: 0 | D89: 0
A90: Pore-DAB*283 | B90: 0 | C90: 0 | D90: 0
A91: Pore-DAB*284 | B91: 0 | C91: 0 | D91: 0
A92: Pore-DAB*286 | B92: 0 | C92: 0 | D92: 0
A93: Pore-DAB*287 | B93: 0 | C93: 0 | D93: 0
A94: Pore-DAB*288 | B94: 0 | C94: 0 | D94: 0
A95: Pore-DAB*289 | B95: 0 | C95: 0 | D95: 0
A96: Pore-DAB*290 | B96: 0 | C96: 0 | D96: 0
A97: Pore-DAB*291 | B97: 0 | C97: 0 | D97: 0
A98: Pore-DAB*292 | B98: 0 | C98: 0 | D98: 0
A99: Pore-DAB*293 | B99: 0 | C99: 5 | D99: 2
A100: Pore-DAB*294 | B100: 0 | C100: 0 | D100: 0
A101: Pore-DAB*295 | B101: 0 | C101: 0 | D101: 0
A102: Pore-DAB*296 | B102: 0 | C102: 1 | D102: 2
A103: Pore-DAB*298 | B103: 0 | C103: 0 | D103: 1
A104: Pore-DAB*300 | B104: 0 | C104: 0 | D104: 0
A105: Pore-DAB*301 | B105: 0 | C105: 0 | D105: 0
A106: Pore-DAB*302 | B106: 0 | C106: 0 | D106: 0
A107: Pore-DAB*303 | B107: 0 | C107: 0 | D107: 0
A108: Pore-DAB*304 | B108: 3 | C108: 0 | D108: 0
A109: Pore-DAB*305 | B109: 0 | C109: 0 | D109: 0
A110: Pore-DAB*306 | B110: 0 | C110: 0 | D110: 0
A111: Pore-DAB*307 | B111: 0 | C111: 0 | D111: 0
A112: Pore-DAB*308 | B112: 1 | C112: 1 | D112: 1
A113: Pore-DAB*309 | B113: 0 | C113: 0 | D113: 0
A114: Pore-DAB*310 | B114: 0 | C114: 0 | D114: 0
A115: Pore-DAB*312 | B115: 0 | C115: 0 | D115: 0
A116: Pore-DAB*313 | B116: 0 | C116: 0 | D116: 0
A117: Pore-DAB*314 | B117: 0 | C117: 0 | D117: 0
A118: Pore-DAB*315 | B118: 1 | C118: 0 | D118: 3
A119: Pore-DAB*318 | B119: 3 | C119: 0 | D119: 1
A120: Pore-DAB*319 | B120: 0 | C120: 1 | D120: 1
A121: Pore-DAB*320 | B121: 0 | C121: 0 | D121: 0
A122: Pore-DAB*322 | B122: 0 | C122: 0 | D122: 0
A123: Pore-DAB*325 | B123: 0 | C123: 0 | D123: 0
A124: Pore-DAB*326 | B124: 0 | C124: 0 | D124: 0
A125: Pore-DAB*327 | B125: 0 | C125: 0 | D125: 0
A126: Pore-DAB*328 | B126: 0 | C126: 0 | D126: 0
A127: Pore-DAB*329 | B127: 0 | C127: 0 | D127: 0
A128: Pore-DAB*330 | B128: 0 | C128: 0 | D128: 0
A129: Pore-DAB*331 | B129: 0 | C129: 0 | D129: 2
A130: Pore-DAB*334 | B130: 0 | C130: 0 | D130: 0
A131: Pore-DAB*335 | B131: 0 | C131: 7 | D131: 11
A132: Pore-DAB*336 | B132: 0 | C132: 0 | D132: 0
A133: Pore-DAB*337 | B133: 1 | C133: 2 | D133: 1
A134: Pore-DAB*338 | B134: 0 | C134: 0 | D134: 0
A135: Pore-DAB*339 | B135: 0 | C135: 5 | D135: 24
A136: Pore-DAB*340 | B136: 0 | C136: 0 | D136: 3
A137: Pore-DAB*341 | B137: 0 | C137: 0 | D137: 0
A138: Pore-DAB*342 | B138: 0 | C138: 1 | D138: 0
A139: Pore-DAB*344 | B139: 0 | C139: 0 | D139: 0
A140: Pore-DAB*345 | B140: 0 | C140: 0 | D140: 0
A141: Pore-DAB*347 | B141: 0 | C141: 0 | D141: 0
A142: Pore-DAB*349 | B142: 0 | C142: 0 | D142: 0
A143: Pore-DAB*350 | B143: 1 | C143: 1 | D143: 2
A144: Pore-DAB*351 | B144: 0 | C144: 0 | D144: 0
A145: Pore-DAB*352 | B145: 0 | C145: 0 | D145: 0
A146: Pore-DAB*353 | B146: 0 | C146: 0 | D146: 0
A147: Pore-DAB*354 | B147: 0 | C147: 0 | D147: 0
A148: Pore-DAB*355 | B148: 0 | C148: 0 | D148: 0
A149: Pore-DAB*356 | B149: 0 | C149: 0 | D149: 0
A150: Pore-DAB*358 | B150: 0 | C150: 0 | D150: 0
A151: Pore-DAB*359 | B151: 0 | C151: 0 | D151: 0
A152: Pore-DAB*360 | B152: 0 | C152: 0 | D152: 0
A153: Pore-DAB*361 | B153: 0 | C153: 0 | D153: 0
A154: Pore-DAB*362 | B154: 0 | C154: 0 | D154: 0
A155: Pore-DAB*363 | B155: 1 | C155: 4 | D155: 3
A156: Pore-DAB*365 | B156: 0 | C156: 0 | D156: 0
A157: Pore-DAB*366 | B157: 0 | C157: 0 | D157: 0
A158: Pore-DAB*367 | B158: 0 | C158: 2 | D158: 2
A159: Pore-DAB*368 | B159: 0 | C159: 0 | D159: 0
A160: Pore-DAB*369 | B160: 0 | C160: 0 | D160: 1
A161: Pore-DAB*370 | B161: 0 | C161: 0 | D161: 0
A162: Pore-DAB*371 | B162: 0 | C162: 0 | D162: 0
A163: Pore-DAB*373 | B163: 0 | C163: 14 | D163: 4
A164: Pore-DAB*374 | B164: 0 | C164: 0 | D164: 0
A165: Pore-DAB*375 | B165: 0 | C165: 0 | D165: 0
A166: Pore-DAB*376 | B166: 0 | C166: 0 | D166: 2
A167: Pore-DAB*377 | B167: 0 | C167: 0 | D167: 0
A168: Pore-DAB*378 | B168: 1 | C168: 0 | D168: 0
A169: Pore-DAB*379 | B169: 0 | C169: 1 | D169: 0
A170: Pore-DAB*380 | B170: 0 | C170: 0 | D170: 0
A171: Pore-DAB*381 | B171: 0 | C171: 0 | D171: 0
A172: Pore-DAB*382 | B172: 0 | C172: 0 | D172: 0
A173: Pore-DAB*383 | B173: 0 | C173: 0 | D173: 0
A174: Pore-DAB*384 | B174: 0 | C174: 0 | D174: 3
A175: Pore-DAB*385 | B175: 0 | C175: 0 | D175: 0
A176: Pore-DAB*386 | B176: 0 | C176: 0 | D176: 0
A177: Pore-DAB*387 | B177: 0 | C177: 0 | D177: 0
A178: Pore-DAB*388 | B178: 0 | C178: 0 | D178: 0
A179: Pore-DAB*389 | B179: 0 | C179: 0 | D179: 0
A180: Pore-DAB*390 | B180: 0 | C180: 0 | D180: 0
A181: Pore-DAB*391 | B181: 0 | C181: 0 | D181: 0
A182: Pore-DAB*392 | B182: 0 | C182: 0 | D182: 0
A183: Pore-DAB*393 | B183: 0 | C183: 0 | D183: 0
A184: Pore-DAB*394 | B184: 0 | C184: 0 | D184: 0
A185: Pore-DAB*395 | B185: 0 | C185: 0 | D185: 0
A186: Pore-DAB*396 | B186: 0 | C186: 0 | D186: 0
A187: Pore-DAB*397 | B187: 0 | C187: 0 | D187: 0
A188: Pore-DAB*398 | B188: 0 | C188: 0 | D188: 1
A189: Pore-DAB*399 | B189: 0 | C189: 0 | D189: 0
A190: Pore-DAB*400 | B190: 0 | C190: 0 | D190: 0
A191: Pore-DAB*401 | B191: 0 | C191: 0 | D191: 0
A192: Pore-DAB*402 | B192: 0 | C192: 0 | D192: 0
A193: Pore-DAB*403 | B193: 0 | C193: 0 | D193: 0
A194: Pore-DAB*404 | B194: 0 | C194: 0 | D194: 0
A195: Pore-DAB*405 | B195: 0 | C195: 0 | D195: 0
A196: Pore-DAB*406 | B196: 1 | C196: 1 | D196: 0
A197: Pore-DAB*407 | B197: 0 | C197: 0 | D197: 0
A198: Pore-DAB*408 | B198: 0 | C198: 0 | D198: 0
A199: Pore-DAB*409 | B199: 0 | C199: 0 | D199: 0
A200: Pore-DAB*410 | B200: 0 | C200: 1 | D200: 0
A201: Pore-DAB*411 | B201: 6 | C201: 10 | D201: 3
... 36 more rows

Sheet Loci models
B1: Number of loci (Li) | C1: ? | E1: 1.5 or 3 | F1: 1.5 or 3 or 4.5 | G1: 2 or 4 | I1: 2.5 or 5 | O1: 2 | P1: 2.5 | R1: 3 | Y1: 3.5 | AM1: 4 | BE1: 4.5 | CG1: 5
B2: Number of alleles (Ai) | C2: 1 | D2: 2 | E2: 2 | F2: 3 | G2: 2 | H2: 4 | I2: 2 | J2: 2 | K2: 3 | L2: 3 | M2: 4 | N2: 5 | O2: 3 | P2: 2 | Q2: 4 | R2: 2 | S2: 3 | T2: 3 | U2: 4 | V2: 4 | W2: 5 | X2: 6 | Y2: 2 | Z2: 2 | AA2: 2 | AB2: 3 | AC2: 3 | AD2: 3 | AE2: 3 | AF2: 4 | AG2: 4 | AH2: 4 | AI2: 5 | AJ2: 5 | AK2: 6 | AL2: 7 | AM2: 2 | AN2: 2 | AO2: 3 | AP2: 3 | AQ2: 3 | AR2: 3 | AS2: 3 | AT2: 4 | AU2: 4 | AV2: 4 | AW2: 4 | AX2: 5 | AY2: 5 | AZ2: 5 | BA2: 6 | BB2: 6 | BC2: 7 | BD2: 8 | BE2: 2 | BF2: 2 | BG2: 2 | BH2: 2 | BI2: 3 | BJ2: 3 | BK2: 3 | BL2: 3 | BM2: 3 | BN2: 3 | BO2: 4 | BP2: 4 | BQ2: 4 | BR2: 4 | BS2: 4 | BT2: 4 | BU2: 5 | BV2: 5 | BW2: 5 | BX2: 5 | BY2: 5 | BZ2: 6 | CA2: 6 | CB2: 6 | CC2: 7 | CD2: 7 | CE2: 8 | CF2: 9 | CG2: 2 | CH2: 2 | CI2: 3 | CJ2: 3 | CK2: 3 | CL2: 3 | CM2: 3 | CN2: 3 | CO2: 4 | CP2: 4 | CQ2: 4 | CR2: 4 | CS2: 4 | CT2: 4 | CU2: 4 | CV2: 4 | CW2: 5 | CX2: 5 | CY2: 5 | CZ2: 5 | DA2: 5 | DB2: 5 | DC2: 6 | DD2: 6 | DE2: 6 | DF2: 6 | DG2: 6 | DH2: 7 | DI2: 7 | DJ2: 7 | DK2: 8 | DL2: 8 | DM2: 9 | DN2: 10
B3: CNV ratio | C3: 1 | D3: 1:1 or 2.2 or 3.3 etc | E3: 2:1 or 4.2 | F3: 1:1:1 or 2.2.2 or 3.3.3 | G3: 3:1 or 6.2 | H3: 1:1:1:1 or 2.2.2.2 | I3: 3:2 or 6.4 | J3: 4:1 or 8.2 | K3: 3:1:1 or 6.2.2 | L3: 2:2:1 or 4.4.2 | M3: 2:1:1:1 or 4.2.2.2 | N3: 1:1:1:1:1 or 2.2.2.2.2 | O3: 2:1:1 | P3: 3:1:1 | Q3: 2:1:1:1 | R3: 5:1 | S3: 4:1:1 | T3: 3:2:1 | U3: 3:1:1:1 | V3: 2:2:1:1 | W3: 2:1:1:1:1 | X3: 1:1:1:1:1:1 | Y3: 6:1 | Z3: 5:2 | AA3: 4:3 | AB3: 5:1:1 | AC3: 4:2:1 | AD3: 3:3:1 | AE3: 3:2:2 | AF3: 2:2:2:1 | AG3: 3:2:1:1 | AH3: 4:1:1:1 | AI3: 2:2:1:1:1 | AJ3: 3:1:1:1:1 | AK3: 2:1:1:1:1:1 | AL3: 1:1:1:1:1:1:1 | AM3: 5:3 | AN3: 7:1 | AO3: 4:2:2 | AP3: 5:2:1 | AQ3: 6:1:1 | AR3: 3:3:2 | AS3: 4:3:1 | AT3: 3:2:2:1 | AU3: 3:3:1:1 | AV3: 4:2:1:1 | AW3: 5:1:1:1 | AX3: 2:2:2:1:1 | AY3: 3:2:1:1:1 | AZ3: 4:1:1:1:1 | BA3: 2:2:1:1:1:1 | BB3: 3:1:1:1:1:1 | BC3: 2:1:1:1:1:1:1 | BD3: 1:1:1:1:1:1:1:1 | BE3: 5:4 | BF3: 6:3 | BG3: 7:2 | BH3: 8:1 | BI3: 4:3:2 | BJ3: 5:2:2 | BK3: 4:4:1 | BL3: 5:3:1 | BM3: 6:2:1 | BN3: 7:1:1 | BO3: 3:2:2:2 | BP3: 3:3:2:1 | BQ3: 4:2:2:1 | BR3: 4:3:1:1 | BS3: 5:2:1:1 | BT3: 6:1:1:1 | BU3: 2:2:2:2:1 | BV3: 3:2:2:1:1 | BW3: 3:3:1:1:1 | BX3: 4:2:1:1:1 | BY3: 5:1:1:1:1 | BZ3: 2:2:2:1:1:1 | CA3: 3:2:1:1:1:1 | CB3: 4:1:1:1:1:1 | CC3: 2:2:1:1:1:1:1 | CD3: 3:1:1:1:1:1:1 | CE3: 2:1:1:1:1:1:1:1 | CF3: 1:1:1:1:1:1:1:1:1 | CG3: 7:3 | CH3: 9:1 | CI3: 4:3:3 | CJ3: 5:3:2 | CK3: 5:4:1 | CL3: 6:3:1 | CM3: 7:2:1 | CN3: 8:1:1 | CO3: 3:3:2:2 | CP3: 3:3:3:1 | CQ3: 4:3:2:1 | CR3: 5:2:2:1 | CS3: 4:4:1:1 | CT3: 5:3:1:1 | CU3: 6:2:1:1 | CV3: 7:1:1:1 | CW3: 3:2:2:2:1 | CX3: 3:3:2:1:1 | CY3: 4:2:2:1:1 | CZ3: 4:3:1:1:1 | DA3: 5:2:1:1:1 | DB3: 6:1:1:1:1 | DC3: 2:2:2:2:1:1 | DD3: 3:2:2:1:1:1 | DE3: 3:3:1:1:1:1 | DF3: 4:2:1:1:1:1 | DG3: 5:1:1:1:1:1 | DH3: 2:2:2:1:1;1:1 | DI3: 3:2:1:1:1:1:1 | DJ3: 4:1:1:1:1:1:1 | DK3: 2:2:1:1:1:1:1:1 | DL3: 3:1:1:1:1:1:1:1 | DM3: 2:1:1:1:1:1:1:1:1 | DN3: 1:1:1:1:1:1:1:1:1:1
A4: Variant | C4: Expected ratio
A5: 1 | C5: 1 | D5: 0.5 | E5: 0.666 | F5: 0.333 | G5: 0.75 | H5: 0.25 | I5: 0.6 | J5: 0.8 | K5: 0.6 | L5: 0.4 | M5: 0.4 | N5: 0.2 | O5: 0.5 | P5: 0.6 | Q5: 0.4 | R5: 0.833 | S5: 0.666 | T5: 0.5 | U5: 0.5 | V5: 0.333 | W5: 0.333 | X5: 0.166 | Y5: 0.857 | Z5: 0.71 | AA5: 0.569 | AB5: 0.71 | AC5: 0.569 | AD5: 0.426 | AE5: 0.426 | AF5: 0.285 | AG5: 0.426 | AH5: 0.569 | AI5: 0.285 | AJ5: 0.426 | AK5: 0.285 | AL5: =1/7 -> 0.1428571429 | AM5: 0.625 | AN5: 0.875 | AO5: 0.5 | AP5: 0.625 | AQ5: 0.75 | AR5: 0.375 | AS5: 0.5 | AT5: 0.375 | AU5: 0.375 | AV5: 0.5 | AW5: 0.625 | AX5: 0.25 | AY5: 0.375 | AZ5: 0.5 | BA5: 0.25 | BB5: 0.375 | BC5: 0.25 | BD5: 0.125 | BE5: 0.555 | BF5: 0.666 | BG5: 0.777 | BH5: 0.888 | BI5: 0.444 | BJ5: 0.555 | BK5: 0.444 | BL5: 0.555 | BM5: 0.666 | BN5: 0.777 | BO5: 0.333 | BP5: 0.333 | BQ5: 0.444 | BR5: 0.444 | BS5: 0.555 | BT5: 0.666 | BU5: 0.222 | BV5: 0.333 | BW5: 0.333 | BX5: 0.444 | BY5: 0.555 | BZ5: 0.222 | CA5: 0.333 | CB5: 0.444 | CC5: 0.222 | CD5: 0.333 | CE5: 0.222 | CF5: 0.111 | CG5: 0.7 | CH5: 0.9 | CI5: 0.4 | CJ5: 0.5 | CK5: 0.5 | CL5: 0.6 | CM5: 0.7 | CN5: 0.8 | CO5: 0.3 | CP5: 0.3 | CQ5: 0.4 | CR5: 0.5 | CS5: 0.4 | CT5: 0.5 | CU5: 0.6 | CV5: 0.7 | CW5: 0.3 | CX5: 0.3 | CY5: 0.4 | CZ5: 0.4 | DA5: 0.5 | DB5: 0.6 | DC5: 0.2 | DD5: 0.3 | DE5: 0.3 | DF5: 0.4 | DG5: 0.5 | DH5: 0.2 | DI5: 0.3 | DJ5: 0.4 | DK5: 0.2 | DL5: 0.3 | DM5: 0.2 | DN5: 0.1
A6: 2 | C6: 0 | D6: 0.5 | E6: 0.333 | F6: 0.333 | G6: 0.25 | H6: 0.25 | I6: 0.4 | J6: 0.2 | K6: 0.2 | L6: 0.4 | M6: 0.2 | N6: 0.2 | O6: 0.25 | P6: 0.2 | Q6: 0.2 | R6: 0.166 | S6: 0.166 | T6: 0.33 | U6: 0.166 | V6: 0.333 | W6: 0.166 | X6: 0.166 | Y6: 0.143 | Z6: 0.285 | AA6: 0.426 | AB6: 0.143 | AC6: 0.285 | AD6: 0.426 | AE6: 0.285 | AF6: 0.285 | AG6: 0.285 | AH6: 0.143 | AI6: 0.285 | AJ6: 0.143 | AK6: 0.143 | AL6: 0.1428571429 | AM6: 0.375 | AN6: 0.125 | AO6: 0.25 | AP6: 0.25 | AQ6: 0.125 | AR6: 0.375 | AS6: 0.375 | AT6: 0.25 | AU6: 0.375 | AV6: 0.25 | AW6: 0.125 | AX6: 0.25 | AY6: 0.25 | AZ6: 0.125 | BA6: 0.25 | BB6: 0.125 | BC6: 0.125 | BD6: 0.125 | BE6: 0.444 | BF6: 0.333 | BG6: 0.222 | BH6: 0.111 | BI6: 0.333 | BJ6: 0.222 | BK6: 0.444 | BL6: 0.333 | BM6: 0.222 | BN6: 0.111 | BO6: 0.222 | BP6: 0.333 | BQ6: 0.222 | BR6: 0.333 | BS6: 0.222 | BT6: 0.111 | BU6: 0.222 | BV6: 0.222 | BW6: 0.333 | BX6: 0.222 | BY6: 0.111 | BZ6: 0.222 | CA6: 0.222 | CB6: 0.111 | CC6: 0.222 | CD6: 0.111 | CE6: 0.111 | CF6: 0.111 | CG6: 0.3 | CH6: 0.1 | CI6: 0.3 | CJ6: 0.3 | CK6: 0.4 | CL6: 0.4 | CM6: 0.2 | CN6: 0.1 | CO6: 0.3 | CP6: 0.3 | CQ6: 0.3 | CR6: 0.2 | CS6: 0.4 | CT6: 0.3 | CU6: 0.2 | CV6: 0.1 | CW6: 0.2 | CX6: 0.3 | CY6: 0.2 | CZ6: 0.3 | DA6: 0.2 | DB6: 0.1 | DC6: 0.2 | DD6: 0.2 | DE6: 0.3 | DF6: 0.2 | DG6: 0.1 | DH6: 0.2 | DI6: 0.2 | DJ6: 0.1 | DK6: 0.2 | DL6: 0.1 | DM6: 0.1 | DN6: 0.1
A7: 3 | C7: 0 | D7: 0 | F7: 0.333 | G7: 0 | H7: 0.25 | I7: 0 | K7: 0.2 | L7: 0.2 | M7: 0.2 | N7: 0.2 | O7: 0.25 | P7: 0.2 | Q7: 0.2 | R7: 0 | S7: 0.166 | T7: 0.166 | U7: 0.166 | V7: 0.166 | W7: 0.166 | X7: 0.166 | AB7: 0.143 | AC7: 0.143 | AD7: 0.143 | AE7: 0.285 | AF7: 0.285 | AG7: 0.143 | AH7: 0.143 | AI7: 0.143 | AJ7: 0.143 | AK7: 0.143 | AL7: 0.1428571429 | AM7: 0 | AN7: 0 | AO7: 0.25 | AP7: 0.125 | AQ7: 0.125 | AR7: 0.25 | AS7: 0.125 | AT7: 0.25 | AU7: 0.125 | AV7: 0.125 | AW7: 0.125 | AX7: 0.25 | AY7: 0.125 | AZ7: 0.125 | BA7: 0.125 | BB7: 0.125 | BC7: 0.125 | BD7: 0.125 | BI7: 0.222 | BJ7: 0.222 | BK7: 0.111 | BL7: 0.111 | BM7: 0.111 | BN7: 0.111 | BO7: 0.222 | BP7: 0.222 | BQ7: 0.222 | BR7: 0.111 | BS7: 0.111 | BT7: 0.111 | BU7: 0.222 | BV7: 0.222 | BW7: 0.111 | BX7: 0.111 | BY7: 0.111 | BZ7: 0.222 | CA7: 0.111 | CB7: 0.111 | CC7: 0.111 | CD7: 0.111 | CE7: 0.111 | CF7: 0.111 | CI7: 0.3 | CJ7: 0.2 | CK7: 0.1 | CL7: 0.1 | CM7: 0.1 | CN7: 0.1 | CO7: 0.2 | CP7: 0.3 | CQ7: 0.2 | CR7: 0.2 | CS7: 0.1 | CT7: 0.1 | CU7: 0.1 | CV7: 0.1 | CW7: 0.2 | CX7: 0.2 | CY7: 0.2 | CZ7: 0.1 | DA7: 0.1 | DB7: 0.1 | DC7: 0.2 | DD7: 0.2 | DE7: 0.1 | DF7: 0.1 | DG7: 0.1 | DH7: 0.2 | DI7: 0.1 | DJ7: 0.1 | DK7: 0.1 | DL7: 0.1 | DM7: 0.1 | DN7: 0.1
A8: 4 | C8: 0 | D8: 0 | F8: 0 | G8: 0 | H8: 0.25 | I8: 0 | M8: 0.2 | N8: 0.2 | O8: 0 | Q8: 0.2 | R8: 0 | S8: 0 | T8: 0 | U8: 0.166 | V8: 0.166 | W8: 0.166 | X8: 0.166 | AF8: 0.143 | AG8: 0.143 | AH8: 0.143 | AI8: 0.143 | AJ8: 0.143 | AK8: 0.143 | AL8: 0.1428571429 | AM8: 0 | AN8: 0 | AO8: 0 | AP8: 0 | AQ8: 0 | AR8: 0 | AS8: 0 | AT8: 0.125 | AU8: 0.125 | AV8: 0.125 | AW8: 0.125 | AX8: 0.125 | AY8: 0.125 | AZ8: 0.125 | BA8: 0.125 | BB8: 0.125 | BC8: 0.125 | BD8: 0.125 | BO8: 0.222 | BP8: 0.111 | BQ8: 0.111 | BR8: 0.111 | BS8: 0.111 | BT8: 0.111 | BU8: 0.222 | BV8: 0.111 | BW8: 0.111 | BX8: 0.111 | BY8: 0.111 | BZ8: 0.111 | CA8: 0.111 | CB8: 0.111 | CC8: 0.111 | CD8: 0.111 | CE8: 0.111 | CF8: 0.111 | CO8: 0.2 | CP8: 0.1 | CQ8: 0.1 | CR8: 0.1 | CS8: 0.1 | CT8: 0.1 | CU8: 0.1 | CV8: 0.1 | CW8: 0.2 | CX8: 0.1 | CY8: 0.1 | CZ8: 0.1 | DA8: 0.1 | DB8: 0.1 | DC8: 0.2 | DD8: 0.1 | DE8: 0.1 | DF8: 0.1 | DG8: 0.1 | DH8: 0.1 | DI8: 0.1 | DJ8: 0.1 | DK8: 0.1 | DL8: 0.1 | DM8: 0.1 | DN8: 0.1
A9: 5 | C9: 0 | D9: 0 | F9: 0 | G9: 0 | H9: 0 | I9: 0 | N9: 0.2 | O9: 0 | Q9: 0 | R9: 0 | S9: 0 | T9: 0 | U9: 0 | V9: 0 | W9: 0.166 | X9: 0.166 | AI9: 0.143 | AJ9: 0.143 | AK9: 0.143 | AL9: 0.1428571429 | AM9: 0 | AN9: 0 | AO9: 0 | AP9: 0 | AQ9: 0 | AR9: 0 | AS9: 0 | AT9: 0 | AU9: 0 | AV9: 0 | AW9: 0 | AX9: 0.125 | AY9: 0.125 | AZ9: 0.125 | BA9: 0.125 | BB9: 0.125 | BC9: 0.125 | BD9: 0.125 | BU9: 0.111 | BV9: 0.111 | BW9: 0.111 | BX9: 0.111 | BY9: 0.111 | BZ9: 0.111 | CA9: 0.111 | CB9: 0.111 | CC9: 0.111 | CD9: 0.111 | CE9: 0.111 | CF9: 0.111 | CW9: 0.1 | CX9: 0.1 | CY9: 0.1 | CZ9: 0.1 | DA9: 0.1 | DB9: 0.1 | DC9: 0.1 | DD9: 0.1 | DE9: 0.1 | DF9: 0.1 | DG9: 0.1 | DH9: 0.1 | DI9: 0.1 | DJ9: 0.1 | DK9: 0.1 | DL9: 0.1 | DM9: 0.1 | DN9: 0.1
A10: 6 | C10: 0 | D10: 0 | F10: 0 | G10: 0 | H10: 0 | I10: 0 | N10: 0 | O10: 0 | Q10: 0 | R10: 0 | S10: 0 | T10: 0 | U10: 0 | V10: 0 | W10: 0 | X10: 0.166 | AK10: 0.143 | AL10: 0.1428571429 | AM10: 0 | AN10: 0 | AO10: 0 | AP10: 0 | AQ10: 0 | AR10: 0 | AS10: 0 | AT10: 0 | AU10: 0 | AV10: 0 | AW10: 0 | AX10: 0 | AY10: 0 | AZ10: 0 | BA10: 0.125 | BB10: 0.125 | BC10: 0.125 | BD10: 0.125 | BZ10: 0.111 | CA10: 0.111 | CB10: 0.111 | CC10: 0.111 | CD10: 0.111 | CE10: 0.111 | CF10: 0.111 | DC10: 0.1 | DD10: 0.1 | DE10: 0.1 | DF10: 0.1 | DG10: 0.1 | DH10: 0.1 | DI10: 0.1 | DJ10: 0.1 | DK10: 0.1 | DL10: 0.1 | DM10: 0.1 | DN10: 0.1
A11: 7 | C11: 0 | D11: 0 | F11: 0 | G11: 0 | H11: 0 | I11: 0 | N11: 0 | O11: 0 | Q11: 0 | R11: 0 | S11: 0 | T11: 0 | U11: 0 | V11: 0 | W11: 0 | X11: 0 | AL11: 0.1428571429 | AM11: 0 | AN11: 0 | AO11: 0 | AP11: 0 | AQ11: 0 | AR11: 0 | AS11: 0 | AT11: 0 | AU11: 0 | AV11: 0 | AW11: 0 | AX11: 0 | AY11: 0 | AZ11: 0 | BA11: 0 | BB11: 0 | BC11: 0.125 | BD11: 0.125 | CC11: 0.111 | CD11: 0.111 | CE11: 0.111 | CF11: 0.111 | DH11: 0.1 | DI11: 0.1 | DJ11: 0.1 | DK11: 0.1 | DL11: 0.1 | DM11: 0.1 | DN11: 0.1
A12: 8 | C12: 0 | D12: 0 | F12: 0 | G12: 0 | H12: 0 | I12: 0 | N12: 0 | O12: 0 | Q12: 0 | R12: 0 | S12: 0 | T12: 0 | U12: 0 | V12: 0 | W12: 0 | X12: 0 | AL12: 0 | AM12: 0 | AN12: 0 | AO12: 0 | AP12: 0 | AQ12: 0 | AR12: 0 | AS12: 0 | AT12: 0 | AU12: 0 | AV12: 0 | AW12: 0 | AX12: 0 | AY12: 0 | AZ12: 0 | BA12: 0 | BB12: 0 | BC12: 0 | BD12: 0.125 | CE12: 0.111 | CF12: 0.111 | DK12: 0.1 | DL12: 0.1 | DM12: 0.1 | DN12: 0.1
A13: 9 | C13: 0 | D13: 0 | F13: 0 | G13: 0 | H13: 0 | I13: 0 | N13: 0 | O13: 0 | Q13: 0 | R13: 0 | S13: 0 | T13: 0 | U13: 0 | V13: 0 | W13: 0 | X13: 0 | AL13: 0 | AM13: 0 | AN13: 0 | AO13: 0 | AP13: 0 | AQ13: 0 | AR13: 0 | AS13: 0 | AT13: 0 | AU13: 0 | AV13: 0 | AW13: 0 | AX13: 0 | AY13: 0 | AZ13: 0 | BA13: 0 | BB13: 0 | BC13: 0 | BD13: 0 | CF13: 0.111 | DM13: 0.1 | DN13: 0.1
A14: 10 | C14: 0 | D14: 0 | F14: 0 | G14: 0 | H14: 0 | I14: 0 | N14: 0 | O14: 0 | Q14: 0 | R14: 0 | S14: 0 | T14: 0 | U14: 0 | V14: 0 | W14: 0 | X14: 0 | AL14: 0 | AM14: 0 | AN14: 0 | AO14: 0 | AP14: 0 | AQ14: 0 | AR14: 0 | AS14: 0 | AT14: 0 | AU14: 0 | AV14: 0 | AW14: 0 | AX14: 0 | AY14: 0 | AZ14: 0 | BA14: 0 | BB14: 0 | BC14: 0 | BD14: 0 | DN14: 0.1
B15: Total | C15: =SUM(C5:C14) -> 1 | D15: 1 | E15: =SUM(E5:E14) -> 0.999 | F15: =SUM(F5:F14) -> 0.999 | G15: 1 | H15: =SUM(H5:H14) -> 1 | I15: =SUM(I5:I14) -> 1 | J15: =SUM(J5:J14) -> 1 | K15: =SUM(K5:K14) -> 1 | L15: =SUM(L5:L14) -> 1 | M15: =SUM(M5:M14) -> 1 | N15: =SUM(N5:N14) -> 1 | O15: =SUM(O5:O14) -> 1 | P15: =SUM(P5:P14) -> 1 | Q15: =SUM(Q5:Q14) -> 1 | R15: 0.999 | S15: 0.998 | T15: 0.996 | U15: 0.998 | V15: 0.998 | W15: 0.997 | X15: 0.996 | Y15: =SUM(Y5:Y14) -> 1 | Z15: =SUM(Z5:Z14) -> 0.995 | AA15: =SUM(AA5:AA14) -> 0.995 | AB15: =SUM(AB5:AB14) -> 0.996 | AC15: =SUM(AC5:AC14) -> 0.997 | AD15: =SUM(AD5:AD14) -> 0.995 | AE15: =SUM(AE5:AE14) -> 0.996 | AF15: =SUM(AF5:AF14) -> 0.998 | AG15: =SUM(AG5:AG14) -> 0.997 | AH15: =SUM(AH5:AH14) -> 0.998 | AI15: =SUM(AI5:AI14) -> 0.999 | AJ15: =SUM(AJ5:AJ14) -> 0.998 | AK15: =SUM(AK5:AK14) -> 1 | AL15: =SUM(AL5:AL14) -> 1 | AM15: =SUM(AM5:AM14) -> 1 | AN15: =SUM(AN5:AN14) -> 1 | AO15: =SUM(AO5:AO14) -> 1 | AP15: =SUM(AP5:AP14) -> 1 | AQ15: =SUM(AQ5:AQ14) -> 1 | AR15: =SUM(AR5:AR14) -> 1 | AS15: =SUM(AS5:AS14) -> 1 | AT15: =SUM(AT5:AT14) -> 1 | AU15: =SUM(AU5:AU14) -> 1 | AV15: =SUM(AV5:AV14) -> 1 | AW15: =SUM(AW5:AW14) -> 1 | AX15: =SUM(AX5:AX14) -> 1 | AY15: =SUM(AY5:AY14) -> 1 | AZ15: =SUM(AZ5:AZ14) -> 1 | BA15: =SUM(BA5:BA14) -> 1 | BB15: =SUM(BB5:BB14) -> 1 | BC15: =SUM(BC5:BC14) -> 1 | BD15: =SUM(BD5:BD14) -> 1 | BE15: =SUM(BE5:BE14) -> 0.999 | BF15: =SUM(BF5:BF14) -> 0.999 | BG15: =SUM(BG5:BG14) -> 0.999 | BH15: =SUM(BH5:BH14) -> 0.999 | BI15: =SUM(BI5:BI14) -> 0.999 | BJ15: =SUM(BJ5:BJ14) -> 0.999 | BK15: =SUM(BK5:BK14) -> 0.999 | BL15: =SUM(BL5:BL14) -> 0.999 | BM15: =SUM(BM5:BM14) -> 0.999 | BN15: =SUM(BN5:BN14) -> 0.999 | BO15: =SUM(BO5:BO14) -> 0.999 | BP15: =SUM(BP5:BP14) -> 0.999 | BQ15: =SUM(BQ5:BQ14) -> 0.999 | BR15: =SUM(BR5:BR14) -> 0.999 | BS15: =SUM(BS5:BS14) -> 0.999 | BT15: =SUM(BT5:BT14) -> 0.999 | BU15: =SUM(BU5:BU14) -> 0.999 | BV15: =SUM(BV5:BV14) -> 0.999 | BW15: =SUM(BW5:BW14) -> 0.999 | BX15: =SUM(BX5:BX14) -> 0.999 | BY15: =SUM(BY5:BY14) -> 0.999 | BZ15: =SUM(BZ5:BZ14) -> 0.999 | CA15: =SUM(CA5:CA14) -> 0.999 | CB15: =SUM(CB5:CB14) -> 0.999 | CC15: =SUM(CC5:CC14) -> 0.999 | CD15: =SUM(CD5:CD14) -> 0.999 | CE15: =SUM(CE5:CE14) -> 0.999 | CF15: =SUM(CF5:CF14) -> 0.999 | CG15: =SUM(CG5:CG14) -> 1 | CH15: =SUM(CH5:CH14) -> 1 | CI15: =SUM(CI5:CI14) -> 1 | CJ15: =SUM(CJ5:CJ14) -> 1 | CK15: =SUM(CK5:CK14) -> 1 | CL15: =SUM(CL5:CL14) -> 1.1 | CM15: =SUM(CM5:CM14) -> 1 | CN15: =SUM(CN5:CN14) -> 1 | CO15: =SUM(CO5:CO14) -> 1 | CP15: =SUM(CP5:CP14) -> 1 | CQ15: =SUM(CQ5:CQ14) -> 1 | CR15: =SUM(CR5:CR14) -> 1 | CS15: =SUM(CS5:CS14) -> 1 | CT15: =SUM(CT5:CT14) -> 1 | CU15: =SUM(CU5:CU14) -> 1 | CV15: =SUM(CV5:CV14) -> 1 | CW15: =SUM(CW5:CW14) -> 1 | CX15: =SUM(CX5:CX14) -> 1 | CY15: =SUM(CY5:CY14) -> 1 | CZ15: =SUM(CZ5:CZ14) -> 1 | DA15: =SUM(DA5:DA14) -> 1 | DB15: =SUM(DB5:DB14) -> 1 | DC15: =SUM(DC5:DC14) -> 1 | DD15: =SUM(DD5:DD14) -> 1 | DE15: =SUM(DE5:DE14) -> 1 | DF15: =SUM(DF5:DF14) -> 1 | DG15: =SUM(DG5:DG14) -> 1 | DH15: =SUM(DH5:DH14) -> 1 | DI15: =SUM(DI5:DI14) -> 1 | DJ15: =SUM(DJ5:DJ14) -> 1 | DK15: =SUM(DK5:DK14) -> 1 | DL15: =SUM(DL5:DL14) -> 1 | DM15: =SUM(DM5:DM14) -> 1 | DN15: =SUM(DN5:DN14) -> 1
A17: Variant | B17: Oberved depth | C17: Observed ratios
A18: 1 | B18: 2430 | C18: =$B$29*C5 -> 4305 | D18: =$B$29*D5 -> 2152.5 | E18: =$B$29*E5 -> 2867.13 | F18: 1433.565 | G18: =$B$29*G5 -> 3228.75 | H18: =$B$29*H5 -> 1076.25 | I18: 2583 | J18: 3444 | K18: 2583 | L18: 1722 | M18: 1722 | N18: 861 | O18: 2152.5 | P18: 2583 | Q18: 1722 | R18: 3586.065 | S18: 2867.13 | T18: 2152.5 | U18: 2152.5 | V18: 1433.565 | W18: 1433.565 | X18: 714.63 | Y18: 3689.385 | Z18: 3056.55 | AA18: 2449.545 | AB18: 3056.55 | AC18: 2449.545 | AD18: 1833.93 | AE18: 1833.93 | AF18: 1226.925 | AG18: 1833.93 | AH18: 2449.545 | AI18: 1226.925 | AJ18: 1833.93 | AK18: 1226.925 | AL18: 615 | AM18: 2690.625 | AN18: 3766.875 | AO18: 2152.5 | AP18: 2690.625 | AQ18: 3228.75 | AR18: 1614.375 | AS18: 2152.5 | AT18: 1614.375 | AU18: 1614.375 | AV18: 2152.5 | AW18: 2690.625 | AX18: 1076.25 | AY18: 1614.375 | AZ18: 2152.5 | BA18: 1076.25 | BB18: 1614.375 | BC18: 1076.25 | BD18: 538.125 | BE18: 2389.275 | BF18: 2867.13 | BG18: 3344.985 | BH18: 3822.84 | BI18: 1911.42 | BJ18: 2389.275 | BK18: 1911.42 | BL18: 2389.275 | BM18: 2867.13 | BN18: 3344.985 | BO18: 1433.565 | BP18: =$B$29*BP5 -> 1433.565 | BQ18: 1911.42 | BR18: 1911.42 | BS18: 2389.275 | BT18: 2867.13 | BU18: 955.71 | BV18: 1433.565 | BW18: 1433.565 | BX18: 1911.42 | BY18: 2389.275 | BZ18: 955.71 | CA18: 1433.565 | CB18: 1911.42 | CC18: 955.71 | CD18: 1433.565 | CE18: 955.71 | CF18: 477.855 | CG18: 3013.5 | CH18: 3874.5 | CI18: 1722 | CJ18: 2152.5 | CK18: 2152.5 | CL18: 2583 | CM18: 3013.5 | CN18: 3444 | CO18: 1291.5 | CP18: 1291.5 | CQ18: 1722 | CR18: 2152.5 | CS18: 1722 | CT18: 2152.5 | CU18: 2583 | CV18: 3013.5 | CW18: 1291.5 | CX18: 1291.5 | CY18: 1722 | CZ18: 1722 | DA18: 2152.5 | DB18: 2583 | DC18: 861 | DD18: 1291.5 | DE18: 1291.5 | DF18: 1722 | DG18: 2152.5 | DH18: 861 | DI18: 1291.5 | DJ18: 1722 | DK18: 861 | DL18: 1291.5 | DM18: 861 | DN18: 430.5
A19: 2 | B19: 796 | C19: =$B$29*C6 -> 0 | D19: 2152.5 | E19: 1433.565 | F19: 1433.565 | G19: =$B$29*G6 -> 1076.25 | H19: 1076.25 | I19: 1722 | J19: 861 | K19: 861 | L19: 1722 | M19: 861 | N19: 861 | O19: 1076.25 | P19: 861 | Q19: 861 | R19: 714.63 | S19: 714.63 | T19: 1420.65 | U19: 714.63 | V19: 1433.565 | W19: 714.63 | X19: 714.63 | Y19: 615.615 | Z19: 1226.925 | AA19: 1833.93 | AB19: 615.615 | AC19: 1226.925 | AD19: 1833.93 | AE19: 1226.925 | AF19: 1226.925 | AG19: 1226.925 | AH19: 615.615 | AI19: 1226.925 | AJ19: 615.615 | AK19: 615.615 | AL19: 615 | AM19: 1614.375 | AN19: 538.125 | AO19: 1076.25 | AP19: 1076.25 | AQ19: 538.125 | AR19: 1614.375 | AS19: 1614.375 | AT19: 1076.25 | AU19: 1614.375 | AV19: 1076.25 | AW19: 538.125 | AX19: 1076.25 | AY19: 1076.25 | AZ19: 538.125 | BA19: 1076.25 | BB19: 538.125 | BC19: 538.125 | BD19: 538.125 | BE19: 1911.42 | BF19: 1433.565 | BG19: 955.71 | BH19: 477.855 | BI19: 1433.565 | BJ19: 955.71 | BK19: 1911.42 | BL19: 1433.565 | BM19: 955.71 | BN19: 477.855 | BO19: =$B$29*BO6 -> 955.71 | BP19: 1433.565 | BQ19: 955.71 | BR19: 1433.565 | BS19: 955.71 | BT19: 477.855 | BU19: 955.71 | BV19: 955.71 | BW19: 1433.565 | BX19: 955.71 | BY19: 477.855 | BZ19: 955.71 | CA19: 955.71 | CB19: 477.855 | CC19: 955.71 | CD19: 477.855 | CE19: 477.855 | CF19: 477.855 | CG19: 1291.5 | CH19: 430.5 | CI19: 1291.5 | CJ19: 1291.5 | CK19: 1722 | CL19: 1722 | CM19: 861 | CN19: 430.5 | CO19: 1291.5 | CP19: 1291.5 | CQ19: 1291.5 | CR19: 861 | CS19: 1722 | CT19: 1291.5 | CU19: 861 | CV19: 430.5 | CW19: 861 | CX19: 1291.5 | CY19: 861 | CZ19: 1291.5 | DA19: 861 | DB19: 430.5 | DC19: 861 | DD19: 861 | DE19: 1291.5 | DF19: 861 | DG19: 430.5 | DH19: 861 | DI19: 861 | DJ19: 430.5 | DK19: 861 | DL19: 430.5 | DM19: 430.5 | DN19: 430.5
A20: 3 | B20: 792 | C20: 0 | D20: 0 | E20: 0 | F20: 1433.565 | G20: =$B$29*G7 -> 0 | H20: 1076.25 | I20: 0 | J20: 0 | K20: 861 | L20: 861 | M20: 861 | N20: 861 | O20: 1076.25 | P20: 861 | Q20: 861 | R20: 0 | S20: 714.63 | T20: 714.63 | U20: 714.63 | V20: 714.63 | W20: 714.63 | X20: 714.63 | Y20: 0 | Z20: 0 | AA20: 0 | AB20: 615.615 | AC20: 615.615 | AD20: 615.615 | AE20: 1226.925 | AF20: 1226.925 | AG20: 615.615 | AH20: 615.615 | AI20: 615.615 | AJ20: 615.615 | AK20: 615.615 | AL20: 615 | AM20: 0 | AN20: 0 | AO20: 1076.25 | AP20: 538.125 | AQ20: 538.125 | AR20: 1076.25 | AS20: 538.125 | AT20: 1076.25 | AU20: 538.125 | AV20: 538.125 | AW20: 538.125 | AX20: 1076.25 | AY20: 538.125 | AZ20: 538.125 | BA20: 538.125 | BB20: 538.125 | BC20: 538.125 | BD20: 538.125 | BE20: 0 | BF20: 0 | BG20: 0 | BH20: 0 | BI20: 955.71 | BJ20: 955.71 | BK20: 477.855 | BL20: 477.855 | BM20: 477.855 | BN20: 477.855 | BO20: =$B$29*BO7 -> 955.71 | BP20: 955.71 | BQ20: 955.71 | BR20: 477.855 | BS20: 477.855 | BT20: 477.855 | BU20: 955.71 | BV20: 955.71 | BW20: 477.855 | BX20: 477.855 | BY20: 477.855 | BZ20: 955.71 | CA20: 477.855 | CB20: 477.855 | CC20: 477.855 | CD20: 477.855 | CE20: 477.855 | CF20: 477.855 | CG20: 0 | CH20: 0 | CI20: 1291.5 | CJ20: 861 | CK20: 430.5 | CL20: 430.5 | CM20: 430.5 | CN20: 430.5 | CO20: 861 | CP20: 1291.5 | CQ20: 861 | CR20: 861 | CS20: 430.5 | CT20: 430.5 | CU20: 430.5 | CV20: 430.5 | CW20: 861 | CX20: 861 | CY20: 861 | CZ20: 430.5 | DA20: 430.5 | DB20: 430.5 | DC20: 861 | DD20: 861 | DE20: 430.5 | DF20: 430.5 | DG20: 430.5 | DH20: 861 | DI20: 430.5 | DJ20: 430.5 | DK20: 430.5 | DL20: 430.5 | DM20: 430.5 | DN20: 430.5
A21: 4 | B21: 93 | C21: 0 | D21: 0 | E21: 0 | F21: 0 | G21: =$B$29*G8 -> 0 | H21: 1076.25 | I21: 0 | J21: 0 | K21: 0 | L21: 0 | M21: 861 | N21: 861 | O21: 0 | P21: 0 | Q21: 861 | R21: 0 | S21: 0 | T21: 0 | U21: 714.63 | V21: 714.63 | W21: 714.63 | X21: 714.63 | Y21: 0 | Z21: 0 | AA21: 0 | AB21: 0 | AC21: 0 | AD21: 0 | AE21: 0 | AF21: 615.615 | AG21: 615.615 | AH21: 615.615 | AI21: 615.615 | AJ21: 615.615 | AK21: 615.615 | AL21: 615 | AM21: 0 | AN21: 0 | AO21: 0 | AP21: 0 | AQ21: 0 | AR21: 0 | AS21: 0 | AT21: 538.125 | AU21: 538.125 | AV21: 538.125 | AW21: 538.125 | AX21: 538.125 | AY21: 538.125 | AZ21: 538.125 | BA21: 538.125 | BB21: 538.125 | BC21: 538.125 | BD21: 538.125 | BE21: 0 | BF21: 0 | BG21: 0 | BH21: 0 | BI21: 0 | BJ21: 0 | BK21: 0 | BL21: 0 | BM21: 0 | BN21: 0 | BO21: =$B$29*BO8 -> 955.71 | BP21: 477.855 | BQ21: 477.855 | BR21: 477.855 | BS21: 477.855 | BT21: 477.855 | BU21: 955.71 | BV21: 477.855 | BW21: 477.855 | BX21: 477.855 | BY21: 477.855 | BZ21: 477.855 | CA21: 477.855 | CB21: 477.855 | CC21: 477.855 | CD21: 477.855 | CE21: 477.855 | CF21: 477.855 | CG21: 0 | CH21: 0 | CI21: 0 | CJ21: 0 | CK21: 0 | CL21: 0 | CM21: 0 | CN21: 0 | CO21: 861 | CP21: 430.5 | CQ21: 430.5 | CR21: 430.5 | CS21: 430.5 | CT21: 430.5 | CU21: 430.5 | CV21: 430.5 | CW21: 861 | CX21: 430.5 | CY21: 430.5 | CZ21: 430.5 | DA21: 430.5 | DB21: 430.5 | DC21: 861 | DD21: 430.5 | DE21: 430.5 | DF21: 430.5 | DG21: 430.5 | DH21: 430.5 | DI21: 430.5 | DJ21: 430.5 | DK21: 430.5 | DL21: 430.5 | DM21: 430.5 | DN21: 430.5
A22: 5 | B22: 73 | C22: 0 | D22: 0 | E22: 0 | F22: 0 | G22: =$B$29*G9 -> 0 | H22: 0 | I22: 0 | J22: 0 | K22: 0 | L22: 0 | M22: 0 | N22: 861 | O22: 0 | P22: 0 | Q22: 0 | R22: 0 | S22: 0 | T22: 0 | U22: 0 | V22: 0 | W22: 714.63 | X22: 714.63 | Y22: 0 | Z22: 0 | AA22: 0 | AB22: 0 | AC22: 0 | AD22: 0 | AE22: 0 | AF22: 0 | AG22: 0 | AH22: 0 | AI22: 615.615 | AJ22: 615.615 | AK22: 615.615 | AL22: 615 | AM22: 0 | AN22: 0 | AO22: 0 | AP22: 0 | AQ22: 0 | AR22: 0 | AS22: 0 | AT22: 0 | AU22: 0 | AV22: 0 | AW22: 0 | AX22: 538.125 | AY22: 538.125 | AZ22: 538.125 | BA22: 538.125 | BB22: 538.125 | BC22: 538.125 | BD22: 538.125 | BE22: 0 | BF22: 0 | BG22: 0 | BH22: 0 | BI22: 0 | BJ22: 0 | BK22: 0 | BL22: 0 | BM22: 0 | BN22: 0 | BO22: =$B$29*BO9 -> 0 | BP22: 0 | BQ22: 0 | BR22: 0 | BS22: 0 | BT22: 0 | BU22: 477.855 | BV22: 477.855 | BW22: 477.855 | BX22: 477.855 | BY22: 477.855 | BZ22: 477.855 | CA22: 477.855 | CB22: 477.855 | CC22: 477.855 | CD22: 477.855 | CE22: 477.855 | CF22: 477.855 | CG22: 0 | CH22: 0 | CI22: 0 | CJ22: 0 | CK22: 0 | CL22: 0 | CM22: 0 | CN22: 0 | CO22: 0 | CP22: 0 | CQ22: 0 | CR22: 0 | CS22: 0 | CT22: 0 | CU22: 0 | CV22: 0 | CW22: 430.5 | CX22: 430.5 | CY22: 430.5 | CZ22: 430.5 | DA22: 430.5 | DB22: 430.5 | DC22: 430.5 | DD22: 430.5 | DE22: 430.5 | DF22: 430.5 | DG22: 430.5 | DH22: 430.5 | DI22: 430.5 | DJ22: 430.5 | DK22: 430.5 | DL22: 430.5 | DM22: 430.5 | DN22: 430.5
A23: 6 | B23: 34 | C23: 0 | D23: 0 | E23: 0 | F23: 0 | G23: =$B$29*G10 -> 0 | H23: 0 | I23: 0 | J23: 0 | K23: 0 | L23: 0 | M23: 0 | N23: 0 | O23: 0 | P23: 0 | Q23: 0 | R23: 0 | S23: 0 | T23: 0 | U23: 0 | V23: 0 | W23: 0 | X23: 714.63 | Y23: 0 | Z23: 0 | AA23: 0 | AB23: 0 | AC23: 0 | AD23: 0 | AE23: 0 | AF23: 0 | AG23: 0 | AH23: 0 | AI23: 0 | AJ23: 0 | AK23: 615.615 | AL23: 615 | AM23: 0 | AN23: 0 | AO23: 0 | AP23: 0 | AQ23: 0 | AR23: 0 | AS23: 0 | AT23: 0 | AU23: 0 | AV23: 0 | AW23: 0 | AX23: 0 | AY23: 0 | AZ23: 0 | BA23: 538.125 | BB23: 538.125 | BC23: 538.125 | BD23: 538.125 | BE23: 0 | BF23: 0 | BG23: 0 | BH23: 0 | BI23: 0 | BJ23: 0 | BK23: 0 | BL23: 0 | BM23: 0 | BN23: 0 | BO23: =$B$29*BO10 -> 0 | BP23: 0 | BQ23: 0 | BR23: 0 | BS23: 0 | BT23: 0 | BU23: 0 | BV23: 0 | BW23: 0 | BX23: 0 | BY23: 0 | BZ23: 477.855 | CA23: 477.855 | CB23: 477.855 | CC23: 477.855 | CD23: 477.855 | CE23: 477.855 | CF23: 477.855 | CG23: 0 | CH23: 0 | CI23: 0 | CJ23: 0 | CK23: 0 | CL23: 0 | CM23: 0 | CN23: 0 | CO23: 0 | CP23: 0 | CQ23: 0 | CR23: 0 | CS23: 0 | CT23: 0 | CU23: 0 | CV23: 0 | CW23: 0 | CX23: 0 | CY23: 0 | CZ23: 0 | DA23: 0 | DB23: 0 | DC23: 430.5 | DD23: 430.5 | DE23: 430.5 | DF23: 430.5 | DG23: 430.5 | DH23: 430.5 | DI23: 430.5 | DJ23: 430.5 | DK23: 430.5 | DL23: 430.5 | DM23: 430.5 | DN23: 430.5
A24: 7 | B24: 28 | C24: 0 | D24: 0 | E24: 0 | F24: 0 | G24: =$B$29*G11 -> 0 | H24: 0 | I24: 0 | J24: 0 | K24: 0 | L24: 0 | M24: 0 | N24: 0 | O24: 0 | P24: 0 | Q24: 0 | R24: 0 | S24: 0 | T24: 0 | U24: 0 | V24: 0 | W24: 0 | X24: 0 | Y24: 0 | Z24: 0 | AA24: 0 | AB24: 0 | AC24: 0 | AD24: 0 | AE24: 0 | AF24: 0 | AG24: 0 | AH24: 0 | AI24: 0 | AJ24: 0 | AK24: 0 | AL24: 615 | AM24: 0 | AN24: 0 | AO24: 0 | AP24: 0 | AQ24: 0 | AR24: 0 | AS24: 0 | AT24: 0 | AU24: 0 | AV24: 0 | AW24: 0 | AX24: 0 | AY24: 0 | AZ24: 0 | BA24: 0 | BB24: 0 | BC24: 538.125 | BD24: 538.125 | BE24: 0 | BF24: 0 | BG24: 0 | BH24: 0 | BI24: 0 | BJ24: 0 | BK24: 0 | BL24: 0 | BM24: 0 | BN24: 0 | BO24: =$B$29*BO11 -> 0 | BP24: 0 | BQ24: 0 | BR24: 0 | BS24: 0 | BT24: 0 | BU24: 0 | BV24: 0 | BW24: 0 | BX24: 0 | BY24: 0 | BZ24: 0 | CA24: 0 | CB24: 0 | CC24: 477.855 | CD24: 477.855 | CE24: 477.855 | CF24: 477.855 | CG24: 0 | CH24: 0 | CI24: 0 | CJ24: 0 | CK24: 0 | CL24: 0 | CM24: 0 | CN24: 0 | CO24: 0 | CP24: 0 | CQ24: 0 | CR24: 0 | CS24: 0 | CT24: 0 | CU24: 0 | CV24: 0 | CW24: 0 | CX24: 0 | CY24: 0 | CZ24: 0 | DA24: 0 | DB24: 0 | DC24: 0 | DD24: 0 | DE24: 0 | DF24: 0 | DG24: 0 | DH24: 430.5 | DI24: 430.5 | DJ24: 430.5 | DK24: 430.5 | DL24: 430.5 | DM24: 430.5 | DN24: 430.5
A25: 8 | B25: 24 | C25: 0 | D25: 0 | E25: 0 | F25: 0 | G25: =$B$29*G12 -> 0 | H25: 0 | I25: 0 | J25: 0 | K25: 0 | L25: 0 | M25: 0 | N25: 0 | O25: 0 | P25: 0 | Q25: 0 | R25: 0 | S25: 0 | T25: 0 | U25: 0 | V25: 0 | W25: 0 | X25: 0 | Y25: 0 | Z25: 0 | AA25: 0 | AB25: 0 | AC25: 0 | AD25: 0 | AE25: 0 | AF25: 0 | AG25: 0 | AH25: 0 | AI25: 0 | AJ25: 0 | AK25: 0 | AL25: 0 | AM25: 0 | AN25: 0 | AO25: 0 | AP25: 0 | AQ25: 0 | AR25: 0 | AS25: 0 | AT25: 0 | AU25: 0 | AV25: 0 | AW25: 0 | AX25: 0 | AY25: 0 | AZ25: 0 | BA25: 0 | BB25: 0 | BC25: 0 | BD25: 538.125 | BE25: 0 | BF25: 0 | BG25: 0 | BH25: 0 | BI25: 0 | BJ25: 0 | BK25: 0 | BL25: 0 | BM25: 0 | BN25: 0 | BO25: =$B$29*BO12 -> 0 | BP25: 0 | BQ25: 0 | BR25: 0 | BS25: 0 | BT25: 0 | BU25: 0 | BV25: 0 | BW25: 0 | BX25: 0 | BY25: 0 | BZ25: 0 | CA25: 0 | CB25: 0 | CC25: 0 | CD25: 0 | CE25: 477.855 | CF25: 477.855 | CG25: 0 | CH25: 0 | CI25: 0 | CJ25: 0 | CK25: 0 | CL25: 0 | CM25: 0 | CN25: 0 | CO25: 0 | CP25: 0 | CQ25: 0 | CR25: 0 | CS25: 0 | CT25: 0 | CU25: 0 | CV25: 0 | CW25: 0 | CX25: 0 | CY25: 0 | CZ25: 0 | DA25: 0 | DB25: 0 | DC25: 0 | DD25: 0 | DE25: 0 | DF25: 0 | DG25: 0 | DH25: 0 | DI25: 0 | DJ25: 0 | DK25: 430.5 | DL25: 430.5 | DM25: 430.5 | DN25: 430.5
A26: 9 | B26: 18 | C26: 0 | D26: 0 | E26: 0 | F26: 0 | G26: =$B$29*G13 -> 0 | H26: 0 | I26: 0 | J26: 0 | K26: 0 | L26: 0 | M26: 0 | N26: 0 | O26: 0 | P26: 0 | Q26: 0 | R26: 0 | S26: 0 | T26: 0 | U26: 0 | V26: 0 | W26: 0 | X26: 0 | Y26: 0 | Z26: 0 | AA26: 0 | AB26: 0 | AC26: 0 | AD26: 0 | AE26: 0 | AF26: 0 | AG26: 0 | AH26: 0 | AI26: 0 | AJ26: 0 | AK26: 0 | AL26: 0 | AM26: 0 | AN26: 0 | AO26: 0 | AP26: 0 | AQ26: 0 | AR26: 0 | AS26: 0 | AT26: 0 | AU26: 0 | AV26: 0 | AW26: 0 | AX26: 0 | AY26: 0 | AZ26: 0 | BA26: 0 | BB26: 0 | BC26: 0 | BD26: 0 | BE26: 0 | BF26: 0 | BG26: 0 | BH26: 0 | BI26: 0 | BJ26: 0 | BK26: 0 | BL26: 0 | BM26: 0 | BN26: 0 | BO26: =$B$29*BO13 -> 0 | BP26: 0 | BQ26: 0 | BR26: 0 | BS26: 0 | BT26: 0 | BU26: 0 | BV26: 0 | BW26: 0 | BX26: 0 | BY26: 0 | BZ26: 0 | CA26: 0 | CB26: 0 | CC26: 0 | CD26: 0 | CE26: 0 | CF26: 477.855 | CG26: 0 | CH26: 0 | CI26: 0 | CJ26: 0 | CK26: 0 | CL26: 0 | CM26: 0 | CN26: 0 | CO26: 0 | CP26: 0 | CQ26: 0 | CR26: 0 | CS26: 0 | CT26: 0 | CU26: 0 | CV26: 0 | CW26: 0 | CX26: 0 | CY26: 0 | CZ26: 0 | DA26: 0 | DB26: 0 | DC26: 0 | DD26: 0 | DE26: 0 | DF26: 0 | DG26: 0 | DH26: 0 | DI26: 0 | DJ26: 0 | DK26: 0 | DL26: 0 | DM26: 430.5 | DN26: 430.5
A27: 10 | B27: 17 | C27: 0 | D27: 0 | E27: 0 | F27: 0 | G27: =$B$29*G14 -> 0 | H27: 0 | I27: 0 | J27: 0 | K27: 0 | L27: 0 | M27: 0 | N27: 0 | O27: 0 | P27: 0 | Q27: 0 | R27: 0 | S27: 0 | T27: 0 | U27: 0 | V27: 0 | W27: 0 | X27: 0 | Y27: 0 | Z27: 0 | AA27: 0 | AB27: 0 | AC27: 0 | AD27: 0 | AE27: 0 | AF27: 0 | AG27: 0 | AH27: 0 | AI27: 0 | AJ27: 0 | AK27: 0 | AL27: 0 | AM27: 0 | AN27: 0 | AO27: 0 | AP27: 0 | AQ27: 0 | AR27: 0 | AS27: 0 | AT27: 0 | AU27: 0 | AV27: 0 | AW27: 0 | AX27: 0 | AY27: 0 | AZ27: 0 | BA27: 0 | BB27: 0 | BC27: 0 | BD27: 0 | BE27: 0 | BF27: 0 | BG27: 0 | BH27: 0 | BI27: 0 | BJ27: 0 | BK27: 0 | BL27: 0 | BM27: 0 | BN27: 0 | BO27: =$B$29*BO14 -> 0 | BP27: 0 | BQ27: 0 | BR27: 0 | BS27: 0 | BT27: 0 | BU27: 0 | BV27: 0 | BW27: 0 | BX27: 0 | BY27: 0 | BZ27: 0 | CA27: 0 | CB27: 0 | CC27: 0 | CD27: 0 | CE27: 0 | CF27: 0 | CG27: 0 | CH27: 0 | CI27: 0 | CJ27: 0 | CK27: 0 | CL27: 0 | CM27: 0 | CN27: 0 | CO27: 0 | CP27: 0 | CQ27: 0 | CR27: 0 | CS27: 0 | CT27: 0 | CU27: 0 | CV27: 0 | CW27: 0 | CX27: 0 | CY27: 0 | CZ27: 0 | DA27: 0 | DB27: 0 | DC27: 0 | DD27: 0 | DE27: 0 | DF27: 0 | DG27: 0 | DH27: 0 | DI27: 0 | DJ27: 0 | DK27: 0 | DL27: 0 | DM27: 0 | DN27: 430.5
A29: Total | B29: =SUM('Loci models'!B18:B27) -> 4305
B31: Sum Of Squares | C31: =SUM(($B$18-C18)^2+($B$19-C19)^2+($B$20-C20)^2+($B$21-C21)^2+($B$22-C22)^2+($B$23-C23)^2+($B$24-C24)^2+($B$25-C25)^2+($B$26-C26)^2+($B$27-C27)^2) -> 4793612 | D31: =SUM(($B$18-D18)^2+($B$19-D19)^2+($B$20-D20)^2+($B$21-D21)^2+($B$22-D22)^2+($B$23-D23)^2+($B$24-D24)^2+($B$25-D25)^2+($B$26-D26)^2+($B$27-D27)^2) -> 2561469.5 | E31: =SUM(($B$18-E18)^2+($B$19-E19)^2+($B$20-E20)^2+($B$21-E21)^2+($B$22-E22)^2+($B$23-E23)^2+($B$24-E24)^2+($B$25-E25)^2+($B$26-E26)^2+($B$27-E27)^2) -> 1241942.766 | F31: =SUM(($B$18-F18)^2+($B$19-F19)^2+($B$20-F20)^2+($B$21-F21)^2+($B$22-F22)^2+($B$23-F23)^2+($B$24-F24)^2+($B$25-F25)^2+($B$26-F26)^2+($B$27-F27)^2) -> 1828084.488 | G31: =SUM(($B$18-G18)^2+($B$19-G19)^2+($B$20-G20)^2+($B$21-G21)^2+($B$22-G22)^2+($B$23-G23)^2+($B$24-G24)^2+($B$25-G25)^2+($B$26-G26)^2+($B$27-G27)^2) -> 1360912.625 | H31: =SUM(($B$18-H18)^2+($B$19-H19)^2+($B$20-H20)^2+($B$21-H21)^2+($B$22-H22)^2+($B$23-H23)^2+($B$24-H24)^2+($B$25-H25)^2+($B$26-H26)^2+($B$27-H27)^2) -> 2967215.75 | I31: 1525256 | J31: 1676792 | K31: 49502 | L31: 1380608 | M31: 1108532 | N31: 3684644 | O31: 253451.375 | P31: 49502 | Q31: 1108532 | R31: 1987478.361 | S31: 220796.8307 | T31: 490286.9894 | U31: 484495.3007 | V31: 1800239.812 | W31: 1806731.817 | X31: 4218444.541 | Y31: 2262960.326 | Z31: 1222632.258 | AA31: 1722051.692 | AB31: 473322.3189 | AC31: 234297.0309 | AD31: 1480816.798 | AE31: 747262.5561 | AF31: 2103830.005 | AG31: 853691.907 | AH31: 345616.8617 | AI31: 2234883.956 | AJ31: 989636.3378 | AK31: 2418846.357 | AL31: 4607882 | AM31: 1382034.031 | AN31: 2498105.281 | AO31: 253451.375 | AP31: 228024.9688 | AQ31: 786060.5938 | AR31: 1432886.844 | AS31: 828303.4062 | AT31: 1031176.531 | AU31: 1606028.562 | AV31: 426593.0938 | AW31: 405471.6875 | AX31: 2409583.719 | AY31: 1225843.25 | AZ31: 625564.8125 | BA31: 2646224.188 | BB31: 1466788.719 | BC31: 2893627.156 | BD31: 4903927.625 | BE31: 1890191.302 | BF31: 1241942.766 | BG31: 1507075.834 | BH31: 2685590.507 | BI31: 719322.3097 | BJ31: 71073.77383 | BK31: 1628881.074 | BL31: 523941.7359 | BM31: 332384.002 | BN31: 1054207.872 | BO31: =SUM(($B$18-BO18)^2+($B$19-BO19)^2+($B$20-BO20)^2+($B$21-BO21)^2+($B$22-BO22)^2+($B$23-BO23)^2+($B$24-BO24)^2+($B$25-BO25)^2+($B$26-BO26)^2+($B$27-BO27)^2) -> 1797917.502 | BP31: 1582744.174 | BQ31: 477804.8356 | BR31: 930672.7977 | BS31: 282424.2618 | BT31: 547557.33 | BU31: 3137144.367 | BV31: 1360340.899 | BW31: 1813208.862 | BX31: 708269.5236 | BY31: 516711.7897 | BZ31: 2736840.455 | CA31: 1628078.277 | CB31: 979829.7415 | CC31: 3010312.093 | CD31: 1905372.755 | CE31: 3291429.411 | CF31: 5139911.129 | CG31: 1230363.5 | CH31: 2864541.5 | CI31: 1013391.5 | CJ31: 344394.5 | CK31: 1082271.5 | CL31: 1028674.25 | CM31: 492486.5 | CN31: 1309575.5 | CO31: 2144745.5 | CP31: 1913567 | CQ31: 873909.5 | CR31: 208356.5 | CS31: 1611786.5 | CT31: 575573 | CU31: 280680.5 | CV31: 727109 | CW31: 2025927.5 | CX31: 1791305 | CY31: 755091.5 | CZ31: 1122308 | DA31: 456755 | DB31: 532523 | DC31: 3347562.5 | DD31: 1706066 | DE31: 2073282.5 | DF31: 1037069 | DG31: 742176.5 | DH31: 3032867 | DI31: 1993209.5 | DJ31: 1327656.5 | DK31: 3323454.5 | DL31: 2287241 | DM31: 3622652 | DN31: 5329584.5
B34: Model | C34: 1 | D34: 2
B35: ss | C35: =SMALL(31:31,1) -> 49502 | D35: =SMALL(31:31,2) -> 49502
B36: CNV | C36: =INDEX(3:3,MATCH('Loci models'!C35,'Loci models'!31:31,0)) -> 3:1:1 or 6.2.2 | D36: =INDEX(3:3,MATCH('Loci models'!D35,'Loci models'!31:31,0)) -> 3:1:1 or 6.2.2
B37: Ai | C37: =LEN(C36)-LEN(SUBSTITUTE(C36,":",""))+1 -> 3 | D37: =LEN(D36)-LEN(SUBSTITUTE(D36,":",""))+1 -> 3
B38: F ratio | C38: =C35/D35 -> 1

Sheet Genotypes
A1: CNV model estimate of Ai | B1: Sample ID | D1: Sample ID | F1: Sample ID | H1: Sample ID | J1: Sample ID | L1: Sample ID | N1: Sample ID | P1: Sample ID | R1: Sample ID | T1: Sample ID | V1: Sample ID | X1: Sample ID | Z1: Sample ID | AB1: Sample ID | AD1: Sample ID | AF1: Sample ID | AH1: Sample ID | AJ1: Sample ID | AL1: Sample ID | AN1: Sample ID | AP1: Sample ID | AR1: Sample ID | AT1: Sample ID | AV1: Sample ID | AX1: Sample ID | AZ1: Sample ID | BB1: Sample ID | BD1: Sample ID | BF1: Sample ID | BH1: Sample ID | BJ1: Sample ID | BL1: Sample ID | BN1: Sample ID | BP1: Sample ID | BR1: Sample ID | BT1: Sample ID | BV1: Sample ID | BX1: Sample ID | BZ1: Sample ID | CB1: Sample ID | CD1: Sample ID | CF1: Sample ID | CH1: Sample ID | CJ1: Sample ID | CL1: Sample ID | CN1: Sample ID | CP1: Sample ID | CR1: Sample ID | CT1: Sample ID | CV1: Sample ID | CX1: Sample ID | CZ1: Sample ID | DB1: Sample ID | DD1: Sample ID | DF1: Sample ID | DH1: Sample ID | DJ1: Sample ID | DL1: Sample ID | DN1: Sample ID | DP1: Sample ID | DR1: Sample ID | DT1: Sample ID | DV1: Sample ID | DX1: Sample ID | DZ1: Sample ID | EB1: Sample ID | ED1: Sample ID | EF1: Sample ID | EH1: Sample ID | EJ1: Sample ID | EL1: Sample ID | EN1: Sample ID | EP1: Sample ID | ER1: Sample ID | ET1: Sample ID | EV1: Sample ID | EX1: Sample ID | EZ1: Sample ID | FB1: Sample ID | FD1: Sample ID | FF1: Sample ID | FH1: Sample ID | FJ1: Sample ID | FL1: Sample ID | FN1: Sample ID | FP1: Sample ID | FR1: Sample ID | FT1: Sample ID | FV1: Sample ID | FX1: Sample ID | FZ1: Sample ID | GB1: Sample ID | GD1: Sample ID | GF1: Sample ID | GH1: Sample ID | GJ1: Sample ID | GL1: Sample ID | GN1: Sample ID | GP1: Sample ID | GR1: Sample ID | GT1: Sample ID | GV1: Sample ID | GX1: Sample ID | GZ1: Sample ID | HB1: Sample ID | HD1: Sample ID | HF1: Sample ID | HH1: Sample ID | HJ1: Sample ID | HL1: Sample ID | HN1: Sample ID | HP1: Sample ID | HR1: Sample ID | HT1: Sample ID | HV1: Sample ID | HX1: Sample ID | HZ1: Sample ID | IB1: Sample ID | ID1: Sample ID | IF1: Sample ID | IH1: Sample ID | IJ1: Sample ID | IL1: Sample ID | IN1: Sample ID | IP1: Sample ID | IR1: Sample ID | IT1: Sample ID | IV1: Sample ID | IX1: Sample ID | IZ1: Sample ID | JB1: Sample ID | JD1: Sample ID | JF1: Sample ID | JH1: Sample ID | JJ1: Sample ID | JL1: Sample ID | JN1: Sample ID | JP1: Sample ID | JR1: Sample ID | JT1: Sample ID | JV1: Sample ID | JX1: Sample ID | JZ1: Sample ID | KB1: Sample ID | KD1: Sample ID | KF1: Sample ID | KH1: Sample ID | KJ1: Sample ID | KL1: Sample ID | KN1: Sample ID | KP1: Sample ID | KR1: Sample ID | KT1: Sample ID | KV1: Sample ID | KX1: Sample ID | KZ1: Sample ID | LB1: Sample ID | LD1: Sample ID | LF1: Sample ID | LH1: Sample ID | LJ1: Sample ID | LL1: Sample ID | LN1: Sample ID | LP1: Sample ID | LR1: Sample ID | LT1: Sample ID | LV1: Sample ID | LX1: Sample ID | LZ1: Sample ID | MB1: Sample ID | MD1: Sample ID | MF1: Sample ID | MH1: Sample ID | MJ1: Sample ID | ML1: Sample ID | MN1: Sample ID | MP1: Sample ID | MR1: Sample ID | MT1: Sample ID | MV1: Sample ID | MX1: Sample ID | MZ1: Sample ID | NB1: Sample ID | ND1: Sample ID | NF1: Sample ID | NH1: Sample ID | NJ1: Sample ID | NL1: Sample ID | NN1: Sample ID | NP1: Sample ID | NR1: Sample ID | NT1: Sample ID | NV1: Sample ID | NX1: Sample ID | NZ1: Sample ID | OB1: Sample ID | OD1: Sample ID | OF1: Sample ID | OH1: Sample ID | OJ1: Sample ID | OL1: Sample ID | ON1: Sample ID | OP1: Sample ID | OR1: Sample ID | OT1: Sample ID | OV1: Sample ID | OX1: Sample ID | OZ1: Sample ID | PB1: Sample ID | PD1: Sample ID | PF1: Sample ID | PH1: Sample ID | PJ1: Sample ID | PL1: Sample ID | PN1: Sample ID | PP1: Sample ID | PR1: Sample ID | PT1: Sample ID | PV1: Sample ID | PX1: Sample ID | PZ1: Sample ID | QB1: Sample ID | QD1: Sample ID | QF1: Sample ID | QH1: Sample ID | QJ1: Sample ID | QL1: Sample ID | QN1: Sample ID | QP1: Sample ID | QR1: Sample ID | QT1: Sample ID | QV1: Sample ID | QX1: Sample ID | QZ1: Sample ID | RB1: Sample ID | RD1: Sample ID | RF1: Sample ID | RH1: Sample ID | RJ1: Sample ID | RL1: Sample ID | RN1: Sample ID | RP1: Sample ID | RR1: Sample ID | RT1: Sample ID | RV1: Sample ID | RX1: Sample ID | RZ1: Sample ID | SB1: Sample ID | SD1: Sample ID | SF1: Sample ID | SH1: Sample ID | SJ1: Sample ID | SL1: Sample ID | SN1: Sample ID | SP1: Sample ID | SR1: Sample ID | ST1: Sample ID | SV1: Sample ID | SX1: Sample ID | SZ1: Sample ID | TB1: Sample ID | TD1: Sample ID | TF1: Sample ID | TH1: Sample ID | TJ1: Sample ID | TL1: Sample ID | TN1: Sample ID | TP1: Sample ID | TR1: Sample ID | TT1: Sample ID | TV1: Sample ID | TX1: Sample ID | TZ1: Sample ID | UB1: Sample ID | UD1: Sample ID | UF1: Sample ID | UH1: Sample ID | UJ1: Sample ID | UL1: Sample ID | UN1: Sample ID | UP1: Sample ID | UR1: Sample ID | UT1: Sample ID | UV1: Sample ID | UX1: Sample ID | UZ1: Sample ID | VB1: Sample ID | VD1: Sample ID | VF1: Sample ID | VH1: Sample ID | VJ1: Sample ID | VL1: Sample ID | VN1: Sample ID | VP1: Sample ID | VR1: Sample ID | VT1: Sample ID | VV1: Sample ID | VX1: Sample ID | VZ1: Sample ID | WB1: Sample ID | WD1: Sample ID | WF1: Sample ID | WH1: Sample ID | WJ1: Sample ID | WL1: Sample ID | WN1: Sample ID | WP1: Sample ID | WR1: Sample ID | WT1: Sample ID | WV1: Sample ID | WX1: Sample ID | WZ1: Sample ID | XB1: Sample ID | XD1: Sample ID | XF1: Sample ID | XH1: Sample ID | XJ1: Sample ID | XL1: Sample ID | XN1: Sample ID | XP1: Sample ID | XR1: Sample ID | XT1: Sample ID | XV1: Sample ID | XX1: Sample ID | XZ1: Sample ID | YB1: Sample ID | YD1: Sample ID | YF1: Sample ID | YH1: Sample ID | YJ1: Sample ID | YL1: Sample ID | YN1: Sample ID | YP1: Sample ID | YR1: Sample ID | YT1: Sample ID | YV1: Sample ID | YX1: Sample ID | YZ1: Sample ID | ZB1: Sample ID | ZD1: Sample ID | ZF1: Sample ID | ZH1: Sample ID | ZJ1: Sample ID | ZL1: Sample ID | ZN1: Sample ID | ZP1: Sample ID | ZR1: Sample ID | ZT1: Sample ID | ZV1: Sample ID | ZX1: Sample ID | ZZ1: Sample ID | AAB1: Sample ID | AAD1: Sample ID | AAF1: Sample ID | AAH1: Sample ID | AAJ1: Sample ID | AAL1: Sample ID | AAN1: Sample ID | AAP1: Sample ID | AAR1: Sample ID | AAT1: Sample ID | AAV1: Sample ID | AAX1: Sample ID | AAZ1: Sample ID | ABB1: Sample ID | ABD1: Sample ID | ABF1: Sample ID | ABH1: Sample ID | ABJ1: Sample ID | ABL1: Sample ID | ABN1: Sample ID | ABP1: Sample ID | ABR1: Sample ID | ABT1: Sample ID | ABV1: Sample ID | ABX1: Sample ID | ABZ1: Sample ID | ACB1: Sample ID | ACD1: Sample ID | ACF1: Sample ID | ACH1: Sample ID | ACJ1: Sample ID | ACL1: Sample ID | ACN1: Sample ID | ACP1: Sample ID | ACR1: Sample ID | ACT1: Sample ID | ACV1: Sample ID | ACX1: Sample ID | ACZ1: Sample ID | ADB1: Sample ID | ADD1: Sample ID | ADF1: Sample ID | ADH1: Sample ID | ADJ1: Sample ID | ADL1: Sample ID | ADN1: Sample ID | ADP1: Sample ID | ADR1: Sample ID | ADT1: Sample ID | ADV1: Sample ID | ADX1: Sample ID | ADZ1: Sample ID | AEB1: Sample ID | AED1: Sample ID | AEF1: Sample ID | AEH1: Sample ID | AEJ1: Sample ID | AEL1: Sample ID | AEN1: Sample ID | AEP1: Sample ID | AER1: Sample ID | AET1: Sample ID | AEV1: Sample ID | AEX1: Sample ID | AEZ1: Sample ID | AFB1: Sample ID | AFD1: Sample ID | AFF1: Sample ID | AFH1: Sample ID | AFJ1: Sample ID | AFL1: Sample ID | AFN1: Sample ID | AFP1: Sample ID | AFR1: Sample ID | AFT1: Sample ID | AFV1: Sample ID | AFX1: Sample ID | AFZ1: Sample ID | AGB1: Sample ID | AGD1: Sample ID | AGF1: Sample ID | AGH1: Sample ID | AGJ1: Sample ID | AGL1: Sample ID | AGN1: Sample ID | AGP1: Sample ID | AGR1: Sample ID | AGT1: Sample ID | AGV1: Sample ID | AGX1: Sample ID | AGZ1: Sample ID | AHB1: Sample ID | AHD1: Sample ID | AHF1: Sample ID | AHH1: Sample ID | AHJ1: Sample ID | AHL1: Sample ID | AHN1: Sample ID | AHP1: Sample ID | AHR1: Sample ID | AHT1: Sample ID | AHV1: Sample ID | AHX1: Sample ID | AHZ1: Sample ID | AIB1: Sample ID | AID1: Sample ID | AIF1: Sample ID | AIH1: Sample ID | AIJ1: Sample ID | AIL1: Sample ID | AIN1: Sample ID | AIP1: Sample ID | AIR1: Sample ID | AIT1: Sample ID | AIV1: Sample ID | AIX1: Sample ID | AIZ1: Sample ID | AJB1: Sample ID | AJD1: Sample ID | AJF1: Sample ID | AJH1: Sample ID | AJJ1: Sample ID | AJL1: Sample ID | AJN1: Sample ID | AJP1: Sample ID | AJR1: Sample ID | AJT1: Sample ID | AJV1: Sample ID | AJX1: Sample ID | AJZ1: Sample ID | AKB1: Sample ID | AKD1: Sample ID | AKF1: Sample ID | AKH1: Sample ID | AKJ1: Sample ID | AKL1: Sample ID | AKN1: Sample ID | AKP1: Sample ID | AKR1: Sample ID | AKT1: Sample ID | AKV1: Sample ID | AKX1: Sample ID | AKZ1: Sample ID | ALB1: Sample ID | ALD1: Sample ID | ALF1: Sample ID | ALH1: Sample ID | ALJ1: Sample ID | ALL1: Sample ID | ALN1: Sample ID | ALP1: Sample ID | ALR1: Sample ID | ALT1: Sample ID | ALV1: Sample ID | ALX1: Sample ID | ALZ1: Sample ID | AMB1: Sample ID | AMD1: Sample ID | AMF1: Sample ID | AMH1: Sample ID | AMJ1: Sample ID | AML1: Sample ID | AMN1: Sample ID | AMP1: Sample ID | AMR1: Sample ID | AMT1: Sample ID | AMV1: Sample ID | AMX1: Sample ID | AMZ1: Sample ID | ANB1: Sample ID | AND1: Sample ID | ANF1: Sample ID | ANH1: Sample ID | ANJ1: Sample ID | ANL1: Sample ID | ANN1: Sample ID | ANP1: Sample ID | ANR1: Sample ID | ANT1: Sample ID | ANV1: Sample ID | ANX1: Sample ID | ANZ1: Sample ID | AOB1: Sample ID | AOD1: Sample ID | AOF1: Sample ID | AOH1: Sample ID | AOJ1: Sample ID | AOL1: Sample ID | AON1: Sample ID | AOP1: Sample ID | AOR1: Sample ID | AOT1: Sample ID | AOV1: Sample ID | AOX1: Sample ID | AOZ1: Sample ID | APB1: Sample ID | APD1: Sample ID | APF1: Sample ID | APH1: Sample ID | APJ1: Sample ID | APL1: Sample ID | APN1: Sample ID | APP1: Sample ID | APR1: Sample ID | APT1: Sample ID | APV1: Sample ID | APX1: Sample ID | APZ1: Sample ID | AQB1: Sample ID | AQD1: Sample ID | AQF1: Sample ID | AQH1: Sample ID | AQJ1: Sample ID | AQL1: Sample ID | AQN1: Sample ID | AQP1: Sample ID | AQR1: Sample ID | AQT1: Sample ID | AQV1: Sample ID | AQX1: Sample ID | AQZ1: Sample ID | ARB1: Sample ID | ARD1: Sample ID | ARF1: Sample ID | ARH1: Sample ID | ARJ1: Sample ID | ARL1: Sample ID | ARN1: Sample ID | ARP1: Sample ID | ARR1: Sample ID | ART1: Sample ID | ARV1: Sample ID | ARX1: Sample ID | ARZ1: Sample ID | ASB1: Sample ID | ASD1: Sample ID | ASF1: Sample ID | ASH1: Sample ID | ASJ1: Sample ID | ASL1: Sample ID | ASN1: Sample ID | ASP1: Sample ID | ASR1: Sample ID | AST1: Sample ID | ASV1: Sample ID | ASX1: Sample ID | ASZ1: Sample ID | ATB1: Sample ID | ATD1: Sample ID | ATF1: Sample ID | ATH1: Sample ID | ATJ1: Sample ID | ATL1: Sample ID | ATN1: Sample ID | ATP1: Sample ID | ATR1: Sample ID | ATT1: Sample ID | ATV1: Sample ID | ATX1: Sample ID | ATZ1: Sample ID | AUB1: Sample ID | AUD1: Sample ID | AUF1: Sample ID | AUH1: Sample ID | AUJ1: Sample ID | AUL1: Sample ID | AUN1: Sample ID | AUP1: Sample ID | AUR1: Sample ID | AUT1: Sample ID | AUV1: Sample ID | AUX1: Sample ID | AUZ1: Sample ID | AVB1: Sample ID | AVD1: Sample ID | AVF1: Sample ID | AVH1: Sample ID | AVJ1: Sample ID | AVL1: Sample ID | AVN1: Sample ID | AVP1: Sample ID | AVR1: Sample ID | AVT1: Sample ID | AVV1: Sample ID | AVX1: Sample ID | AVZ1: Sample ID | AWB1: Sample ID | AWD1: Sample ID | AWF1: Sample ID | AWH1: Sample ID | AWJ1: Sample ID | AWL1: Sample ID | AWN1: Sample ID | AWP1: Sample ID | AWR1: Sample ID | AWT1: Sample ID | AWV1: Sample ID | AWX1: Sample ID | AWZ1: Sample ID | AXB1: Sample ID | AXD1: Sample ID | AXF1: Sample ID | AXH1: Sample ID | AXJ1: Sample ID | AXL1: Sample ID | AXN1: Sample ID | AXP1: Sample ID | AXR1: Sample ID | AXT1: Sample ID | AXV1: Sample ID | AXX1: Sample ID | AXZ1: Sample ID | AYB1: Sample ID | AYD1: Sample ID | AYF1: Sample ID | AYH1: Sample ID | AYJ1: Sample ID | AYL1: Sample ID | AYN1: Sample ID | AYP1: Sample ID | AYR1: Sample ID | AYT1: Sample ID | AYV1: Sample ID | AYX1: Sample ID | AYZ1: Sample ID | AZB1: Sample ID | AZD1: Sample ID | AZF1: Sample ID | AZH1: Sample ID | AZJ1: Sample ID | AZL1: Sample ID | AZN1: Sample ID | AZP1: Sample ID | AZR1: Sample ID | AZT1: Sample ID | AZV1: Sample ID | AZX1: Sample ID | AZZ1: Sample ID | BAB1: Sample ID | BAD1: Sample ID | BAF1: Sample ID | BAH1: Sample ID | BAJ1: Sample ID | BAL1: Sample ID | BAN1: Sample ID | BAP1: Sample ID | BAR1: Sample ID | BAT1: Sample ID | BAV1: Sample ID | BAX1: Sample ID | BAZ1: Sample ID | BBB1: Sample ID | BBD1: Sample ID | BBF1: Sample ID | BBH1: Sample ID | BBJ1: Sample ID | BBL1: Sample ID | BBN1: Sample ID | BBP1: Sample ID | BBR1: Sample ID | BBT1: Sample ID | BBV1: Sample ID | BBX1: Sample ID | BBZ1: Sample ID | BCB1: Sample ID | BCD1: Sample ID | BCF1: Sample ID | BCH1: Sample ID | BCJ1: Sample ID | BCL1: Sample ID | BCN1: Sample ID | BCP1: Sample ID | BCR1: Sample ID | BCT1: Sample ID | BCV1: Sample ID | BCX1: Sample ID | BCZ1: Sample ID | BDB1: Sample ID | BDD1: Sample ID | BDF1: Sample ID | BDH1: Sample ID | BDJ1: Sample ID | BDL1: Sample ID | BDN1: Sample ID | BDP1: Sample ID | BDR1: Sample ID | BDT1: Sample ID | BDV1: Sample ID | BDX1: Sample ID | BDZ1: Sample ID | BEB1: Sample ID | BED1: Sample ID | BEF1: Sample ID | BEH1: Sample ID | BEJ1: Sample ID | BEL1: Sample ID | BEN1: Sample ID | BEP1: Sample ID | BER1: Sample ID | BET1: Sample ID | BEV1: Sample ID | BEX1: Sample ID | BEZ1: Sample ID | BFB1: Sample ID | BFD1: Sample ID | BFF1: Sample ID | BFH1: Sample ID | BFJ1: Sample ID | BFL1: Sample ID | BFN1: Sample ID | BFP1: Sample ID | BFR1: Sample ID | BFT1: Sample ID | BFV1: Sample ID | BFX1: Sample ID | BFZ1: Sample ID | BGB1: Sample ID | BGD1: Sample ID | BGF1: Sample ID | BGH1: Sample ID | BGJ1: Sample ID | BGL1: Sample ID | BGN1: Sample ID | BGP1: Sample ID | BGR1: Sample ID | BGT1: Sample ID | BGV1: Sample ID | BGX1: Sample ID | BGZ1: Sample ID | BHB1: Sample ID | BHD1: Sample ID | BHF1: Sample ID | BHH1: Sample ID | BHJ1: Sample ID | BHL1: Sample ID | BHN1: Sample ID | BHP1: Sample ID | BHR1: Sample ID | BHT1: Sample ID | BHV1: Sample ID | BHX1: Sample ID | BHZ1: Sample ID | BIB1: Sample ID | BID1: Sample ID | BIF1: Sample ID | BIH1: Sample ID | BIJ1: Sample ID | BIL1: Sample ID | BIN1: Sample ID | BIP1: Sample ID | BIR1: Sample ID | BIT1: Sample ID | BIV1: Sample ID | BIX1: Sample ID | BIZ1: Sample ID | BJB1: Sample ID | BJD1: Sample ID | BJF1: Sample ID | BJH1: Sample ID | BJJ1: Sample ID | BJL1: Sample ID | BJN1: Sample ID | BJP1: Sample ID | BJR1: Sample ID | BJT1: Sample ID | BJV1: Sample ID | BJX1: Sample ID | BJZ1: Sample ID | BKB1: Sample ID | BKD1: Sample ID | BKF1: Sample ID | BKH1: Sample ID | BKJ1: Sample ID | BKL1: Sample ID | BKN1: Sample ID | BKP1: Sample ID | BKR1: Sample ID | BKT1: Sample ID | BKV1: Sample ID | BKX1: Sample ID | BKZ1: Sample ID | BLB1: Sample ID | BLD1: Sample ID | BLF1: Sample ID | BLH1: Sample ID | BLJ1: Sample ID | BLL1: Sample ID | BLN1: Sample ID | BLP1: Sample ID | BLR1: Sample ID | BLT1: Sample ID | BLV1: Sample ID | BLX1: Sample ID | BLZ1: Sample ID | BMB1: Sample ID | BMD1: Sample ID | BMF1: Sample ID | BMH1: Sample ID | BMJ1: Sample ID | BML1: Sample ID | BMN1: Sample ID | BMP1: Sample ID | BMR1: Sample ID | BMT1: Sample ID | BMV1: Sample ID | BMX1: Sample ID | BMZ1: Sample ID | BNB1: Sample ID | BND1: Sample ID | BNF1: Sample ID | BNH1: Sample ID | BNJ1: Sample ID | BNL1: Sample ID | BNN1: Sample ID | BNP1: Sample ID | BNR1: Sample ID | BNT1: Sample ID | BNV1: Sample ID | BNX1: Sample ID | BNZ1: Sample ID | BOB1: Sample ID | BOD1: Sample ID | BOF1: Sample ID | BOH1: Sample ID | BOJ1: Sample ID | BOL1: Sample ID | BON1: Sample ID | BOP1: Sample ID | BOR1: Sample ID | BOT1: Sample ID | BOV1: Sample ID | BOX1: Sample ID | BOZ1: Sample ID | BPB1: Sample ID | BPD1: Sample ID | BPF1: Sample ID | BPH1: Sample ID | BPJ1: Sample ID | BPL1: Sample ID | BPN1: Sample ID | BPP1: Sample ID | BPR1: Sample ID | BPT1: Sample ID | BPV1: Sample ID | BPX1: Sample ID | BPZ1: Sample ID | BQB1: Sample ID | BQD1: Sample ID | BQF1: Sample ID | BQH1: Sample ID | BQJ1: Sample ID | BQL1: Sample ID | BQN1: Sample ID | BQP1: Sample ID | BQR1: Sample ID | BQT1: Sample ID | BQV1: Sample ID | BQX1: Sample ID | BQZ1: Sample ID | BRB1: Sample ID | BRD1: Sample ID | BRF1: Sample ID | BRH1: Sample ID | BRJ1: Sample ID | BRL1: Sample ID | BRN1: Sample ID | BRP1: Sample ID | BRR1: Sample ID | BRT1: Sample ID | BRV1: Sample ID | BRX1: Sample ID | BRZ1: Sample ID | BSB1: Sample ID | BSD1: Sample ID | BSF1: Sample ID | BSH1: Sample ID | BSJ1: Sample ID | BSL1: Sample ID | BSN1: Sample ID | BSP1: Sample ID | BSR1: Sample ID | BST1: Sample ID | BSV1: Sample ID | BSX1: Sample ID | BSZ1: Sample ID | BTB1: Sample ID | BTD1: Sample ID | BTF1: Sample ID | BTH1: Sample ID | BTJ1: Sample ID | BTL1: Sample ID | BTN1: Sample ID | BTP1: Sample ID | BTR1: Sample ID | BTT1: Sample ID | BTV1: Sample ID | BTX1: Sample ID | BTZ1: Sample ID | BUB1: Sample ID | BUD1: Sample ID | BUF1: Sample ID | BUH1: Sample ID | BUJ1: Sample ID | BUL1: Sample ID | BUN1: Sample ID | BUP1: Sample ID | BUR1: Sample ID | BUT1: Sample ID | BUV1: Sample ID | BUX1: Sample ID | BUZ1: Sample ID | BVB1: Sample ID | BVD1: Sample ID | BVF1: Sample ID | BVH1: Sample ID | BVJ1: Sample ID | BVL1: Sample ID | BVN1: Sample ID | BVP1: Sample ID | BVR1: Sample ID | BVT1: Sample ID | BVV1: Sample ID | BVX1: Sample ID | BVZ1: Sample ID | BWB1: Sample ID | BWD1: Sample ID | BWF1: Sample ID | BWH1: Sample ID | BWJ1: Sample ID | BWL1: Sample ID | BWN1: Sample ID | BWP1: Sample ID | BWR1: Sample ID | BWT1: Sample ID | BWV1: Sample ID | BWX1: Sample ID | BWZ1: Sample ID | BXB1: Sample ID | BXD1: Sample ID | BXF1: Sample ID | BXH1: Sample ID | BXJ1: Sample ID | BXL1: Sample ID | BXN1: Sample ID | BXP1: Sample ID | BXR1: Sample ID | BXT1: Sample ID | BXV1: Sample ID | BXX1: Sample ID | BXZ1: Sample ID | BYB1: Sample ID | BYD1: Sample ID | BYF1: Sample ID | BYH1: Sample ID | BYJ1: Sample ID | BYL1: Sample ID | BYN1: Sample ID | BYP1: Sample ID | BYR1: Sample ID | BYT1: Sample ID | BYV1: Sample ID | BYX1: Sample ID | BYZ1: Sample ID | BZB1: Sample ID | BZD1: Sample ID | BZF1: Sample ID | BZH1: Sample ID | BZJ1: Sample ID | BZL1: Sample ID | BZN1: Sample ID | BZP1: Sample ID | BZR1: Sample ID | BZT1: Sample ID | BZV1: Sample ID | BZX1: Sample ID | BZZ1: Sample ID | CAB1: Sample ID | CAD1: Sample ID | CAF1: Sample ID | CAH1: Sample ID | CAJ1: Sample ID | CAL1: Sample ID | CAN1: Sample ID | CAP1: Sample ID | CAR1: Sample ID | CAT1: Sample ID | CAV1: Sample ID | CAX1: Sample ID | CAZ1: Sample ID | CBB1: Sample ID | CBD1: Sample ID | CBF1: Sample ID
B27: Sig. Diff between models? | C27: =IF(C25 > 0.05,"No","Yes") -> Yes | E27: =IF(E25 > 0.05,"No","Yes") -> Yes | G27: =IF(G25 > 0.05,"No","Yes") -> Yes | I27: =IF(I25 > 0.05,"No","Yes") -> Yes | K27: =IF(K25 > 0.05,"No","Yes") -> Yes | M27: =IF(M25 > 0.05,"No","Yes") -> Yes | O27: =IF(O25 > 0.05,"No","Yes") -> Yes | Q27: =IF(Q25 > 0.05,"No","Yes") -> Yes | S27: =IF(S25 > 0.05,"No","Yes") -> Yes | U27: =IF(U25 > 0.05,"No","Yes") -> Yes | W27: =IF(W25 > 0.05,"No","Yes") -> Yes | Y27: =IF(Y25 > 0.05,"No","Yes") -> Yes | AA27: =IF(AA25 > 0.05,"No","Yes") -> Yes | AC27: =IF(AC25 > 0.05,"No","Yes") -> Yes | AE27: =IF(AE25 > 0.05,"No","Yes") -> Yes | AG27: =IF(AG25 > 0.05,"No","Yes") -> Yes | AI27: =IF(AI25 > 0.05,"No","Yes") -> Yes | AK27: =IF(AK25 > 0.05,"No","Yes") -> Yes | AM27: =IF(AM25 > 0.05,"No","Yes") -> Yes | AO27: =IF(AO25 > 0.05,"No","Yes") -> Yes | AQ27: =IF(AQ25 > 0.05,"No","Yes") -> Yes | AS27: =IF(AS25 > 0.05,"No","Yes") -> Yes | AU27: =IF(AU25 > 0.05,"No","Yes") -> Yes | AW27: =IF(AW25 > 0.05,"No","Yes") -> Yes | AY27: =IF(AY25 > 0.05,"No","Yes") -> Yes | BA27: =IF(BA25 > 0.05,"No","Yes") -> Yes | BC27: =IF(BC25 > 0.05,"No","Yes") -> Yes | BE27: =IF(BE25 > 0.05,"No","Yes") -> Yes | BG27: =IF(BG25 > 0.05,"No","Yes") -> Yes | BI27: =IF(BI25 > 0.05,"No","Yes") -> Yes | BK27: =IF(BK25 > 0.05,"No","Yes") -> Yes | BM27: =IF(BM25 > 0.05,"No","Yes") -> Yes | BO27: =IF(BO25 > 0.05,"No","Yes") -> Yes | BQ27: =IF(BQ25 > 0.05,"No","Yes") -> Yes | BS27: =IF(BS25 > 0.05,"No","Yes") -> Yes | BU27: =IF(BU25 > 0.05,"No","Yes") -> Yes | BW27: =IF(BW25 > 0.05,"No","Yes") -> Yes | BY27: =IF(BY25 > 0.05,"No","Yes") -> Yes | CA27: =IF(CA25 > 0.05,"No","Yes") -> Yes | CC27: =IF(CC25 > 0.05,"No","Yes") -> Yes | CE27: =IF(CE25 > 0.05,"No","Yes") -> Yes | CG27: =IF(CG25 > 0.05,"No","Yes") -> Yes | CI27: =IF(CI25 > 0.05,"No","Yes") -> Yes | CK27: =IF(CK25 > 0.05,"No","Yes") -> Yes | CM27: =IF(CM25 > 0.05,"No","Yes") -> Yes | CO27: =IF(CO25 > 0.05,"No","Yes") -> Yes | CQ27: =IF(CQ25 > 0.05,"No","Yes") -> Yes | CS27: =IF(CS25 > 0.05,"No","Yes") -> Yes | CU27: =IF(CU25 > 0.05,"No","Yes") -> Yes | CW27: =IF(CW25 > 0.05,"No","Yes") -> Yes | CY27: =IF(CY25 > 0.05,"No","Yes") -> Yes | DA27: =IF(DA25 > 0.05,"No","Yes") -> Yes | DC27: =IF(DC25 > 0.05,"No","Yes") -> Yes | DE27: =IF(DE25 > 0.05,"No","Yes") -> Yes | DG27: =IF(DG25 > 0.05,"No","Yes") -> Yes | DI27: =IF(DI25 > 0.05,"No","Yes") -> Yes | DK27: =IF(DK25 > 0.05,"No","Yes") -> Yes | DM27: =IF(DM25 > 0.05,"No","Yes") -> Yes | DO27: =IF(DO25 > 0.05,"No","Yes") -> Yes | DQ27: =IF(DQ25 > 0.05,"No","Yes") -> Yes | DS27: =IF(DS25 > 0.05,"No","Yes") -> Yes | DU27: =IF(DU25 > 0.05,"No","Yes") -> Yes | DW27: =IF(DW25 > 0.05,"No","Yes") -> Yes | DY27: =IF(DY25 > 0.05,"No","Yes") -> Yes | EA27: =IF(EA25 > 0.05,"No","Yes") -> Yes | EC27: =IF(EC25 > 0.05,"No","Yes") -> Yes | EE27: =IF(EE25 > 0.05,"No","Yes") -> Yes | EG27: =IF(EG25 > 0.05,"No","Yes") -> Yes | EI27: =IF(EI25 > 0.05,"No","Yes") -> Yes | EK27: =IF(EK25 > 0.05,"No","Yes") -> Yes | EM27: =IF(EM25 > 0.05,"No","Yes") -> Yes | EO27: =IF(EO25 > 0.05,"No","Yes") -> Yes | EQ27: =IF(EQ25 > 0.05,"No","Yes") -> Yes | ES27: =IF(ES25 > 0.05,"No","Yes") -> Yes | EU27: =IF(EU25 > 0.05,"No","Yes") -> Yes | EW27: =IF(EW25 > 0.05,"No","Yes") -> Yes | EY27: =IF(EY25 > 0.05,"No","Yes") -> Yes | FA27: =IF(FA25 > 0.05,"No","Yes") -> Yes | FC27: =IF(FC25 > 0.05,"No","Yes") -> Yes | FE27: =IF(FE25 > 0.05,"No","Yes") -> Yes | FG27: =IF(FG25 > 0.05,"No","Yes") -> Yes | FI27: =IF(FI25 > 0.05,"No","Yes") -> Yes | FK27: =IF(FK25 > 0.05,"No","Yes") -> Yes | FM27: =IF(FM25 > 0.05,"No","Yes") -> Yes | FO27: =IF(FO25 > 0.05,"No","Yes") -> Yes | FQ27: =IF(FQ25 > 0.05,"No","Yes") -> Yes | FS27: =IF(FS25 > 0.05,"No","Yes") -> Yes | FU27: =IF(FU25 > 0.05,"No","Yes") -> Yes | FW27: =IF(FW25 > 0.05,"No","Yes") -> Yes | FY27: =IF(FY25 > 0.05,"No","Yes") -> Yes | GA27: =IF(GA25 > 0.05,"No","Yes") -> Yes | GC27: =IF(GC25 > 0.05,"No","Yes") -> Yes | GE27: =IF(GE25 > 0.05,"No","Yes") -> Yes | GG27: =IF(GG25 > 0.05,"No","Yes") -> Yes | GI27: =IF(GI25 > 0.05,"No","Yes") -> Yes | GK27: =IF(GK25 > 0.05,"No","Yes") -> Yes | GM27: =IF(GM25 > 0.05,"No","Yes") -> Yes | GO27: =IF(GO25 > 0.05,"No","Yes") -> Yes | GQ27: =IF(GQ25 > 0.05,"No","Yes") -> Yes | GS27: =IF(GS25 > 0.05,"No","Yes") -> Yes | GU27: =IF(GU25 > 0.05,"No","Yes") -> Yes | GW27: =IF(GW25 > 0.05,"No","Yes") -> Yes | GY27: =IF(GY25 > 0.05,"No","Yes") -> Yes | HA27: =IF(HA25 > 0.05,"No","Yes") -> Yes | HC27: =IF(HC25 > 0.05,"No","Yes") -> Yes | HE27: =IF(HE25 > 0.05,"No","Yes") -> Yes | HG27: =IF(HG25 > 0.05,"No","Yes") -> Yes | HI27: =IF(HI25 > 0.05,"No","Yes") -> Yes | HK27: =IF(HK25 > 0.05,"No","Yes") -> Yes | HM27: =IF(HM25 > 0.05,"No","Yes") -> Yes | HO27: =IF(HO25 > 0.05,"No","Yes") -> Yes | HQ27: =IF(HQ25 > 0.05,"No","Yes") -> Yes | HS27: =IF(HS25 > 0.05,"No","Yes") -> Yes | HU27: =IF(HU25 > 0.05,"No","Yes") -> Yes | HW27: =IF(HW25 > 0.05,"No","Yes") -> Yes | HY27: =IF(HY25 > 0.05,"No","Yes") -> Yes | IA27: =IF(IA25 > 0.05,"No","Yes") -> Yes | IC27: =IF(IC25 > 0.05,"No","Yes") -> Yes | IE27: =IF(IE25 > 0.05,"No","Yes") -> Yes | IG27: =IF(IG25 > 0.05,"No","Yes") -> Yes | II27: =IF(II25 > 0.05,"No","Yes") -> Yes | IK27: =IF(IK25 > 0.05,"No","Yes") -> Yes | IM27: =IF(IM25 > 0.05,"No","Yes") -> Yes | IO27: =IF(IO25 > 0.05,"No","Yes") -> Yes | IQ27: =IF(IQ25 > 0.05,"No","Yes") -> Yes | IS27: =IF(IS25 > 0.05,"No","Yes") -> Yes | IU27: =IF(IU25 > 0.05,"No","Yes") -> Yes | IW27: =IF(IW25 > 0.05,"No","Yes") -> Yes | IY27: =IF(IY25 > 0.05,"No","Yes") -> Yes | JA27: =IF(JA25 > 0.05,"No","Yes") -> Yes | JC27: =IF(JC25 > 0.05,"No","Yes") -> Yes | JE27: =IF(JE25 > 0.05,"No","Yes") -> Yes | JG27: =IF(JG25 > 0.05,"No","Yes") -> Yes | JI27: =IF(JI25 > 0.05,"No","Yes") -> Yes | JK27: =IF(JK25 > 0.05,"No","Yes") -> Yes | JM27: =IF(JM25 > 0.05,"No","Yes") -> Yes
C29: =IF(C16=C21,"WARNING! Identical CNV between top models as SS is the same. Check this sample using the individual genotyping sheet"," ") -> WARNING! Identical CNV between top models as SS is the same. Check this sample using the individual genotyping sheet | E29: =IF(E16=E21,"WARNING! Identical CNV between top models as SS is the same. Check this sample using the individual genotyping sheet"," ") -> WARNING! Identical CNV between top models as SS is the same. Check this sample using the individual genotyping sheet | G29: =IF(G16=G21,"WARNING! Identical CNV between top models as SS is the same. Check this sample using the individual genotyping sheet"," ") -> WARNING! Identical CNV between top models as SS is the same. Check this sample using the individual genotyping sheet | I29: =IF(I16=I21,"WARNING! Identical CNV between top models as SS is the same. Check this sample using the individual genotyping sheet"," ") -> WARNING! Identical CNV between top models as SS is the same. Check this sample using the individual genotyping sheet | K29: =IF(K16=K21,"WARNING! Identical CNV between top models as SS is the same. Check this sample using the individual genotyping sheet"," ") -> WARNING! Identical CNV between top models as SS is the same. Check this sample using the individual genotyping sheet | M29: =IF(M16=M21,"WARNING! Identical CNV between top models as SS is the same. Check this sample using the individual genotyping sheet"," ") -> WARNING! Identical CNV between top models as SS is the same. Check this sample using the individual genotyping sheet | O29: =IF(O16=O21,"WARNING! Identical CNV between top models as SS is the same. Check this sample using the individual genotyping sheet"," ") -> WARNING! Identical CNV between top models as SS is the same. Check this sample using the individual genotyping sheet | Q29: =IF(Q16=Q21,"WARNING! Identical CNV between top models as SS is the same. Check this sample using the individual genotyping sheet"," ") -> WARNING! Identical CNV between top models as SS is the same. Check this sample using the individual genotyping sheet | S29: =IF(S16=S21,"WARNING! Identical CNV between top models as SS is the same. Check this sample using the individual genotyping sheet"," ") -> WARNING! Identical CNV between top models as SS is the same. Check this sample using the individual genotyping sheet | U29: =IF(U16=U21,"WARNING! Identical CNV between top models as SS is the same. Check this sample using the individual genotyping sheet"," ") -> WARNING! Identical CNV between top models as SS is the same. Check this sample using the individual genotyping sheet | W29: =IF(W16=W21,"WARNING! Identical CNV between top models as SS is the same. Check this sample using the individual genotyping sheet"," ") -> WARNING! Identical CNV between top models as SS is the same. Check this sample using the individual genotyping sheet | Y29: =IF(Y16=Y21,"WARNING! Identical CNV between top models as SS is the same. Check this sample using the individual genotyping sheet"," ") -> WARNING! Identical CNV between top models as SS is the same. Check this sample using the individual genotyping sheet | AA29: =IF(AA16=AA21,"WARNING! Identical CNV between top models as SS is the same. Check this sample using the individual genotyping sheet"," ") -> WARNING! Identical CNV between top models as SS is the same. Check this sample using the individual genotyping sheet | AC29: =IF(AC16=AC21,"WARNING! Identical CNV between top models as SS is the same. Check this sample using the individual genotyping sheet"," ") -> WARNING! Identical CNV between top models as SS is the same. Check this sample using the individual genotyping sheet | AE29: =IF(AE16=AE21,"WARNING! Identical CNV between top models as SS is the same. Check this sample using the individual genotyping sheet"," ") -> WARNING! Identical CNV between top models as SS is the same. Check this sample using the individual genotyping sheet | AG29: =IF(AG16=AG21,"WARNING! Identical CNV between top models as SS is the same. Check this sample using the individual genotyping sheet"," ") -> WARNING! Identical CNV between top models as SS is the same. Check this sample using the individual genotyping sheet | AI29: =IF(AI16=AI21,"WARNING! Identical CNV between top models as SS is the same. Check this sample using the individual genotyping sheet"," ") -> WARNING! Identical CNV between top models as SS is the same. Check this sample using the individual genotyping sheet | AK29: =IF(AK16=AK21,"WARNING! Identical CNV between top models as SS is the same. Check this sample using the individual genotyping sheet"," ") -> WARNING! Identical CNV between top models as SS is the same. Check this sample using the individual genotyping sheet | AM29: =IF(AM16=AM21,"WARNING! Identical CNV between top models as SS is the same. Check this sample using the individual genotyping sheet"," ") -> WARNING! Identical CNV between top models as SS is the same. Check this sample using the individual genotyping sheet | AO29: =IF(AO16=AO21,"WARNING! Identical CNV between top models as SS is the same. Check this sample using the individual genotyping sheet"," ") -> WARNING! Identical CNV between top models as SS is the same. Check this sample using the individual genotyping sheet | AQ29: =IF(AQ16=AQ21,"WARNING! Identical CNV between top models as SS is the same. Check this sample using the individual genotyping sheet"," ") -> WARNING! Identical CNV between top models as SS is the same. Check this sample using the individual genotyping sheet | AS29: =IF(AS16=AS21,"WARNING! Identical CNV between top models as SS is the same. Check this sample using the individual genotyping sheet"," ") -> WARNING! Identical CNV between top models as SS is the same. Check this sample using the individual genotyping sheet | AU29: =IF(AU16=AU21,"WARNING! Identical CNV between top models as SS is the same. Check this sample using the individual genotyping sheet"," ") -> WARNING! Identical CNV between top models as SS is the same. Check this sample using the individual genotyping sheet | AW29: =IF(AW16=AW21,"WARNING! Identical CNV between top models as SS is the same. Check this sample using the individual genotyping sheet"," ") -> WARNING! Identical CNV between top models as SS is the same. Check this sample using the individual genotyping sheet | AY29: =IF(AY16=AY21,"WARNING! Identical CNV between top models as SS is the same. Check this sample using the individual genotyping sheet"," ") -> WARNING! Identical CNV between top models as SS is the same. Check this sample using the individual genotyping sheet | BA29: =IF(BA16=BA21,"WARNING! Identical CNV between top models as SS is the same. Check this sample using the individual genotyping sheet"," ") -> WARNING! Identical CNV between top models as SS is the same. Check this sample using the individual genotyping sheet | BC29: =IF(BC16=BC21,"WARNING! Identical CNV between top models as SS is the same. Check this sample using the individual genotyping sheet"," ") -> WARNING! Identical CNV between top models as SS is the same. Check this sample using the individual genotyping sheet | BE29: =IF(BE16=BE21,"WARNING! Identical CNV between top models as SS is the same. Check this sample using the individual genotyping sheet"," ") -> WARNING! Identical CNV between top models as SS is the same. Check this sample using the individual genotyping sheet | BG29: =IF(BG16=BG21,"WARNING! Identical CNV between top models as SS is the same. Check this sample using the individual genotyping sheet"," ") -> WARNING! Identical CNV between top models as SS is the same. Check this sample using the individual genotyping sheet | BI29: =IF(BI16=BI21,"WARNING! Identical CNV between top models as SS is the same. Check this sample using the individual genotyping sheet"," ") -> WARNING! Identical CNV between top models as SS is the same. Check this sample using the individual genotyping sheet | BK29: =IF(BK16=BK21,"WARNING! Identical CNV between top models as SS is the same. Check this sample using the individual genotyping sheet"," ") -> WARNING! Identical CNV between top models as SS is the same. Check this sample using the individual genotyping sheet | BM29: =IF(BM16=BM21,"WARNING! Identical CNV between top models as SS is the same. Check this sample using the individual genotyping sheet"," ") -> WARNING! Identical CNV between top models as SS is the same. Check this sample using the individual genotyping sheet | BO29: =IF(BO16=BO21,"WARNING! Identical CNV between top models as SS is the same. Check this sample using the individual genotyping sheet"," ") -> WARNING! Identical CNV between top models as SS is the same. Check this sample using the individual genotyping sheet | BQ29: =IF(BQ16=BQ21,"WARNING! Identical CNV between top models as SS is the same. Check this sample using the individual genotyping sheet"," ") -> WARNING! Identical CNV between top models as SS is the same. Check this sample using the individual genotyping sheet | BS29: =IF(BS16=BS21,"WARNING! Identical CNV between top models as SS is the same. Check this sample using the individual genotyping sheet"," ") -> WARNING! Identical CNV between top models as SS is the same. Check this sample using the individual genotyping sheet | BU29: =IF(BU16=BU21,"WARNING! Identical CNV between top models as SS is the same. Check this sample using the individual genotyping sheet"," ") -> WARNING! Identical CNV between top models as SS is the same. Check this sample using the individual genotyping sheet | BW29: =IF(BW16=BW21,"WARNING! Identical CNV between top models as SS is the same. Check this sample using the individual genotyping sheet"," ") -> WARNING! Identical CNV between top models as SS is the same. Check this sample using the individual genotyping sheet | BY29: =IF(BY16=BY21,"WARNING! Identical CNV between top models as SS is the same. Check this sample using the individual genotyping sheet"," ") -> WARNING! Identical CNV between top models as SS is the same. Check this sample using the individual genotyping sheet | CA29: =IF(CA16=CA21,"WARNING! Identical CNV between top models as SS is the same. Check this sample using the individual genotyping sheet"," ") -> WARNING! Identical CNV between top models as SS is the same. Check this sample using the individual genotyping sheet | CC29: =IF(CC16=CC21,"WARNING! Identical CNV between top models as SS is the same. Check this sample using the individual genotyping sheet"," ") -> WARNING! Identical CNV between top models as SS is the same. Check this sample using the individual genotyping sheet | CE29: =IF(CE16=CE21,"WARNING! Identical CNV between top models as SS is the same. Check this sample using the individual genotyping sheet"," ") -> WARNING! Identical CNV between top models as SS is the same. Check this sample using the individual genotyping sheet | CG29: =IF(CG16=CG21,"WARNING! Identical CNV between top models as SS is the same. Check this sample using the individual genotyping sheet"," ") -> WARNING! Identical CNV between top models as SS is the same. Check this sample using the individual genotyping sheet | CI29: =IF(CI16=CI21,"WARNING! Identical CNV between top models as SS is the same. Check this sample using the individual genotyping sheet"," ") -> WARNING! Identical CNV between top models as SS is the same. Check this sample using the individual genotyping sheet | CK29: =IF(CK16=CK21,"WARNING! Identical CNV between top models as SS is the same. Check this sample using the individual genotyping sheet"," ") -> WARNING! Identical CNV between top models as SS is the same. Check this sample using the individual genotyping sheet | CM29: =IF(CM16=CM21,"WARNING! Identical CNV between top models as SS is the same. Check this sample using the individual genotyping sheet"," ") -> WARNING! Identical CNV between top models as SS is the same. Check this sample using the individual genotyping sheet | CO29: =IF(CO16=CO21,"WARNING! Identical CNV between top models as SS is the same. Check this sample using the individual genotyping sheet"," ") -> WARNING! Identical CNV between top models as SS is the same. Check this sample using the individual genotyping sheet | CQ29: =IF(CQ16=CQ21,"WARNING! Identical CNV between top models as SS is the same. Check this sample using the individual genotyping sheet"," ") -> WARNING! Identical CNV between top models as SS is the same. Check this sample using the individual genotyping sheet | CS29: =IF(CS16=CS21,"WARNING! Identical CNV between top models as SS is the same. Check this sample using the individual genotyping sheet"," ") -> WARNING! Identical CNV between top models as SS is the same. Check this sample using the individual genotyping sheet | CU29: =IF(CU16=CU21,"WARNING! Identical CNV between top models as SS is the same. Check this sample using the individual genotyping sheet"," ") -> WARNING! Identical CNV between top models as SS is the same. Check this sample using the individual genotyping sheet | CW29: =IF(CW16=CW21,"WARNING! Identical CNV between top models as SS is the same. Check this sample using the individual genotyping sheet"," ") -> WARNING! Identical CNV between top models as SS is the same. Check this sample using the individual genotyping sheet | CY29: =IF(CY16=CY21,"WARNING! Identical CNV between top models as SS is the same. Check this sample using the individual genotyping sheet"," ") -> WARNING! Identical CNV between top models as SS is the same. Check this sample using the individual genotyping sheet | DA29: =IF(DA16=DA21,"WARNING! Identical CNV between top models as SS is the same. Check this sample using the individual genotyping sheet"," ") -> WARNING! Identical CNV between top models as SS is the same. Check this sample using the individual genotyping sheet | DC29: =IF(DC16=DC21,"WARNING! Identical CNV between top models as SS is the same. Check this sample using the individual genotyping sheet"," ") -> WARNING! Identical CNV between top models as SS is the same. Check this sample using the individual genotyping sheet | DE29: =IF(DE16=DE21,"WARNING! Identical CNV between top models as SS is the same. Check this sample using the individual genotyping sheet"," ") -> WARNING! Identical CNV between top models as SS is the same. Check this sample using the individual genotyping sheet | DG29: =IF(DG16=DG21,"WARNING! Identical CNV between top models as SS is the same. Check this sample using the individual genotyping sheet"," ") -> WARNING! Identical CNV between top models as SS is the same. Check this sample using the individual genotyping sheet | DI29: =IF(DI16=DI21,"WARNING! Identical CNV between top models as SS is the same. Check this sample using the individual genotyping sheet"," ") -> WARNING! Identical CNV between top models as SS is the same. Check this sample using the individual genotyping sheet | DK29: =IF(DK16=DK21,"WARNING! Identical CNV between top models as SS is the same. Check this sample using the individual genotyping sheet"," ") -> WARNING! Identical CNV between top models as SS is the same. Check this sample using the individual genotyping sheet | DM29: =IF(DM16=DM21,"WARNING! Identical CNV between top models as SS is the same. Check this sample using the individual genotyping sheet"," ") -> WARNING! Identical CNV between top models as SS is the same. Check this sample using the individual genotyping sheet | DO29: =IF(DO16=DO21,"WARNING! Identical CNV between top models as SS is the same. Check this sample using the individual genotyping sheet"," ") -> WARNING! Identical CNV between top models as SS is the same. Check this sample using the individual genotyping sheet | DQ29: =IF(DQ16=DQ21,"WARNING! Identical CNV between top models as SS is the same. Check this sample using the individual genotyping sheet"," ") -> WARNING! Identical CNV between top models as SS is the same. Check this sample using the individual genotyping sheet | DS29: =IF(DS16=DS21,"WARNING! Identical CNV between top models as SS is the same. Check this sample using the individual genotyping sheet"," ") -> WARNING! Identical CNV between top models as SS is the same. Check this sample using the individual genotyping sheet | DU29: =IF(DU16=DU21,"WARNING! Identical CNV between top models as SS is the same. Check this sample using the individual genotyping sheet"," ") -> WARNING! Identical CNV between top models as SS is the same. Check this sample using the individual genotyping sheet | DW29: =IF(DW16=DW21,"WARNING! Identical CNV between top models as SS is the same. Check this sample using the individual genotyping sheet"," ") -> WARNING! Identical CNV between top models as SS is the same. Check this sample using the individual genotyping sheet | DY29: =IF(DY16=DY21,"WARNING! Identical CNV between top models as SS is the same. Check this sample using the individual genotyping sheet"," ") -> WARNING! Identical CNV between top models as SS is the same. Check this sample using the individual genotyping sheet | EA29: =IF(EA16=EA21,"WARNING! Identical CNV between top models as SS is the same. Check this sample using the individual genotyping sheet"," ") -> WARNING! Identical CNV between top models as SS is the same. Check this sample using the individual genotyping sheet | EC29: =IF(EC16=EC21,"WARNING! Identical CNV between top models as SS is the same. Check this sample using the individual genotyping sheet"," ") -> WARNING! Identical CNV between top models as SS is the same. Check this sample using the individual genotyping sheet | EE29: =IF(EE16=EE21,"WARNING! Identical CNV between top models as SS is the same. Check this sample using the individual genotyping sheet"," ") -> WARNING! Identical CNV between top models as SS is the same. Check this sample using the individual genotyping sheet | EG29: =IF(EG16=EG21,"WARNING! Identical CNV between top models as SS is the same. Check this sample using the individual genotyping sheet"," ") -> WARNING! Identical CNV between top models as SS is the same. Check this sample using the individual genotyping sheet | EI29: =IF(EI16=EI21,"WARNING! Identical CNV between top models as SS is the same. Check this sample using the individual genotyping sheet"," ") -> WARNING! Identical CNV between top models as SS is the same. Check this sample using the individual genotyping sheet | EK29: =IF(EK16=EK21,"WARNING! Identical CNV between top models as SS is the same. Check this sample using the individual genotyping sheet"," ") -> WARNING! Identical CNV between top models as SS is the same. Check this sample using the individual genotyping sheet | EM29: =IF(EM16=EM21,"WARNING! Identical CNV between top models as SS is the same. Check this sample using the individual genotyping sheet"," ") -> WARNING! Identical CNV between top models as SS is the same. Check this sample using the individual genotyping sheet | EO29: =IF(EO16=EO21,"WARNING! Identical CNV between top models as SS is the same. Check this sample using the individual genotyping sheet"," ") -> WARNING! Identical CNV between top models as SS is the same. Check this sample using the individual genotyping sheet | EQ29: =IF(EQ16=EQ21,"WARNING! Identical CNV between top models as SS is the same. Check this sample using the individual genotyping sheet"," ") -> WARNING! Identical CNV between top models as SS is the same. Check this sample using the individual genotyping sheet | ES29: =IF(ES16=ES21,"WARNING! Identical CNV between top models as SS is the same. Check this sample using the individual genotyping sheet"," ") -> WARNING! Identical CNV between top models as SS is the same. Check this sample using the individual genotyping sheet | EU29: =IF(EU16=EU21,"WARNING! Identical CNV between top models as SS is the same. Check this sample using the individual genotyping sheet"," ") -> WARNING! Identical CNV between top models as SS is the same. Check this sample using the individual genotyping sheet | EW29: =IF(EW16=EW21,"WARNING! Identical CNV between top models as SS is the same. Check this sample using the individual genotyping sheet"," ") -> WARNING! Identical CNV between top models as SS is the same. Check this sample using the individual genotyping sheet | EY29: =IF(EY16=EY21,"WARNING! Identical CNV between top models as SS is the same. Check this sample using the individual genotyping sheet"," ") -> WARNING! Identical CNV between top models as SS is the same. Check this sample using the individual genotyping sheet | FA29: =IF(FA16=FA21,"WARNING! Identical CNV between top models as SS is the same. Check this sample using the individual genotyping sheet"," ") -> WARNING! Identical CNV between top models as SS is the same. Check this sample using the individual genotyping sheet | FC29: =IF(FC16=FC21,"WARNING! Identical CNV between top models as SS is the same. Check this sample using the individual genotyping sheet"," ") -> WARNING! Identical CNV between top models as SS is the same. Check this sample using the individual genotyping sheet | FE29: =IF(FE16=FE21,"WARNING! Identical CNV between top models as SS is the same. Check this sample using the individual genotyping sheet"," ") -> WARNING! Identical CNV between top models as SS is the same. Check this sample using the individual genotyping sheet | FG29: =IF(FG16=FG21,"WARNING! Identical CNV between top models as SS is the same. Check this sample using the individual genotyping sheet"," ") -> WARNING! Identical CNV between top models as SS is the same. Check this sample using the individual genotyping sheet | FI29: =IF(FI16=FI21,"WARNING! Identical CNV between top models as SS is the same. Check this sample using the individual genotyping sheet"," ") -> WARNING! Identical CNV between top models as SS is the same. Check this sample using the individual genotyping sheet | FK29: =IF(FK16=FK21,"WARNING! Identical CNV between top models as SS is the same. Check this sample using the individual genotyping sheet"," ") -> WARNING! Identical CNV between top models as SS is the same. Check this sample using the individual genotyping sheet | FM29: =IF(FM16=FM21,"WARNING! Identical CNV between top models as SS is the same. Check this sample using the individual genotyping sheet"," ") -> WARNING! Identical CNV between top models as SS is the same. Check this sample using the individual genotyping sheet | FO29: =IF(FO16=FO21,"WARNING! Identical CNV between top models as SS is the same. Check this sample using the individual genotyping sheet"," ") -> WARNING! Identical CNV between top models as SS is the same. Check this sample using the individual genotyping sheet | FQ29: =IF(FQ16=FQ21,"WARNING! Identical CNV between top models as SS is the same. Check this sample using the individual genotyping sheet"," ") -> WARNING! Identical CNV between top models as SS is the same. Check this sample using the individual genotyping sheet | FS29: =IF(FS16=FS21,"WARNING! Identical CNV between top models as SS is the same. Check this sample using the individual genotyping sheet"," ") -> WARNING! Identical CNV between top models as SS is the same. Check this sample using the individual genotyping sheet | FU29: =IF(FU16=FU21,"WARNING! Identical CNV between top models as SS is the same. Check this sample using the individual genotyping sheet"," ") -> WARNING! Identical CNV between top models as SS is the same. Check this sample using the individual genotyping sheet | FW29: =IF(FW16=FW21,"WARNING! Identical CNV between top models as SS is the same. Check this sample using the individual genotyping sheet"," ") -> WARNING! Identical CNV between top models as SS is the same. Check this sample using the individual genotyping sheet | FY29: =IF(FY16=FY21,"WARNING! Identical CNV between top models as SS is the same. Check this sample using the individual genotyping sheet"," ") -> WARNING! Identical CNV between top models as SS is the same. Check this sample using the individual genotyping sheet | GA29: =IF(GA16=GA21,"WARNING! Identical CNV between top models as SS is the same. Check this sample using the individual genotyping sheet"," ") -> WARNING! Identical CNV between top models as SS is the same. Check this sample using the individual genotyping sheet | GC29: =IF(GC16=GC21,"WARNING! Identical CNV between top models as SS is the same. Check this sample using the individual genotyping sheet"," ") -> WARNING! Identical CNV between top models as SS is the same. Check this sample using the individual genotyping sheet | GE29: =IF(GE16=GE21,"WARNING! Identical CNV between top models as SS is the same. Check this sample using the individual genotyping sheet"," ") -> WARNING! Identical CNV between top models as SS is the same. Check this sample using the individual genotyping sheet | GG29: =IF(GG16=GG21,"WARNING! Identical CNV between top models as SS is the same. Check this sample using the individual genotyping sheet"," ") -> WARNING! Identical CNV between top models as SS is the same. Check this sample using the individual genotyping sheet | GI29: =IF(GI16=GI21,"WARNING! Identical CNV between top models as SS is the same. Check this sample using the individual genotyping sheet"," ") -> WARNING! Identical CNV between top models as SS is the same. Check this sample using the individual genotyping sheet | GK29: =IF(GK16=GK21,"WARNING! Identical CNV between top models as SS is the same. Check this sample using the individual genotyping sheet"," ") -> WARNING! Identical CNV between top models as SS is the same. Check this sample using the individual genotyping sheet | GM29: =IF(GM16=GM21,"WARNING! Identical CNV between top models as SS is the same. Check this sample using the individual genotyping sheet"," ") -> WARNING! Identical CNV between top models as SS is the same. Check this sample using the individual genotyping sheet | GO29: =IF(GO16=GO21,"WARNING! Identical CNV between top models as SS is the same. Check this sample using the individual genotyping sheet"," ") -> WARNING! Identical CNV between top models as SS is the same. Check this sample using the individual genotyping sheet | GQ29: =IF(GQ16=GQ21,"WARNING! Identical CNV between top models as SS is the same. Check this sample using the individual genotyping sheet"," ") -> WARNING! Identical CNV between top models as SS is the same. Check this sample using the individual genotyping sheet | GS29: =IF(GS16=GS21,"WARNING! Identical CNV between top models as SS is the same. Check this sample using the individual genotyping sheet"," ") -> WARNING! Identical CNV between top models as SS is the same. Check this sample using the individual genotyping sheet | GU29: =IF(GU16=GU21,"WARNING! Identical CNV between top models as SS is the same. Check this sample using the individual genotyping sheet"," ") -> WARNING! Identical CNV between top models as SS is the same. Check this sample using the individual genotyping sheet | GW29: =IF(GW16=GW21,"WARNING! Identical CNV between top models as SS is the same. Check this sample using the individual genotyping sheet"," ") -> WARNING! Identical CNV between top models as SS is the same. Check this sample using the individual genotyping sheet | GY29: =IF(GY16=GY21,"WARNING! Identical CNV between top models as SS is the same. Check this sample using the individual genotyping sheet"," ") -> WARNING! Identical CNV between top models as SS is the same. Check this sample using the individual genotyping sheet | HA29: =IF(HA16=HA21,"WARNING! Identical CNV between top models as SS is the same. Check this sample using the individual genotyping sheet"," ") -> WARNING! Identical CNV between top models as SS is the same. Check this sample using the individual genotyping sheet | HC29: =IF(HC16=HC21,"WARNING! Identical CNV between top models as SS is the same. Check this sample using the individual genotyping sheet"," ") -> WARNING! Identical CNV between top models as SS is the same. Check this sample using the individual genotyping sheet | HE29: =IF(HE16=HE21,"WARNING! Identical CNV between top models as SS is the same. Check this sample using the individual genotyping sheet"," ") -> WARNING! Identical CNV between top models as SS is the same. Check this sample using the individual genotyping sheet | HG29: =IF(HG16=HG21,"WARNING! Identical CNV between top models as SS is the same. Check this sample using the individual genotyping sheet"," ") -> WARNING! Identical CNV between top models as SS is the same. Check this sample using the individual genotyping sheet | HI29: =IF(HI16=HI21,"WARNING! Identical CNV between top models as SS is the same. Check this sample using the individual genotyping sheet"," ") -> WARNING! Identical CNV between top models as SS is the same. Check this sample using the individual genotyping sheet | HK29: =IF(HK16=HK21,"WARNING! Identical CNV between top models as SS is the same. Check this sample using the individual genotyping sheet"," ") -> WARNING! Identical CNV between top models as SS is the same. Check this sample using the individual genotyping sheet | HM29: =IF(HM16=HM21,"WARNING! Identical CNV between top models as SS is the same. Check this sample using the individual genotyping sheet"," ") -> WARNING! Identical CNV between top models as SS is the same. Check this sample using the individual genotyping sheet | HO29: =IF(HO16=HO21,"WARNING! Identical CNV between top models as SS is the same. Check this sample using the individual genotyping sheet"," ") -> WARNING! Identical CNV between top models as SS is the same. Check this sample using the individual genotyping sheet | HQ29: =IF(HQ16=HQ21,"WARNING! Identical CNV between top models as SS is the same. Check this sample using the individual genotyping sheet"," ") -> WARNING! Identical CNV between top models as SS is the same. Check this sample using the individual genotyping sheet | HS29: =IF(HS16=HS21,"WARNING! Identical CNV between top models as SS is the same. Check this sample using the individual genotyping sheet"," ") -> WARNING! Identical CNV between top models as SS is the same. Check this sample using the individual genotyping sheet | HU29: =IF(HU16=HU21,"WARNING! Identical CNV between top models as SS is the same. Check this sample using the individual genotyping sheet"," ") -> WARNING! Identical CNV between top models as SS is the same. Check this sample using the individual genotyping sheet | HW29: =IF(HW16=HW21,"WARNING! Identical CNV between top models as SS is the same. Check this sample using the individual genotyping sheet"," ") -> WARNING! Identical CNV between top models as SS is the same. Check this sample using the individual genotyping sheet | HY29: =IF(HY16=HY21,"WARNING! Identical CNV between top models as SS is the same. Check this sample using the individual genotyping sheet"," ") -> WARNING! Identical CNV between top models as SS is the same. Check this sample using the individual genotyping sheet | IA29: =IF(IA16=IA21,"WARNING! Identical CNV between top models as SS is the same. Check this sample using the individual genotyping sheet"," ") -> WARNING! Identical CNV between top models as SS is the same. Check this sample using the individual genotyping sheet | IC29: =IF(IC16=IC21,"WARNING! Identical CNV between top models as SS is the same. Check this sample using the individual genotyping sheet"," ") -> WARNING! Identical CNV between top models as SS is the same. Check this sample using the individual genotyping sheet | IE29: =IF(IE16=IE21,"WARNING! Identical CNV between top models as SS is the same. Check this sample using the individual genotyping sheet"," ") -> WARNING! Identical CNV between top models as SS is the same. Check this sample using the individual genotyping sheet | IG29: =IF(IG16=IG21,"WARNING! Identical CNV between top models as SS is the same. Check this sample using the individual genotyping sheet"," ") -> WARNING! Identical CNV between top models as SS is the same. Check this sample using the individual genotyping sheet | II29: =IF(II16=II21,"WARNING! Identical CNV between top models as SS is the same. Check this sample using the individual genotyping sheet"," ") -> WARNING! Identical CNV between top models as SS is the same. Check this sample using the individual genotyping sheet | IK29: =IF(IK16=IK21,"WARNING! Identical CNV between top models as SS is the same. Check this sample using the individual genotyping sheet"," ") -> WARNING! Identical CNV between top models as SS is the same. Check this sample using the individual genotyping sheet | IM29: =IF(IM16=IM21,"WARNING! Identical CNV between top models as SS is the same. Check this sample using the individual genotyping sheet"," ") -> WARNING! Identical CNV between top models as SS is the same. Check this sample using the individual genotyping sheet | IO29: =IF(IO16=IO21,"WARNING! Identical CNV between top models as SS is the same. Check this sample using the individual genotyping sheet"," ") -> WARNING! Identical CNV between top models as SS is the same. Check this sample using the individual genotyping sheet | IQ29: =IF(IQ16=IQ21,"WARNING! Identical CNV between top models as SS is the same. Check this sample using the individual genotyping sheet"," ") -> WARNING! Identical CNV between top models as SS is the same. Check this sample using the individual genotyping sheet | IS29: =IF(IS16=IS21,"WARNING! Identical CNV between top models as SS is the same. Check this sample using the individual genotyping sheet"," ") -> WARNING! Identical CNV between top models as SS is the same. Check this sample using the individual genotyping sheet | IU29: =IF(IU16=IU21,"WARNING! Identical CNV between top models as SS is the same. Check this sample using the individual genotyping sheet"," ") -> WARNING! Identical CNV between top models as SS is the same. Check this sample using the individual genotyping sheet | IW29: =IF(IW16=IW21,"WARNING! Identical CNV between top models as SS is the same. Check this sample using the individual genotyping sheet"," ") -> WARNING! Identical CNV between top models as SS is the same. Check this sample using the individual genotyping sheet | IY29: =IF(IY16=IY21,"WARNING! Identical CNV between top models as SS is the same. Check this sample using the individual genotyping sheet"," ") -> WARNING! Identical CNV between top models as SS is the same. Check this sample using the individual genotyping sheet | JA29: =IF(JA16=JA21,"WARNING! Identical CNV between top models as SS is the same. Check this sample using the individual genotyping sheet"," ") -> WARNING! Identical CNV between top models as SS is the same. Check this sample using the individual genotyping sheet | JC29: =IF(JC16=JC21,"WARNING! Identical CNV between top models as SS is the same. Check this sample using the individual genotyping sheet"," ") -> WARNING! Identical CNV between top models as SS is the same. Check this sample using the individual genotyping sheet | JE29: =IF(JE16=JE21,"WARNING! Identical CNV between top models as SS is the same. Check this sample using the individual genotyping sheet"," ") -> WARNING! Identical CNV between top models as SS is the same. Check this sample using the individual genotyping sheet | JG29: =IF(JG16=JG21,"WARNING! Identical CNV between top models as SS is the same. Check this sample using the individual genotyping sheet"," ") -> WARNING! Identical CNV between top models as SS is the same. Check this sample using the individual genotyping sheet | JI29: =IF(JI16=JI21,"WARNING! Identical CNV between top models as SS is the same. Check this sample using the individual genotyping sheet"," ") -> WARNING! Identical CNV between top models as SS is the same. Check this sample using the individual genotyping sheet | JK29: =IF(JK16=JK21,"WARNING! Identical CNV between top models as SS is the same. Check this sample using the individual genotyping sheet"," ") -> WARNING! Identical CNV between top models as SS is the same. Check this sample using the individual genotyping sheet | JM29: =IF(JM16=JM21,"WARNING! Identical CNV between top models as SS is the same. Check this sample using the individual genotyping sheet"," ") -> WARNING! Identical CNV between top models as SS is the same. Check this sample using the individual genotyping sheet
A32: Same Ai between top two models? | B32: =IF(C23=C18,"YES","NO") -> YES | D32: =IF(E23=E18,"YES","NO") -> YES | F32: =IF(G23=G18,"YES","NO") -> YES | H32: =IF(I23=I18,"YES","NO") -> YES | J32: =IF(K23=K18,"YES","NO") -> YES | L32: =IF(M23=M18,"YES","NO") -> YES | N32: =IF(O23=O18,"YES","NO") -> YES | P32: =IF(Q23=Q18,"YES","NO") -> YES | R32: =IF(S23=S18,"YES","NO") -> YES | T32: =IF(U23=U18,"YES","NO") -> YES | V32: =IF(W23=W18,"YES","NO") -> YES | X32: =IF(Y23=Y18,"YES","NO") -> YES | Z32: =IF(AA23=AA18,"YES","NO") -> YES | AB32: =IF(AC23=AC18,"YES","NO") -> YES | AD32: =IF(AE23=AE18,"YES","NO") -> YES | AF32: =IF(AG23=AG18,"YES","NO") -> YES | AH32: =IF(AI23=AI18,"YES","NO") -> YES | AJ32: =IF(AK23=AK18,"YES","NO") -> YES | AL32: =IF(AM23=AM18,"YES","NO") -> YES | AN32: =IF(AO23=AO18,"YES","NO") -> YES | AP32: =IF(AQ23=AQ18,"YES","NO") -> YES | AR32: =IF(AS23=AS18,"YES","NO") -> YES | AT32: =IF(AU23=AU18,"YES","NO") -> YES | AV32: =IF(AW23=AW18,"YES","NO") -> YES | AX32: =IF(AY23=AY18,"YES","NO") -> YES | AZ32: =IF(BA23=BA18,"YES","NO") -> YES | BB32: =IF(BC23=BC18,"YES","NO") -> YES | BD32: =IF(BE23=BE18,"YES","NO") -> YES | BF32: =IF(BG23=BG18,"YES","NO") -> YES | BH32: =IF(BI23=BI18,"YES","NO") -> YES | BJ32: =IF(BK23=BK18,"YES","NO") -> YES | BL32: =IF(BM23=BM18,"YES","NO") -> YES | BN32: =IF(BO23=BO18,"YES","NO") -> YES | BP32: =IF(BQ23=BQ18,"YES","NO") -> YES | BR32: =IF(BS23=BS18,"YES","NO") -> YES | BT32: =IF(BU23=BU18,"YES","NO") -> YES | BV32: =IF(BW23=BW18,"YES","NO") -> YES | BX32: =IF(BY23=BY18,"YES","NO") -> YES | BZ32: =IF(CA23=CA18,"YES","NO") -> YES | CB32: =IF(CC23=CC18,"YES","NO") -> YES | CD32: =IF(CE23=CE18,"YES","NO") -> YES | CF32: =IF(CG23=CG18,"YES","NO") -> YES | CH32: =IF(CI23=CI18,"YES","NO") -> YES | CJ32: =IF(CK23=CK18,"YES","NO") -> YES | CL32: =IF(CM23=CM18,"YES","NO") -> YES | CN32: =IF(CO23=CO18,"YES","NO") -> YES | CP32: =IF(CQ23=CQ18,"YES","NO") -> YES | CR32: =IF(CS23=CS18,"YES","NO") -> YES | CT32: =IF(CU23=CU18,"YES","NO") -> YES | CV32: =IF(CW23=CW18,"YES","NO") -> YES | CX32: =IF(CY23=CY18,"YES","NO") -> YES | CZ32: =IF(DA23=DA18,"YES","NO") -> YES | DB32: =IF(DC23=DC18,"YES","NO") -> YES | DD32: =IF(DE23=DE18,"YES","NO") -> YES | DF32: =IF(DG23=DG18,"YES","NO") -> YES | DH32: =IF(DI23=DI18,"YES","NO") -> YES | DJ32: =IF(DK23=DK18,"YES","NO") -> YES | DL32: =IF(DM23=DM18,"YES","NO") -> YES | DN32: =IF(DO23=DO18,"YES","NO") -> YES | DP32: =IF(DQ23=DQ18,"YES","NO") -> YES | DR32: =IF(DS23=DS18,"YES","NO") -> YES | DT32: =IF(DU23=DU18,"YES","NO") -> YES | DV32: =IF(DW23=DW18,"YES","NO") -> YES | DX32: =IF(DY23=DY18,"YES","NO") -> YES | DZ32: =IF(EA23=EA18,"YES","NO") -> YES | EB32: =IF(EC23=EC18,"YES","NO") -> YES | ED32: =IF(EE23=EE18,"YES","NO") -> YES | EF32: =IF(EG23=EG18,"YES","NO") -> YES | EH32: =IF(EI23=EI18,"YES","NO") -> YES | EJ32: =IF(EK23=EK18,"YES","NO") -> YES | EL32: =IF(EM23=EM18,"YES","NO") -> YES | EN32: =IF(EO23=EO18,"YES","NO") -> YES | EP32: =IF(EQ23=EQ18,"YES","NO") -> YES | ER32: =IF(ES23=ES18,"YES","NO") -> YES | ET32: =IF(EU23=EU18,"YES","NO") -> YES | EV32: =IF(EW23=EW18,"YES","NO") -> YES | EX32: =IF(EY23=EY18,"YES","NO") -> YES | EZ32: =IF(FA23=FA18,"YES","NO") -> YES | FB32: =IF(FC23=FC18,"YES","NO") -> YES | FD32: =IF(FE23=FE18,"YES","NO") -> YES | FF32: =IF(FG23=FG18,"YES","NO") -> YES | FH32: =IF(FI23=FI18,"YES","NO") -> YES | FJ32: =IF(FK23=FK18,"YES","NO") -> YES | FL32: =IF(FM23=FM18,"YES","NO") -> YES | FN32: =IF(FO23=FO18,"YES","NO") -> YES | FP32: =IF(FQ23=FQ18,"YES","NO") -> YES | FR32: =IF(FS23=FS18,"YES","NO") -> YES | FT32: =IF(FU23=FU18,"YES","NO") -> YES | FV32: =IF(FW23=FW18,"YES","NO") -> YES | FX32: =IF(FY23=FY18,"YES","NO") -> YES | FZ32: =IF(GA23=GA18,"YES","NO") -> YES | GB32: =IF(GC23=GC18,"YES","NO") -> YES | GD32: =IF(GE23=GE18,"YES","NO") -> YES | GF32: =IF(GG23=GG18,"YES","NO") -> YES | GH32: =IF(GI23=GI18,"YES","NO") -> YES | GJ32: =IF(GK23=GK18,"YES","NO") -> YES | GL32: =IF(GM23=GM18,"YES","NO") -> YES | GN32: =IF(GO23=GO18,"YES","NO") -> YES | GP32: =IF(GQ23=GQ18,"YES","NO") -> YES | GR32: =IF(GS23=GS18,"YES","NO") -> YES | GT32: =IF(GU23=GU18,"YES","NO") -> YES | GV32: =IF(GW23=GW18,"YES","NO") -> YES | GX32: =IF(GY23=GY18,"YES","NO") -> YES | GZ32: =IF(HA23=HA18,"YES","NO") -> YES | HB32: =IF(HC23=HC18,"YES","NO") -> YES | HD32: =IF(HE23=HE18,"YES","NO") -> YES | HF32: =IF(HG23=HG18,"YES","NO") -> YES | HH32: =IF(HI23=HI18,"YES","NO") -> YES | HJ32: =IF(HK23=HK18,"YES","NO") -> YES | HL32: =IF(HM23=HM18,"YES","NO") -> YES | HN32: =IF(HO23=HO18,"YES","NO") -> YES | HP32: =IF(HQ23=HQ18,"YES","NO") -> YES | HR32: =IF(HS23=HS18,"YES","NO") -> YES | HT32: =IF(HU23=HU18,"YES","NO") -> YES | HV32: =IF(HW23=HW18,"YES","NO") -> YES | HX32: =IF(HY23=HY18,"YES","NO") -> YES | HZ32: =IF(IA23=IA18,"YES","NO") -> YES | IB32: =IF(IC23=IC18,"YES","NO") -> YES | ID32: =IF(IE23=IE18,"YES","NO") -> YES | IF32: =IF(IG23=IG18,"YES","NO") -> YES | IH32: =IF(II23=II18,"YES","NO") -> YES | IJ32: =IF(IK23=IK18,"YES","NO") -> YES | IL32: =IF(IM23=IM18,"YES","NO") -> YES | IN32: =IF(IO23=IO18,"YES","NO") -> YES | IP32: =IF(IQ23=IQ18,"YES","NO") -> YES | IR32: =IF(IS23=IS18,"YES","NO") -> YES | IT32: =IF(IU23=IU18,"YES","NO") -> YES | IV32: =IF(IW23=IW18,"YES","NO") -> YES | IX32: =IF(IY23=IY18,"YES","NO") -> YES | IZ32: =IF(JA23=JA18,"YES","NO") -> YES | JB32: =IF(JC23=JC18,"YES","NO") -> YES | JD32: =IF(JE23=JE18,"YES","NO") -> YES | JF32: =IF(JG23=JG18,"YES","NO") -> YES | JH32: =IF(JI23=JI18,"YES","NO") -> YES | JJ32: =IF(JK23=JK18,"YES","NO") -> YES | JL32: =IF(JM23=JM18,"YES","NO") -> YES | JN32: =IF(JO23=JO18,"YES","NO") -> YES | JP32: =IF(JQ23=JQ18,"YES","NO") -> YES | JR32: =IF(JS23=JS18,"YES","NO") -> YES | JT32: =IF(JU23=JU18,"YES","NO") -> YES | JV32: =IF(JW23=JW18,"YES","NO") -> YES | JX32: =IF(JY23=JY18,"YES","NO") -> YES | JZ32: =IF(KA23=KA18,"YES","NO") -> YES | KB32: =IF(KC23=KC18,"YES","NO") -> YES | KD32: =IF(KE23=KE18,"YES","NO") -> YES | KF32: =IF(KG23=KG18,"YES","NO") -> YES | KH32: =IF(KI23=KI18,"YES","NO") -> YES | KJ32: =IF(KK23=KK18,"YES","NO") -> YES | KL32: =IF(KM23=KM18,"YES","NO") -> YES | KN32: =IF(KO23=KO18,"YES","NO") -> YES | KP32: =IF(KQ23=KQ18,"YES","NO") -> YES | KR32: =IF(KS23=KS18,"YES","NO") -> YES | KT32: =IF(KU23=KU18,"YES","NO") -> YES | KV32: =IF(KW23=KW18,"YES","NO") -> YES | KX32: =IF(KY23=KY18,"YES","NO") -> YES | KZ32: =IF(LA23=LA18,"YES","NO") -> YES | LB32: =IF(LC23=LC18,"YES","NO") -> YES | LD32: =IF(LE23=LE18,"YES","NO") -> YES | LF32: =IF(LG23=LG18,"YES","NO") -> YES | LH32: =IF(LI23=LI18,"YES","NO") -> YES | LJ32: =IF(LK23=LK18,"YES","NO") -> YES | LL32: =IF(LM23=LM18,"YES","NO") -> YES | LN32: =IF(LO23=LO18,"YES","NO") -> YES | LP32: =IF(LQ23=LQ18,"YES","NO") -> YES | LR32: =IF(LS23=LS18,"YES","NO") -> YES | LT32: =IF(LU23=LU18,"YES","NO") -> YES | LV32: =IF(LW23=LW18,"YES","NO") -> YES | LX32: =IF(LY23=LY18,"YES","NO") -> YES | LZ32: =IF(MA23=MA18,"YES","NO") -> YES | MB32: =IF(MC23=MC18,"YES","NO") -> YES | MD32: =IF(ME23=ME18,"YES","NO") -> YES | MF32: =IF(MG23=MG18,"YES","NO") -> YES | MH32: =IF(MI23=MI18,"YES","NO") -> YES | MJ32: =IF(MK23=MK18,"YES","NO") -> YES | ML32: =IF(MM23=MM18,"YES","NO") -> YES | MN32: =IF(MO23=MO18,"YES","NO") -> YES | MP32: =IF(MQ23=MQ18,"YES","NO") -> YES | MR32: =IF(MS23=MS18,"YES","NO") -> YES | MT32: =IF(MU23=MU18,"YES","NO") -> YES | MV32: =IF(MW23=MW18,"YES","NO") -> YES | MX32: =IF(MY23=MY18,"YES","NO") -> YES | MZ32: =IF(NA23=NA18,"YES","NO") -> YES | NB32: =IF(NC23=NC18,"YES","NO") -> YES | ND32: =IF(NE23=NE18,"YES","NO") -> YES | NF32: =IF(NG23=NG18,"YES","NO") -> YES | NH32: =IF(NI23=NI18,"YES","NO") -> YES | NJ32: =IF(NK23=NK18,"YES","NO") -> YES | NL32: =IF(NM23=NM18,"YES","NO") -> YES | NN32: =IF(NO23=NO18,"YES","NO") -> YES | NP32: =IF(NQ23=NQ18,"YES","NO") -> YES | NR32: =IF(NS23=NS18,"YES","NO") -> YES | NT32: =IF(NU23=NU18,"YES","NO") -> YES | NV32: =IF(NW23=NW18,"YES","NO") -> YES | NX32: =IF(NY23=NY18,"YES","NO") -> YES | NZ32: =IF(OA23=OA18,"YES","NO") -> YES | OB32: =IF(OC23=OC18,"YES","NO") -> YES | OD32: =IF(OE23=OE18,"YES","NO") -> YES | OF32: =IF(OG23=OG18,"YES","NO") -> YES | OH32: =IF(OI23=OI18,"YES","NO") -> YES | OJ32: =IF(OK23=OK18,"YES","NO") -> YES | OL32: =IF(OM23=OM18,"YES","NO") -> YES | ON32: =IF(OO23=OO18,"YES","NO") -> YES | OP32: =IF(OQ23=OQ18,"YES","NO") -> YES | OR32: =IF(OS23=OS18,"YES","NO") -> YES | OT32: =IF(OU23=OU18,"YES","NO") -> YES | OV32: =IF(OW23=OW18,"YES","NO") -> YES | OX32: =IF(OY23=OY18,"YES","NO") -> YES | OZ32: =IF(PA23=PA18,"YES","NO") -> YES | PB32: =IF(PC23=PC18,"YES","NO") -> YES | PD32: =IF(PE23=PE18,"YES","NO") -> YES | PF32: =IF(PG23=PG18,"YES","NO") -> YES | PH32: =IF(PI23=PI18,"YES","NO") -> YES | PJ32: =IF(PK23=PK18,"YES","NO") -> YES | PL32: =IF(PM23=PM18,"YES","NO") -> YES | PN32: =IF(PO23=PO18,"YES","NO") -> YES | PP32: =IF(PQ23=PQ18,"YES","NO") -> YES | PR32: =IF(PS23=PS18,"YES","NO") -> YES | PT32: =IF(PU23=PU18,"YES","NO") -> YES | PV32: =IF(PW23=PW18,"YES","NO") -> YES | PX32: =IF(PY23=PY18,"YES","NO") -> YES | PZ32: =IF(QA23=QA18,"YES","NO") -> YES | QB32: =IF(QC23=QC18,"YES","NO") -> YES | QD32: =IF(QE23=QE18,"YES","NO") -> YES | QF32: =IF(QG23=QG18,"YES","NO") -> YES | QH32: =IF(QI23=QI18,"YES","NO") -> YES | QJ32: =IF(QK23=QK18,"YES","NO") -> YES | QL32: =IF(QM23=QM18,"YES","NO") -> YES | QN32: =IF(QO23=QO18,"YES","NO") -> YES | QP32: =IF(QQ23=QQ18,"YES","NO") -> YES | QR32: =IF(QS23=QS18,"YES","NO") -> YES | QT32: =IF(QU23=QU18,"YES","NO") -> YES | QV32: =IF(QW23=QW18,"YES","NO") -> YES | QX32: =IF(QY23=QY18,"YES","NO") -> YES | QZ32: =IF(RA23=RA18,"YES","NO") -> YES | RB32: =IF(RC23=RC18,"YES","NO") -> YES | RD32: =IF(RE23=RE18,"YES","NO") -> YES | RF32: =IF(RG23=RG18,"YES","NO") -> YES | RH32: =IF(RI23=RI18,"YES","NO") -> YES | RJ32: =IF(RK23=RK18,"YES","NO") -> YES | RL32: =IF(RM23=RM18,"YES","NO") -> YES | RN32: =IF(RO23=RO18,"YES","NO") -> YES | RP32: =IF(RQ23=RQ18,"YES","NO") -> YES | RR32: =IF(RS23=RS18,"YES","NO") -> YES | RT32: =IF(RU23=RU18,"YES","NO") -> YES | RV32: =IF(RW23=RW18,"YES","NO") -> YES | RX32: =IF(RY23=RY18,"YES","NO") -> YES | RZ32: =IF(SA23=SA18,"YES","NO") -> YES | SB32: =IF(SC23=SC18,"YES","NO") -> YES | SD32: =IF(SE23=SE18,"YES","NO") -> YES | SF32: =IF(SG23=SG18,"YES","NO") -> YES | SH32: =IF(SI23=SI18,"YES","NO") -> YES | SJ32: =IF(SK23=SK18,"YES","NO") -> YES | SL32: =IF(SM23=SM18,"YES","NO") -> YES | SN32: =IF(SO23=SO18,"YES","NO") -> YES | SP32: =IF(SQ23=SQ18,"YES","NO") -> YES | SR32: =IF(SS23=SS18,"YES","NO") -> YES | ST32: =IF(SU23=SU18,"YES","NO") -> YES | SV32: =IF(SW23=SW18,"YES","NO") -> YES | SX32: =IF(SY23=SY18,"YES","NO") -> YES | SZ32: =IF(TA23=TA18,"YES","NO") -> YES | TB32: =IF(TC23=TC18,"YES","NO") -> YES | TD32: =IF(TE23=TE18,"YES","NO") -> YES | TF32: =IF(TG23=TG18,"YES","NO") -> YES | TH32: =IF(TI23=TI18,"YES","NO") -> YES | TJ32: =IF(TK23=TK18,"YES","NO") -> YES | TL32: =IF(TM23=TM18,"YES","NO") -> YES | TN32: =IF(TO23=TO18,"YES","NO") -> YES | TP32: =IF(TQ23=TQ18,"YES","NO") -> YES | TR32: =IF(TS23=TS18,"YES","NO") -> YES | TT32: =IF(TU23=TU18,"YES","NO") -> YES | TV32: =IF(TW23=TW18,"YES","NO") -> YES | TX32: =IF(TY23=TY18,"YES","NO") -> YES | TZ32: =IF(UA23=UA18,"YES","NO") -> YES | UB32: =IF(UC23=UC18,"YES","NO") -> YES | UD32: =IF(UE23=UE18,"YES","NO") -> YES | UF32: =IF(UG23=UG18,"YES","NO") -> YES | UH32: =IF(UI23=UI18,"YES","NO") -> YES | UJ32: =IF(UK23=UK18,"YES","NO") -> YES | UL32: =IF(UM23=UM18,"YES","NO") -> YES | UN32: =IF(UO23=UO18,"YES","NO") -> YES | UP32: =IF(UQ23=UQ18,"YES","NO") -> YES | UR32: =IF(US23=US18,"YES","NO") -> YES | UT32: =IF(UU23=UU18,"YES","NO") -> YES | UV32: =IF(UW23=UW18,"YES","NO") -> YES | UX32: =IF(UY23=UY18,"YES","NO") -> YES | UZ32: =IF(VA23=VA18,"YES","NO") -> YES | VB32: =IF(VC23=VC18,"YES","NO") -> YES | VD32: =IF(VE23=VE18,"YES","NO") -> YES | VF32: =IF(VG23=VG18,"YES","NO") -> YES | VH32: =IF(VI23=VI18,"YES","NO") -> YES | VJ32: =IF(VK23=VK18,"YES","NO") -> YES | VL32: =IF(VM23=VM18,"YES","NO") -> YES | VN32: =IF(VO23=VO18,"YES","NO") -> YES | VP32: =IF(VQ23=VQ18,"YES","NO") -> YES | VR32: =IF(VS23=VS18,"YES","NO") -> YES | VT32: =IF(VU23=VU18,"YES","NO") -> YES | VV32: =IF(VW23=VW18,"YES","NO") -> YES | VX32: =IF(VY23=VY18,"YES","NO") -> YES | VZ32: =IF(WA23=WA18,"YES","NO") -> YES | WB32: =IF(WC23=WC18,"YES","NO") -> YES | WD32: =IF(WE23=WE18,"YES","NO") -> YES | WF32: =IF(WG23=WG18,"YES","NO") -> YES | WH32: =IF(WI23=WI18,"YES","NO") -> YES | WJ32: =IF(WK23=WK18,"YES","NO") -> YES | WL32: =IF(WM23=WM18,"YES","NO") -> YES | WN32: =IF(WO23=WO18,"YES","NO") -> YES | WP32: =IF(WQ23=WQ18,"YES","NO") -> YES | WR32: =IF(WS23=WS18,"YES","NO") -> YES | WT32: =IF(WU23=WU18,"YES","NO") -> YES | WV32: =IF(WW23=WW18,"YES","NO") -> YES | WX32: =IF(WY23=WY18,"YES","NO") -> YES | WZ32: =IF(XA23=XA18,"YES","NO") -> YES | XB32: =IF(XC23=XC18,"YES","NO") -> YES | XD32: =IF(XE23=XE18,"YES","NO") -> YES | XF32: =IF(XG23=XG18,"YES","NO") -> YES | XH32: =IF(XI23=XI18,"YES","NO") -> YES | XJ32: =IF(XK23=XK18,"YES","NO") -> YES | XL32: =IF(XM23=XM18,"YES","NO") -> YES | XN32: =IF(XO23=XO18,"YES","NO") -> YES | XP32: =IF(XQ23=XQ18,"YES","NO") -> YES | XR32: =IF(XS23=XS18,"YES","NO") -> YES | XT32: =IF(XU23=XU18,"YES","NO") -> YES | XV32: =IF(XW23=XW18,"YES","NO") -> YES | XX32: =IF(XY23=XY18,"YES","NO") -> YES | XZ32: =IF(YA23=YA18,"YES","NO") -> YES | YB32: =IF(YC23=YC18,"YES","NO") -> YES | YD32: =IF(YE23=YE18,"YES","NO") -> YES | YF32: =IF(YG23=YG18,"YES","NO") -> YES | YH32: =IF(YI23=YI18,"YES","NO") -> YES | YJ32: =IF(YK23=YK18,"YES","NO") -> YES | YL32: =IF(YM23=YM18,"YES","NO") -> YES | YN32: =IF(YO23=YO18,"YES","NO") -> YES | YP32: =IF(YQ23=YQ18,"YES","NO") -> YES | YR32: =IF(YS23=YS18,"YES","NO") -> YES | YT32: =IF(YU23=YU18,"YES","NO") -> YES | YV32: =IF(YW23=YW18,"YES","NO") -> YES | YX32: =IF(YY23=YY18,"YES","NO") -> YES | YZ32: =IF(ZA23=ZA18,"YES","NO") -> YES | ZB32: =IF(ZC23=ZC18,"YES","NO") -> YES | ZD32: =IF(ZE23=ZE18,"YES","NO") -> YES | ZF32: =IF(ZG23=ZG18,"YES","NO") -> YES | ZH32: =IF(ZI23=ZI18,"YES","NO") -> YES | ZJ32: =IF(ZK23=ZK18,"YES","NO") -> YES | ZL32: =IF(ZM23=ZM18,"YES","NO") -> YES | ZN32: =IF(ZO23=ZO18,"YES","NO") -> YES | ZP32: =IF(ZQ23=ZQ18,"YES","NO") -> YES | ZR32: =IF(ZS23=ZS18,"YES","NO") -> YES | ZT32: =IF(ZU23=ZU18,"YES","NO") -> YES | ZV32: =IF(ZW23=ZW18,"YES","NO") -> YES | ZX32: =IF(ZY23=ZY18,"YES","NO") -> YES | ZZ32: =IF(AAA23=AAA18,"YES","NO") -> YES | AAB32: =IF(AAC23=AAC18,"YES","NO") -> YES | AAD32: =IF(AAE23=AAE18,"YES","NO") -> YES | AAF32: =IF(AAG23=AAG18,"YES","NO") -> YES | AAH32: =IF(AAI23=AAI18,"YES","NO") -> YES | AAJ32: =IF(AAK23=AAK18,"YES","NO") -> YES | AAL32: =IF(AAM23=AAM18,"YES","NO") -> YES | AAN32: =IF(AAO23=AAO18,"YES","NO") -> YES | AAP32: =IF(AAQ23=AAQ18,"YES","NO") -> YES | AAR32: =IF(AAS23=AAS18,"YES","NO") -> YES | AAT32: =IF(AAU23=AAU18,"YES","NO") -> YES | AAV32: =IF(AAW23=AAW18,"YES","NO") -> YES | AAX32: =IF(AAY23=AAY18,"YES","NO") -> YES | AAZ32: =IF(ABA23=ABA18,"YES","NO") -> YES | ABB32: =IF(ABC23=ABC18,"YES","NO") -> YES | ABD32: =IF(ABE23=ABE18,"YES","NO") -> YES | ABF32: =IF(ABG23=ABG18,"YES","NO") -> YES | ABH32: =IF(ABI23=ABI18,"YES","NO") -> YES | ABJ32: =IF(ABK23=ABK18,"YES","NO") -> YES | ABL32: =IF(ABM23=ABM18,"YES","NO") -> YES | ABN32: =IF(ABO23=ABO18,"YES","NO") -> YES | ABP32: =IF(ABQ23=ABQ18,"YES","NO") -> YES | ABR32: =IF(ABS23=ABS18,"YES","NO") -> YES | ABT32: =IF(ABU23=ABU18,"YES","NO") -> YES | ABV32: =IF(ABW23=ABW18,"YES","NO") -> YES | ABX32: =IF(ABY23=ABY18,"YES","NO") -> YES | ABZ32: =IF(ACA23=ACA18,"YES","NO") -> YES | ACB32: =IF(ACC23=ACC18,"YES","NO") -> YES | ACD32: =IF(ACE23=ACE18,"YES","NO") -> YES | ACF32: =IF(ACG23=ACG18,"YES","NO") -> YES | ACH32: =IF(ACI23=ACI18,"YES","NO") -> YES | ACJ32: =IF(ACK23=ACK18,"YES","NO") -> YES | ACL32: =IF(ACM23=ACM18,"YES","NO") -> YES | ACN32: =IF(ACO23=ACO18,"YES","NO") -> YES | ACP32: =IF(ACQ23=ACQ18,"YES","NO") -> YES | ACR32: =IF(ACS23=ACS18,"YES","NO") -> YES | ACT32: =IF(ACU23=ACU18,"YES","NO") -> YES | ACV32: =IF(ACW23=ACW18,"YES","NO") -> YES | ACX32: =IF(ACY23=ACY18,"YES","NO") -> YES | ACZ32: =IF(ADA23=ADA18,"YES","NO") -> YES | ADB32: =IF(ADC23=ADC18,"YES","NO") -> YES | ADD32: =IF(ADE23=ADE18,"YES","NO") -> YES | ADF32: =IF(ADG23=ADG18,"YES","NO") -> YES | ADH32: =IF(ADI23=ADI18,"YES","NO") -> YES | ADJ32: =IF(ADK23=ADK18,"YES","NO") -> YES | ADL32: =IF(ADM23=ADM18,"YES","NO") -> YES | ADN32: =IF(ADO23=ADO18,"YES","NO") -> YES | ADP32: =IF(ADQ23=ADQ18,"YES","NO") -> YES | ADR32: =IF(ADS23=ADS18,"YES","NO") -> YES | ADT32: =IF(ADU23=ADU18,"YES","NO") -> YES | ADV32: =IF(ADW23=ADW18,"YES","NO") -> YES | ADX32: =IF(ADY23=ADY18,"YES","NO") -> YES | ADZ32: =IF(AEA23=AEA18,"YES","NO") -> YES | AEB32: =IF(AEC23=AEC18,"YES","NO") -> YES | AED32: =IF(AEE23=AEE18,"YES","NO") -> YES | AEF32: =IF(AEG23=AEG18,"YES","NO") -> YES | AEH32: =IF(AEI23=AEI18,"YES","NO") -> YES | AEJ32: =IF(AEK23=AEK18,"YES","NO") -> YES | AEL32: =IF(AEM23=AEM18,"YES","NO") -> YES | AEN32: =IF(AEO23=AEO18,"YES","NO") -> YES | AEP32: =IF(AEQ23=AEQ18,"YES","NO") -> YES | AER32: =IF(AES23=AES18,"YES","NO") -> YES | AET32: =IF(AEU23=AEU18,"YES","NO") -> YES | AEV32: =IF(AEW23=AEW18,"YES","NO") -> YES | AEX32: =IF(AEY23=AEY18,"YES","NO") -> YES | AEZ32: =IF(AFA23=AFA18,"YES","NO") -> YES | AFB32: =IF(AFC23=AFC18,"YES","NO") -> YES | AFD32: =IF(AFE23=AFE18,"YES","NO") -> YES | AFF32: =IF(AFG23=AFG18,"YES","NO") -> YES | AFH32: =IF(AFI23=AFI18,"YES","NO") -> YES | AFJ32: =IF(AFK23=AFK18,"YES","NO") -> YES | AFL32: =IF(AFM23=AFM18,"YES","NO") -> YES | AFN32: =IF(AFO23=AFO18,"YES","NO") -> YES | AFP32: =IF(AFQ23=AFQ18,"YES","NO") -> YES | AFR32: =IF(AFS23=AFS18,"YES","NO") -> YES | AFT32: =IF(AFU23=AFU18,"YES","NO") -> YES | AFV32: =IF(AFW23=AFW18,"YES","NO") -> YES | AFX32: =IF(AFY23=AFY18,"YES","NO") -> YES | AFZ32: =IF(AGA23=AGA18,"YES","NO") -> YES | AGB32: =IF(AGC23=AGC18,"YES","NO") -> YES | AGD32: =IF(AGE23=AGE18,"YES","NO") -> YES | AGF32: =IF(AGG23=AGG18,"YES","NO") -> YES | AGH32: =IF(AGI23=AGI18,"YES","NO") -> YES | AGJ32: =IF(AGK23=AGK18,"YES","NO") -> YES | AGL32: =IF(AGM23=AGM18,"YES","NO") -> YES | AGN32: =IF(AGO23=AGO18,"YES","NO") -> YES | AGP32: =IF(AGQ23=AGQ18,"YES","NO") -> YES | AGR32: =IF(AGS23=AGS18,"YES","NO") -> YES | AGT32: =IF(AGU23=AGU18,"YES","NO") -> YES | AGV32: =IF(AGW23=AGW18,"YES","NO") -> YES | AGX32: =IF(AGY23=AGY18,"YES","NO") -> YES | AGZ32: =IF(AHA23=AHA18,"YES","NO") -> YES | AHB32: =IF(AHC23=AHC18,"YES","NO") -> YES | AHD32: =IF(AHE23=AHE18,"YES","NO") -> YES | AHF32: =IF(AHG23=AHG18,"YES","NO") -> YES | AHH32: =IF(AHI23=AHI18,"YES","NO") -> YES | AHJ32: =IF(AHK23=AHK18,"YES","NO") -> YES | AHL32: =IF(AHM23=AHM18,"YES","NO") -> YES | AHN32: =IF(AHO23=AHO18,"YES","NO") -> YES | AHP32: =IF(AHQ23=AHQ18,"YES","NO") -> YES | AHR32: =IF(AHS23=AHS18,"YES","NO") -> YES | AHT32: =IF(AHU23=AHU18,"YES","NO") -> YES | AHV32: =IF(AHW23=AHW18,"YES","NO") -> YES | AHX32: =IF(AHY23=AHY18,"YES","NO") -> YES | AHZ32: =IF(AIA23=AIA18,"YES","NO") -> YES | AIB32: =IF(AIC23=AIC18,"YES","NO") -> YES | AID32: =IF(AIE23=AIE18,"YES","NO") -> YES | AIF32: =IF(AIG23=AIG18,"YES","NO") -> YES | AIH32: =IF(AII23=AII18,"YES","NO") -> YES | AIJ32: =IF(AIK23=AIK18,"YES","NO") -> YES | AIL32: =IF(AIM23=AIM18,"YES","NO") -> YES | AIN32: =IF(AIO23=AIO18,"YES","NO") -> YES | AIP32: =IF(AIQ23=AIQ18,"YES","NO") -> YES | AIR32: =IF(AIS23=AIS18,"YES","NO") -> YES | AIT32: =IF(AIU23=AIU18,"YES","NO") -> YES | AIV32: =IF(AIW23=AIW18,"YES","NO") -> YES | AIX32: =IF(AIY23=AIY18,"YES","NO") -> YES | AIZ32: =IF(AJA23=AJA18,"YES","NO") -> YES | AJB32: =IF(AJC23=AJC18,"YES","NO") -> YES | AJD32: =IF(AJE23=AJE18,"YES","NO") -> YES | AJF32: =IF(AJG23=AJG18,"YES","NO") -> YES | AJH32: =IF(AJI23=AJI18,"YES","NO") -> YES | AJJ32: =IF(AJK23=AJK18,"YES","NO") -> YES | AJL32: =IF(AJM23=AJM18,"YES","NO") -> YES | AJN32: =IF(AJO23=AJO18,"YES","NO") -> YES | AJP32: =IF(AJQ23=AJQ18,"YES","NO") -> YES | AJR32: =IF(AJS23=AJS18,"YES","NO") -> YES | AJT32: =IF(AJU23=AJU18,"YES","NO") -> YES | AJV32: =IF(AJW23=AJW18,"YES","NO") -> YES | AJX32: =IF(AJY23=AJY18,"YES","NO") -> YES | AJZ32: =IF(AKA23=AKA18,"YES","NO") -> YES | AKB32: =IF(AKC23=AKC18,"YES","NO") -> YES | AKD32: =IF(AKE23=AKE18,"YES","NO") -> YES | AKF32: =IF(AKG23=AKG18,"YES","NO") -> YES | AKH32: =IF(AKI23=AKI18,"YES","NO") -> YES | AKJ32: =IF(AKK23=AKK18,"YES","NO") -> YES | AKL32: =IF(AKM23=AKM18,"YES","NO") -> YES | AKN32: =IF(AKO23=AKO18,"YES","NO") -> YES | AKP32: =IF(AKQ23=AKQ18,"YES","NO") -> YES | AKR32: =IF(AKS23=AKS18,"YES","NO") -> YES | AKT32: =IF(AKU23=AKU18,"YES","NO") -> YES | AKV32: =IF(AKW23=AKW18,"YES","NO") -> YES | AKX32: =IF(AKY23=AKY18,"YES","NO") -> YES | AKZ32: =IF(ALA23=ALA18,"YES","NO") -> YES | ALB32: =IF(ALC23=ALC18,"YES","NO") -> YES | ALD32: =IF(ALE23=ALE18,"YES","NO") -> YES | ALF32: =IF(ALG23=ALG18,"YES","NO") -> YES | ALH32: =IF(ALI23=ALI18,"YES","NO") -> YES | ALJ32: =IF(ALK23=ALK18,"YES","NO") -> YES | ALL32: =IF(ALM23=ALM18,"YES","NO") -> YES | ALN32: =IF(ALO23=ALO18,"YES","NO") -> YES | ALP32: =IF(ALQ23=ALQ18,"YES","NO") -> YES | ALR32: =IF(ALS23=ALS18,"YES","NO") -> YES | ALT32: =IF(ALU23=ALU18,"YES","NO") -> YES | ALV32: =IF(ALW23=ALW18,"YES","NO") -> YES | ALX32: =IF(ALY23=ALY18,"YES","NO") -> YES | ALZ32: =IF(AMA23=AMA18,"YES","NO") -> YES | AMB32: =IF(AMC23=AMC18,"YES","NO") -> YES | AMD32: =IF(AME23=AME18,"YES","NO") -> YES | AMF32: =IF(AMG23=AMG18,"YES","NO") -> YES | AMH32: =IF(AMI23=AMI18,"YES","NO") -> YES | AMJ32: =IF(AMK23=AMK18,"YES","NO") -> YES | AML32: =IF(AMM23=AMM18,"YES","NO") -> YES | AMN32: =IF(AMO23=AMO18,"YES","NO") -> YES | AMP32: =IF(AMQ23=AMQ18,"YES","NO") -> YES | AMR32: =IF(AMS23=AMS18,"YES","NO") -> YES | AMT32: =IF(AMU23=AMU18,"YES","NO") -> YES | AMV32: =IF(AMW23=AMW18,"YES","NO") -> YES | AMX32: =IF(AMY23=AMY18,"YES","NO") -> YES | AMZ32: =IF(ANA23=ANA18,"YES","NO") -> YES | ANB32: =IF(ANC23=ANC18,"YES","NO") -> YES | AND32: =IF(ANE23=ANE18,"YES","NO") -> YES | ANF32: =IF(ANG23=ANG18,"YES","NO") -> YES | ANH32: =IF(ANI23=ANI18,"YES","NO") -> YES | ANJ32: =IF(ANK23=ANK18,"YES","NO") -> YES | ANL32: =IF(ANM23=ANM18,"YES","NO") -> YES | ANN32: =IF(ANO23=ANO18,"YES","NO") -> YES | ANP32: =IF(ANQ23=ANQ18,"YES","NO") -> YES | ANR32: =IF(ANS23=ANS18,"YES","NO") -> YES | ANT32: =IF(ANU23=ANU18,"YES","NO") -> YES | ANV32: =IF(ANW23=ANW18,"YES","NO") -> YES | ANX32: =IF(ANY23=ANY18,"YES","NO") -> YES | ANZ32: =IF(AOA23=AOA18,"YES","NO") -> YES | AOB32: =IF(AOC23=AOC18,"YES","NO") -> YES | AOD32: =IF(AOE23=AOE18,"YES","NO") -> YES | AOF32: =IF(AOG23=AOG18,"YES","NO") -> YES | AOH32: =IF(AOI23=AOI18,"YES","NO") -> YES | AOJ32: =IF(AOK23=AOK18,"YES","NO") -> YES | AOL32: =IF(AOM23=AOM18,"YES","NO") -> YES | AON32: =IF(AOO23=AOO18,"YES","NO") -> YES | AOP32: =IF(AOQ23=AOQ18,"YES","NO") -> YES | AOR32: =IF(AOS23=AOS18,"YES","NO") -> YES | AOT32: =IF(AOU23=AOU18,"YES","NO") -> YES | AOV32: =IF(AOW23=AOW18,"YES","NO") -> YES | AOX32: =IF(AOY23=AOY18,"YES","NO") -> YES | AOZ32: =IF(APA23=APA18,"YES","NO") -> YES | APB32: =IF(APC23=APC18,"YES","NO") -> YES | APD32: =IF(APE23=APE18,"YES","NO") -> YES | APF32: =IF(APG23=APG18,"YES","NO") -> YES | APH32: =IF(API23=API18,"YES","NO") -> YES | APJ32: =IF(APK23=APK18,"YES","NO") -> YES | APL32: =IF(APM23=APM18,"YES","NO") -> YES | APN32: =IF(APO23=APO18,"YES","NO") -> YES | APP32: =IF(APQ23=APQ18,"YES","NO") -> YES | APR32: =IF(APS23=APS18,"YES","NO") -> YES | APT32: =IF(APU23=APU18,"YES","NO") -> YES | APV32: =IF(APW23=APW18,"YES","NO") -> YES | APX32: =IF(APY23=APY18,"YES","NO") -> YES | APZ32: =IF(AQA23=AQA18,"YES","NO") -> YES | AQB32: =IF(AQC23=AQC18,"YES","NO") -> YES | AQD32: =IF(AQE23=AQE18,"YES","NO") -> YES | AQF32: =IF(AQG23=AQG18,"YES","NO") -> YES | AQH32: =IF(AQI23=AQI18,"YES","NO") -> YES | AQJ32: =IF(AQK23=AQK18,"YES","NO") -> YES | AQL32: =IF(AQM23=AQM18,"YES","NO") -> YES | AQN32: =IF(AQO23=AQO18,"YES","NO") -> YES | AQP32: =IF(AQQ23=AQQ18,"YES","NO") -> YES | AQR32: =IF(AQS23=AQS18,"YES","NO") -> YES | AQT32: =IF(AQU23=AQU18,"YES","NO") -> YES | AQV32: =IF(AQW23=AQW18,"YES","NO") -> YES | AQX32: =IF(AQY23=AQY18,"YES","NO") -> YES | AQZ32: =IF(ARA23=ARA18,"YES","NO") -> YES | ARB32: =IF(ARC23=ARC18,"YES","NO") -> YES | ARD32: =IF(ARE23=ARE18,"YES","NO") -> YES | ARF32: =IF(ARG23=ARG18,"YES","NO") -> YES | ARH32: =IF(ARI23=ARI18,"YES","NO") -> YES | ARJ32: =IF(ARK23=ARK18,"YES","NO") -> YES | ARL32: =IF(ARM23=ARM18,"YES","NO") -> YES | ARN32: =IF(ARO23=ARO18,"YES","NO") -> YES | ARP32: =IF(ARQ23=ARQ18,"YES","NO") -> YES | ARR32: =IF(ARS23=ARS18,"YES","NO") -> YES | ART32: =IF(ARU23=ARU18,"YES","NO") -> YES | ARV32: =IF(ARW23=ARW18,"YES","NO") -> YES | ARX32: =IF(ARY23=ARY18,"YES","NO") -> YES | ARZ32: =IF(ASA23=ASA18,"YES","NO") -> YES | ASB32: =IF(ASC23=ASC18,"YES","NO") -> YES | ASD32: =IF(ASE23=ASE18,"YES","NO") -> YES | ASF32: =IF(ASG23=ASG18,"YES","NO") -> YES | ASH32: =IF(ASI23=ASI18,"YES","NO") -> YES | ASJ32: =IF(ASK23=ASK18,"YES","NO") -> YES | ASL32: =IF(ASM23=ASM18,"YES","NO") -> YES | ASN32: =IF(ASO23=ASO18,"YES","NO") -> YES | ASP32: =IF(ASQ23=ASQ18,"YES","NO") -> YES | ASR32: =IF(ASS23=ASS18,"YES","NO") -> YES | AST32: =IF(ASU23=ASU18,"YES","NO") -> YES | ASV32: =IF(ASW23=ASW18,"YES","NO") -> YES | ASX32: =IF(ASY23=ASY18,"YES","NO") -> YES | ASZ32: =IF(ATA23=ATA18,"YES","NO") -> YES | ATB32: =IF(ATC23=ATC18,"YES","NO") -> YES | ATD32: =IF(ATE23=ATE18,"YES","NO") -> YES | ATF32: =IF(ATG23=ATG18,"YES","NO") -> YES | ATH32: =IF(ATI23=ATI18,"YES","NO") -> YES | ATJ32: =IF(ATK23=ATK18,"YES","NO") -> YES | ATL32: =IF(ATM23=ATM18,"YES","NO") -> YES | ATN32: =IF(ATO23=ATO18,"YES","NO") -> YES | ATP32: =IF(ATQ23=ATQ18,"YES","NO") -> YES | ATR32: =IF(ATS23=ATS18,"YES","NO") -> YES | ATT32: =IF(ATU23=ATU18,"YES","NO") -> YES | ATV32: =IF(ATW23=ATW18,"YES","NO") -> YES | ATX32: =IF(ATY23=ATY18,"YES","NO") -> YES | ATZ32: =IF(AUA23=AUA18,"YES","NO") -> YES | AUB32: =IF(AUC23=AUC18,"YES","NO") -> YES | AUD32: =IF(AUE23=AUE18,"YES","NO") -> YES | AUF32: =IF(AUG23=AUG18,"YES","NO") -> YES | AUH32: =IF(AUI23=AUI18,"YES","NO") -> YES | AUJ32: =IF(AUK23=AUK18,"YES","NO") -> YES | AUL32: =IF(AUM23=AUM18,"YES","NO") -> YES | AUN32: =IF(AUO23=AUO18,"YES","NO") -> YES | AUP32: =IF(AUQ23=AUQ18,"YES","NO") -> YES | AUR32: =IF(AUS23=AUS18,"YES","NO") -> YES | AUT32: =IF(AUU23=AUU18,"YES","NO") -> YES | AUV32: =IF(AUW23=AUW18,"YES","NO") -> YES | AUX32: =IF(AUY23=AUY18,"YES","NO") -> YES | AUZ32: =IF(AVA23=AVA18,"YES","NO") -> YES | AVB32: =IF(AVC23=AVC18,"YES","NO") -> YES | AVD32: =IF(AVE23=AVE18,"YES","NO") -> YES | AVF32: =IF(AVG23=AVG18,"YES","NO") -> YES | AVH32: =IF(AVI23=AVI18,"YES","NO") -> YES | AVJ32: =IF(AVK23=AVK18,"YES","NO") -> YES | AVL32: =IF(AVM23=AVM18,"YES","NO") -> YES | AVN32: =IF(AVO23=AVO18,"YES","NO") -> YES | AVP32: =IF(AVQ23=AVQ18,"YES","NO") -> YES | AVR32: =IF(AVS23=AVS18,"YES","NO") -> YES | AVT32: =IF(AVU23=AVU18,"YES","NO") -> YES | AVV32: =IF(AVW23=AVW18,"YES","NO") -> YES | AVX32: =IF(AVY23=AVY18,"YES","NO") -> YES | AVZ32: =IF(AWA23=AWA18,"YES","NO") -> YES | AWB32: =IF(AWC23=AWC18,"YES","NO") -> YES | AWD32: =IF(AWE23=AWE18,"YES","NO") -> YES | AWF32: =IF(AWG23=AWG18,"YES","NO") -> YES | AWH32: =IF(AWI23=AWI18,"YES","NO") -> YES | AWJ32: =IF(AWK23=AWK18,"YES","NO") -> YES | AWL32: =IF(AWM23=AWM18,"YES","NO") -> YES | AWN32: =IF(AWO23=AWO18,"YES","NO") -> YES | AWP32: =IF(AWQ23=AWQ18,"YES","NO") -> YES | AWR32: =IF(AWS23=AWS18,"YES","NO") -> YES | AWT32: =IF(AWU23=AWU18,"YES","NO") -> YES | AWV32: =IF(AWW23=AWW18,"YES","NO") -> YES | AWX32: =IF(AWY23=AWY18,"YES","NO") -> YES | AWZ32: =IF(AXA23=AXA18,"YES","NO") -> YES | AXB32: =IF(AXC23=AXC18,"YES","NO") -> YES | AXD32: =IF(AXE23=AXE18,"YES","NO") -> YES | AXF32: =IF(AXG23=AXG18,"YES","NO") -> YES | AXH32: =IF(AXI23=AXI18,"YES","NO") -> YES | AXJ32: =IF(AXK23=AXK18,"YES","NO") -> YES | AXL32: =IF(AXM23=AXM18,"YES","NO") -> YES | AXN32: =IF(AXO23=AXO18,"YES","NO") -> YES | AXP32: =IF(AXQ23=AXQ18,"YES","NO") -> YES | AXR32: =IF(AXS23=AXS18,"YES","NO") -> YES | AXT32: =IF(AXU23=AXU18,"YES","NO") -> YES | AXV32: =IF(AXW23=AXW18,"YES","NO") -> YES | AXX32: =IF(AXY23=AXY18,"YES","NO") -> YES | AXZ32: =IF(AYA23=AYA18,"YES","NO") -> YES | AYB32: =IF(AYC23=AYC18,"YES","NO") -> YES | AYD32: =IF(AYE23=AYE18,"YES","NO") -> YES | AYF32: =IF(AYG23=AYG18,"YES","NO") -> YES | AYH32: =IF(AYI23=AYI18,"YES","NO") -> YES | AYJ32: =IF(AYK23=AYK18,"YES","NO") -> YES | AYL32: =IF(AYM23=AYM18,"YES","NO") -> YES | AYN32: =IF(AYO23=AYO18,"YES","NO") -> YES | AYP32: =IF(AYQ23=AYQ18,"YES","NO") -> YES | AYR32: =IF(AYS23=AYS18,"YES","NO") -> YES | AYT32: =IF(AYU23=AYU18,"YES","NO") -> YES | AYV32: =IF(AYW23=AYW18,"YES","NO") -> YES | AYX32: =IF(AYY23=AYY18,"YES","NO") -> YES | AYZ32: =IF(AZA23=AZA18,"YES","NO") -> YES | AZB32: =IF(AZC23=AZC18,"YES","NO") -> YES | AZD32: =IF(AZE23=AZE18,"YES","NO") -> YES | AZF32: =IF(AZG23=AZG18,"YES","NO") -> YES | AZH32: =IF(AZI23=AZI18,"YES","NO") -> YES | AZJ32: =IF(AZK23=AZK18,"YES","NO") -> YES | AZL32: =IF(AZM23=AZM18,"YES","NO") -> YES | AZN32: =IF(AZO23=AZO18,"YES","NO") -> YES | AZP32: =IF(AZQ23=AZQ18,"YES","NO") -> YES | AZR32: =IF(AZS23=AZS18,"YES","NO") -> YES | AZT32: =IF(AZU23=AZU18,"YES","NO") -> YES | AZV32: =IF(AZW23=AZW18,"YES","NO") -> YES | AZX32: =IF(AZY23=AZY18,"YES","NO") -> YES | AZZ32: =IF(BAA23=BAA18,"YES","NO") -> YES | BAB32: =IF(BAC23=BAC18,"YES","NO") -> YES | BAD32: =IF(BAE23=BAE18,"YES","NO") -> YES | BAF32: =IF(BAG23=BAG18,"YES","NO") -> YES | BAH32: =IF(BAI23=BAI18,"YES","NO") -> YES | BAJ32: =IF(BAK23=BAK18,"YES","NO") -> YES | BAL32: =IF(BAM23=BAM18,"YES","NO") -> YES | BAN32: =IF(BAO23=BAO18,"YES","NO") -> YES | BAP32: =IF(BAQ23=BAQ18,"YES","NO") -> YES | BAR32: =IF(BAS23=BAS18,"YES","NO") -> YES | BAT32: =IF(BAU23=BAU18,"YES","NO") -> YES | BAV32: =IF(BAW23=BAW18,"YES","NO") -> YES | BAX32: =IF(BAY23=BAY18,"YES","NO") -> YES | BAZ32: =IF(BBA23=BBA18,"YES","NO") -> YES | BBB32: =IF(BBC23=BBC18,"YES","NO") -> YES | BBD32: =IF(BBE23=BBE18,"YES","NO") -> YES | BBF32: =IF(BBG23=BBG18,"YES","NO") -> YES | BBH32: =IF(BBI23=BBI18,"YES","NO") -> YES | BBJ32: =IF(BBK23=BBK18,"YES","NO") -> YES | BBL32: =IF(BBM23=BBM18,"YES","NO") -> YES | BBN32: =IF(BBO23=BBO18,"YES","NO") -> YES | BBP32: =IF(BBQ23=BBQ18,"YES","NO") -> YES | BBR32: =IF(BBS23=BBS18,"YES","NO") -> YES | BBT32: =IF(BBU23=BBU18,"YES","NO") -> YES | BBV32: =IF(BBW23=BBW18,"YES","NO") -> YES | BBX32: =IF(BBY23=BBY18,"YES","NO") -> YES | BBZ32: =IF(BCA23=BCA18,"YES","NO") -> YES | BCB32: =IF(BCC23=BCC18,"YES","NO") -> YES | BCD32: =IF(BCE23=BCE18,"YES","NO") -> YES | BCF32: =IF(BCG23=BCG18,"YES","NO") -> YES | BCH32: =IF(BCI23=BCI18,"YES","NO") -> YES | BCJ32: =IF(BCK23=BCK18,"YES","NO") -> YES | BCL32: =IF(BCM23=BCM18,"YES","NO") -> YES | BCN32: =IF(BCO23=BCO18,"YES","NO") -> YES | BCP32: =IF(BCQ23=BCQ18,"YES","NO") -> YES | BCR32: =IF(BCS23=BCS18,"YES","NO") -> YES | BCT32: =IF(BCU23=BCU18,"YES","NO") -> YES | BCV32: =IF(BCW23=BCW18,"YES","NO") -> YES | BCX32: =IF(BCY23=BCY18,"YES","NO") -> YES | BCZ32: =IF(BDA23=BDA18,"YES","NO") -> YES | BDB32: =IF(BDC23=BDC18,"YES","NO") -> YES | BDD32: =IF(BDE23=BDE18,"YES","NO") -> YES | BDF32: =IF(BDG23=BDG18,"YES","NO") -> YES | BDH32: =IF(BDI23=BDI18,"YES","NO") -> YES | BDJ32: =IF(BDK23=BDK18,"YES","NO") -> YES | BDL32: =IF(BDM23=BDM18,"YES","NO") -> YES | BDN32: =IF(BDO23=BDO18,"YES","NO") -> YES | BDP32: =IF(BDQ23=BDQ18,"YES","NO") -> YES | BDR32: =IF(BDS23=BDS18,"YES","NO") -> YES | BDT32: =IF(BDU23=BDU18,"YES","NO") -> YES | BDV32: =IF(BDW23=BDW18,"YES","NO") -> YES | BDX32: =IF(BDY23=BDY18,"YES","NO") -> YES | BDZ32: =IF(BEA23=BEA18,"YES","NO") -> YES | BEB32: =IF(BEC23=BEC18,"YES","NO") -> YES | BED32: =IF(BEE23=BEE18,"YES","NO") -> YES | BEF32: =IF(BEG23=BEG18,"YES","NO") -> YES | BEH32: =IF(BEI23=BEI18,"YES","NO") -> YES | BEJ32: =IF(BEK23=BEK18,"YES","NO") -> YES | BEL32: =IF(BEM23=BEM18,"YES","NO") -> YES | BEN32: =IF(BEO23=BEO18,"YES","NO") -> YES | BEP32: =IF(BEQ23=BEQ18,"YES","NO") -> YES | BER32: =IF(BES23=BES18,"YES","NO") -> YES | BET32: =IF(BEU23=BEU18,"YES","NO") -> YES | BEV32: =IF(BEW23=BEW18,"YES","NO") -> YES | BEX32: =IF(BEY23=BEY18,"YES","NO") -> YES | BEZ32: =IF(BFA23=BFA18,"YES","NO") -> YES | BFB32: =IF(BFC23=BFC18,"YES","NO") -> YES | BFD32: =IF(BFE23=BFE18,"YES","NO") -> YES | BFF32: =IF(BFG23=BFG18,"YES","NO") -> YES | BFH32: =IF(BFI23=BFI18,"YES","NO") -> YES | BFJ32: =IF(BFK23=BFK18,"YES","NO") -> YES | BFL32: =IF(BFM23=BFM18,"YES","NO") -> YES | BFN32: =IF(BFO23=BFO18,"YES","NO") -> YES | BFP32: =IF(BFQ23=BFQ18,"YES","NO") -> YES | BFR32: =IF(BFS23=BFS18,"YES","NO") -> YES | BFT32: =IF(BFU23=BFU18,"YES","NO") -> YES | BFV32: =IF(BFW23=BFW18,"YES","NO") -> YES | BFX32: =IF(BFY23=BFY18,"YES","NO") -> YES | BFZ32: =IF(BGA23=BGA18,"YES","NO") -> YES | BGB32: =IF(BGC23=BGC18,"YES","NO") -> YES | BGD32: =IF(BGE23=BGE18,"YES","NO") -> YES | BGF32: =IF(BGG23=BGG18,"YES","NO") -> YES | BGH32: =IF(BGI23=BGI18,"YES","NO") -> YES | BGJ32: =IF(BGK23=BGK18,"YES","NO") -> YES | BGL32: =IF(BGM23=BGM18,"YES","NO") -> YES | BGN32: =IF(BGO23=BGO18,"YES","NO") -> YES | BGP32: =IF(BGQ23=BGQ18,"YES","NO") -> YES | BGR32: =IF(BGS23=BGS18,"YES","NO") -> YES | BGT32: =IF(BGU23=BGU18,"YES","NO") -> YES | BGV32: =IF(BGW23=BGW18,"YES","NO") -> YES | BGX32: =IF(BGY23=BGY18,"YES","NO") -> YES | BGZ32: =IF(BHA23=BHA18,"YES","NO") -> YES | BHB32: =IF(BHC23=BHC18,"YES","NO") -> YES | BHD32: =IF(BHE23=BHE18,"YES","NO") -> YES | BHF32: =IF(BHG23=BHG18,"YES","NO") -> YES | BHH32: =IF(BHI23=BHI18,"YES","NO") -> YES | BHJ32: =IF(BHK23=BHK18,"YES","NO") -> YES | BHL32: =IF(BHM23=BHM18,"YES","NO") -> YES | BHN32: =IF(BHO23=BHO18,"YES","NO") -> YES | BHP32: =IF(BHQ23=BHQ18,"YES","NO") -> YES | BHR32: =IF(BHS23=BHS18,"YES","NO") -> YES | BHT32: =IF(BHU23=BHU18,"YES","NO") -> YES | BHV32: =IF(BHW23=BHW18,"YES","NO") -> YES | BHX32: =IF(BHY23=BHY18,"YES","NO") -> YES | BHZ32: =IF(BIA23=BIA18,"YES","NO") -> YES | BIB32: =IF(BIC23=BIC18,"YES","NO") -> YES | BID32: =IF(BIE23=BIE18,"YES","NO") -> YES | BIF32: =IF(BIG23=BIG18,"YES","NO") -> YES | BIH32: =IF(BII23=BII18,"YES","NO") -> YES | BIJ32: =IF(BIK23=BIK18,"YES","NO") -> YES | BIL32: =IF(BIM23=BIM18,"YES","NO") -> YES | BIN32: =IF(BIO23=BIO18,"YES","NO") -> YES | BIP32: =IF(BIQ23=BIQ18,"YES","NO") -> YES | BIR32: =IF(BIS23=BIS18,"YES","NO") -> YES | BIT32: =IF(BIU23=BIU18,"YES","NO") -> YES | BIV32: =IF(BIW23=BIW18,"YES","NO") -> YES | BIX32: =IF(BIY23=BIY18,"YES","NO") -> YES | BIZ32: =IF(BJA23=BJA18,"YES","NO") -> YES | BJB32: =IF(BJC23=BJC18,"YES","NO") -> YES | BJD32: =IF(BJE23=BJE18,"YES","NO") -> YES | BJF32: =IF(BJG23=BJG18,"YES","NO") -> YES | BJH32: =IF(BJI23=BJI18,"YES","NO") -> YES | BJJ32: =IF(BJK23=BJK18,"YES","NO") -> YES | BJL32: =IF(BJM23=BJM18,"YES","NO") -> YES | BJN32: =IF(BJO23=BJO18,"YES","NO") -> YES | BJP32: =IF(BJQ23=BJQ18,"YES","NO") -> YES | BJR32: =IF(BJS23=BJS18,"YES","NO") -> YES | BJT32: =IF(BJU23=BJU18,"YES","NO") -> YES | BJV32: =IF(BJW23=BJW18,"YES","NO") -> YES | BJX32: =IF(BJY23=BJY18,"YES","NO") -> YES | BJZ32: =IF(BKA23=BKA18,"YES","NO") -> YES | BKB32: =IF(BKC23=BKC18,"YES","NO") -> YES | BKD32: =IF(BKE23=BKE18,"YES","NO") -> YES | BKF32: =IF(BKG23=BKG18,"YES","NO") -> YES | BKH32: =IF(BKI23=BKI18,"YES","NO") -> YES | BKJ32: =IF(BKK23=BKK18,"YES","NO") -> YES | BKL32: =IF(BKM23=BKM18,"YES","NO") -> YES | BKN32: =IF(BKO23=BKO18,"YES","NO") -> YES | BKP32: =IF(BKQ23=BKQ18,"YES","NO") -> YES | BKR32: =IF(BKS23=BKS18,"YES","NO") -> YES | BKT32: =IF(BKU23=BKU18,"YES","NO") -> YES | BKV32: =IF(BKW23=BKW18,"YES","NO") -> YES | BKX32: =IF(BKY23=BKY18,"YES","NO") -> YES | BKZ32: =IF(BLA23=BLA18,"YES","NO") -> YES | BLB32: =IF(BLC23=BLC18,"YES","NO") -> YES | BLD32: =IF(BLE23=BLE18,"YES","NO") -> YES | BLF32: =IF(BLG23=BLG18,"YES","NO") -> YES | BLH32: =IF(BLI23=BLI18,"YES","NO") -> YES | BLJ32: =IF(BLK23=BLK18,"YES","NO") -> YES | BLL32: =IF(BLM23=BLM18,"YES","NO") -> YES | BLN32: =IF(BLO23=BLO18,"YES","NO") -> YES | BLP32: =IF(BLQ23=BLQ18,"YES","NO") -> YES | BLR32: =IF(BLS23=BLS18,"YES","NO") -> YES | BLT32: =IF(BLU23=BLU18,"YES","NO") -> YES | BLV32: =IF(BLW23=BLW18,"YES","NO") -> YES | BLX32: =IF(BLY23=BLY18,"YES","NO") -> YES | BLZ32: =IF(BMA23=BMA18,"YES","NO") -> YES | BMB32: =IF(BMC23=BMC18,"YES","NO") -> YES | BMD32: =IF(BME23=BME18,"YES","NO") -> YES | BMF32: =IF(BMG23=BMG18,"YES","NO") -> YES | BMH32: =IF(BMI23=BMI18,"YES","NO") -> YES | BMJ32: =IF(BMK23=BMK18,"YES","NO") -> YES | BML32: =IF(BMM23=BMM18,"YES","NO") -> YES | BMN32: =IF(BMO23=BMO18,"YES","NO") -> YES | BMP32: =IF(BMQ23=BMQ18,"YES","NO") -> YES | BMR32: =IF(BMS23=BMS18,"YES","NO") -> YES | BMT32: =IF(BMU23=BMU18,"YES","NO") -> YES | BMV32: =IF(BMW23=BMW18,"YES","NO") -> YES | BMX32: =IF(BMY23=BMY18,"YES","NO") -> YES | BMZ32: =IF(BNA23=BNA18,"YES","NO") -> YES | BNB32: =IF(BNC23=BNC18,"YES","NO") -> YES | BND32: =IF(BNE23=BNE18,"YES","NO") -> YES | BNF32: =IF(BNG23=BNG18,"YES","NO") -> YES | BNH32: =IF(BNI23=BNI18,"YES","NO") -> YES | BNJ32: =IF(BNK23=BNK18,"YES","NO") -> YES | BNL32: =IF(BNM23=BNM18,"YES","NO") -> YES | BNN32: =IF(BNO23=BNO18,"YES","NO") -> YES | BNP32: =IF(BNQ23=BNQ18,"YES","NO") -> YES | BNR32: =IF(BNS23=BNS18,"YES","NO") -> YES | BNT32: =IF(BNU23=BNU18,"YES","NO") -> YES | BNV32: =IF(BNW23=BNW18,"YES","NO") -> YES | BNX32: =IF(BNY23=BNY18,"YES","NO") -> YES | BNZ32: =IF(BOA23=BOA18,"YES","NO") -> YES | BOB32: =IF(BOC23=BOC18,"YES","NO") -> YES | BOD32: =IF(BOE23=BOE18,"YES","NO") -> YES | BOF32: =IF(BOG23=BOG18,"YES","NO") -> YES | BOH32: =IF(BOI23=BOI18,"YES","NO") -> YES | BOJ32: =IF(BOK23=BOK18,"YES","NO") -> YES | BOL32: =IF(BOM23=BOM18,"YES","NO") -> YES | BON32: =IF(BOO23=BOO18,"YES","NO") -> YES | BOP32: =IF(BOQ23=BOQ18,"YES","NO") -> YES | BOR32: =IF(BOS23=BOS18,"YES","NO") -> YES | BOT32: =IF(BOU23=BOU18,"YES","NO") -> YES | BOV32: =IF(BOW23=BOW18,"YES","NO") -> YES | BOX32: =IF(BOY23=BOY18,"YES","NO") -> YES | BOZ32: =IF(BPA23=BPA18,"YES","NO") -> YES | BPB32: =IF(BPC23=BPC18,"YES","NO") -> YES | BPD32: =IF(BPE23=BPE18,"YES","NO") -> YES | BPF32: =IF(BPG23=BPG18,"YES","NO") -> YES | BPH32: =IF(BPI23=BPI18,"YES","NO") -> YES | BPJ32: =IF(BPK23=BPK18,"YES","NO") -> YES | BPL32: =IF(BPM23=BPM18,"YES","NO") -> YES | BPN32: =IF(BPO23=BPO18,"YES","NO") -> YES | BPP32: =IF(BPQ23=BPQ18,"YES","NO") -> YES | BPR32: =IF(BPS23=BPS18,"YES","NO") -> YES | BPT32: =IF(BPU23=BPU18,"YES","NO") -> YES | BPV32: =IF(BPW23=BPW18,"YES","NO") -> YES | BPX32: =IF(BPY23=BPY18,"YES","NO") -> YES | BPZ32: =IF(BQA23=BQA18,"YES","NO") -> YES | BQB32: =IF(BQC23=BQC18,"YES","NO") -> YES | BQD32: =IF(BQE23=BQE18,"YES","NO") -> YES | BQF32: =IF(BQG23=BQG18,"YES","NO") -> YES | BQH32: =IF(BQI23=BQI18,"YES","NO") -> YES | BQJ32: =IF(BQK23=BQK18,"YES","NO") -> YES | BQL32: =IF(BQM23=BQM18,"YES","NO") -> YES | BQN32: =IF(BQO23=BQO18,"YES","NO") -> YES | BQP32: =IF(BQQ23=BQQ18,"YES","NO") -> YES | BQR32: =IF(BQS23=BQS18,"YES","NO") -> YES | BQT32: =IF(BQU23=BQU18,"YES","NO") -> YES | BQV32: =IF(BQW23=BQW18,"YES","NO") -> YES | BQX32: =IF(BQY23=BQY18,"YES","NO") -> YES | BQZ32: =IF(BRA23=BRA18,"YES","NO") -> YES | BRB32: =IF(BRC23=BRC18,"YES","NO") -> YES | BRD32: =IF(BRE23=BRE18,"YES","NO") -> YES | BRF32: =IF(BRG23=BRG18,"YES","NO") -> YES | BRH32: =IF(BRI23=BRI18,"YES","NO") -> YES | BRJ32: =IF(BRK23=BRK18,"YES","NO") -> YES | BRL32: =IF(BRM23=BRM18,"YES","NO") -> YES | BRN32: =IF(BRO23=BRO18,"YES","NO") -> YES | BRP32: =IF(BRQ23=BRQ18,"YES","NO") -> YES | BRR32: =IF(BRS23=BRS18,"YES","NO") -> YES | BRT32: =IF(BRU23=BRU18,"YES","NO") -> YES | BRV32: =IF(BRW23=BRW18,"YES","NO") -> YES | BRX32: =IF(BRY23=BRY18,"YES","NO") -> YES | BRZ32: =IF(BSA23=BSA18,"YES","NO") -> YES | BSB32: =IF(BSC23=BSC18,"YES","NO") -> YES | BSD32: =IF(BSE23=BSE18,"YES","NO") -> YES | BSF32: =IF(BSG23=BSG18,"YES","NO") -> YES | BSH32: =IF(BSI23=BSI18,"YES","NO") -> YES | BSJ32: =IF(BSK23=BSK18,"YES","NO") -> YES | BSL32: =IF(BSM23=BSM18,"YES","NO") -> YES | BSN32: =IF(BSO23=BSO18,"YES","NO") -> YES | BSP32: =IF(BSQ23=BSQ18,"YES","NO") -> YES | BSR32: =IF(BSS23=BSS18,"YES","NO") -> YES | BST32: =IF(BSU23=BSU18,"YES","NO") -> YES | BSV32: =IF(BSW23=BSW18,"YES","NO") -> YES | BSX32: =IF(BSY23=BSY18,"YES","NO") -> YES | BSZ32: =IF(BTA23=BTA18,"YES","NO") -> YES | BTB32: =IF(BTC23=BTC18,"YES","NO") -> YES | BTD32: =IF(BTE23=BTE18,"YES","NO") -> YES | BTF32: =IF(BTG23=BTG18,"YES","NO") -> YES | BTH32: =IF(BTI23=BTI18,"YES","NO") -> YES | BTJ32: =IF(BTK23=BTK18,"YES","NO") -> YES | BTL32: =IF(BTM23=BTM18,"YES","NO") -> YES | BTN32: =IF(BTO23=BTO18,"YES","NO") -> YES | BTP32: =IF(BTQ23=BTQ18,"YES","NO") -> YES | BTR32: =IF(BTS23=BTS18,"YES","NO") -> YES | BTT32: =IF(BTU23=BTU18,"YES","NO") -> YES | BTV32: =IF(BTW23=BTW18,"YES","NO") -> YES | BTX32: =IF(BTY23=BTY18,"YES","NO") -> YES | BTZ32: =IF(BUA23=BUA18,"YES","NO") -> YES | BUB32: =IF(BUC23=BUC18,"YES","NO") -> YES | BUD32: =IF(BUE23=BUE18,"YES","NO") -> YES | BUF32: =IF(BUG23=BUG18,"YES","NO") -> YES | BUH32: =IF(BUI23=BUI18,"YES","NO") -> YES | BUJ32: =IF(BUK23=BUK18,"YES","NO") -> YES | BUL32: =IF(BUM23=BUM18,"YES","NO") -> YES | BUN32: =IF(BUO23=BUO18,"YES","NO") -> YES | BUP32: =IF(BUQ23=BUQ18,"YES","NO") -> YES | BUR32: =IF(BUS23=BUS18,"YES","NO") -> YES | BUT32: =IF(BUU23=BUU18,"YES","NO") -> YES | BUV32: =IF(BUW23=BUW18,"YES","NO") -> YES | BUX32: =IF(BUY23=BUY18,"YES","NO") -> YES | BUZ32: =IF(BVA23=BVA18,"YES","NO") -> YES | BVB32: =IF(BVC23=BVC18,"YES","NO") -> YES | BVD32: =IF(BVE23=BVE18,"YES","NO") -> YES | BVF32: =IF(BVG23=BVG18,"YES","NO") -> YES | BVH32: =IF(BVI23=BVI18,"YES","NO") -> YES | BVJ32: =IF(BVK23=BVK18,"YES","NO") -> YES | BVL32: =IF(BVM23=BVM18,"YES","NO") -> YES | BVN32: =IF(BVO23=BVO18,"YES","NO") -> YES | BVP32: =IF(BVQ23=BVQ18,"YES","NO") -> YES | BVR32: =IF(BVS23=BVS18,"YES","NO") -> YES | BVT32: =IF(BVU23=BVU18,"YES","NO") -> YES | BVV32: =IF(BVW23=BVW18,"YES","NO") -> YES | BVX32: =IF(BVY23=BVY18,"YES","NO") -> YES | BVZ32: =IF(BWA23=BWA18,"YES","NO") -> YES | BWB32: =IF(BWC23=BWC18,"YES","NO") -> YES | BWD32: =IF(BWE23=BWE18,"YES","NO") -> YES | BWF32: =IF(BWG23=BWG18,"YES","NO") -> YES | BWH32: =IF(BWI23=BWI18,"YES","NO") -> YES | BWJ32: =IF(BWK23=BWK18,"YES","NO") -> YES | BWL32: =IF(BWM23=BWM18,"YES","NO") -> YES | BWN32: =IF(BWO23=BWO18,"YES","NO") -> YES | BWP32: =IF(BWQ23=BWQ18,"YES","NO") -> YES | BWR32: =IF(BWS23=BWS18,"YES","NO") -> YES | BWT32: =IF(BWU23=BWU18,"YES","NO") -> YES | BWV32: =IF(BWW23=BWW18,"YES","NO") -> YES | BWX32: =IF(BWY23=BWY18,"YES","NO") -> YES | BWZ32: =IF(BXA23=BXA18,"YES","NO") -> YES | BXB32: =IF(BXC23=BXC18,"YES","NO") -> YES | BXD32: =IF(BXE23=BXE18,"YES","NO") -> YES | BXF32: =IF(BXG23=BXG18,"YES","NO") -> YES | BXH32: =IF(BXI23=BXI18,"YES","NO") -> YES | BXJ32: =IF(BXK23=BXK18,"YES","NO") -> YES | BXL32: =IF(BXM23=BXM18,"YES","NO") -> YES | BXN32: =IF(BXO23=BXO18,"YES","NO") -> YES | BXP32: =IF(BXQ23=BXQ18,"YES","NO") -> YES | BXR32: =IF(BXS23=BXS18,"YES","NO") -> YES | BXT32: =IF(BXU23=BXU18,"YES","NO") -> YES | BXV32: =IF(BXW23=BXW18,"YES","NO") -> YES | BXX32: =IF(BXY23=BXY18,"YES","NO") -> YES | BXZ32: =IF(BYA23=BYA18,"YES","NO") -> YES | BYB32: =IF(BYC23=BYC18,"YES","NO") -> YES | BYD32: =IF(BYE23=BYE18,"YES","NO") -> YES | BYF32: =IF(BYG23=BYG18,"YES","NO") -> YES | BYH32: =IF(BYI23=BYI18,"YES","NO") -> YES | BYJ32: =IF(BYK23=BYK18,"YES","NO") -> YES | BYL32: =IF(BYM23=BYM18,"YES","NO") -> YES | BYN32: =IF(BYO23=BYO18,"YES","NO") -> YES | BYP32: =IF(BYQ23=BYQ18,"YES","NO") -> YES | BYR32: =IF(BYS23=BYS18,"YES","NO") -> YES | BYT32: =IF(BYU23=BYU18,"YES","NO") -> YES | BYV32: =IF(BYW23=BYW18,"YES","NO") -> YES | BYX32: =IF(BYY23=BYY18,"YES","NO") -> YES | BYZ32: =IF(BZA23=BZA18,"YES","NO") -> YES | BZB32: =IF(BZC23=BZC18,"YES","NO") -> YES | BZD32: =IF(BZE23=BZE18,"YES","NO") -> YES | BZF32: =IF(BZG23=BZG18,"YES","NO") -> YES | BZH32: =IF(BZI23=BZI18,"YES","NO") -> YES | BZJ32: =IF(BZK23=BZK18,"YES","NO") -> YES | BZL32: =IF(BZM23=BZM18,"YES","NO") -> YES | BZN32: =IF(BZO23=BZO18,"YES","NO") -> YES | BZP32: =IF(BZQ23=BZQ18,"YES","NO") -> YES | BZR32: =IF(BZS23=BZS18,"YES","NO") -> YES | BZT32: =IF(BZU23=BZU18,"YES","NO") -> YES | BZV32: =IF(BZW23=BZW18,"YES","NO") -> YES | BZX32: =IF(BZY23=BZY18,"YES","NO") -> YES | BZZ32: =IF(CAA23=CAA18,"YES","NO") -> YES | CAB32: =IF(CAC23=CAC18,"YES","NO") -> YES | CAD32: =IF(CAE23=CAE18,"YES","NO") -> YES | CAF32: =IF(CAG23=CAG18,"YES","NO") -> YES | CAH32: =IF(CAI23=CAI18,"YES","NO") -> YES | CAJ32: =IF(CAK23=CAK18,"YES","NO") -> YES | CAL32: =IF(CAM23=CAM18,"YES","NO") -> YES | CAN32: =IF(CAO23=CAO18,"YES","NO") -> YES | CAP32: =IF(CAQ23=CAQ18,"YES","NO") -> YES | CAR32: =IF(CAS23=CAS18,"YES","NO") -> YES | CAT32: =IF(CAU23=CAU18,"YES","NO") -> YES | CAV32: =IF(CAW23=CAW18,"YES","NO") -> YES | CAX32: =IF(CAY23=CAY18,"YES","NO") -> YES | CAZ32: =IF(CBA23=CBA18,"YES","NO") -> YES | CBB32: =IF(CBC23=CBC18,"YES","NO") -> YES | CBD32: =IF(CBE23=CBE18,"YES","NO") -> YES | CBF32: =IF(CBG23=CBG18,"YES","NO") -> YES
A35: DOC estimate of Ai
A38: Rank | B38: Cummulative sequencing depth
A39: 0 | C39: =0 -> 0 | E39: =0 -> 0 | G39: =0 -> 0 | I39: =0 -> 0 | K39: =0 -> 0 | M39: =0 -> 0 | O39: =0 -> 0 | Q39: =0 -> 0 | S39: =0 -> 0 | U39: =0 -> 0 | W39: =0 -> 0 | Y39: =0 -> 0 | AA39: =0 -> 0 | AC39: =0 -> 0 | AE39: =0 -> 0 | AG39: =0 -> 0 | AI39: =0 -> 0 | AK39: =0 -> 0 | AM39: =0 -> 0 | AO39: =0 -> 0 | AQ39: =0 -> 0 | AS39: =0 -> 0 | AU39: =0 -> 0 | AW39: =0 -> 0 | AY39: =0 -> 0 | BA39: =0 -> 0 | BC39: =0 -> 0 | BE39: =0 -> 0 | BG39: =0 -> 0 | BI39: =0 -> 0 | BK39: =0 -> 0 | BM39: =0 -> 0 | BO39: =0 -> 0 | BQ39: =0 -> 0 | BS39: =0 -> 0 | BU39: =0 -> 0 | BW39: =0 -> 0 | BY39: =0 -> 0 | CA39: =0 -> 0 | CC39: =0 -> 0 | CE39: =0 -> 0 | CG39: =0 -> 0 | CI39: =0 -> 0 | CK39: =0 -> 0 | CM39: =0 -> 0 | CO39: =0 -> 0 | CQ39: =0 -> 0 | CS39: =0 -> 0 | CU39: =0 -> 0 | CW39: =0 -> 0 | CY39: =0 -> 0 | DA39: =0 -> 0 | DC39: =0 -> 0 | DE39: =0 -> 0 | DG39: =0 -> 0 | DI39: =0 -> 0 | DK39: =0 -> 0 | DM39: =0 -> 0 | DO39: =0 -> 0 | DQ39: =0 -> 0 | DS39: =0 -> 0 | DU39: =0 -> 0 | DW39: =0 -> 0 | DY39: =0 -> 0 | EA39: =0 -> 0 | EC39: =0 -> 0 | EE39: =0 -> 0 | EG39: =0 -> 0 | EI39: =0 -> 0 | EK39: =0 -> 0 | EM39: =0 -> 0 | EO39: =0 -> 0 | EQ39: =0 -> 0 | ES39: =0 -> 0 | EU39: =0 -> 0 | EW39: =0 -> 0 | EY39: =0 -> 0 | FA39: =0 -> 0 | FC39: =0 -> 0 | FE39: =0 -> 0 | FG39: =0 -> 0 | FI39: =0 -> 0 | FK39: =0 -> 0 | FM39: =0 -> 0 | FO39: =0 -> 0 | FQ39: =0 -> 0 | FS39: =0 -> 0 | FU39: =0 -> 0 | FW39: =0 -> 0 | FY39: =0 -> 0 | GA39: =0 -> 0 | GC39: =0 -> 0 | GE39: =0 -> 0 | GG39: =0 -> 0 | GI39: =0 -> 0 | GK39: =0 -> 0 | GM39: =0 -> 0 | GO39: =0 -> 0 | GQ39: =0 -> 0 | GS39: =0 -> 0 | GU39: =0 -> 0 | GW39: =0 -> 0 | GY39: =0 -> 0 | HA39: =0 -> 0 | HC39: =0 -> 0 | HE39: =0 -> 0 | HG39: =0 -> 0 | HI39: =0 -> 0 | HK39: =0 -> 0 | HM39: =0 -> 0 | HO39: =0 -> 0 | HQ39: =0 -> 0 | HS39: =0 -> 0 | HU39: =0 -> 0 | HW39: =0 -> 0 | HY39: =0 -> 0 | IA39: =0 -> 0 | IC39: =0 -> 0 | IE39: =0 -> 0 | IG39: =0 -> 0 | II39: =0 -> 0 | IK39: =0 -> 0 | IM39: =0 -> 0 | IO39: =0 -> 0 | IQ39: =0 -> 0 | IS39: =0 -> 0 | IU39: =0 -> 0 | IW39: =0 -> 0 | IY39: =0 -> 0 | JA39: =0 -> 0 | JC39: =0 -> 0 | JE39: =0 -> 0 | JG39: =0 -> 0 | JI39: =0 -> 0 | JK39: =0 -> 0 | JM39: =0 -> 0 | JO39: =0 -> 0 | JQ39: =0 -> 0 | JS39: =0 -> 0 | JU39: =0 -> 0 | JW39: =0 -> 0 | JY39: =0 -> 0 | KA39: =0 -> 0 | KC39: =0 -> 0 | KE39: =0 -> 0 | KG39: =0 -> 0 | KI39: =0 -> 0 | KK39: =0 -> 0 | KM39: =0 -> 0 | KO39: =0 -> 0 | KQ39: =0 -> 0 | KS39: =0 -> 0 | KU39: =0 -> 0 | KW39: =0 -> 0 | KY39: =0 -> 0 | LA39: =0 -> 0 | LC39: =0 -> 0 | LE39: =0 -> 0 | LG39: =0 -> 0 | LI39: =0 -> 0 | LK39: =0 -> 0 | LM39: =0 -> 0 | LO39: =0 -> 0 | LQ39: =0 -> 0 | LS39: =0 -> 0 | LU39: =0 -> 0 | LW39: =0 -> 0 | LY39: =0 -> 0 | MA39: =0 -> 0 | MC39: =0 -> 0 | ME39: =0 -> 0 | MG39: =0 -> 0 | MI39: =0 -> 0 | MK39: =0 -> 0 | MM39: =0 -> 0 | MO39: =0 -> 0 | MQ39: =0 -> 0 | MS39: =0 -> 0 | MU39: =0 -> 0 | MW39: =0 -> 0 | MY39: =0 -> 0 | NA39: =0 -> 0 | NC39: =0 -> 0 | NE39: =0 -> 0 | NG39: =0 -> 0 | NI39: =0 -> 0 | NK39: =0 -> 0 | NM39: =0 -> 0 | NO39: =0 -> 0 | NQ39: =0 -> 0 | NS39: =0 -> 0 | NU39: =0 -> 0 | NW39: =0 -> 0 | NY39: =0 -> 0 | OA39: =0 -> 0 | OC39: =0 -> 0 | OE39: =0 -> 0 | OG39: =0 -> 0 | OI39: =0 -> 0 | OK39: =0 -> 0 | OM39: =0 -> 0 | OO39: =0 -> 0 | OQ39: =0 -> 0 | OS39: =0 -> 0 | OU39: =0 -> 0 | OW39: =0 -> 0 | OY39: =0 -> 0 | PA39: =0 -> 0 | PC39: =0 -> 0 | PE39: =0 -> 0 | PG39: =0 -> 0 | PI39: =0 -> 0 | PK39: =0 -> 0 | PM39: =0 -> 0 | PO39: =0 -> 0 | PQ39: =0 -> 0 | PS39: =0 -> 0 | PU39: =0 -> 0 | PW39: =0 -> 0 | PY39: =0 -> 0 | QA39: =0 -> 0 | QC39: =0 -> 0 | QE39: =0 -> 0 | QG39: =0 -> 0 | QI39: =0 -> 0 | QK39: =0 -> 0 | QM39: =0 -> 0 | QO39: =0 -> 0 | QQ39: =0 -> 0 | QS39: =0 -> 0 | QU39: =0 -> 0 | QW39: =0 -> 0 | QY39: =0 -> 0 | RA39: =0 -> 0 | RC39: =0 -> 0 | RE39: =0 -> 0 | RG39: =0 -> 0 | RI39: =0 -> 0 | RK39: =0 -> 0 | RM39: =0 -> 0 | RO39: =0 -> 0 | RQ39: =0 -> 0 | RS39: =0 -> 0 | RU39: =0 -> 0 | RW39: =0 -> 0 | RY39: =0 -> 0 | SA39: =0 -> 0 | SC39: =0 -> 0 | SE39: =0 -> 0 | SG39: =0 -> 0 | SI39: =0 -> 0 | SK39: =0 -> 0 | SM39: =0 -> 0 | SO39: =0 -> 0 | SQ39: =0 -> 0 | SS39: =0 -> 0 | SU39: =0 -> 0 | SW39: =0 -> 0 | SY39: =0 -> 0 | TA39: =0 -> 0 | TC39: =0 -> 0 | TE39: =0 -> 0 | TG39: =0 -> 0 | TI39: =0 -> 0 | TK39: =0 -> 0 | TM39: =0 -> 0 | TO39: =0 -> 0 | TQ39: =0 -> 0 | TS39: =0 -> 0 | TU39: =0 -> 0 | TW39: =0 -> 0 | TY39: =0 -> 0 | UA39: =0 -> 0 | UC39: =0 -> 0 | UE39: =0 -> 0 | UG39: =0 -> 0 | UI39: =0 -> 0 | UK39: =0 -> 0 | UM39: =0 -> 0 | UO39: =0 -> 0 | UQ39: =0 -> 0 | US39: =0 -> 0 | UU39: =0 -> 0 | UW39: =0 -> 0 | UY39: =0 -> 0 | VA39: =0 -> 0 | VC39: =0 -> 0 | VE39: =0 -> 0 | VG39: =0 -> 0 | VI39: =0 -> 0 | VK39: =0 -> 0 | VM39: =0 -> 0 | VO39: =0 -> 0 | VQ39: =0 -> 0 | VS39: =0 -> 0 | VU39: =0 -> 0 | VW39: =0 -> 0 | VY39: =0 -> 0 | WA39: =0 -> 0 | WC39: =0 -> 0 | WE39: =0 -> 0 | WG39: =0 -> 0 | WI39: =0 -> 0 | WK39: =0 -> 0 | WM39: =0 -> 0 | WO39: =0 -> 0 | WQ39: =0 -> 0 | WS39: =0 -> 0 | WU39: =0 -> 0 | WW39: =0 -> 0 | WY39: =0 -> 0 | XA39: =0 -> 0 | XC39: =0 -> 0 | XE39: =0 -> 0 | XG39: =0 -> 0 | XI39: =0 -> 0 | XK39: =0 -> 0 | XM39: =0 -> 0 | XO39: =0 -> 0 | XQ39: =0 -> 0 | XS39: =0 -> 0 | XU39: =0 -> 0 | XW39: =0 -> 0 | XY39: =0 -> 0 | YA39: =0 -> 0 | YC39: =0 -> 0 | YE39: =0 -> 0 | YG39: =0 -> 0 | YI39: =0 -> 0 | YK39: =0 -> 0 | YM39: =0 -> 0 | YO39: =0 -> 0 | YQ39: =0 -> 0 | YS39: =0 -> 0 | YU39: =0 -> 0 | YW39: =0 -> 0 | YY39: =0 -> 0 | ZA39: =0 -> 0 | ZC39: =0 -> 0 | ZE39: =0 -> 0 | ZG39: =0 -> 0 | ZI39: =0 -> 0 | ZK39: =0 -> 0 | ZM39: =0 -> 0 | ZO39: =0 -> 0 | ZQ39: =0 -> 0 | ZS39: =0 -> 0 | ZU39: =0 -> 0 | ZW39: =0 -> 0 | ZY39: =0 -> 0 | AAA39: =0 -> 0 | AAC39: =0 -> 0 | AAE39: =0 -> 0 | AAG39: =0 -> 0 | AAI39: =0 -> 0 | AAK39: =0 -> 0 | AAM39: =0 -> 0 | AAO39: =0 -> 0 | AAQ39: =0 -> 0 | AAS39: =0 -> 0 | AAU39: =0 -> 0 | AAW39: =0 -> 0 | AAY39: =0 -> 0 | ABA39: =0 -> 0 | ABC39: =0 -> 0 | ABE39: =0 -> 0 | ABG39: =0 -> 0 | ABI39: =0 -> 0 | ABK39: =0 -> 0 | ABM39: =0 -> 0 | ABO39: =0 -> 0 | ABQ39: =0 -> 0 | ABS39: =0 -> 0 | ABU39: =0 -> 0 | ABW39: =0 -> 0 | ABY39: =0 -> 0 | ACA39: =0 -> 0 | ACC39: =0 -> 0 | ACE39: =0 -> 0 | ACG39: =0 -> 0 | ACI39: =0 -> 0 | ACK39: =0 -> 0 | ACM39: =0 -> 0 | ACO39: =0 -> 0 | ACQ39: =0 -> 0 | ACS39: =0 -> 0 | ACU39: =0 -> 0 | ACW39: =0 -> 0 | ACY39: =0 -> 0 | ADA39: =0 -> 0 | ADC39: =0 -> 0 | ADE39: =0 -> 0 | ADG39: =0 -> 0 | ADI39: =0 -> 0 | ADK39: =0 -> 0 | ADM39: =0 -> 0 | ADO39: =0 -> 0 | ADQ39: =0 -> 0 | ADS39: =0 -> 0 | ADU39: =0 -> 0 | ADW39: =0 -> 0 | ADY39: =0 -> 0 | AEA39: =0 -> 0 | AEC39: =0 -> 0 | AEE39: =0 -> 0 | AEG39: =0 -> 0 | AEI39: =0 -> 0 | AEK39: =0 -> 0 | AEM39: =0 -> 0 | AEO39: =0 -> 0 | AEQ39: =0 -> 0 | AES39: =0 -> 0 | AEU39: =0 -> 0 | AEW39: =0 -> 0 | AEY39: =0 -> 0 | AFA39: =0 -> 0 | AFC39: =0 -> 0 | AFE39: =0 -> 0 | AFG39: =0 -> 0 | AFI39: =0 -> 0 | AFK39: =0 -> 0 | AFM39: =0 -> 0 | AFO39: =0 -> 0 | AFQ39: =0 -> 0 | AFS39: =0 -> 0 | AFU39: =0 -> 0 | AFW39: =0 -> 0 | AFY39: =0 -> 0 | AGA39: =0 -> 0 | AGC39: =0 -> 0 | AGE39: =0 -> 0 | AGG39: =0 -> 0 | AGI39: =0 -> 0 | AGK39: =0 -> 0 | AGM39: =0 -> 0 | AGO39: =0 -> 0 | AGQ39: =0 -> 0 | AGS39: =0 -> 0 | AGU39: =0 -> 0 | AGW39: =0 -> 0 | AGY39: =0 -> 0 | AHA39: =0 -> 0 | AHC39: =0 -> 0 | AHE39: =0 -> 0 | AHG39: =0 -> 0 | AHI39: =0 -> 0 | AHK39: =0 -> 0 | AHM39: =0 -> 0 | AHO39: =0 -> 0 | AHQ39: =0 -> 0 | AHS39: =0 -> 0 | AHU39: =0 -> 0 | AHW39: =0 -> 0 | AHY39: =0 -> 0 | AIA39: =0 -> 0 | AIC39: =0 -> 0 | AIE39: =0 -> 0 | AIG39: =0 -> 0 | AII39: =0 -> 0 | AIK39: =0 -> 0 | AIM39: =0 -> 0 | AIO39: =0 -> 0 | AIQ39: =0 -> 0 | AIS39: =0 -> 0 | AIU39: =0 -> 0 | AIW39: =0 -> 0 | AIY39: =0 -> 0 | AJA39: =0 -> 0 | AJC39: =0 -> 0 | AJE39: =0 -> 0 | AJG39: =0 -> 0 | AJI39: =0 -> 0 | AJK39: =0 -> 0 | AJM39: =0 -> 0 | AJO39: =0 -> 0 | AJQ39: =0 -> 0 | AJS39: =0 -> 0 | AJU39: =0 -> 0 | AJW39: =0 -> 0 | AJY39: =0 -> 0 | AKA39: =0 -> 0 | AKC39: =0 -> 0 | AKE39: =0 -> 0 | AKG39: =0 -> 0 | AKI39: =0 -> 0 | AKK39: =0 -> 0 | AKM39: =0 -> 0 | AKO39: =0 -> 0 | AKQ39: =0 -> 0 | AKS39: =0 -> 0 | AKU39: =0 -> 0 | AKW39: =0 -> 0 | AKY39: =0 -> 0 | ALA39: =0 -> 0 | ALC39: =0 -> 0 | ALE39: =0 -> 0 | ALG39: =0 -> 0 | ALI39: =0 -> 0 | ALK39: =0 -> 0 | ALM39: =0 -> 0 | ALO39: =0 -> 0 | ALQ39: =0 -> 0 | ALS39: =0 -> 0 | ALU39: =0 -> 0 | ALW39: =0 -> 0 | ALY39: =0 -> 0 | AMA39: =0 -> 0 | AMC39: =0 -> 0 | AME39: =0 -> 0 | AMG39: =0 -> 0 | AMI39: =0 -> 0 | AMK39: =0 -> 0 | AMM39: =0 -> 0 | AMO39: =0 -> 0 | AMQ39: =0 -> 0 | AMS39: =0 -> 0 | AMU39: =0 -> 0 | AMW39: =0 -> 0 | AMY39: =0 -> 0 | ANA39: =0 -> 0 | ANC39: =0 -> 0 | ANE39: =0 -> 0 | ANG39: =0 -> 0 | ANI39: =0 -> 0 | ANK39: =0 -> 0 | ANM39: =0 -> 0 | ANO39: =0 -> 0 | ANQ39: =0 -> 0 | ANS39: =0 -> 0 | ANU39: =0 -> 0 | ANW39: =0 -> 0 | ANY39: =0 -> 0 | AOA39: =0 -> 0 | AOC39: =0 -> 0 | AOE39: =0 -> 0 | AOG39: =0 -> 0 | AOI39: =0 -> 0 | AOK39: =0 -> 0 | AOM39: =0 -> 0 | AOO39: =0 -> 0 | AOQ39: =0 -> 0 | AOS39: =0 -> 0 | AOU39: =0 -> 0 | AOW39: =0 -> 0 | AOY39: =0 -> 0 | APA39: =0 -> 0 | APC39: =0 -> 0 | APE39: =0 -> 0 | APG39: =0 -> 0 | API39: =0 -> 0 | APK39: =0 -> 0 | APM39: =0 -> 0 | APO39: =0 -> 0 | APQ39: =0 -> 0 | APS39: =0 -> 0 | APU39: =0 -> 0 | APW39: =0 -> 0 | APY39: =0 -> 0 | AQA39: =0 -> 0 | AQC39: =0 -> 0 | AQE39: =0 -> 0 | AQG39: =0 -> 0 | AQI39: =0 -> 0 | AQK39: =0 -> 0 | AQM39: =0 -> 0 | AQO39: =0 -> 0 | AQQ39: =0 -> 0 | AQS39: =0 -> 0 | AQU39: =0 -> 0 | AQW39: =0 -> 0 | AQY39: =0 -> 0 | ARA39: =0 -> 0 | ARC39: =0 -> 0 | ARE39: =0 -> 0 | ARG39: =0 -> 0 | ARI39: =0 -> 0 | ARK39: =0 -> 0 | ARM39: =0 -> 0 | ARO39: =0 -> 0 | ARQ39: =0 -> 0 | ARS39: =0 -> 0 | ARU39: =0 -> 0 | ARW39: =0 -> 0 | ARY39: =0 -> 0 | ASA39: =0 -> 0 | ASC39: =0 -> 0 | ASE39: =0 -> 0 | ASG39: =0 -> 0 | ASI39: =0 -> 0 | ASK39: =0 -> 0 | ASM39: =0 -> 0 | ASO39: =0 -> 0 | ASQ39: =0 -> 0 | ASS39: =0 -> 0 | ASU39: =0 -> 0 | ASW39: =0 -> 0 | ASY39: =0 -> 0 | ATA39: =0 -> 0 | ATC39: =0 -> 0 | ATE39: =0 -> 0 | ATG39: =0 -> 0 | ATI39: =0 -> 0 | ATK39: =0 -> 0 | ATM39: =0 -> 0 | ATO39: =0 -> 0 | ATQ39: =0 -> 0 | ATS39: =0 -> 0 | ATU39: =0 -> 0 | ATW39: =0 -> 0 | ATY39: =0 -> 0 | AUA39: =0 -> 0 | AUC39: =0 -> 0 | AUE39: =0 -> 0 | AUG39: =0 -> 0 | AUI39: =0 -> 0 | AUK39: =0 -> 0 | AUM39: =0 -> 0 | AUO39: =0 -> 0 | AUQ39: =0 -> 0 | AUS39: =0 -> 0 | AUU39: =0 -> 0 | AUW39: =0 -> 0 | AUY39: =0 -> 0 | AVA39: =0 -> 0 | AVC39: =0 -> 0 | AVE39: =0 -> 0 | AVG39: =0 -> 0 | AVI39: =0 -> 0 | AVK39: =0 -> 0 | AVM39: =0 -> 0 | AVO39: =0 -> 0 | AVQ39: =0 -> 0 | AVS39: =0 -> 0 | AVU39: =0 -> 0 | AVW39: =0 -> 0 | AVY39: =0 -> 0 | AWA39: =0 -> 0 | AWC39: =0 -> 0 | AWE39: =0 -> 0 | AWG39: =0 -> 0 | AWI39: =0 -> 0 | AWK39: =0 -> 0 | AWM39: =0 -> 0 | AWO39: =0 -> 0 | AWQ39: =0 -> 0 | AWS39: =0 -> 0 | AWU39: =0 -> 0 | AWW39: =0 -> 0 | AWY39: =0 -> 0 | AXA39: =0 -> 0 | AXC39: =0 -> 0 | AXE39: =0 -> 0 | AXG39: =0 -> 0 | AXI39: =0 -> 0 | AXK39: =0 -> 0 | AXM39: =0 -> 0 | AXO39: =0 -> 0 | AXQ39: =0 -> 0 | AXS39: =0 -> 0 | AXU39: =0 -> 0 | AXW39: =0 -> 0 | AXY39: =0 -> 0 | AYA39: =0 -> 0 | AYC39: =0 -> 0 | AYE39: =0 -> 0 | AYG39: =0 -> 0 | AYI39: =0 -> 0 | AYK39: =0 -> 0 | AYM39: =0 -> 0 | AYO39: =0 -> 0 | AYQ39: =0 -> 0 | AYS39: =0 -> 0 | AYU39: =0 -> 0 | AYW39: =0 -> 0 | AYY39: =0 -> 0 | AZA39: =0 -> 0 | AZC39: =0 -> 0 | AZE39: =0 -> 0 | AZG39: =0 -> 0 | AZI39: =0 -> 0 | AZK39: =0 -> 0 | AZM39: =0 -> 0 | AZO39: =0 -> 0 | AZQ39: =0 -> 0 | AZS39: =0 -> 0 | AZU39: =0 -> 0 | AZW39: =0 -> 0 | AZY39: =0 -> 0 | BAA39: =0 -> 0 | BAC39: =0 -> 0 | BAE39: =0 -> 0 | BAG39: =0 -> 0 | BAI39: =0 -> 0 | BAK39: =0 -> 0 | BAM39: =0 -> 0 | BAO39: =0 -> 0 | BAQ39: =0 -> 0 | BAS39: =0 -> 0 | BAU39: =0 -> 0 | BAW39: =0 -> 0 | BAY39: =0 -> 0 | BBA39: =0 -> 0 | BBC39: =0 -> 0 | BBE39: =0 -> 0 | BBG39: =0 -> 0 | BBI39: =0 -> 0 | BBK39: =0 -> 0 | BBM39: =0 -> 0 | BBO39: =0 -> 0 | BBQ39: =0 -> 0 | BBS39: =0 -> 0 | BBU39: =0 -> 0 | BBW39: =0 -> 0 | BBY39: =0 -> 0 | BCA39: =0 -> 0 | BCC39: =0 -> 0 | BCE39: =0 -> 0 | BCG39: =0 -> 0 | BCI39: =0 -> 0 | BCK39: =0 -> 0 | BCM39: =0 -> 0 | BCO39: =0 -> 0 | BCQ39: =0 -> 0 | BCS39: =0 -> 0 | BCU39: =0 -> 0 | BCW39: =0 -> 0 | BCY39: =0 -> 0 | BDA39: =0 -> 0 | BDC39: =0 -> 0 | BDE39: =0 -> 0 | BDG39: =0 -> 0 | BDI39: =0 -> 0 | BDK39: =0 -> 0 | BDM39: =0 -> 0 | BDO39: =0 -> 0 | BDQ39: =0 -> 0 | BDS39: =0 -> 0 | BDU39: =0 -> 0 | BDW39: =0 -> 0 | BDY39: =0 -> 0 | BEA39: =0 -> 0 | BEC39: =0 -> 0 | BEE39: =0 -> 0 | BEG39: =0 -> 0 | BEI39: =0 -> 0 | BEK39: =0 -> 0 | BEM39: =0 -> 0 | BEO39: =0 -> 0 | BEQ39: =0 -> 0 | BES39: =0 -> 0 | BEU39: =0 -> 0 | BEW39: =0 -> 0 | BEY39: =0 -> 0 | BFA39: =0 -> 0 | BFC39: =0 -> 0 | BFE39: =0 -> 0 | BFG39: =0 -> 0 | BFI39: =0 -> 0 | BFK39: =0 -> 0 | BFM39: =0 -> 0 | BFO39: =0 -> 0 | BFQ39: =0 -> 0 | BFS39: =0 -> 0 | BFU39: =0 -> 0 | BFW39: =0 -> 0 | BFY39: =0 -> 0 | BGA39: =0 -> 0 | BGC39: =0 -> 0 | BGE39: =0 -> 0 | BGG39: =0 -> 0 | BGI39: =0 -> 0 | BGK39: =0 -> 0 | BGM39: =0 -> 0 | BGO39: =0 -> 0 | BGQ39: =0 -> 0 | BGS39: =0 -> 0 | BGU39: =0 -> 0 | BGW39: =0 -> 0 | BGY39: =0 -> 0 | BHA39: =0 -> 0 | BHC39: =0 -> 0 | BHE39: =0 -> 0 | BHG39: =0 -> 0 | BHI39: =0 -> 0 | BHK39: =0 -> 0 | BHM39: =0 -> 0 | BHO39: =0 -> 0 | BHQ39: =0 -> 0 | BHS39: =0 -> 0 | BHU39: =0 -> 0 | BHW39: =0 -> 0 | BHY39: =0 -> 0 | BIA39: =0 -> 0 | BIC39: =0 -> 0 | BIE39: =0 -> 0 | BIG39: =0 -> 0 | BII39: =0 -> 0 | BIK39: =0 -> 0 | BIM39: =0 -> 0 | BIO39: =0 -> 0 | BIQ39: =0 -> 0 | BIS39: =0 -> 0 | BIU39: =0 -> 0 | BIW39: =0 -> 0 | BIY39: =0 -> 0 | BJA39: =0 -> 0 | BJC39: =0 -> 0 | BJE39: =0 -> 0 | BJG39: =0 -> 0 | BJI39: =0 -> 0 | BJK39: =0 -> 0 | BJM39: =0 -> 0 | BJO39: =0 -> 0 | BJQ39: =0 -> 0 | BJS39: =0 -> 0 | BJU39: =0 -> 0 | BJW39: =0 -> 0 | BJY39: =0 -> 0 | BKA39: =0 -> 0 | BKC39: =0 -> 0 | BKE39: =0 -> 0 | BKG39: =0 -> 0 | BKI39: =0 -> 0 | BKK39: =0 -> 0 | BKM39: =0 -> 0 | BKO39: =0 -> 0 | BKQ39: =0 -> 0 | BKS39: =0 -> 0 | BKU39: =0 -> 0 | BKW39: =0 -> 0 | BKY39: =0 -> 0 | BLA39: =0 -> 0 | BLC39: =0 -> 0 | BLE39: =0 -> 0 | BLG39: =0 -> 0 | BLI39: =0 -> 0 | BLK39: =0 -> 0 | BLM39: =0 -> 0 | BLO39: =0 -> 0 | BLQ39: =0 -> 0 | BLS39: =0 -> 0 | BLU39: =0 -> 0 | BLW39: =0 -> 0 | BLY39: =0 -> 0 | BMA39: =0 -> 0 | BMC39: =0 -> 0 | BME39: =0 -> 0 | BMG39: =0 -> 0 | BMI39: =0 -> 0 | BMK39: =0 -> 0 | BMM39: =0 -> 0 | BMO39: =0 -> 0 | BMQ39: =0 -> 0 | BMS39: =0 -> 0 | BMU39: =0 -> 0 | BMW39: =0 -> 0 | BMY39: =0 -> 0 | BNA39: =0 -> 0 | BNC39: =0 -> 0 | BNE39: =0 -> 0 | BNG39: =0 -> 0 | BNI39: =0 -> 0 | BNK39: =0 -> 0 | BNM39: =0 -> 0 | BNO39: =0 -> 0 | BNQ39: =0 -> 0 | BNS39: =0 -> 0 | BNU39: =0 -> 0 | BNW39: =0 -> 0 | BNY39: =0 -> 0 | BOA39: =0 -> 0 | BOC39: =0 -> 0 | BOE39: =0 -> 0 | BOG39: =0 -> 0 | BOI39: =0 -> 0 | BOK39: =0 -> 0 | BOM39: =0 -> 0 | BOO39: =0 -> 0 | BOQ39: =0 -> 0 | BOS39: =0 -> 0 | BOU39: =0 -> 0 | BOW39: =0 -> 0 | BOY39: =0 -> 0 | BPA39: =0 -> 0 | BPC39: =0 -> 0 | BPE39: =0 -> 0 | BPG39: =0 -> 0 | BPI39: =0 -> 0 | BPK39: =0 -> 0 | BPM39: =0 -> 0 | BPO39: =0 -> 0 | BPQ39: =0 -> 0 | BPS39: =0 -> 0 | BPU39: =0 -> 0 | BPW39: =0 -> 0 | BPY39: =0 -> 0 | BQA39: =0 -> 0 | BQC39: =0 -> 0 | BQE39: =0 -> 0 | BQG39: =0 -> 0 | BQI39: =0 -> 0 | BQK39: =0 -> 0 | BQM39: =0 -> 0 | BQO39: =0 -> 0 | BQQ39: =0 -> 0 | BQS39: =0 -> 0 | BQU39: =0 -> 0 | BQW39: =0 -> 0 | BQY39: =0 -> 0 | BRA39: =0 -> 0 | BRC39: =0 -> 0 | BRE39: =0 -> 0 | BRG39: =0 -> 0 | BRI39: =0 -> 0 | BRK39: =0 -> 0 | BRM39: =0 -> 0 | BRO39: =0 -> 0 | BRQ39: =0 -> 0 | BRS39: =0 -> 0 | BRU39: =0 -> 0 | BRW39: =0 -> 0 | BRY39: =0 -> 0 | BSA39: =0 -> 0 | BSC39: =0 -> 0 | BSE39: =0 -> 0 | BSG39: =0 -> 0 | BSI39: =0 -> 0 | BSK39: =0 -> 0 | BSM39: =0 -> 0 | BSO39: =0 -> 0 | BSQ39: =0 -> 0 | BSS39: =0 -> 0 | BSU39: =0 -> 0 | BSW39: =0 -> 0 | BSY39: =0 -> 0 | BTA39: =0 -> 0 | BTC39: =0 -> 0 | BTE39: =0 -> 0 | BTG39: =0 -> 0 | BTI39: =0 -> 0 | BTK39: =0 -> 0 | BTM39: =0 -> 0 | BTO39: =0 -> 0 | BTQ39: =0 -> 0 | BTS39: =0 -> 0 | BTU39: =0 -> 0 | BTW39: =0 -> 0 | BTY39: =0 -> 0 | BUA39: =0 -> 0 | BUC39: =0 -> 0 | BUE39: =0 -> 0 | BUG39: =0 -> 0 | BUI39: =0 -> 0 | BUK39: =0 -> 0 | BUM39: =0 -> 0 | BUO39: =0 -> 0 | BUQ39: =0 -> 0 | BUS39: =0 -> 0 | BUU39: =0 -> 0 | BUW39: =0 -> 0 | BUY39: =0 -> 0 | BVA39: =0 -> 0 | BVC39: =0 -> 0 | BVE39: =0 -> 0 | BVG39: =0 -> 0 | BVI39: =0 -> 0 | BVK39: =0 -> 0 | BVM39: =0 -> 0 | BVO39: =0 -> 0 | BVQ39: =0 -> 0 | BVS39: =0 -> 0 | BVU39: =0 -> 0 | BVW39: =0 -> 0 | BVY39: =0 -> 0 | BWA39: =0 -> 0 | BWC39: =0 -> 0 | BWE39: =0 -> 0 | BWG39: =0 -> 0 | BWI39: =0 -> 0 | BWK39: =0 -> 0 | BWM39: =0 -> 0 | BWO39: =0 -> 0 | BWQ39: =0 -> 0 | BWS39: =0 -> 0 | BWU39: =0 -> 0 | BWW39: =0 -> 0 | BWY39: =0 -> 0 | BXA39: =0 -> 0 | BXC39: =0 -> 0 | BXE39: =0 -> 0 | BXG39: =0 -> 0 | BXI39: =0 -> 0 | BXK39: =0 -> 0 | BXM39: =0 -> 0 | BXO39: =0 -> 0 | BXQ39: =0 -> 0 | BXS39: =0 -> 0 | BXU39: =0 -> 0 | BXW39: =0 -> 0 | BXY39: =0 -> 0 | BYA39: =0 -> 0 | BYC39: =0 -> 0 | BYE39: =0 -> 0 | BYG39: =0 -> 0 | BYI39: =0 -> 0 | BYK39: =0 -> 0 | BYM39: =0 -> 0 | BYO39: =0 -> 0 | BYQ39: =0 -> 0 | BYS39: =0 -> 0 | BYU39: =0 -> 0 | BYW39: =0 -> 0 | BYY39: =0 -> 0 | BZA39: =0 -> 0 | BZC39: =0 -> 0 | BZE39: =0 -> 0 | BZG39: =0 -> 0 | BZI39: =0 -> 0 | BZK39: =0 -> 0 | BZM39: =0 -> 0 | BZO39: =0 -> 0 | BZQ39: =0 -> 0 | BZS39: =0 -> 0 | BZU39: =0 -> 0 | BZW39: =0 -> 0 | BZY39: =0 -> 0 | CAA39: =0 -> 0 | CAC39: =0 -> 0 | CAE39: =0 -> 0 | CAG39: =0 -> 0 | CAI39: =0 -> 0 | CAK39: =0 -> 0 | CAM39: =0 -> 0 | CAO39: =0 -> 0 | CAQ39: =0 -> 0 | CAS39: =0 -> 0 | CAU39: =0 -> 0 | CAW39: =0 -> 0 | CAY39: =0 -> 0 | CBA39: =0 -> 0 | CBC39: =0 -> 0 | CBE39: =0 -> 0 | CBG39: =0 -> 0
A40: 1 | C40: =C4 -> 0 | E40: =E4 -> 0 | G40: =G4 -> 0 | I40: =I4 -> 0 | K40: =K4 -> 0 | M40: =M4 -> 0 | O40: =O4 -> 0 | Q40: =Q4 -> 0 | S40: =S4 -> 0 | U40: =U4 -> 0 | W40: =W4 -> 0 | Y40: =Y4 -> 0 | AA40: =AA4 -> 0 | AC40: =AC4 -> 0 | AE40: =AE4 -> 0 | AG40: =AG4 -> 0 | AI40: =AI4 -> 0 | AK40: =AK4 -> 0 | AM40: =AM4 -> 0 | AO40: =AO4 -> 0 | AQ40: =AQ4 -> 0 | AS40: =AS4 -> 0 | AU40: =AU4 -> 0 | AW40: =AW4 -> 0 | AY40: =AY4 -> 0 | BA40: =BA4 -> 0 | BC40: =BC4 -> 0 | BE40: =BE4 -> 0 | BG40: =BG4 -> 0 | BI40: =BI4 -> 0 | BK40: =BK4 -> 0 | BM40: =BM4 -> 0 | BO40: =BO4 -> 0 | BQ40: =BQ4 -> 0 | BS40: =BS4 -> 0 | BU40: =BU4 -> 0 | BW40: =BW4 -> 0 | BY40: =BY4 -> 0 | CA40: =CA4 -> 0 | CC40: =CC4 -> 0 | CE40: =CE4 -> 0 | CG40: =CG4 -> 0 | CI40: =CI4 -> 0 | CK40: =CK4 -> 0 | CM40: =CM4 -> 0 | CO40: =CO4 -> 0 | CQ40: =CQ4 -> 0 | CS40: =CS4 -> 0 | CU40: =CU4 -> 0 | CW40: =CW4 -> 0 | CY40: =CY4 -> 0 | DA40: =DA4 -> 0 | DC40: =DC4 -> 0 | DE40: =DE4 -> 0 | DG40: =DG4 -> 0 | DI40: =DI4 -> 0 | DK40: =DK4 -> 0 | DM40: =DM4 -> 0 | DO40: =DO4 -> 0 | DQ40: =DQ4 -> 0 | DS40: =DS4 -> 0 | DU40: =DU4 -> 0 | DW40: =DW4 -> 0 | DY40: =DY4 -> 0 | EA40: =EA4 -> 0 | EC40: =EC4 -> 0 | EE40: =EE4 -> 0 | EG40: =EG4 -> 0 | EI40: =EI4 -> 0 | EK40: =EK4 -> 0 | EM40: =EM4 -> 0 | EO40: =EO4 -> 0 | EQ40: =EQ4 -> 0 | ES40: =ES4 -> 0 | EU40: =EU4 -> 0 | EW40: =EW4 -> 0 | EY40: =EY4 -> 0 | FA40: =FA4 -> 0 | FC40: =FC4 -> 0 | FE40: =FE4 -> 0 | FG40: =FG4 -> 0 | FI40: =FI4 -> 0 | FK40: =FK4 -> 0 | FM40: =FM4 -> 0 | FO40: =FO4 -> 0 | FQ40: =FQ4 -> 0 | FS40: =FS4 -> 0 | FU40: =FU4 -> 0 | FW40: =FW4 -> 0 | FY40: =FY4 -> 0 | GA40: =GA4 -> 0 | GC40: =GC4 -> 0 | GE40: =GE4 -> 0 | GG40: =GG4 -> 0 | GI40: =GI4 -> 0 | GK40: =GK4 -> 0 | GM40: =GM4 -> 0 | GO40: =GO4 -> 0 | GQ40: =GQ4 -> 0 | GS40: =GS4 -> 0 | GU40: =GU4 -> 0 | GW40: =GW4 -> 0 | GY40: =GY4 -> 0 | HA40: =HA4 -> 0 | HC40: =HC4 -> 0 | HE40: =HE4 -> 0 | HG40: =HG4 -> 0 | HI40: =HI4 -> 0 | HK40: =HK4 -> 0 | HM40: =HM4 -> 0 | HO40: =HO4 -> 0 | HQ40: =HQ4 -> 0 | HS40: =HS4 -> 0 | HU40: =HU4 -> 0 | HW40: =HW4 -> 0 | HY40: =HY4 -> 0 | IA40: =IA4 -> 0 | IC40: =IC4 -> 0 | IE40: =IE4 -> 0 | IG40: =IG4 -> 0 | II40: =II4 -> 0 | IK40: =IK4 -> 0 | IM40: =IM4 -> 0 | IO40: =IO4 -> 0 | IQ40: =IQ4 -> 0 | IS40: =IS4 -> 0 | IU40: =IU4 -> 0 | IW40: =IW4 -> 0 | IY40: =IY4 -> 0 | JA40: =JA4 -> 0 | JC40: =JC4 -> 0 | JE40: =JE4 -> 0 | JG40: =JG4 -> 0 | JI40: =JI4 -> 0 | JK40: =JK4 -> 0 | JM40: =JM4 -> 0 | JO40: =JO4 -> 0 | JQ40: =JQ4 -> 0 | JS40: =JS4 -> 0 | JU40: =JU4 -> 0 | JW40: =JW4 -> 0 | JY40: =JY4 -> 0 | KA40: =KA4 -> 0 | KC40: =KC4 -> 0 | KE40: =KE4 -> 0 | KG40: =KG4 -> 0 | KI40: =KI4 -> 0 | KK40: =KK4 -> 0 | KM40: =KM4 -> 0 | KO40: =KO4 -> 0 | KQ40: =KQ4 -> 0 | KS40: =KS4 -> 0 | KU40: =KU4 -> 0 | KW40: =KW4 -> 0 | KY40: =KY4 -> 0 | LA40: =LA4 -> 0 | LC40: =LC4 -> 0 | LE40: =LE4 -> 0 | LG40: =LG4 -> 0 | LI40: =LI4 -> 0 | LK40: =LK4 -> 0 | LM40: =LM4 -> 0 | LO40: =LO4 -> 0 | LQ40: =LQ4 -> 0 | LS40: =LS4 -> 0 | LU40: =LU4 -> 0 | LW40: =LW4 -> 0 | LY40: =LY4 -> 0 | MA40: =MA4 -> 0 | MC40: =MC4 -> 0 | ME40: =ME4 -> 0 | MG40: =MG4 -> 0 | MI40: =MI4 -> 0 | MK40: =MK4 -> 0 | MM40: =MM4 -> 0 | MO40: =MO4 -> 0 | MQ40: =MQ4 -> 0 | MS40: =MS4 -> 0 | MU40: =MU4 -> 0 | MW40: =MW4 -> 0 | MY40: =MY4 -> 0 | NA40: =NA4 -> 0 | NC40: =NC4 -> 0 | NE40: =NE4 -> 0 | NG40: =NG4 -> 0 | NI40: =NI4 -> 0 | NK40: =NK4 -> 0 | NM40: =NM4 -> 0 | NO40: =NO4 -> 0 | NQ40: =NQ4 -> 0 | NS40: =NS4 -> 0 | NU40: =NU4 -> 0 | NW40: =NW4 -> 0 | NY40: =NY4 -> 0 | OA40: =OA4 -> 0 | OC40: =OC4 -> 0 | OE40: =OE4 -> 0 | OG40: =OG4 -> 0 | OI40: =OI4 -> 0 | OK40: =OK4 -> 0 | OM40: =OM4 -> 0 | OO40: =OO4 -> 0 | OQ40: =OQ4 -> 0 | OS40: =OS4 -> 0 | OU40: =OU4 -> 0 | OW40: =OW4 -> 0 | OY40: =OY4 -> 0 | PA40: =PA4 -> 0 | PC40: =PC4 -> 0 | PE40: =PE4 -> 0 | PG40: =PG4 -> 0 | PI40: =PI4 -> 0 | PK40: =PK4 -> 0 | PM40: =PM4 -> 0 | PO40: =PO4 -> 0 | PQ40: =PQ4 -> 0 | PS40: =PS4 -> 0 | PU40: =PU4 -> 0 | PW40: =PW4 -> 0 | PY40: =PY4 -> 0 | QA40: =QA4 -> 0 | QC40: =QC4 -> 0 | QE40: =QE4 -> 0 | QG40: =QG4 -> 0 | QI40: =QI4 -> 0 | QK40: =QK4 -> 0 | QM40: =QM4 -> 0 | QO40: =QO4 -> 0 | QQ40: =QQ4 -> 0 | QS40: =QS4 -> 0 | QU40: =QU4 -> 0 | QW40: =QW4 -> 0 | QY40: =QY4 -> 0 | RA40: =RA4 -> 0 | RC40: =RC4 -> 0 | RE40: =RE4 -> 0 | RG40: =RG4 -> 0 | RI40: =RI4 -> 0 | RK40: =RK4 -> 0 | RM40: =RM4 -> 0 | RO40: =RO4 -> 0 | RQ40: =RQ4 -> 0 | RS40: =RS4 -> 0 | RU40: =RU4 -> 0 | RW40: =RW4 -> 0 | RY40: =RY4 -> 0 | SA40: =SA4 -> 0 | SC40: =SC4 -> 0 | SE40: =SE4 -> 0 | SG40: =SG4 -> 0 | SI40: =SI4 -> 0 | SK40: =SK4 -> 0 | SM40: =SM4 -> 0 | SO40: =SO4 -> 0 | SQ40: =SQ4 -> 0 | SS40: =SS4 -> 0 | SU40: =SU4 -> 0 | SW40: =SW4 -> 0 | SY40: =SY4 -> 0 | TA40: =TA4 -> 0 | TC40: =TC4 -> 0 | TE40: =TE4 -> 0 | TG40: =TG4 -> 0 | TI40: =TI4 -> 0 | TK40: =TK4 -> 0 | TM40: =TM4 -> 0 | TO40: =TO4 -> 0 | TQ40: =TQ4 -> 0 | TS40: =TS4 -> 0 | TU40: =TU4 -> 0 | TW40: =TW4 -> 0 | TY40: =TY4 -> 0 | UA40: =UA4 -> 0 | UC40: =UC4 -> 0 | UE40: =UE4 -> 0 | UG40: =UG4 -> 0 | UI40: =UI4 -> 0 | UK40: =UK4 -> 0 | UM40: =UM4 -> 0 | UO40: =UO4 -> 0 | UQ40: =UQ4 -> 0 | US40: =US4 -> 0 | UU40: =UU4 -> 0 | UW40: =UW4 -> 0 | UY40: =UY4 -> 0 | VA40: =VA4 -> 0 | VC40: =VC4 -> 0 | VE40: =VE4 -> 0 | VG40: =VG4 -> 0 | VI40: =VI4 -> 0 | VK40: =VK4 -> 0 | VM40: =VM4 -> 0 | VO40: =VO4 -> 0 | VQ40: =VQ4 -> 0 | VS40: =VS4 -> 0 | VU40: =VU4 -> 0 | VW40: =VW4 -> 0 | VY40: =VY4 -> 0 | WA40: =WA4 -> 0 | WC40: =WC4 -> 0 | WE40: =WE4 -> 0 | WG40: =WG4 -> 0 | WI40: =WI4 -> 0 | WK40: =WK4 -> 0 | WM40: =WM4 -> 0 | WO40: =WO4 -> 0 | WQ40: =WQ4 -> 0 | WS40: =WS4 -> 0 | WU40: =WU4 -> 0 | WW40: =WW4 -> 0 | WY40: =WY4 -> 0 | XA40: =XA4 -> 0 | XC40: =XC4 -> 0 | XE40: =XE4 -> 0 | XG40: =XG4 -> 0 | XI40: =XI4 -> 0 | XK40: =XK4 -> 0 | XM40: =XM4 -> 0 | XO40: =XO4 -> 0 | XQ40: =XQ4 -> 0 | XS40: =XS4 -> 0 | XU40: =XU4 -> 0 | XW40: =XW4 -> 0 | XY40: =XY4 -> 0 | YA40: =YA4 -> 0 | YC40: =YC4 -> 0 | YE40: =YE4 -> 0 | YG40: =YG4 -> 0 | YI40: =YI4 -> 0 | YK40: =YK4 -> 0 | YM40: =YM4 -> 0 | YO40: =YO4 -> 0 | YQ40: =YQ4 -> 0 | YS40: =YS4 -> 0 | YU40: =YU4 -> 0 | YW40: =YW4 -> 0 | YY40: =YY4 -> 0 | ZA40: =ZA4 -> 0 | ZC40: =ZC4 -> 0 | ZE40: =ZE4 -> 0 | ZG40: =ZG4 -> 0 | ZI40: =ZI4 -> 0 | ZK40: =ZK4 -> 0 | ZM40: =ZM4 -> 0 | ZO40: =ZO4 -> 0 | ZQ40: =ZQ4 -> 0 | ZS40: =ZS4 -> 0 | ZU40: =ZU4 -> 0 | ZW40: =ZW4 -> 0 | ZY40: =ZY4 -> 0 | AAA40: =AAA4 -> 0 | AAC40: =AAC4 -> 0 | AAE40: =AAE4 -> 0 | AAG40: =AAG4 -> 0 | AAI40: =AAI4 -> 0 | AAK40: =AAK4 -> 0 | AAM40: =AAM4 -> 0 | AAO40: =AAO4 -> 0 | AAQ40: =AAQ4 -> 0 | AAS40: =AAS4 -> 0 | AAU40: =AAU4 -> 0 | AAW40: =AAW4 -> 0 | AAY40: =AAY4 -> 0 | ABA40: =ABA4 -> 0 | ABC40: =ABC4 -> 0 | ABE40: =ABE4 -> 0 | ABG40: =ABG4 -> 0 | ABI40: =ABI4 -> 0 | ABK40: =ABK4 -> 0 | ABM40: =ABM4 -> 0 | ABO40: =ABO4 -> 0 | ABQ40: =ABQ4 -> 0 | ABS40: =ABS4 -> 0 | ABU40: =ABU4 -> 0 | ABW40: =ABW4 -> 0 | ABY40: =ABY4 -> 0 | ACA40: =ACA4 -> 0 | ACC40: =ACC4 -> 0 | ACE40: =ACE4 -> 0 | ACG40: =ACG4 -> 0 | ACI40: =ACI4 -> 0 | ACK40: =ACK4 -> 0 | ACM40: =ACM4 -> 0 | ACO40: =ACO4 -> 0 | ACQ40: =ACQ4 -> 0 | ACS40: =ACS4 -> 0 | ACU40: =ACU4 -> 0 | ACW40: =ACW4 -> 0 | ACY40: =ACY4 -> 0 | ADA40: =ADA4 -> 0 | ADC40: =ADC4 -> 0 | ADE40: =ADE4 -> 0 | ADG40: =ADG4 -> 0 | ADI40: =ADI4 -> 0 | ADK40: =ADK4 -> 0 | ADM40: =ADM4 -> 0 | ADO40: =ADO4 -> 0 | ADQ40: =ADQ4 -> 0 | ADS40: =ADS4 -> 0 | ADU40: =ADU4 -> 0 | ADW40: =ADW4 -> 0 | ADY40: =ADY4 -> 0 | AEA40: =AEA4 -> 0 | AEC40: =AEC4 -> 0 | AEE40: =AEE4 -> 0 | AEG40: =AEG4 -> 0 | AEI40: =AEI4 -> 0 | AEK40: =AEK4 -> 0 | AEM40: =AEM4 -> 0 | AEO40: =AEO4 -> 0 | AEQ40: =AEQ4 -> 0 | AES40: =AES4 -> 0 | AEU40: =AEU4 -> 0 | AEW40: =AEW4 -> 0 | AEY40: =AEY4 -> 0 | AFA40: =AFA4 -> 0 | AFC40: =AFC4 -> 0 | AFE40: =AFE4 -> 0 | AFG40: =AFG4 -> 0 | AFI40: =AFI4 -> 0 | AFK40: =AFK4 -> 0 | AFM40: =AFM4 -> 0 | AFO40: =AFO4 -> 0 | AFQ40: =AFQ4 -> 0 | AFS40: =AFS4 -> 0 | AFU40: =AFU4 -> 0 | AFW40: =AFW4 -> 0 | AFY40: =AFY4 -> 0 | AGA40: =AGA4 -> 0 | AGC40: =AGC4 -> 0 | AGE40: =AGE4 -> 0 | AGG40: =AGG4 -> 0 | AGI40: =AGI4 -> 0 | AGK40: =AGK4 -> 0 | AGM40: =AGM4 -> 0 | AGO40: =AGO4 -> 0 | AGQ40: =AGQ4 -> 0 | AGS40: =AGS4 -> 0 | AGU40: =AGU4 -> 0 | AGW40: =AGW4 -> 0 | AGY40: =AGY4 -> 0 | AHA40: =AHA4 -> 0 | AHC40: =AHC4 -> 0 | AHE40: =AHE4 -> 0 | AHG40: =AHG4 -> 0 | AHI40: =AHI4 -> 0 | AHK40: =AHK4 -> 0 | AHM40: =AHM4 -> 0 | AHO40: =AHO4 -> 0 | AHQ40: =AHQ4 -> 0 | AHS40: =AHS4 -> 0 | AHU40: =AHU4 -> 0 | AHW40: =AHW4 -> 0 | AHY40: =AHY4 -> 0 | AIA40: =AIA4 -> 0 | AIC40: =AIC4 -> 0 | AIE40: =AIE4 -> 0 | AIG40: =AIG4 -> 0 | AII40: =AII4 -> 0 | AIK40: =AIK4 -> 0 | AIM40: =AIM4 -> 0 | AIO40: =AIO4 -> 0 | AIQ40: =AIQ4 -> 0 | AIS40: =AIS4 -> 0 | AIU40: =AIU4 -> 0 | AIW40: =AIW4 -> 0 | AIY40: =AIY4 -> 0 | AJA40: =AJA4 -> 0 | AJC40: =AJC4 -> 0 | AJE40: =AJE4 -> 0 | AJG40: =AJG4 -> 0 | AJI40: =AJI4 -> 0 | AJK40: =AJK4 -> 0 | AJM40: =AJM4 -> 0 | AJO40: =AJO4 -> 0 | AJQ40: =AJQ4 -> 0 | AJS40: =AJS4 -> 0 | AJU40: =AJU4 -> 0 | AJW40: =AJW4 -> 0 | AJY40: =AJY4 -> 0 | AKA40: =AKA4 -> 0 | AKC40: =AKC4 -> 0 | AKE40: =AKE4 -> 0 | AKG40: =AKG4 -> 0 | AKI40: =AKI4 -> 0 | AKK40: =AKK4 -> 0 | AKM40: =AKM4 -> 0 | AKO40: =AKO4 -> 0 | AKQ40: =AKQ4 -> 0 | AKS40: =AKS4 -> 0 | AKU40: =AKU4 -> 0 | AKW40: =AKW4 -> 0 | AKY40: =AKY4 -> 0 | ALA40: =ALA4 -> 0 | ALC40: =ALC4 -> 0 | ALE40: =ALE4 -> 0 | ALG40: =ALG4 -> 0 | ALI40: =ALI4 -> 0 | ALK40: =ALK4 -> 0 | ALM40: =ALM4 -> 0 | ALO40: =ALO4 -> 0 | ALQ40: =ALQ4 -> 0 | ALS40: =ALS4 -> 0 | ALU40: =ALU4 -> 0 | ALW40: =ALW4 -> 0 | ALY40: =ALY4 -> 0 | AMA40: =AMA4 -> 0 | AMC40: =AMC4 -> 0 | AME40: =AME4 -> 0 | AMG40: =AMG4 -> 0 | AMI40: =AMI4 -> 0 | AMK40: =AMK4 -> 0 | AMM40: =AMM4 -> 0 | AMO40: =AMO4 -> 0 | AMQ40: =AMQ4 -> 0 | AMS40: =AMS4 -> 0 | AMU40: =AMU4 -> 0 | AMW40: =AMW4 -> 0 | AMY40: =AMY4 -> 0 | ANA40: =ANA4 -> 0 | ANC40: =ANC4 -> 0 | ANE40: =ANE4 -> 0 | ANG40: =ANG4 -> 0 | ANI40: =ANI4 -> 0 | ANK40: =ANK4 -> 0 | ANM40: =ANM4 -> 0 | ANO40: =ANO4 -> 0 | ANQ40: =ANQ4 -> 0 | ANS40: =ANS4 -> 0 | ANU40: =ANU4 -> 0 | ANW40: =ANW4 -> 0 | ANY40: =ANY4 -> 0 | AOA40: =AOA4 -> 0 | AOC40: =AOC4 -> 0 | AOE40: =AOE4 -> 0 | AOG40: =AOG4 -> 0 | AOI40: =AOI4 -> 0 | AOK40: =AOK4 -> 0 | AOM40: =AOM4 -> 0 | AOO40: =AOO4 -> 0 | AOQ40: =AOQ4 -> 0 | AOS40: =AOS4 -> 0 | AOU40: =AOU4 -> 0 | AOW40: =AOW4 -> 0 | AOY40: =AOY4 -> 0 | APA40: =APA4 -> 0 | APC40: =APC4 -> 0 | APE40: =APE4 -> 0 | APG40: =APG4 -> 0 | API40: =API4 -> 0 | APK40: =APK4 -> 0 | APM40: =APM4 -> 0 | APO40: =APO4 -> 0 | APQ40: =APQ4 -> 0 | APS40: =APS4 -> 0 | APU40: =APU4 -> 0 | APW40: =APW4 -> 0 | APY40: =APY4 -> 0 | AQA40: =AQA4 -> 0 | AQC40: =AQC4 -> 0 | AQE40: =AQE4 -> 0 | AQG40: =AQG4 -> 0 | AQI40: =AQI4 -> 0 | AQK40: =AQK4 -> 0 | AQM40: =AQM4 -> 0 | AQO40: =AQO4 -> 0 | AQQ40: =AQQ4 -> 0 | AQS40: =AQS4 -> 0 | AQU40: =AQU4 -> 0 | AQW40: =AQW4 -> 0 | AQY40: =AQY4 -> 0 | ARA40: =ARA4 -> 0 | ARC40: =ARC4 -> 0 | ARE40: =ARE4 -> 0 | ARG40: =ARG4 -> 0 | ARI40: =ARI4 -> 0 | ARK40: =ARK4 -> 0 | ARM40: =ARM4 -> 0 | ARO40: =ARO4 -> 0 | ARQ40: =ARQ4 -> 0 | ARS40: =ARS4 -> 0 | ARU40: =ARU4 -> 0 | ARW40: =ARW4 -> 0 | ARY40: =ARY4 -> 0 | ASA40: =ASA4 -> 0 | ASC40: =ASC4 -> 0 | ASE40: =ASE4 -> 0 | ASG40: =ASG4 -> 0 | ASI40: =ASI4 -> 0 | ASK40: =ASK4 -> 0 | ASM40: =ASM4 -> 0 | ASO40: =ASO4 -> 0 | ASQ40: =ASQ4 -> 0 | ASS40: =ASS4 -> 0 | ASU40: =ASU4 -> 0 | ASW40: =ASW4 -> 0 | ASY40: =ASY4 -> 0 | ATA40: =ATA4 -> 0 | ATC40: =ATC4 -> 0 | ATE40: =ATE4 -> 0 | ATG40: =ATG4 -> 0 | ATI40: =ATI4 -> 0 | ATK40: =ATK4 -> 0 | ATM40: =ATM4 -> 0 | ATO40: =ATO4 -> 0 | ATQ40: =ATQ4 -> 0 | ATS40: =ATS4 -> 0 | ATU40: =ATU4 -> 0 | ATW40: =ATW4 -> 0 | ATY40: =ATY4 -> 0 | AUA40: =AUA4 -> 0 | AUC40: =AUC4 -> 0 | AUE40: =AUE4 -> 0 | AUG40: =AUG4 -> 0 | AUI40: =AUI4 -> 0 | AUK40: =AUK4 -> 0 | AUM40: =AUM4 -> 0 | AUO40: =AUO4 -> 0 | AUQ40: =AUQ4 -> 0 | AUS40: =AUS4 -> 0 | AUU40: =AUU4 -> 0 | AUW40: =AUW4 -> 0 | AUY40: =AUY4 -> 0 | AVA40: =AVA4 -> 0 | AVC40: =AVC4 -> 0 | AVE40: =AVE4 -> 0 | AVG40: =AVG4 -> 0 | AVI40: =AVI4 -> 0 | AVK40: =AVK4 -> 0 | AVM40: =AVM4 -> 0 | AVO40: =AVO4 -> 0 | AVQ40: =AVQ4 -> 0 | AVS40: =AVS4 -> 0 | AVU40: =AVU4 -> 0 | AVW40: =AVW4 -> 0 | AVY40: =AVY4 -> 0 | AWA40: =AWA4 -> 0 | AWC40: =AWC4 -> 0 | AWE40: =AWE4 -> 0 | AWG40: =AWG4 -> 0 | AWI40: =AWI4 -> 0 | AWK40: =AWK4 -> 0 | AWM40: =AWM4 -> 0 | AWO40: =AWO4 -> 0 | AWQ40: =AWQ4 -> 0 | AWS40: =AWS4 -> 0 | AWU40: =AWU4 -> 0 | AWW40: =AWW4 -> 0 | AWY40: =AWY4 -> 0 | AXA40: =AXA4 -> 0 | AXC40: =AXC4 -> 0 | AXE40: =AXE4 -> 0 | AXG40: =AXG4 -> 0 | AXI40: =AXI4 -> 0 | AXK40: =AXK4 -> 0 | AXM40: =AXM4 -> 0 | AXO40: =AXO4 -> 0 | AXQ40: =AXQ4 -> 0 | AXS40: =AXS4 -> 0 | AXU40: =AXU4 -> 0 | AXW40: =AXW4 -> 0 | AXY40: =AXY4 -> 0 | AYA40: =AYA4 -> 0 | AYC40: =AYC4 -> 0 | AYE40: =AYE4 -> 0 | AYG40: =AYG4 -> 0 | AYI40: =AYI4 -> 0 | AYK40: =AYK4 -> 0 | AYM40: =AYM4 -> 0 | AYO40: =AYO4 -> 0 | AYQ40: =AYQ4 -> 0 | AYS40: =AYS4 -> 0 | AYU40: =AYU4 -> 0 | AYW40: =AYW4 -> 0 | AYY40: =AYY4 -> 0 | AZA40: =AZA4 -> 0 | AZC40: =AZC4 -> 0 | AZE40: =AZE4 -> 0 | AZG40: =AZG4 -> 0 | AZI40: =AZI4 -> 0 | AZK40: =AZK4 -> 0 | AZM40: =AZM4 -> 0 | AZO40: =AZO4 -> 0 | AZQ40: =AZQ4 -> 0 | AZS40: =AZS4 -> 0 | AZU40: =AZU4 -> 0 | AZW40: =AZW4 -> 0 | AZY40: =AZY4 -> 0 | BAA40: =BAA4 -> 0 | BAC40: =BAC4 -> 0 | BAE40: =BAE4 -> 0 | BAG40: =BAG4 -> 0 | BAI40: =BAI4 -> 0 | BAK40: =BAK4 -> 0 | BAM40: =BAM4 -> 0 | BAO40: =BAO4 -> 0 | BAQ40: =BAQ4 -> 0 | BAS40: =BAS4 -> 0 | BAU40: =BAU4 -> 0 | BAW40: =BAW4 -> 0 | BAY40: =BAY4 -> 0 | BBA40: =BBA4 -> 0 | BBC40: =BBC4 -> 0 | BBE40: =BBE4 -> 0 | BBG40: =BBG4 -> 0 | BBI40: =BBI4 -> 0 | BBK40: =BBK4 -> 0 | BBM40: =BBM4 -> 0 | BBO40: =BBO4 -> 0 | BBQ40: =BBQ4 -> 0 | BBS40: =BBS4 -> 0 | BBU40: =BBU4 -> 0 | BBW40: =BBW4 -> 0 | BBY40: =BBY4 -> 0 | BCA40: =BCA4 -> 0 | BCC40: =BCC4 -> 0 | BCE40: =BCE4 -> 0 | BCG40: =BCG4 -> 0 | BCI40: =BCI4 -> 0 | BCK40: =BCK4 -> 0 | BCM40: =BCM4 -> 0 | BCO40: =BCO4 -> 0 | BCQ40: =BCQ4 -> 0 | BCS40: =BCS4 -> 0 | BCU40: =BCU4 -> 0 | BCW40: =BCW4 -> 0 | BCY40: =BCY4 -> 0 | BDA40: =BDA4 -> 0 | BDC40: =BDC4 -> 0 | BDE40: =BDE4 -> 0 | BDG40: =BDG4 -> 0 | BDI40: =BDI4 -> 0 | BDK40: =BDK4 -> 0 | BDM40: =BDM4 -> 0 | BDO40: =BDO4 -> 0 | BDQ40: =BDQ4 -> 0 | BDS40: =BDS4 -> 0 | BDU40: =BDU4 -> 0 | BDW40: =BDW4 -> 0 | BDY40: =BDY4 -> 0 | BEA40: =BEA4 -> 0 | BEC40: =BEC4 -> 0 | BEE40: =BEE4 -> 0 | BEG40: =BEG4 -> 0 | BEI40: =BEI4 -> 0 | BEK40: =BEK4 -> 0 | BEM40: =BEM4 -> 0 | BEO40: =BEO4 -> 0 | BEQ40: =BEQ4 -> 0 | BES40: =BES4 -> 0 | BEU40: =BEU4 -> 0 | BEW40: =BEW4 -> 0 | BEY40: =BEY4 -> 0 | BFA40: =BFA4 -> 0 | BFC40: =BFC4 -> 0 | BFE40: =BFE4 -> 0 | BFG40: =BFG4 -> 0 | BFI40: =BFI4 -> 0 | BFK40: =BFK4 -> 0 | BFM40: =BFM4 -> 0 | BFO40: =BFO4 -> 0 | BFQ40: =BFQ4 -> 0 | BFS40: =BFS4 -> 0 | BFU40: =BFU4 -> 0 | BFW40: =BFW4 -> 0 | BFY40: =BFY4 -> 0 | BGA40: =BGA4 -> 0 | BGC40: =BGC4 -> 0 | BGE40: =BGE4 -> 0 | BGG40: =BGG4 -> 0 | BGI40: =BGI4 -> 0 | BGK40: =BGK4 -> 0 | BGM40: =BGM4 -> 0 | BGO40: =BGO4 -> 0 | BGQ40: =BGQ4 -> 0 | BGS40: =BGS4 -> 0 | BGU40: =BGU4 -> 0 | BGW40: =BGW4 -> 0 | BGY40: =BGY4 -> 0 | BHA40: =BHA4 -> 0 | BHC40: =BHC4 -> 0 | BHE40: =BHE4 -> 0 | BHG40: =BHG4 -> 0 | BHI40: =BHI4 -> 0 | BHK40: =BHK4 -> 0 | BHM40: =BHM4 -> 0 | BHO40: =BHO4 -> 0 | BHQ40: =BHQ4 -> 0 | BHS40: =BHS4 -> 0 | BHU40: =BHU4 -> 0 | BHW40: =BHW4 -> 0 | BHY40: =BHY4 -> 0 | BIA40: =BIA4 -> 0 | BIC40: =BIC4 -> 0 | BIE40: =BIE4 -> 0 | BIG40: =BIG4 -> 0 | BII40: =BII4 -> 0 | BIK40: =BIK4 -> 0 | BIM40: =BIM4 -> 0 | BIO40: =BIO4 -> 0 | BIQ40: =BIQ4 -> 0 | BIS40: =BIS4 -> 0 | BIU40: =BIU4 -> 0 | BIW40: =BIW4 -> 0 | BIY40: =BIY4 -> 0 | BJA40: =BJA4 -> 0 | BJC40: =BJC4 -> 0 | BJE40: =BJE4 -> 0 | BJG40: =BJG4 -> 0 | BJI40: =BJI4 -> 0 | BJK40: =BJK4 -> 0 | BJM40: =BJM4 -> 0 | BJO40: =BJO4 -> 0 | BJQ40: =BJQ4 -> 0 | BJS40: =BJS4 -> 0 | BJU40: =BJU4 -> 0 | BJW40: =BJW4 -> 0 | BJY40: =BJY4 -> 0 | BKA40: =BKA4 -> 0 | BKC40: =BKC4 -> 0 | BKE40: =BKE4 -> 0 | BKG40: =BKG4 -> 0 | BKI40: =BKI4 -> 0 | BKK40: =BKK4 -> 0 | BKM40: =BKM4 -> 0 | BKO40: =BKO4 -> 0 | BKQ40: =BKQ4 -> 0 | BKS40: =BKS4 -> 0 | BKU40: =BKU4 -> 0 | BKW40: =BKW4 -> 0 | BKY40: =BKY4 -> 0 | BLA40: =BLA4 -> 0 | BLC40: =BLC4 -> 0 | BLE40: =BLE4 -> 0 | BLG40: =BLG4 -> 0 | BLI40: =BLI4 -> 0 | BLK40: =BLK4 -> 0 | BLM40: =BLM4 -> 0 | BLO40: =BLO4 -> 0 | BLQ40: =BLQ4 -> 0 | BLS40: =BLS4 -> 0 | BLU40: =BLU4 -> 0 | BLW40: =BLW4 -> 0 | BLY40: =BLY4 -> 0 | BMA40: =BMA4 -> 0 | BMC40: =BMC4 -> 0 | BME40: =BME4 -> 0 | BMG40: =BMG4 -> 0 | BMI40: =BMI4 -> 0 | BMK40: =BMK4 -> 0 | BMM40: =BMM4 -> 0 | BMO40: =BMO4 -> 0 | BMQ40: =BMQ4 -> 0 | BMS40: =BMS4 -> 0 | BMU40: =BMU4 -> 0 | BMW40: =BMW4 -> 0 | BMY40: =BMY4 -> 0 | BNA40: =BNA4 -> 0 | BNC40: =BNC4 -> 0 | BNE40: =BNE4 -> 0 | BNG40: =BNG4 -> 0 | BNI40: =BNI4 -> 0 | BNK40: =BNK4 -> 0 | BNM40: =BNM4 -> 0 | BNO40: =BNO4 -> 0 | BNQ40: =BNQ4 -> 0 | BNS40: =BNS4 -> 0 | BNU40: =BNU4 -> 0 | BNW40: =BNW4 -> 0 | BNY40: =BNY4 -> 0 | BOA40: =BOA4 -> 0 | BOC40: =BOC4 -> 0 | BOE40: =BOE4 -> 0 | BOG40: =BOG4 -> 0 | BOI40: =BOI4 -> 0 | BOK40: =BOK4 -> 0 | BOM40: =BOM4 -> 0 | BOO40: =BOO4 -> 0 | BOQ40: =BOQ4 -> 0 | BOS40: =BOS4 -> 0 | BOU40: =BOU4 -> 0 | BOW40: =BOW4 -> 0 | BOY40: =BOY4 -> 0 | BPA40: =BPA4 -> 0 | BPC40: =BPC4 -> 0 | BPE40: =BPE4 -> 0 | BPG40: =BPG4 -> 0 | BPI40: =BPI4 -> 0 | BPK40: =BPK4 -> 0 | BPM40: =BPM4 -> 0 | BPO40: =BPO4 -> 0 | BPQ40: =BPQ4 -> 0 | BPS40: =BPS4 -> 0 | BPU40: =BPU4 -> 0 | BPW40: =BPW4 -> 0 | BPY40: =BPY4 -> 0 | BQA40: =BQA4 -> 0 | BQC40: =BQC4 -> 0 | BQE40: =BQE4 -> 0 | BQG40: =BQG4 -> 0 | BQI40: =BQI4 -> 0 | BQK40: =BQK4 -> 0 | BQM40: =BQM4 -> 0 | BQO40: =BQO4 -> 0 | BQQ40: =BQQ4 -> 0 | BQS40: =BQS4 -> 0 | BQU40: =BQU4 -> 0 | BQW40: =BQW4 -> 0 | BQY40: =BQY4 -> 0 | BRA40: =BRA4 -> 0 | BRC40: =BRC4 -> 0 | BRE40: =BRE4 -> 0 | BRG40: =BRG4 -> 0 | BRI40: =BRI4 -> 0 | BRK40: =BRK4 -> 0 | BRM40: =BRM4 -> 0 | BRO40: =BRO4 -> 0 | BRQ40: =BRQ4 -> 0 | BRS40: =BRS4 -> 0 | BRU40: =BRU4 -> 0 | BRW40: =BRW4 -> 0 | BRY40: =BRY4 -> 0 | BSA40: =BSA4 -> 0 | BSC40: =BSC4 -> 0 | BSE40: =BSE4 -> 0 | BSG40: =BSG4 -> 0 | BSI40: =BSI4 -> 0 | BSK40: =BSK4 -> 0 | BSM40: =BSM4 -> 0 | BSO40: =BSO4 -> 0 | BSQ40: =BSQ4 -> 0 | BSS40: =BSS4 -> 0 | BSU40: =BSU4 -> 0 | BSW40: =BSW4 -> 0 | BSY40: =BSY4 -> 0 | BTA40: =BTA4 -> 0 | BTC40: =BTC4 -> 0 | BTE40: =BTE4 -> 0 | BTG40: =BTG4 -> 0 | BTI40: =BTI4 -> 0 | BTK40: =BTK4 -> 0 | BTM40: =BTM4 -> 0 | BTO40: =BTO4 -> 0 | BTQ40: =BTQ4 -> 0 | BTS40: =BTS4 -> 0 | BTU40: =BTU4 -> 0 | BTW40: =BTW4 -> 0 | BTY40: =BTY4 -> 0 | BUA40: =BUA4 -> 0 | BUC40: =BUC4 -> 0 | BUE40: =BUE4 -> 0 | BUG40: =BUG4 -> 0 | BUI40: =BUI4 -> 0 | BUK40: =BUK4 -> 0 | BUM40: =BUM4 -> 0 | BUO40: =BUO4 -> 0 | BUQ40: =BUQ4 -> 0 | BUS40: =BUS4 -> 0 | BUU40: =BUU4 -> 0 | BUW40: =BUW4 -> 0 | BUY40: =BUY4 -> 0 | BVA40: =BVA4 -> 0 | BVC40: =BVC4 -> 0 | BVE40: =BVE4 -> 0 | BVG40: =BVG4 -> 0 | BVI40: =BVI4 -> 0 | BVK40: =BVK4 -> 0 | BVM40: =BVM4 -> 0 | BVO40: =BVO4 -> 0 | BVQ40: =BVQ4 -> 0 | BVS40: =BVS4 -> 0 | BVU40: =BVU4 -> 0 | BVW40: =BVW4 -> 0 | BVY40: =BVY4 -> 0 | BWA40: =BWA4 -> 0 | BWC40: =BWC4 -> 0 | BWE40: =BWE4 -> 0 | BWG40: =BWG4 -> 0 | BWI40: =BWI4 -> 0 | BWK40: =BWK4 -> 0 | BWM40: =BWM4 -> 0 | BWO40: =BWO4 -> 0 | BWQ40: =BWQ4 -> 0 | BWS40: =BWS4 -> 0 | BWU40: =BWU4 -> 0 | BWW40: =BWW4 -> 0 | BWY40: =BWY4 -> 0 | BXA40: =BXA4 -> 0 | BXC40: =BXC4 -> 0 | BXE40: =BXE4 -> 0 | BXG40: =BXG4 -> 0 | BXI40: =BXI4 -> 0 | BXK40: =BXK4 -> 0 | BXM40: =BXM4 -> 0 | BXO40: =BXO4 -> 0 | BXQ40: =BXQ4 -> 0 | BXS40: =BXS4 -> 0 | BXU40: =BXU4 -> 0 | BXW40: =BXW4 -> 0 | BXY40: =BXY4 -> 0 | BYA40: =BYA4 -> 0 | BYC40: =BYC4 -> 0 | BYE40: =BYE4 -> 0 | BYG40: =BYG4 -> 0 | BYI40: =BYI4 -> 0 | BYK40: =BYK4 -> 0 | BYM40: =BYM4 -> 0 | BYO40: =BYO4 -> 0 | BYQ40: =BYQ4 -> 0 | BYS40: =BYS4 -> 0 | BYU40: =BYU4 -> 0 | BYW40: =BYW4 -> 0 | BYY40: =BYY4 -> 0 | BZA40: =BZA4 -> 0 | BZC40: =BZC4 -> 0 | BZE40: =BZE4 -> 0 | BZG40: =BZG4 -> 0 | BZI40: =BZI4 -> 0 | BZK40: =BZK4 -> 0 | BZM40: =BZM4 -> 0 | BZO40: =BZO4 -> 0 | BZQ40: =BZQ4 -> 0 | BZS40: =BZS4 -> 0 | BZU40: =BZU4 -> 0 | BZW40: =BZW4 -> 0 | BZY40: =BZY4 -> 0 | CAA40: =CAA4 -> 0 | CAC40: =CAC4 -> 0 | CAE40: =CAE4 -> 0 | CAG40: =CAG4 -> 0 | CAI40: =CAI4 -> 0 | CAK40: =CAK4 -> 0 | CAM40: =CAM4 -> 0 | CAO40: =CAO4 -> 0 | CAQ40: =CAQ4 -> 0 | CAS40: =CAS4 -> 0 | CAU40: =CAU4 -> 0 | CAW40: =CAW4 -> 0 | CAY40: =CAY4 -> 0 | CBA40: =CBA4 -> 0 | CBC40: =CBC4 -> 0 | CBE40: =CBE4 -> 0 | CBG40: =CBG4 -> 0
A41: 2 | C41: =C5+C40 -> 0 | E41: =E5+E40 -> 0 | G41: =G5+G40 -> 0 | I41: =I5+I40 -> 0 | K41: =K5+K40 -> 0 | M41: =M5+M40 -> 0 | O41: =O5+O40 -> 0 | Q41: =Q5+Q40 -> 0 | S41: =S5+S40 -> 0 | U41: =U5+U40 -> 0 | W41: =W5+W40 -> 0 | Y41: =Y5+Y40 -> 0 | AA41: =AA5+AA40 -> 0 | AC41: =AC5+AC40 -> 0 | AE41: =AE5+AE40 -> 0 | AG41: =AG5+AG40 -> 0 | AI41: =AI5+AI40 -> 0 | AK41: =AK5+AK40 -> 0 | AM41: =AM5+AM40 -> 0 | AO41: =AO5+AO40 -> 0 | AQ41: =AQ5+AQ40 -> 0 | AS41: =AS5+AS40 -> 0 | AU41: =AU5+AU40 -> 0 | AW41: =AW5+AW40 -> 0 | AY41: =AY5+AY40 -> 0 | BA41: =BA5+BA40 -> 0 | BC41: =BC5+BC40 -> 0 | BE41: =BE5+BE40 -> 0 | BG41: =BG5+BG40 -> 0 | BI41: =BI5+BI40 -> 0 | BK41: =BK5+BK40 -> 0 | BM41: =BM5+BM40 -> 0 | BO41: =BO5+BO40 -> 0 | BQ41: =BQ5+BQ40 -> 0 | BS41: =BS5+BS40 -> 0 | BU41: =BU5+BU40 -> 0 | BW41: =BW5+BW40 -> 0 | BY41: =BY5+BY40 -> 0 | CA41: =CA5+CA40 -> 0 | CC41: =CC5+CC40 -> 0 | CE41: =CE5+CE40 -> 0 | CG41: =CG5+CG40 -> 0 | CI41: =CI5+CI40 -> 0 | CK41: =CK5+CK40 -> 0 | CM41: =CM5+CM40 -> 0 | CO41: =CO5+CO40 -> 0 | CQ41: =CQ5+CQ40 -> 0 | CS41: =CS5+CS40 -> 0 | CU41: =CU5+CU40 -> 0 | CW41: =CW5+CW40 -> 0 | CY41: =CY5+CY40 -> 0 | DA41: =DA5+DA40 -> 0 | DC41: =DC5+DC40 -> 0 | DE41: =DE5+DE40 -> 0 | DG41: =DG5+DG40 -> 0 | DI41: =DI5+DI40 -> 0 | DK41: =DK5+DK40 -> 0 | DM41: =DM5+DM40 -> 0 | DO41: =DO5+DO40 -> 0 | DQ41: =DQ5+DQ40 -> 0 | DS41: =DS5+DS40 -> 0 | DU41: =DU5+DU40 -> 0 | DW41: =DW5+DW40 -> 0 | DY41: =DY5+DY40 -> 0 | EA41: =EA5+EA40 -> 0 | EC41: =EC5+EC40 -> 0 | EE41: =EE5+EE40 -> 0 | EG41: =EG5+EG40 -> 0 | EI41: =EI5+EI40 -> 0 | EK41: =EK5+EK40 -> 0 | EM41: =EM5+EM40 -> 0 | EO41: =EO5+EO40 -> 0 | EQ41: =EQ5+EQ40 -> 0 | ES41: =ES5+ES40 -> 0 | EU41: =EU5+EU40 -> 0 | EW41: =EW5+EW40 -> 0 | EY41: =EY5+EY40 -> 0 | FA41: =FA5+FA40 -> 0 | FC41: =FC5+FC40 -> 0 | FE41: =FE5+FE40 -> 0 | FG41: =FG5+FG40 -> 0 | FI41: =FI5+FI40 -> 0 | FK41: =FK5+FK40 -> 0 | FM41: =FM5+FM40 -> 0 | FO41: =FO5+FO40 -> 0 | FQ41: =FQ5+FQ40 -> 0 | FS41: =FS5+FS40 -> 0 | FU41: =FU5+FU40 -> 0 | FW41: =FW5+FW40 -> 0 | FY41: =FY5+FY40 -> 0 | GA41: =GA5+GA40 -> 0 | GC41: =GC5+GC40 -> 0 | GE41: =GE5+GE40 -> 0 | GG41: =GG5+GG40 -> 0 | GI41: =GI5+GI40 -> 0 | GK41: =GK5+GK40 -> 0 | GM41: =GM5+GM40 -> 0 | GO41: =GO5+GO40 -> 0 | GQ41: =GQ5+GQ40 -> 0 | GS41: =GS5+GS40 -> 0 | GU41: =GU5+GU40 -> 0 | GW41: =GW5+GW40 -> 0 | GY41: =GY5+GY40 -> 0 | HA41: =HA5+HA40 -> 0 | HC41: =HC5+HC40 -> 0 | HE41: =HE5+HE40 -> 0 | HG41: =HG5+HG40 -> 0 | HI41: =HI5+HI40 -> 0 | HK41: =HK5+HK40 -> 0 | HM41: =HM5+HM40 -> 0 | HO41: =HO5+HO40 -> 0 | HQ41: =HQ5+HQ40 -> 0 | HS41: =HS5+HS40 -> 0 | HU41: =HU5+HU40 -> 0 | HW41: =HW5+HW40 -> 0 | HY41: =HY5+HY40 -> 0 | IA41: =IA5+IA40 -> 0 | IC41: =IC5+IC40 -> 0 | IE41: =IE5+IE40 -> 0 | IG41: =IG5+IG40 -> 0 | II41: =II5+II40 -> 0 | IK41: =IK5+IK40 -> 0 | IM41: =IM5+IM40 -> 0 | IO41: =IO5+IO40 -> 0 | IQ41: =IQ5+IQ40 -> 0 | IS41: =IS5+IS40 -> 0 | IU41: =IU5+IU40 -> 0 | IW41: =IW5+IW40 -> 0 | IY41: =IY5+IY40 -> 0 | JA41: =JA5+JA40 -> 0 | JC41: =JC5+JC40 -> 0 | JE41: =JE5+JE40 -> 0 | JG41: =JG5+JG40 -> 0 | JI41: =JI5+JI40 -> 0 | JK41: =JK5+JK40 -> 0 | JM41: =JM5+JM40 -> 0 | JO41: =JO5+JO40 -> 0 | JQ41: =JQ5+JQ40 -> 0 | JS41: =JS5+JS40 -> 0 | JU41: =JU5+JU40 -> 0 | JW41: =JW5+JW40 -> 0 | JY41: =JY5+JY40 -> 0 | KA41: =KA5+KA40 -> 0 | KC41: =KC5+KC40 -> 0 | KE41: =KE5+KE40 -> 0 | KG41: =KG5+KG40 -> 0 | KI41: =KI5+KI40 -> 0 | KK41: =KK5+KK40 -> 0 | KM41: =KM5+KM40 -> 0 | KO41: =KO5+KO40 -> 0 | KQ41: =KQ5+KQ40 -> 0 | KS41: =KS5+KS40 -> 0 | KU41: =KU5+KU40 -> 0 | KW41: =KW5+KW40 -> 0 | KY41: =KY5+KY40 -> 0 | LA41: =LA5+LA40 -> 0 | LC41: =LC5+LC40 -> 0 | LE41: =LE5+LE40 -> 0 | LG41: =LG5+LG40 -> 0 | LI41: =LI5+LI40 -> 0 | LK41: =LK5+LK40 -> 0 | LM41: =LM5+LM40 -> 0 | LO41: =LO5+LO40 -> 0 | LQ41: =LQ5+LQ40 -> 0 | LS41: =LS5+LS40 -> 0 | LU41: =LU5+LU40 -> 0 | LW41: =LW5+LW40 -> 0 | LY41: =LY5+LY40 -> 0 | MA41: =MA5+MA40 -> 0 | MC41: =MC5+MC40 -> 0 | ME41: =ME5+ME40 -> 0 | MG41: =MG5+MG40 -> 0 | MI41: =MI5+MI40 -> 0 | MK41: =MK5+MK40 -> 0 | MM41: =MM5+MM40 -> 0 | MO41: =MO5+MO40 -> 0 | MQ41: =MQ5+MQ40 -> 0 | MS41: =MS5+MS40 -> 0 | MU41: =MU5+MU40 -> 0 | MW41: =MW5+MW40 -> 0 | MY41: =MY5+MY40 -> 0 | NA41: =NA5+NA40 -> 0 | NC41: =NC5+NC40 -> 0 | NE41: =NE5+NE40 -> 0 | NG41: =NG5+NG40 -> 0 | NI41: =NI5+NI40 -> 0 | NK41: =NK5+NK40 -> 0 | NM41: =NM5+NM40 -> 0 | NO41: =NO5+NO40 -> 0 | NQ41: =NQ5+NQ40 -> 0 | NS41: =NS5+NS40 -> 0 | NU41: =NU5+NU40 -> 0 | NW41: =NW5+NW40 -> 0 | NY41: =NY5+NY40 -> 0 | OA41: =OA5+OA40 -> 0 | OC41: =OC5+OC40 -> 0 | OE41: =OE5+OE40 -> 0 | OG41: =OG5+OG40 -> 0 | OI41: =OI5+OI40 -> 0 | OK41: =OK5+OK40 -> 0 | OM41: =OM5+OM40 -> 0 | OO41: =OO5+OO40 -> 0 | OQ41: =OQ5+OQ40 -> 0 | OS41: =OS5+OS40 -> 0 | OU41: =OU5+OU40 -> 0 | OW41: =OW5+OW40 -> 0 | OY41: =OY5+OY40 -> 0 | PA41: =PA5+PA40 -> 0 | PC41: =PC5+PC40 -> 0 | PE41: =PE5+PE40 -> 0 | PG41: =PG5+PG40 -> 0 | PI41: =PI5+PI40 -> 0 | PK41: =PK5+PK40 -> 0 | PM41: =PM5+PM40 -> 0 | PO41: =PO5+PO40 -> 0 | PQ41: =PQ5+PQ40 -> 0 | PS41: =PS5+PS40 -> 0 | PU41: =PU5+PU40 -> 0 | PW41: =PW5+PW40 -> 0 | PY41: =PY5+PY40 -> 0 | QA41: =QA5+QA40 -> 0 | QC41: =QC5+QC40 -> 0 | QE41: =QE5+QE40 -> 0 | QG41: =QG5+QG40 -> 0 | QI41: =QI5+QI40 -> 0 | QK41: =QK5+QK40 -> 0 | QM41: =QM5+QM40 -> 0 | QO41: =QO5+QO40 -> 0 | QQ41: =QQ5+QQ40 -> 0 | QS41: =QS5+QS40 -> 0 | QU41: =QU5+QU40 -> 0 | QW41: =QW5+QW40 -> 0 | QY41: =QY5+QY40 -> 0 | RA41: =RA5+RA40 -> 0 | RC41: =RC5+RC40 -> 0 | RE41: =RE5+RE40 -> 0 | RG41: =RG5+RG40 -> 0 | RI41: =RI5+RI40 -> 0 | RK41: =RK5+RK40 -> 0 | RM41: =RM5+RM40 -> 0 | RO41: =RO5+RO40 -> 0 | RQ41: =RQ5+RQ40 -> 0 | RS41: =RS5+RS40 -> 0 | RU41: =RU5+RU40 -> 0 | RW41: =RW5+RW40 -> 0 | RY41: =RY5+RY40 -> 0 | SA41: =SA5+SA40 -> 0 | SC41: =SC5+SC40 -> 0 | SE41: =SE5+SE40 -> 0 | SG41: =SG5+SG40 -> 0 | SI41: =SI5+SI40 -> 0 | SK41: =SK5+SK40 -> 0 | SM41: =SM5+SM40 -> 0 | SO41: =SO5+SO40 -> 0 | SQ41: =SQ5+SQ40 -> 0 | SS41: =SS5+SS40 -> 0 | SU41: =SU5+SU40 -> 0 | SW41: =SW5+SW40 -> 0 | SY41: =SY5+SY40 -> 0 | TA41: =TA5+TA40 -> 0 | TC41: =TC5+TC40 -> 0 | TE41: =TE5+TE40 -> 0 | TG41: =TG5+TG40 -> 0 | TI41: =TI5+TI40 -> 0 | TK41: =TK5+TK40 -> 0 | TM41: =TM5+TM40 -> 0 | TO41: =TO5+TO40 -> 0 | TQ41: =TQ5+TQ40 -> 0 | TS41: =TS5+TS40 -> 0 | TU41: =TU5+TU40 -> 0 | TW41: =TW5+TW40 -> 0 | TY41: =TY5+TY40 -> 0 | UA41: =UA5+UA40 -> 0 | UC41: =UC5+UC40 -> 0 | UE41: =UE5+UE40 -> 0 | UG41: =UG5+UG40 -> 0 | UI41: =UI5+UI40 -> 0 | UK41: =UK5+UK40 -> 0 | UM41: =UM5+UM40 -> 0 | UO41: =UO5+UO40 -> 0 | UQ41: =UQ5+UQ40 -> 0 | US41: =US5+US40 -> 0 | UU41: =UU5+UU40 -> 0 | UW41: =UW5+UW40 -> 0 | UY41: =UY5+UY40 -> 0 | VA41: =VA5+VA40 -> 0 | VC41: =VC5+VC40 -> 0 | VE41: =VE5+VE40 -> 0 | VG41: =VG5+VG40 -> 0 | VI41: =VI5+VI40 -> 0 | VK41: =VK5+VK40 -> 0 | VM41: =VM5+VM40 -> 0 | VO41: =VO5+VO40 -> 0 | VQ41: =VQ5+VQ40 -> 0 | VS41: =VS5+VS40 -> 0 | VU41: =VU5+VU40 -> 0 | VW41: =VW5+VW40 -> 0 | VY41: =VY5+VY40 -> 0 | WA41: =WA5+WA40 -> 0 | WC41: =WC5+WC40 -> 0 | WE41: =WE5+WE40 -> 0 | WG41: =WG5+WG40 -> 0 | WI41: =WI5+WI40 -> 0 | WK41: =WK5+WK40 -> 0 | WM41: =WM5+WM40 -> 0 | WO41: =WO5+WO40 -> 0 | WQ41: =WQ5+WQ40 -> 0 | WS41: =WS5+WS40 -> 0 | WU41: =WU5+WU40 -> 0 | WW41: =WW5+WW40 -> 0 | WY41: =WY5+WY40 -> 0 | XA41: =XA5+XA40 -> 0 | XC41: =XC5+XC40 -> 0 | XE41: =XE5+XE40 -> 0 | XG41: =XG5+XG40 -> 0 | XI41: =XI5+XI40 -> 0 | XK41: =XK5+XK40 -> 0 | XM41: =XM5+XM40 -> 0 | XO41: =XO5+XO40 -> 0 | XQ41: =XQ5+XQ40 -> 0 | XS41: =XS5+XS40 -> 0 | XU41: =XU5+XU40 -> 0 | XW41: =XW5+XW40 -> 0 | XY41: =XY5+XY40 -> 0 | YA41: =YA5+YA40 -> 0 | YC41: =YC5+YC40 -> 0 | YE41: =YE5+YE40 -> 0 | YG41: =YG5+YG40 -> 0 | YI41: =YI5+YI40 -> 0 | YK41: =YK5+YK40 -> 0 | YM41: =YM5+YM40 -> 0 | YO41: =YO5+YO40 -> 0 | YQ41: =YQ5+YQ40 -> 0 | YS41: =YS5+YS40 -> 0 | YU41: =YU5+YU40 -> 0 | YW41: =YW5+YW40 -> 0 | YY41: =YY5+YY40 -> 0 | ZA41: =ZA5+ZA40 -> 0 | ZC41: =ZC5+ZC40 -> 0 | ZE41: =ZE5+ZE40 -> 0 | ZG41: =ZG5+ZG40 -> 0 | ZI41: =ZI5+ZI40 -> 0 | ZK41: =ZK5+ZK40 -> 0 | ZM41: =ZM5+ZM40 -> 0 | ZO41: =ZO5+ZO40 -> 0 | ZQ41: =ZQ5+ZQ40 -> 0 | ZS41: =ZS5+ZS40 -> 0 | ZU41: =ZU5+ZU40 -> 0 | ZW41: =ZW5+ZW40 -> 0 | ZY41: =ZY5+ZY40 -> 0 | AAA41: =AAA5+AAA40 -> 0 | AAC41: =AAC5+AAC40 -> 0 | AAE41: =AAE5+AAE40 -> 0 | AAG41: =AAG5+AAG40 -> 0 | AAI41: =AAI5+AAI40 -> 0 | AAK41: =AAK5+AAK40 -> 0 | AAM41: =AAM5+AAM40 -> 0 | AAO41: =AAO5+AAO40 -> 0 | AAQ41: =AAQ5+AAQ40 -> 0 | AAS41: =AAS5+AAS40 -> 0 | AAU41: =AAU5+AAU40 -> 0 | AAW41: =AAW5+AAW40 -> 0 | AAY41: =AAY5+AAY40 -> 0 | ABA41: =ABA5+ABA40 -> 0 | ABC41: =ABC5+ABC40 -> 0 | ABE41: =ABE5+ABE40 -> 0 | ABG41: =ABG5+ABG40 -> 0 | ABI41: =ABI5+ABI40 -> 0 | ABK41: =ABK5+ABK40 -> 0 | ABM41: =ABM5+ABM40 -> 0 | ABO41: =ABO5+ABO40 -> 0 | ABQ41: =ABQ5+ABQ40 -> 0 | ABS41: =ABS5+ABS40 -> 0 | ABU41: =ABU5+ABU40 -> 0 | ABW41: =ABW5+ABW40 -> 0 | ABY41: =ABY5+ABY40 -> 0 | ACA41: =ACA5+ACA40 -> 0 | ACC41: =ACC5+ACC40 -> 0 | ACE41: =ACE5+ACE40 -> 0 | ACG41: =ACG5+ACG40 -> 0 | ACI41: =ACI5+ACI40 -> 0 | ACK41: =ACK5+ACK40 -> 0 | ACM41: =ACM5+ACM40 -> 0 | ACO41: =ACO5+ACO40 -> 0 | ACQ41: =ACQ5+ACQ40 -> 0 | ACS41: =ACS5+ACS40 -> 0 | ACU41: =ACU5+ACU40 -> 0 | ACW41: =ACW5+ACW40 -> 0 | ACY41: =ACY5+ACY40 -> 0 | ADA41: =ADA5+ADA40 -> 0 | ADC41: =ADC5+ADC40 -> 0 | ADE41: =ADE5+ADE40 -> 0 | ADG41: =ADG5+ADG40 -> 0 | ADI41: =ADI5+ADI40 -> 0 | ADK41: =ADK5+ADK40 -> 0 | ADM41: =ADM5+ADM40 -> 0 | ADO41: =ADO5+ADO40 -> 0 | ADQ41: =ADQ5+ADQ40 -> 0 | ADS41: =ADS5+ADS40 -> 0 | ADU41: =ADU5+ADU40 -> 0 | ADW41: =ADW5+ADW40 -> 0 | ADY41: =ADY5+ADY40 -> 0 | AEA41: =AEA5+AEA40 -> 0 | AEC41: =AEC5+AEC40 -> 0 | AEE41: =AEE5+AEE40 -> 0 | AEG41: =AEG5+AEG40 -> 0 | AEI41: =AEI5+AEI40 -> 0 | AEK41: =AEK5+AEK40 -> 0 | AEM41: =AEM5+AEM40 -> 0 | AEO41: =AEO5+AEO40 -> 0 | AEQ41: =AEQ5+AEQ40 -> 0 | AES41: =AES5+AES40 -> 0 | AEU41: =AEU5+AEU40 -> 0 | AEW41: =AEW5+AEW40 -> 0 | AEY41: =AEY5+AEY40 -> 0 | AFA41: =AFA5+AFA40 -> 0 | AFC41: =AFC5+AFC40 -> 0 | AFE41: =AFE5+AFE40 -> 0 | AFG41: =AFG5+AFG40 -> 0 | AFI41: =AFI5+AFI40 -> 0 | AFK41: =AFK5+AFK40 -> 0 | AFM41: =AFM5+AFM40 -> 0 | AFO41: =AFO5+AFO40 -> 0 | AFQ41: =AFQ5+AFQ40 -> 0 | AFS41: =AFS5+AFS40 -> 0 | AFU41: =AFU5+AFU40 -> 0 | AFW41: =AFW5+AFW40 -> 0 | AFY41: =AFY5+AFY40 -> 0 | AGA41: =AGA5+AGA40 -> 0 | AGC41: =AGC5+AGC40 -> 0 | AGE41: =AGE5+AGE40 -> 0 | AGG41: =AGG5+AGG40 -> 0 | AGI41: =AGI5+AGI40 -> 0 | AGK41: =AGK5+AGK40 -> 0 | AGM41: =AGM5+AGM40 -> 0 | AGO41: =AGO5+AGO40 -> 0 | AGQ41: =AGQ5+AGQ40 -> 0 | AGS41: =AGS5+AGS40 -> 0 | AGU41: =AGU5+AGU40 -> 0 | AGW41: =AGW5+AGW40 -> 0 | AGY41: =AGY5+AGY40 -> 0 | AHA41: =AHA5+AHA40 -> 0 | AHC41: =AHC5+AHC40 -> 0 | AHE41: =AHE5+AHE40 -> 0 | AHG41: =AHG5+AHG40 -> 0 | AHI41: =AHI5+AHI40 -> 0 | AHK41: =AHK5+AHK40 -> 0 | AHM41: =AHM5+AHM40 -> 0 | AHO41: =AHO5+AHO40 -> 0 | AHQ41: =AHQ5+AHQ40 -> 0 | AHS41: =AHS5+AHS40 -> 0 | AHU41: =AHU5+AHU40 -> 0 | AHW41: =AHW5+AHW40 -> 0 | AHY41: =AHY5+AHY40 -> 0 | AIA41: =AIA5+AIA40 -> 0 | AIC41: =AIC5+AIC40 -> 0 | AIE41: =AIE5+AIE40 -> 0 | AIG41: =AIG5+AIG40 -> 0 | AII41: =AII5+AII40 -> 0 | AIK41: =AIK5+AIK40 -> 0 | AIM41: =AIM5+AIM40 -> 0 | AIO41: =AIO5+AIO40 -> 0 | AIQ41: =AIQ5+AIQ40 -> 0 | AIS41: =AIS5+AIS40 -> 0 | AIU41: =AIU5+AIU40 -> 0 | AIW41: =AIW5+AIW40 -> 0 | AIY41: =AIY5+AIY40 -> 0 | AJA41: =AJA5+AJA40 -> 0 | AJC41: =AJC5+AJC40 -> 0 | AJE41: =AJE5+AJE40 -> 0 | AJG41: =AJG5+AJG40 -> 0 | AJI41: =AJI5+AJI40 -> 0 | AJK41: =AJK5+AJK40 -> 0 | AJM41: =AJM5+AJM40 -> 0 | AJO41: =AJO5+AJO40 -> 0 | AJQ41: =AJQ5+AJQ40 -> 0 | AJS41: =AJS5+AJS40 -> 0 | AJU41: =AJU5+AJU40 -> 0 | AJW41: =AJW5+AJW40 -> 0 | AJY41: =AJY5+AJY40 -> 0 | AKA41: =AKA5+AKA40 -> 0 | AKC41: =AKC5+AKC40 -> 0 | AKE41: =AKE5+AKE40 -> 0 | AKG41: =AKG5+AKG40 -> 0 | AKI41: =AKI5+AKI40 -> 0 | AKK41: =AKK5+AKK40 -> 0 | AKM41: =AKM5+AKM40 -> 0 | AKO41: =AKO5+AKO40 -> 0 | AKQ41: =AKQ5+AKQ40 -> 0 | AKS41: =AKS5+AKS40 -> 0 | AKU41: =AKU5+AKU40 -> 0 | AKW41: =AKW5+AKW40 -> 0 | AKY41: =AKY5+AKY40 -> 0 | ALA41: =ALA5+ALA40 -> 0 | ALC41: =ALC5+ALC40 -> 0 | ALE41: =ALE5+ALE40 -> 0 | ALG41: =ALG5+ALG40 -> 0 | ALI41: =ALI5+ALI40 -> 0 | ALK41: =ALK5+ALK40 -> 0 | ALM41: =ALM5+ALM40 -> 0 | ALO41: =ALO5+ALO40 -> 0 | ALQ41: =ALQ5+ALQ40 -> 0 | ALS41: =ALS5+ALS40 -> 0 | ALU41: =ALU5+ALU40 -> 0 | ALW41: =ALW5+ALW40 -> 0 | ALY41: =ALY5+ALY40 -> 0 | AMA41: =AMA5+AMA40 -> 0 | AMC41: =AMC5+AMC40 -> 0 | AME41: =AME5+AME40 -> 0 | AMG41: =AMG5+AMG40 -> 0 | AMI41: =AMI5+AMI40 -> 0 | AMK41: =AMK5+AMK40 -> 0 | AMM41: =AMM5+AMM40 -> 0 | AMO41: =AMO5+AMO40 -> 0 | AMQ41: =AMQ5+AMQ40 -> 0 | AMS41: =AMS5+AMS40 -> 0 | AMU41: =AMU5+AMU40 -> 0 | AMW41: =AMW5+AMW40 -> 0 | AMY41: =AMY5+AMY40 -> 0 | ANA41: =ANA5+ANA40 -> 0 | ANC41: =ANC5+ANC40 -> 0 | ANE41: =ANE5+ANE40 -> 0 | ANG41: =ANG5+ANG40 -> 0 | ANI41: =ANI5+ANI40 -> 0 | ANK41: =ANK5+ANK40 -> 0 | ANM41: =ANM5+ANM40 -> 0 | ANO41: =ANO5+ANO40 -> 0 | ANQ41: =ANQ5+ANQ40 -> 0 | ANS41: =ANS5+ANS40 -> 0 | ANU41: =ANU5+ANU40 -> 0 | ANW41: =ANW5+ANW40 -> 0 | ANY41: =ANY5+ANY40 -> 0 | AOA41: =AOA5+AOA40 -> 0 | AOC41: =AOC5+AOC40 -> 0 | AOE41: =AOE5+AOE40 -> 0 | AOG41: =AOG5+AOG40 -> 0 | AOI41: =AOI5+AOI40 -> 0 | AOK41: =AOK5+AOK40 -> 0 | AOM41: =AOM5+AOM40 -> 0 | AOO41: =AOO5+AOO40 -> 0 | AOQ41: =AOQ5+AOQ40 -> 0 | AOS41: =AOS5+AOS40 -> 0 | AOU41: =AOU5+AOU40 -> 0 | AOW41: =AOW5+AOW40 -> 0 | AOY41: =AOY5+AOY40 -> 0 | APA41: =APA5+APA40 -> 0 | APC41: =APC5+APC40 -> 0 | APE41: =APE5+APE40 -> 0 | APG41: =APG5+APG40 -> 0 | API41: =API5+API40 -> 0 | APK41: =APK5+APK40 -> 0 | APM41: =APM5+APM40 -> 0 | APO41: =APO5+APO40 -> 0 | APQ41: =APQ5+APQ40 -> 0 | APS41: =APS5+APS40 -> 0 | APU41: =APU5+APU40 -> 0 | APW41: =APW5+APW40 -> 0 | APY41: =APY5+APY40 -> 0 | AQA41: =AQA5+AQA40 -> 0 | AQC41: =AQC5+AQC40 -> 0 | AQE41: =AQE5+AQE40 -> 0 | AQG41: =AQG5+AQG40 -> 0 | AQI41: =AQI5+AQI40 -> 0 | AQK41: =AQK5+AQK40 -> 0 | AQM41: =AQM5+AQM40 -> 0 | AQO41: =AQO5+AQO40 -> 0 | AQQ41: =AQQ5+AQQ40 -> 0 | AQS41: =AQS5+AQS40 -> 0 | AQU41: =AQU5+AQU40 -> 0 | AQW41: =AQW5+AQW40 -> 0 | AQY41: =AQY5+AQY40 -> 0 | ARA41: =ARA5+ARA40 -> 0 | ARC41: =ARC5+ARC40 -> 0 | ARE41: =ARE5+ARE40 -> 0 | ARG41: =ARG5+ARG40 -> 0 | ARI41: =ARI5+ARI40 -> 0 | ARK41: =ARK5+ARK40 -> 0 | ARM41: =ARM5+ARM40 -> 0 | ARO41: =ARO5+ARO40 -> 0 | ARQ41: =ARQ5+ARQ40 -> 0 | ARS41: =ARS5+ARS40 -> 0 | ARU41: =ARU5+ARU40 -> 0 | ARW41: =ARW5+ARW40 -> 0 | ARY41: =ARY5+ARY40 -> 0 | ASA41: =ASA5+ASA40 -> 0 | ASC41: =ASC5+ASC40 -> 0 | ASE41: =ASE5+ASE40 -> 0 | ASG41: =ASG5+ASG40 -> 0 | ASI41: =ASI5+ASI40 -> 0 | ASK41: =ASK5+ASK40 -> 0 | ASM41: =ASM5+ASM40 -> 0 | ASO41: =ASO5+ASO40 -> 0 | ASQ41: =ASQ5+ASQ40 -> 0 | ASS41: =ASS5+ASS40 -> 0 | ASU41: =ASU5+ASU40 -> 0 | ASW41: =ASW5+ASW40 -> 0 | ASY41: =ASY5+ASY40 -> 0 | ATA41: =ATA5+ATA40 -> 0 | ATC41: =ATC5+ATC40 -> 0 | ATE41: =ATE5+ATE40 -> 0 | ATG41: =ATG5+ATG40 -> 0 | ATI41: =ATI5+ATI40 -> 0 | ATK41: =ATK5+ATK40 -> 0 | ATM41: =ATM5+ATM40 -> 0 | ATO41: =ATO5+ATO40 -> 0 | ATQ41: =ATQ5+ATQ40 -> 0 | ATS41: =ATS5+ATS40 -> 0 | ATU41: =ATU5+ATU40 -> 0 | ATW41: =ATW5+ATW40 -> 0 | ATY41: =ATY5+ATY40 -> 0 | AUA41: =AUA5+AUA40 -> 0 | AUC41: =AUC5+AUC40 -> 0 | AUE41: =AUE5+AUE40 -> 0 | AUG41: =AUG5+AUG40 -> 0 | AUI41: =AUI5+AUI40 -> 0 | AUK41: =AUK5+AUK40 -> 0 | AUM41: =AUM5+AUM40 -> 0 | AUO41: =AUO5+AUO40 -> 0 | AUQ41: =AUQ5+AUQ40 -> 0 | AUS41: =AUS5+AUS40 -> 0 | AUU41: =AUU5+AUU40 -> 0 | AUW41: =AUW5+AUW40 -> 0 | AUY41: =AUY5+AUY40 -> 0 | AVA41: =AVA5+AVA40 -> 0 | AVC41: =AVC5+AVC40 -> 0 | AVE41: =AVE5+AVE40 -> 0 | AVG41: =AVG5+AVG40 -> 0 | AVI41: =AVI5+AVI40 -> 0 | AVK41: =AVK5+AVK40 -> 0 | AVM41: =AVM5+AVM40 -> 0 | AVO41: =AVO5+AVO40 -> 0 | AVQ41: =AVQ5+AVQ40 -> 0 | AVS41: =AVS5+AVS40 -> 0 | AVU41: =AVU5+AVU40 -> 0 | AVW41: =AVW5+AVW40 -> 0 | AVY41: =AVY5+AVY40 -> 0 | AWA41: =AWA5+AWA40 -> 0 | AWC41: =AWC5+AWC40 -> 0 | AWE41: =AWE5+AWE40 -> 0 | AWG41: =AWG5+AWG40 -> 0 | AWI41: =AWI5+AWI40 -> 0 | AWK41: =AWK5+AWK40 -> 0 | AWM41: =AWM5+AWM40 -> 0 | AWO41: =AWO5+AWO40 -> 0 | AWQ41: =AWQ5+AWQ40 -> 0 | AWS41: =AWS5+AWS40 -> 0 | AWU41: =AWU5+AWU40 -> 0 | AWW41: =AWW5+AWW40 -> 0 | AWY41: =AWY5+AWY40 -> 0 | AXA41: =AXA5+AXA40 -> 0 | AXC41: =AXC5+AXC40 -> 0 | AXE41: =AXE5+AXE40 -> 0 | AXG41: =AXG5+AXG40 -> 0 | AXI41: =AXI5+AXI40 -> 0 | AXK41: =AXK5+AXK40 -> 0 | AXM41: =AXM5+AXM40 -> 0 | AXO41: =AXO5+AXO40 -> 0 | AXQ41: =AXQ5+AXQ40 -> 0 | AXS41: =AXS5+AXS40 -> 0 | AXU41: =AXU5+AXU40 -> 0 | AXW41: =AXW5+AXW40 -> 0 | AXY41: =AXY5+AXY40 -> 0 | AYA41: =AYA5+AYA40 -> 0 | AYC41: =AYC5+AYC40 -> 0 | AYE41: =AYE5+AYE40 -> 0 | AYG41: =AYG5+AYG40 -> 0 | AYI41: =AYI5+AYI40 -> 0 | AYK41: =AYK5+AYK40 -> 0 | AYM41: =AYM5+AYM40 -> 0 | AYO41: =AYO5+AYO40 -> 0 | AYQ41: =AYQ5+AYQ40 -> 0 | AYS41: =AYS5+AYS40 -> 0 | AYU41: =AYU5+AYU40 -> 0 | AYW41: =AYW5+AYW40 -> 0 | AYY41: =AYY5+AYY40 -> 0 | AZA41: =AZA5+AZA40 -> 0 | AZC41: =AZC5+AZC40 -> 0 | AZE41: =AZE5+AZE40 -> 0 | AZG41: =AZG5+AZG40 -> 0 | AZI41: =AZI5+AZI40 -> 0 | AZK41: =AZK5+AZK40 -> 0 | AZM41: =AZM5+AZM40 -> 0 | AZO41: =AZO5+AZO40 -> 0 | AZQ41: =AZQ5+AZQ40 -> 0 | AZS41: =AZS5+AZS40 -> 0 | AZU41: =AZU5+AZU40 -> 0 | AZW41: =AZW5+AZW40 -> 0 | AZY41: =AZY5+AZY40 -> 0 | BAA41: =BAA5+BAA40 -> 0 | BAC41: =BAC5+BAC40 -> 0 | BAE41: =BAE5+BAE40 -> 0 | BAG41: =BAG5+BAG40 -> 0 | BAI41: =BAI5+BAI40 -> 0 | BAK41: =BAK5+BAK40 -> 0 | BAM41: =BAM5+BAM40 -> 0 | BAO41: =BAO5+BAO40 -> 0 | BAQ41: =BAQ5+BAQ40 -> 0 | BAS41: =BAS5+BAS40 -> 0 | BAU41: =BAU5+BAU40 -> 0 | BAW41: =BAW5+BAW40 -> 0 | BAY41: =BAY5+BAY40 -> 0 | BBA41: =BBA5+BBA40 -> 0 | BBC41: =BBC5+BBC40 -> 0 | BBE41: =BBE5+BBE40 -> 0 | BBG41: =BBG5+BBG40 -> 0 | BBI41: =BBI5+BBI40 -> 0 | BBK41: =BBK5+BBK40 -> 0 | BBM41: =BBM5+BBM40 -> 0 | BBO41: =BBO5+BBO40 -> 0 | BBQ41: =BBQ5+BBQ40 -> 0 | BBS41: =BBS5+BBS40 -> 0 | BBU41: =BBU5+BBU40 -> 0 | BBW41: =BBW5+BBW40 -> 0 | BBY41: =BBY5+BBY40 -> 0 | BCA41: =BCA5+BCA40 -> 0 | BCC41: =BCC5+BCC40 -> 0 | BCE41: =BCE5+BCE40 -> 0 | BCG41: =BCG5+BCG40 -> 0 | BCI41: =BCI5+BCI40 -> 0 | BCK41: =BCK5+BCK40 -> 0 | BCM41: =BCM5+BCM40 -> 0 | BCO41: =BCO5+BCO40 -> 0 | BCQ41: =BCQ5+BCQ40 -> 0 | BCS41: =BCS5+BCS40 -> 0 | BCU41: =BCU5+BCU40 -> 0 | BCW41: =BCW5+BCW40 -> 0 | BCY41: =BCY5+BCY40 -> 0 | BDA41: =BDA5+BDA40 -> 0 | BDC41: =BDC5+BDC40 -> 0 | BDE41: =BDE5+BDE40 -> 0 | BDG41: =BDG5+BDG40 -> 0 | BDI41: =BDI5+BDI40 -> 0 | BDK41: =BDK5+BDK40 -> 0 | BDM41: =BDM5+BDM40 -> 0 | BDO41: =BDO5+BDO40 -> 0 | BDQ41: =BDQ5+BDQ40 -> 0 | BDS41: =BDS5+BDS40 -> 0 | BDU41: =BDU5+BDU40 -> 0 | BDW41: =BDW5+BDW40 -> 0 | BDY41: =BDY5+BDY40 -> 0 | BEA41: =BEA5+BEA40 -> 0 | BEC41: =BEC5+BEC40 -> 0 | BEE41: =BEE5+BEE40 -> 0 | BEG41: =BEG5+BEG40 -> 0 | BEI41: =BEI5+BEI40 -> 0 | BEK41: =BEK5+BEK40 -> 0 | BEM41: =BEM5+BEM40 -> 0 | BEO41: =BEO5+BEO40 -> 0 | BEQ41: =BEQ5+BEQ40 -> 0 | BES41: =BES5+BES40 -> 0 | BEU41: =BEU5+BEU40 -> 0 | BEW41: =BEW5+BEW40 -> 0 | BEY41: =BEY5+BEY40 -> 0 | BFA41: =BFA5+BFA40 -> 0 | BFC41: =BFC5+BFC40 -> 0 | BFE41: =BFE5+BFE40 -> 0 | BFG41: =BFG5+BFG40 -> 0 | BFI41: =BFI5+BFI40 -> 0 | BFK41: =BFK5+BFK40 -> 0 | BFM41: =BFM5+BFM40 -> 0 | BFO41: =BFO5+BFO40 -> 0 | BFQ41: =BFQ5+BFQ40 -> 0 | BFS41: =BFS5+BFS40 -> 0 | BFU41: =BFU5+BFU40 -> 0 | BFW41: =BFW5+BFW40 -> 0 | BFY41: =BFY5+BFY40 -> 0 | BGA41: =BGA5+BGA40 -> 0 | BGC41: =BGC5+BGC40 -> 0 | BGE41: =BGE5+BGE40 -> 0 | BGG41: =BGG5+BGG40 -> 0 | BGI41: =BGI5+BGI40 -> 0 | BGK41: =BGK5+BGK40 -> 0 | BGM41: =BGM5+BGM40 -> 0 | BGO41: =BGO5+BGO40 -> 0 | BGQ41: =BGQ5+BGQ40 -> 0 | BGS41: =BGS5+BGS40 -> 0 | BGU41: =BGU5+BGU40 -> 0 | BGW41: =BGW5+BGW40 -> 0 | BGY41: =BGY5+BGY40 -> 0 | BHA41: =BHA5+BHA40 -> 0 | BHC41: =BHC5+BHC40 -> 0 | BHE41: =BHE5+BHE40 -> 0 | BHG41: =BHG5+BHG40 -> 0 | BHI41: =BHI5+BHI40 -> 0 | BHK41: =BHK5+BHK40 -> 0 | BHM41: =BHM5+BHM40 -> 0 | BHO41: =BHO5+BHO40 -> 0 | BHQ41: =BHQ5+BHQ40 -> 0 | BHS41: =BHS5+BHS40 -> 0 | BHU41: =BHU5+BHU40 -> 0 | BHW41: =BHW5+BHW40 -> 0 | BHY41: =BHY5+BHY40 -> 0 | BIA41: =BIA5+BIA40 -> 0 | BIC41: =BIC5+BIC40 -> 0 | BIE41: =BIE5+BIE40 -> 0 | BIG41: =BIG5+BIG40 -> 0 | BII41: =BII5+BII40 -> 0 | BIK41: =BIK5+BIK40 -> 0 | BIM41: =BIM5+BIM40 -> 0 | BIO41: =BIO5+BIO40 -> 0 | BIQ41: =BIQ5+BIQ40 -> 0 | BIS41: =BIS5+BIS40 -> 0 | BIU41: =BIU5+BIU40 -> 0 | BIW41: =BIW5+BIW40 -> 0 | BIY41: =BIY5+BIY40 -> 0 | BJA41: =BJA5+BJA40 -> 0 | BJC41: =BJC5+BJC40 -> 0 | BJE41: =BJE5+BJE40 -> 0 | BJG41: =BJG5+BJG40 -> 0 | BJI41: =BJI5+BJI40 -> 0 | BJK41: =BJK5+BJK40 -> 0 | BJM41: =BJM5+BJM40 -> 0 | BJO41: =BJO5+BJO40 -> 0 | BJQ41: =BJQ5+BJQ40 -> 0 | BJS41: =BJS5+BJS40 -> 0 | BJU41: =BJU5+BJU40 -> 0 | BJW41: =BJW5+BJW40 -> 0 | BJY41: =BJY5+BJY40 -> 0 | BKA41: =BKA5+BKA40 -> 0 | BKC41: =BKC5+BKC40 -> 0 | BKE41: =BKE5+BKE40 -> 0 | BKG41: =BKG5+BKG40 -> 0 | BKI41: =BKI5+BKI40 -> 0 | BKK41: =BKK5+BKK40 -> 0 | BKM41: =BKM5+BKM40 -> 0 | BKO41: =BKO5+BKO40 -> 0 | BKQ41: =BKQ5+BKQ40 -> 0 | BKS41: =BKS5+BKS40 -> 0 | BKU41: =BKU5+BKU40 -> 0 | BKW41: =BKW5+BKW40 -> 0 | BKY41: =BKY5+BKY40 -> 0 | BLA41: =BLA5+BLA40 -> 0 | BLC41: =BLC5+BLC40 -> 0 | BLE41: =BLE5+BLE40 -> 0 | BLG41: =BLG5+BLG40 -> 0 | BLI41: =BLI5+BLI40 -> 0 | BLK41: =BLK5+BLK40 -> 0 | BLM41: =BLM5+BLM40 -> 0 | BLO41: =BLO5+BLO40 -> 0 | BLQ41: =BLQ5+BLQ40 -> 0 | BLS41: =BLS5+BLS40 -> 0 | BLU41: =BLU5+BLU40 -> 0 | BLW41: =BLW5+BLW40 -> 0 | BLY41: =BLY5+BLY40 -> 0 | BMA41: =BMA5+BMA40 -> 0 | BMC41: =BMC5+BMC40 -> 0 | BME41: =BME5+BME40 -> 0 | BMG41: =BMG5+BMG40 -> 0 | BMI41: =BMI5+BMI40 -> 0 | BMK41: =BMK5+BMK40 -> 0 | BMM41: =BMM5+BMM40 -> 0 | BMO41: =BMO5+BMO40 -> 0 | BMQ41: =BMQ5+BMQ40 -> 0 | BMS41: =BMS5+BMS40 -> 0 | BMU41: =BMU5+BMU40 -> 0 | BMW41: =BMW5+BMW40 -> 0 | BMY41: =BMY5+BMY40 -> 0 | BNA41: =BNA5+BNA40 -> 0 | BNC41: =BNC5+BNC40 -> 0 | BNE41: =BNE5+BNE40 -> 0 | BNG41: =BNG5+BNG40 -> 0 | BNI41: =BNI5+BNI40 -> 0 | BNK41: =BNK5+BNK40 -> 0 | BNM41: =BNM5+BNM40 -> 0 | BNO41: =BNO5+BNO40 -> 0 | BNQ41: =BNQ5+BNQ40 -> 0 | BNS41: =BNS5+BNS40 -> 0 | BNU41: =BNU5+BNU40 -> 0 | BNW41: =BNW5+BNW40 -> 0 | BNY41: =BNY5+BNY40 -> 0 | BOA41: =BOA5+BOA40 -> 0 | BOC41: =BOC5+BOC40 -> 0 | BOE41: =BOE5+BOE40 -> 0 | BOG41: =BOG5+BOG40 -> 0 | BOI41: =BOI5+BOI40 -> 0 | BOK41: =BOK5+BOK40 -> 0 | BOM41: =BOM5+BOM40 -> 0 | BOO41: =BOO5+BOO40 -> 0 | BOQ41: =BOQ5+BOQ40 -> 0 | BOS41: =BOS5+BOS40 -> 0 | BOU41: =BOU5+BOU40 -> 0 | BOW41: =BOW5+BOW40 -> 0 | BOY41: =BOY5+BOY40 -> 0 | BPA41: =BPA5+BPA40 -> 0 | BPC41: =BPC5+BPC40 -> 0 | BPE41: =BPE5+BPE40 -> 0 | BPG41: =BPG5+BPG40 -> 0 | BPI41: =BPI5+BPI40 -> 0 | BPK41: =BPK5+BPK40 -> 0 | BPM41: =BPM5+BPM40 -> 0 | BPO41: =BPO5+BPO40 -> 0 | BPQ41: =BPQ5+BPQ40 -> 0 | BPS41: =BPS5+BPS40 -> 0 | BPU41: =BPU5+BPU40 -> 0 | BPW41: =BPW5+BPW40 -> 0 | BPY41: =BPY5+BPY40 -> 0 | BQA41: =BQA5+BQA40 -> 0 | BQC41: =BQC5+BQC40 -> 0 | BQE41: =BQE5+BQE40 -> 0 | BQG41: =BQG5+BQG40 -> 0 | BQI41: =BQI5+BQI40 -> 0 | BQK41: =BQK5+BQK40 -> 0 | BQM41: =BQM5+BQM40 -> 0 | BQO41: =BQO5+BQO40 -> 0 | BQQ41: =BQQ5+BQQ40 -> 0 | BQS41: =BQS5+BQS40 -> 0 | BQU41: =BQU5+BQU40 -> 0 | BQW41: =BQW5+BQW40 -> 0 | BQY41: =BQY5+BQY40 -> 0 | BRA41: =BRA5+BRA40 -> 0 | BRC41: =BRC5+BRC40 -> 0 | BRE41: =BRE5+BRE40 -> 0 | BRG41: =BRG5+BRG40 -> 0 | BRI41: =BRI5+BRI40 -> 0 | BRK41: =BRK5+BRK40 -> 0 | BRM41: =BRM5+BRM40 -> 0 | BRO41: =BRO5+BRO40 -> 0 | BRQ41: =BRQ5+BRQ40 -> 0 | BRS41: =BRS5+BRS40 -> 0 | BRU41: =BRU5+BRU40 -> 0 | BRW41: =BRW5+BRW40 -> 0 | BRY41: =BRY5+BRY40 -> 0 | BSA41: =BSA5+BSA40 -> 0 | BSC41: =BSC5+BSC40 -> 0 | BSE41: =BSE5+BSE40 -> 0 | BSG41: =BSG5+BSG40 -> 0 | BSI41: =BSI5+BSI40 -> 0 | BSK41: =BSK5+BSK40 -> 0 | BSM41: =BSM5+BSM40 -> 0 | BSO41: =BSO5+BSO40 -> 0 | BSQ41: =BSQ5+BSQ40 -> 0 | BSS41: =BSS5+BSS40 -> 0 | BSU41: =BSU5+BSU40 -> 0 | BSW41: =BSW5+BSW40 -> 0 | BSY41: =BSY5+BSY40 -> 0 | BTA41: =BTA5+BTA40 -> 0 | BTC41: =BTC5+BTC40 -> 0 | BTE41: =BTE5+BTE40 -> 0 | BTG41: =BTG5+BTG40 -> 0 | BTI41: =BTI5+BTI40 -> 0 | BTK41: =BTK5+BTK40 -> 0 | BTM41: =BTM5+BTM40 -> 0 | BTO41: =BTO5+BTO40 -> 0 | BTQ41: =BTQ5+BTQ40 -> 0 | BTS41: =BTS5+BTS40 -> 0 | BTU41: =BTU5+BTU40 -> 0 | BTW41: =BTW5+BTW40 -> 0 | BTY41: =BTY5+BTY40 -> 0 | BUA41: =BUA5+BUA40 -> 0 | BUC41: =BUC5+BUC40 -> 0 | BUE41: =BUE5+BUE40 -> 0 | BUG41: =BUG5+BUG40 -> 0 | BUI41: =BUI5+BUI40 -> 0 | BUK41: =BUK5+BUK40 -> 0 | BUM41: =BUM5+BUM40 -> 0 | BUO41: =BUO5+BUO40 -> 0 | BUQ41: =BUQ5+BUQ40 -> 0 | BUS41: =BUS5+BUS40 -> 0 | BUU41: =BUU5+BUU40 -> 0 | BUW41: =BUW5+BUW40 -> 0 | BUY41: =BUY5+BUY40 -> 0 | BVA41: =BVA5+BVA40 -> 0 | BVC41: =BVC5+BVC40 -> 0 | BVE41: =BVE5+BVE40 -> 0 | BVG41: =BVG5+BVG40 -> 0 | BVI41: =BVI5+BVI40 -> 0 | BVK41: =BVK5+BVK40 -> 0 | BVM41: =BVM5+BVM40 -> 0 | BVO41: =BVO5+BVO40 -> 0 | BVQ41: =BVQ5+BVQ40 -> 0 | BVS41: =BVS5+BVS40 -> 0 | BVU41: =BVU5+BVU40 -> 0 | BVW41: =BVW5+BVW40 -> 0 | BVY41: =BVY5+BVY40 -> 0 | BWA41: =BWA5+BWA40 -> 0 | BWC41: =BWC5+BWC40 -> 0 | BWE41: =BWE5+BWE40 -> 0 | BWG41: =BWG5+BWG40 -> 0 | BWI41: =BWI5+BWI40 -> 0 | BWK41: =BWK5+BWK40 -> 0 | BWM41: =BWM5+BWM40 -> 0 | BWO41: =BWO5+BWO40 -> 0 | BWQ41: =BWQ5+BWQ40 -> 0 | BWS41: =BWS5+BWS40 -> 0 | BWU41: =BWU5+BWU40 -> 0 | BWW41: =BWW5+BWW40 -> 0 | BWY41: =BWY5+BWY40 -> 0 | BXA41: =BXA5+BXA40 -> 0 | BXC41: =BXC5+BXC40 -> 0 | BXE41: =BXE5+BXE40 -> 0 | BXG41: =BXG5+BXG40 -> 0 | BXI41: =BXI5+BXI40 -> 0 | BXK41: =BXK5+BXK40 -> 0 | BXM41: =BXM5+BXM40 -> 0 | BXO41: =BXO5+BXO40 -> 0 | BXQ41: =BXQ5+BXQ40 -> 0 | BXS41: =BXS5+BXS40 -> 0 | BXU41: =BXU5+BXU40 -> 0 | BXW41: =BXW5+BXW40 -> 0 | BXY41: =BXY5+BXY40 -> 0 | BYA41: =BYA5+BYA40 -> 0 | BYC41: =BYC5+BYC40 -> 0 | BYE41: =BYE5+BYE40 -> 0 | BYG41: =BYG5+BYG40 -> 0 | BYI41: =BYI5+BYI40 -> 0 | BYK41: =BYK5+BYK40 -> 0 | BYM41: =BYM5+BYM40 -> 0 | BYO41: =BYO5+BYO40 -> 0 | BYQ41: =BYQ5+BYQ40 -> 0 | BYS41: =BYS5+BYS40 -> 0 | BYU41: =BYU5+BYU40 -> 0 | BYW41: =BYW5+BYW40 -> 0 | BYY41: =BYY5+BYY40 -> 0 | BZA41: =BZA5+BZA40 -> 0 | BZC41: =BZC5+BZC40 -> 0 | BZE41: =BZE5+BZE40 -> 0 | BZG41: =BZG5+BZG40 -> 0 | BZI41: =BZI5+BZI40 -> 0 | BZK41: =BZK5+BZK40 -> 0 | BZM41: =BZM5+BZM40 -> 0 | BZO41: =BZO5+BZO40 -> 0 | BZQ41: =BZQ5+BZQ40 -> 0 | BZS41: =BZS5+BZS40 -> 0 | BZU41: =BZU5+BZU40 -> 0 | BZW41: =BZW5+BZW40 -> 0 | BZY41: =BZY5+BZY40 -> 0 | CAA41: =CAA5+CAA40 -> 0 | CAC41: =CAC5+CAC40 -> 0 | CAE41: =CAE5+CAE40 -> 0 | CAG41: =CAG5+CAG40 -> 0 | CAI41: =CAI5+CAI40 -> 0 | CAK41: =CAK5+CAK40 -> 0 | CAM41: =CAM5+CAM40 -> 0 | CAO41: =CAO5+CAO40 -> 0 | CAQ41: =CAQ5+CAQ40 -> 0 | CAS41: =CAS5+CAS40 -> 0 | CAU41: =CAU5+CAU40 -> 0 | CAW41: =CAW5+CAW40 -> 0 | CAY41: =CAY5+CAY40 -> 0 | CBA41: =CBA5+CBA40 -> 0 | CBC41: =CBC5+CBC40 -> 0 | CBE41: =CBE5+CBE40 -> 0 | CBG41: =CBG5+CBG40 -> 0
A42: 3 | C42: 0 | E42: 0 | G42: 0 | I42: 0 | K42: 0 | M42: 0 | O42: 0 | Q42: 0 | S42: 0 | U42: 0 | W42: 0 | Y42: 0 | AA42: 0 | AC42: 0 | AE42: 0 | AG42: 0 | AI42: 0 | AK42: 0 | AM42: 0 | AO42: 0 | AQ42: 0 | AS42: 0 | AU42: 0 | AW42: 0 | AY42: 0 | BA42: 0 | BC42: 0 | BE42: 0 | BG42: 0 | BI42: 0 | BK42: 0 | BM42: 0 | BO42: 0 | BQ42: 0 | BS42: 0 | BU42: 0 | BW42: 0 | BY42: 0 | CA42: 0 | CC42: 0 | CE42: 0 | CG42: 0 | CI42: 0 | CK42: 0 | CM42: 0 | CO42: 0 | CQ42: 0 | CS42: 0 | CU42: 0 | CW42: 0 | CY42: 0 | DA42: 0 | DC42: 0 | DE42: 0 | DG42: 0 | DI42: 0 | DK42: 0 | DM42: 0 | DO42: 0 | DQ42: 0 | DS42: 0 | DU42: 0 | DW42: 0 | DY42: 0 | EA42: 0 | EC42: 0 | EE42: 0 | EG42: 0 | EI42: 0 | EK42: 0 | EM42: 0 | EO42: 0 | EQ42: 0 | ES42: 0 | EU42: 0 | EW42: 0 | EY42: 0 | FA42: 0 | FC42: 0 | FE42: 0 | FG42: 0 | FI42: 0 | FK42: 0 | FM42: 0 | FO42: 0 | FQ42: 0 | FS42: 0 | FU42: 0 | FW42: 0 | FY42: 0 | GA42: 0 | GC42: 0 | GE42: 0 | GG42: 0 | GI42: 0 | GK42: 0 | GM42: 0 | GO42: 0 | GQ42: 0 | GS42: 0 | GU42: 0 | GW42: 0 | GY42: 0 | HA42: 0 | HC42: 0 | HE42: 0 | HG42: 0 | HI42: 0 | HK42: 0 | HM42: 0 | HO42: 0 | HQ42: 0 | HS42: 0 | HU42: 0 | HW42: 0 | HY42: 0 | IA42: 0 | IC42: 0 | IE42: 0 | IG42: 0 | II42: 0 | IK42: 0 | IM42: 0 | IO42: 0 | IQ42: 0 | IS42: 0 | IU42: 0 | IW42: 0 | IY42: 0 | JA42: 0 | JC42: 0 | JE42: 0 | JG42: 0 | JI42: 0 | JK42: 0 | JM42: 0 | JO42: 0 | JQ42: 0 | JS42: 0 | JU42: 0 | JW42: 0 | JY42: 0 | KA42: 0 | KC42: 0 | KE42: 0 | KG42: 0 | KI42: 0 | KK42: 0 | KM42: 0 | KO42: 0 | KQ42: 0 | KS42: 0 | KU42: 0 | KW42: 0 | KY42: 0 | LA42: 0 | LC42: 0 | LE42: 0 | LG42: 0 | LI42: 0 | LK42: 0 | LM42: 0 | LO42: 0 | LQ42: 0 | LS42: 0 | LU42: 0 | LW42: 0 | LY42: 0 | MA42: 0 | MC42: 0 | ME42: 0 | MG42: 0 | MI42: 0 | MK42: 0 | MM42: 0 | MO42: 0 | MQ42: 0 | MS42: 0 | MU42: 0 | MW42: 0 | MY42: 0 | NA42: 0 | NC42: 0 | NE42: 0 | NG42: 0 | NI42: 0 | NK42: 0 | NM42: 0 | NO42: 0 | NQ42: 0 | NS42: 0 | NU42: 0 | NW42: 0 | NY42: 0 | OA42: 0 | OC42: 0 | OE42: 0 | OG42: 0 | OI42: 0 | OK42: 0 | OM42: 0 | OO42: 0 | OQ42: 0 | OS42: 0 | OU42: 0 | OW42: 0 | OY42: 0 | PA42: 0 | PC42: 0 | PE42: 0 | PG42: 0 | PI42: 0 | PK42: 0 | PM42: 0 | PO42: 0 | PQ42: 0 | PS42: 0 | PU42: 0 | PW42: 0 | PY42: 0 | QA42: 0 | QC42: 0 | QE42: 0 | QG42: 0 | QI42: 0 | QK42: 0 | QM42: 0 | QO42: 0 | QQ42: 0 | QS42: 0 | QU42: 0 | QW42: 0 | QY42: 0 | RA42: 0 | RC42: 0 | RE42: 0 | RG42: 0 | RI42: 0 | RK42: 0 | RM42: 0 | RO42: 0 | RQ42: 0 | RS42: 0 | RU42: 0 | RW42: 0 | RY42: 0 | SA42: 0 | SC42: 0 | SE42: 0 | SG42: 0 | SI42: 0 | SK42: 0 | SM42: 0 | SO42: 0 | SQ42: 0 | SS42: 0 | SU42: 0 | SW42: 0 | SY42: 0 | TA42: 0 | TC42: 0 | TE42: 0 | TG42: 0 | TI42: 0 | TK42: 0 | TM42: 0 | TO42: 0 | TQ42: 0 | TS42: 0 | TU42: 0 | TW42: 0 | TY42: 0 | UA42: 0 | UC42: 0 | UE42: 0 | UG42: 0 | UI42: 0 | UK42: 0 | UM42: 0 | UO42: 0 | UQ42: 0 | US42: 0 | UU42: 0 | UW42: 0 | UY42: 0 | VA42: 0 | VC42: 0 | VE42: 0 | VG42: 0 | VI42: 0 | VK42: 0 | VM42: 0 | VO42: 0 | VQ42: 0 | VS42: 0 | VU42: 0 | VW42: 0 | VY42: 0 | WA42: 0 | WC42: 0 | WE42: 0 | WG42: 0 | WI42: 0 | WK42: 0 | WM42: 0 | WO42: 0 | WQ42: 0 | WS42: 0 | WU42: 0 | WW42: 0 | WY42: 0 | XA42: 0 | XC42: 0 | XE42: 0 | XG42: 0 | XI42: 0 | XK42: 0 | XM42: 0 | XO42: 0 | XQ42: 0 | XS42: 0 | XU42: 0 | XW42: 0 | XY42: 0 | YA42: 0 | YC42: 0 | YE42: 0 | YG42: 0 | YI42: 0 | YK42: 0 | YM42: 0 | YO42: 0 | YQ42: 0 | YS42: 0 | YU42: 0 | YW42: 0 | YY42: 0 | ZA42: 0 | ZC42: 0 | ZE42: 0 | ZG42: 0 | ZI42: 0 | ZK42: 0 | ZM42: 0 | ZO42: 0 | ZQ42: 0 | ZS42: 0 | ZU42: 0 | ZW42: 0 | ZY42: 0 | AAA42: 0 | AAC42: 0 | AAE42: 0 | AAG42: 0 | AAI42: 0 | AAK42: 0 | AAM42: 0 | AAO42: 0 | AAQ42: 0 | AAS42: 0 | AAU42: 0 | AAW42: 0 | AAY42: 0 | ABA42: 0 | ABC42: 0 | ABE42: 0 | ABG42: 0 | ABI42: 0 | ABK42: 0 | ABM42: 0 | ABO42: 0 | ABQ42: 0 | ABS42: 0 | ABU42: 0 | ABW42: 0 | ABY42: 0 | ACA42: 0 | ACC42: 0 | ACE42: 0 | ACG42: 0 | ACI42: 0 | ACK42: 0 | ACM42: 0 | ACO42: 0 | ACQ42: 0 | ACS42: 0 | ACU42: 0 | ACW42: 0 | ACY42: 0 | ADA42: 0 | ADC42: 0 | ADE42: 0 | ADG42: 0 | ADI42: 0 | ADK42: 0 | ADM42: 0 | ADO42: 0 | ADQ42: 0 | ADS42: 0 | ADU42: 0 | ADW42: 0 | ADY42: 0 | AEA42: 0 | AEC42: 0 | AEE42: 0 | AEG42: 0 | AEI42: 0 | AEK42: 0 | AEM42: 0 | AEO42: 0 | AEQ42: 0 | AES42: 0 | AEU42: 0 | AEW42: 0 | AEY42: 0 | AFA42: 0 | AFC42: 0 | AFE42: 0 | AFG42: 0 | AFI42: 0 | AFK42: 0 | AFM42: 0 | AFO42: 0 | AFQ42: 0 | AFS42: 0 | AFU42: 0 | AFW42: 0 | AFY42: 0 | AGA42: 0 | AGC42: 0 | AGE42: 0 | AGG42: 0 | AGI42: 0 | AGK42: 0 | AGM42: 0 | AGO42: 0 | AGQ42: 0 | AGS42: 0 | AGU42: 0 | AGW42: 0 | AGY42: 0 | AHA42: 0 | AHC42: 0 | AHE42: 0 | AHG42: 0 | AHI42: 0 | AHK42: 0 | AHM42: 0 | AHO42: 0 | AHQ42: 0 | AHS42: 0 | AHU42: 0 | AHW42: 0 | AHY42: 0 | AIA42: 0 | AIC42: 0 | AIE42: 0 | AIG42: 0 | AII42: 0 | AIK42: 0 | AIM42: 0 | AIO42: 0 | AIQ42: 0 | AIS42: 0 | AIU42: 0 | AIW42: 0 | AIY42: 0 | AJA42: 0 | AJC42: 0 | AJE42: 0 | AJG42: 0 | AJI42: 0 | AJK42: 0 | AJM42: 0 | AJO42: 0 | AJQ42: 0 | AJS42: 0 | AJU42: 0 | AJW42: 0 | AJY42: 0 | AKA42: 0 | AKC42: 0 | AKE42: 0 | AKG42: 0 | AKI42: 0 | AKK42: 0 | AKM42: 0 | AKO42: 0 | AKQ42: 0 | AKS42: 0 | AKU42: 0 | AKW42: 0 | AKY42: 0 | ALA42: 0 | ALC42: 0 | ALE42: 0 | ALG42: 0 | ALI42: 0 | ALK42: 0 | ALM42: 0 | ALO42: 0 | ALQ42: 0 | ALS42: 0 | ALU42: 0 | ALW42: 0 | ALY42: 0 | AMA42: 0 | AMC42: 0 | AME42: 0 | AMG42: 0 | AMI42: 0 | AMK42: 0 | AMM42: 0 | AMO42: 0 | AMQ42: 0 | AMS42: 0 | AMU42: 0 | AMW42: 0 | AMY42: 0 | ANA42: 0 | ANC42: 0 | ANE42: 0 | ANG42: 0 | ANI42: 0 | ANK42: 0 | ANM42: 0 | ANO42: 0 | ANQ42: 0 | ANS42: 0 | ANU42: 0 | ANW42: 0 | ANY42: 0 | AOA42: 0 | AOC42: 0 | AOE42: 0 | AOG42: 0 | AOI42: 0 | AOK42: 0 | AOM42: 0 | AOO42: 0 | AOQ42: 0 | AOS42: 0 | AOU42: 0 | AOW42: 0 | AOY42: 0 | APA42: 0 | APC42: 0 | APE42: 0 | APG42: 0 | API42: 0 | APK42: 0 | APM42: 0 | APO42: 0 | APQ42: 0 | APS42: 0 | APU42: 0 | APW42: 0 | APY42: 0 | AQA42: 0 | AQC42: 0 | AQE42: 0 | AQG42: 0 | AQI42: 0 | AQK42: 0 | AQM42: 0 | AQO42: 0 | AQQ42: 0 | AQS42: 0 | AQU42: 0 | AQW42: 0 | AQY42: 0 | ARA42: 0 | ARC42: 0 | ARE42: 0 | ARG42: 0 | ARI42: 0 | ARK42: 0 | ARM42: 0 | ARO42: 0 | ARQ42: 0 | ARS42: 0 | ARU42: 0 | ARW42: 0 | ARY42: 0 | ASA42: 0 | ASC42: 0 | ASE42: 0 | ASG42: 0 | ASI42: 0 | ASK42: 0 | ASM42: 0 | ASO42: 0 | ASQ42: 0 | ASS42: 0 | ASU42: 0 | ASW42: 0 | ASY42: 0 | ATA42: 0 | ATC42: 0 | ATE42: 0 | ATG42: 0 | ATI42: 0 | ATK42: 0 | ATM42: 0 | ATO42: 0 | ATQ42: 0 | ATS42: 0 | ATU42: 0 | ATW42: 0 | ATY42: 0 | AUA42: 0 | AUC42: 0 | AUE42: 0 | AUG42: 0 | AUI42: 0 | AUK42: 0 | AUM42: 0 | AUO42: 0 | AUQ42: 0 | AUS42: 0 | AUU42: 0 | AUW42: 0 | AUY42: 0 | AVA42: 0 | AVC42: 0 | AVE42: 0 | AVG42: 0 | AVI42: 0 | AVK42: 0 | AVM42: 0 | AVO42: 0 | AVQ42: 0 | AVS42: 0 | AVU42: 0 | AVW42: 0 | AVY42: 0 | AWA42: 0 | AWC42: 0 | AWE42: 0 | AWG42: 0 | AWI42: 0 | AWK42: 0 | AWM42: 0 | AWO42: 0 | AWQ42: 0 | AWS42: 0 | AWU42: 0 | AWW42: 0 | AWY42: 0 | AXA42: 0 | AXC42: 0 | AXE42: 0 | AXG42: 0 | AXI42: 0 | AXK42: 0 | AXM42: 0 | AXO42: 0 | AXQ42: 0 | AXS42: 0 | AXU42: 0 | AXW42: 0 | AXY42: 0 | AYA42: 0 | AYC42: 0 | AYE42: 0 | AYG42: 0 | AYI42: 0 | AYK42: 0 | AYM42: 0 | AYO42: 0 | AYQ42: 0 | AYS42: 0 | AYU42: 0 | AYW42: 0 | AYY42: 0 | AZA42: 0 | AZC42: 0 | AZE42: 0 | AZG42: 0 | AZI42: 0 | AZK42: 0 | AZM42: 0 | AZO42: 0 | AZQ42: 0 | AZS42: 0 | AZU42: 0 | AZW42: 0 | AZY42: 0 | BAA42: 0 | BAC42: 0 | BAE42: 0 | BAG42: 0 | BAI42: 0 | BAK42: 0 | BAM42: 0 | BAO42: 0 | BAQ42: 0 | BAS42: 0 | BAU42: 0 | BAW42: 0 | BAY42: 0 | BBA42: 0 | BBC42: 0 | BBE42: 0 | BBG42: 0 | BBI42: 0 | BBK42: 0 | BBM42: 0 | BBO42: 0 | BBQ42: 0 | BBS42: 0 | BBU42: 0 | BBW42: 0 | BBY42: 0 | BCA42: 0 | BCC42: 0 | BCE42: 0 | BCG42: 0 | BCI42: 0 | BCK42: 0 | BCM42: 0 | BCO42: 0 | BCQ42: 0 | BCS42: 0 | BCU42: 0 | BCW42: 0 | BCY42: 0 | BDA42: 0 | BDC42: 0 | BDE42: 0 | BDG42: 0 | BDI42: 0 | BDK42: 0 | BDM42: 0 | BDO42: 0 | BDQ42: 0 | BDS42: 0 | BDU42: 0 | BDW42: 0 | BDY42: 0 | BEA42: 0 | BEC42: 0 | BEE42: 0 | BEG42: 0 | BEI42: 0 | BEK42: 0 | BEM42: 0 | BEO42: 0 | BEQ42: 0 | BES42: 0 | BEU42: 0 | BEW42: 0 | BEY42: 0 | BFA42: 0 | BFC42: 0 | BFE42: 0 | BFG42: 0 | BFI42: 0 | BFK42: 0 | BFM42: 0 | BFO42: 0 | BFQ42: 0 | BFS42: 0 | BFU42: 0 | BFW42: 0 | BFY42: 0 | BGA42: 0 | BGC42: 0 | BGE42: 0 | BGG42: 0 | BGI42: 0 | BGK42: 0 | BGM42: 0 | BGO42: 0 | BGQ42: 0 | BGS42: 0 | BGU42: 0 | BGW42: 0 | BGY42: 0 | BHA42: 0 | BHC42: 0 | BHE42: 0 | BHG42: 0 | BHI42: 0 | BHK42: 0 | BHM42: 0 | BHO42: 0 | BHQ42: 0 | BHS42: 0 | BHU42: 0 | BHW42: 0 | BHY42: 0 | BIA42: 0 | BIC42: 0 | BIE42: 0 | BIG42: 0 | BII42: 0 | BIK42: 0 | BIM42: 0 | BIO42: 0 | BIQ42: 0 | BIS42: 0 | BIU42: 0 | BIW42: 0 | BIY42: 0 | BJA42: 0 | BJC42: 0 | BJE42: 0 | BJG42: 0 | BJI42: 0 | BJK42: 0 | BJM42: 0 | BJO42: 0 | BJQ42: 0 | BJS42: 0 | BJU42: 0 | BJW42: 0 | BJY42: 0 | BKA42: 0 | BKC42: 0 | BKE42: 0 | BKG42: 0 | BKI42: 0 | BKK42: 0 | BKM42: 0 | BKO42: 0 | BKQ42: 0 | BKS42: 0 | BKU42: 0 | BKW42: 0 | BKY42: 0 | BLA42: 0 | BLC42: 0 | BLE42: 0 | BLG42: 0 | BLI42: 0 | BLK42: 0 | BLM42: 0 | BLO42: 0 | BLQ42: 0 | BLS42: 0 | BLU42: 0 | BLW42: 0 | BLY42: 0 | BMA42: 0 | BMC42: 0 | BME42: 0 | BMG42: 0 | BMI42: 0 | BMK42: 0 | BMM42: 0 | BMO42: 0 | BMQ42: 0 | BMS42: 0 | BMU42: 0 | BMW42: 0 | BMY42: 0 | BNA42: 0 | BNC42: 0 | BNE42: 0 | BNG42: 0 | BNI42: 0 | BNK42: 0 | BNM42: 0 | BNO42: 0 | BNQ42: 0 | BNS42: 0 | BNU42: 0 | BNW42: 0 | BNY42: 0 | BOA42: 0 | BOC42: 0 | BOE42: 0 | BOG42: 0 | BOI42: 0 | BOK42: 0 | BOM42: 0 | BOO42: 0 | BOQ42: 0 | BOS42: 0 | BOU42: 0 | BOW42: 0 | BOY42: 0 | BPA42: 0 | BPC42: 0 | BPE42: 0 | BPG42: 0 | BPI42: 0 | BPK42: 0 | BPM42: 0 | BPO42: 0 | BPQ42: 0 | BPS42: 0 | BPU42: 0 | BPW42: 0 | BPY42: 0 | BQA42: 0 | BQC42: 0 | BQE42: 0 | BQG42: 0 | BQI42: 0 | BQK42: 0 | BQM42: 0 | BQO42: 0 | BQQ42: 0 | BQS42: 0 | BQU42: 0 | BQW42: 0 | BQY42: 0 | BRA42: 0 | BRC42: 0 | BRE42: 0 | BRG42: 0 | BRI42: 0 | BRK42: 0 | BRM42: 0 | BRO42: 0 | BRQ42: 0 | BRS42: 0 | BRU42: 0 | BRW42: 0 | BRY42: 0 | BSA42: 0 | BSC42: 0 | BSE42: 0 | BSG42: 0 | BSI42: 0 | BSK42: 0 | BSM42: 0 | BSO42: 0 | BSQ42: 0 | BSS42: 0 | BSU42: 0 | BSW42: 0 | BSY42: 0 | BTA42: 0 | BTC42: 0 | BTE42: 0 | BTG42: 0 | BTI42: 0 | BTK42: 0 | BTM42: 0 | BTO42: 0 | BTQ42: 0 | BTS42: 0 | BTU42: 0 | BTW42: 0 | BTY42: 0 | BUA42: 0 | BUC42: 0 | BUE42: 0 | BUG42: 0 | BUI42: 0 | BUK42: 0 | BUM42: 0 | BUO42: 0 | BUQ42: 0 | BUS42: 0 | BUU42: 0 | BUW42: 0 | BUY42: 0 | BVA42: 0 | BVC42: 0 | BVE42: 0 | BVG42: 0 | BVI42: 0 | BVK42: 0 | BVM42: 0 | BVO42: 0 | BVQ42: 0 | BVS42: 0 | BVU42: 0 | BVW42: 0 | BVY42: 0 | BWA42: 0 | BWC42: 0 | BWE42: 0 | BWG42: 0 | BWI42: 0 | BWK42: 0 | BWM42: 0 | BWO42: 0 | BWQ42: 0 | BWS42: 0 | BWU42: 0 | BWW42: 0 | BWY42: 0 | BXA42: 0 | BXC42: 0 | BXE42: 0 | BXG42: 0 | BXI42: 0 | BXK42: 0 | BXM42: 0 | BXO42: 0 | BXQ42: 0 | BXS42: 0 | BXU42: 0 | BXW42: 0 | BXY42: 0 | BYA42: 0 | BYC42: 0 | BYE42: 0 | BYG42: 0 | BYI42: 0 | BYK42: 0 | BYM42: 0 | BYO42: 0 | BYQ42: 0 | BYS42: 0 | BYU42: 0 | BYW42: 0 | BYY42: 0 | BZA42: 0 | BZC42: 0 | BZE42: 0 | BZG42: 0 | BZI42: 0 | BZK42: 0 | BZM42: 0 | BZO42: 0 | BZQ42: 0 | BZS42: 0 | BZU42: 0 | BZW42: 0 | BZY42: 0 | CAA42: 0 | CAC42: 0 | CAE42: 0 | CAG42: 0 | CAI42: 0 | CAK42: 0 | CAM42: 0 | CAO42: 0 | CAQ42: 0 | CAS42: 0 | CAU42: 0 | CAW42: 0 | CAY42: 0 | CBA42: 0 | CBC42: 0 | CBE42: 0 | CBG42: 0
A43: 4 | C43: 0 | E43: 0 | G43: 0 | I43: 0 | K43: 0 | M43: 0 | O43: 0 | Q43: 0 | S43: 0 | U43: 0 | W43: 0 | Y43: 0 | AA43: 0 | AC43: 0 | AE43: 0 | AG43: 0 | AI43: 0 | AK43: 0 | AM43: 0 | AO43: 0 | AQ43: 0 | AS43: 0 | AU43: 0 | AW43: 0 | AY43: 0 | BA43: 0 | BC43: 0 | BE43: 0 | BG43: 0 | BI43: 0 | BK43: 0 | BM43: 0 | BO43: 0 | BQ43: 0 | BS43: 0 | BU43: 0 | BW43: 0 | BY43: 0 | CA43: 0 | CC43: 0 | CE43: 0 | CG43: 0 | CI43: 0 | CK43: 0 | CM43: 0 | CO43: 0 | CQ43: 0 | CS43: 0 | CU43: 0 | CW43: 0 | CY43: 0 | DA43: 0 | DC43: 0 | DE43: 0 | DG43: 0 | DI43: 0 | DK43: 0 | DM43: 0 | DO43: 0 | DQ43: 0 | DS43: 0 | DU43: 0 | DW43: 0 | DY43: 0 | EA43: 0 | EC43: 0 | EE43: 0 | EG43: 0 | EI43: 0 | EK43: 0 | EM43: 0 | EO43: 0 | EQ43: 0 | ES43: 0 | EU43: 0 | EW43: 0 | EY43: 0 | FA43: 0 | FC43: 0 | FE43: 0 | FG43: 0 | FI43: 0 | FK43: 0 | FM43: 0 | FO43: 0 | FQ43: 0 | FS43: 0 | FU43: 0 | FW43: 0 | FY43: 0 | GA43: 0 | GC43: 0 | GE43: 0 | GG43: 0 | GI43: 0 | GK43: 0 | GM43: 0 | GO43: 0 | GQ43: 0 | GS43: 0 | GU43: 0 | GW43: 0 | GY43: 0 | HA43: 0 | HC43: 0 | HE43: 0 | HG43: 0 | HI43: 0 | HK43: 0 | HM43: 0 | HO43: 0 | HQ43: 0 | HS43: 0 | HU43: 0 | HW43: 0 | HY43: 0 | IA43: 0 | IC43: 0 | IE43: 0 | IG43: 0 | II43: 0 | IK43: 0 | IM43: 0 | IO43: 0 | IQ43: 0 | IS43: 0 | IU43: 0 | IW43: 0 | IY43: 0 | JA43: 0 | JC43: 0 | JE43: 0 | JG43: 0 | JI43: 0 | JK43: 0 | JM43: 0 | JO43: 0 | JQ43: 0 | JS43: 0 | JU43: 0 | JW43: 0 | JY43: 0 | KA43: 0 | KC43: 0 | KE43: 0 | KG43: 0 | KI43: 0 | KK43: 0 | KM43: 0 | KO43: 0 | KQ43: 0 | KS43: 0 | KU43: 0 | KW43: 0 | KY43: 0 | LA43: 0 | LC43: 0 | LE43: 0 | LG43: 0 | LI43: 0 | LK43: 0 | LM43: 0 | LO43: 0 | LQ43: 0 | LS43: 0 | LU43: 0 | LW43: 0 | LY43: 0 | MA43: 0 | MC43: 0 | ME43: 0 | MG43: 0 | MI43: 0 | MK43: 0 | MM43: 0 | MO43: 0 | MQ43: 0 | MS43: 0 | MU43: 0 | MW43: 0 | MY43: 0 | NA43: 0 | NC43: 0 | NE43: 0 | NG43: 0 | NI43: 0 | NK43: 0 | NM43: 0 | NO43: 0 | NQ43: 0 | NS43: 0 | NU43: 0 | NW43: 0 | NY43: 0 | OA43: 0 | OC43: 0 | OE43: 0 | OG43: 0 | OI43: 0 | OK43: 0 | OM43: 0 | OO43: 0 | OQ43: 0 | OS43: 0 | OU43: 0 | OW43: 0 | OY43: 0 | PA43: 0 | PC43: 0 | PE43: 0 | PG43: 0 | PI43: 0 | PK43: 0 | PM43: 0 | PO43: 0 | PQ43: 0 | PS43: 0 | PU43: 0 | PW43: 0 | PY43: 0 | QA43: 0 | QC43: 0 | QE43: 0 | QG43: 0 | QI43: 0 | QK43: 0 | QM43: 0 | QO43: 0 | QQ43: 0 | QS43: 0 | QU43: 0 | QW43: 0 | QY43: 0 | RA43: 0 | RC43: 0 | RE43: 0 | RG43: 0 | RI43: 0 | RK43: 0 | RM43: 0 | RO43: 0 | RQ43: 0 | RS43: 0 | RU43: 0 | RW43: 0 | RY43: 0 | SA43: 0 | SC43: 0 | SE43: 0 | SG43: 0 | SI43: 0 | SK43: 0 | SM43: 0 | SO43: 0 | SQ43: 0 | SS43: 0 | SU43: 0 | SW43: 0 | SY43: 0 | TA43: 0 | TC43: 0 | TE43: 0 | TG43: 0 | TI43: 0 | TK43: 0 | TM43: 0 | TO43: 0 | TQ43: 0 | TS43: 0 | TU43: 0 | TW43: 0 | TY43: 0 | UA43: 0 | UC43: 0 | UE43: 0 | UG43: 0 | UI43: 0 | UK43: 0 | UM43: 0 | UO43: 0 | UQ43: 0 | US43: 0 | UU43: 0 | UW43: 0 | UY43: 0 | VA43: 0 | VC43: 0 | VE43: 0 | VG43: 0 | VI43: 0 | VK43: 0 | VM43: 0 | VO43: 0 | VQ43: 0 | VS43: 0 | VU43: 0 | VW43: 0 | VY43: 0 | WA43: 0 | WC43: 0 | WE43: 0 | WG43: 0 | WI43: 0 | WK43: 0 | WM43: 0 | WO43: 0 | WQ43: 0 | WS43: 0 | WU43: 0 | WW43: 0 | WY43: 0 | XA43: 0 | XC43: 0 | XE43: 0 | XG43: 0 | XI43: 0 | XK43: 0 | XM43: 0 | XO43: 0 | XQ43: 0 | XS43: 0 | XU43: 0 | XW43: 0 | XY43: 0 | YA43: 0 | YC43: 0 | YE43: 0 | YG43: 0 | YI43: 0 | YK43: 0 | YM43: 0 | YO43: 0 | YQ43: 0 | YS43: 0 | YU43: 0 | YW43: 0 | YY43: 0 | ZA43: 0 | ZC43: 0 | ZE43: 0 | ZG43: 0 | ZI43: 0 | ZK43: 0 | ZM43: 0 | ZO43: 0 | ZQ43: 0 | ZS43: 0 | ZU43: 0 | ZW43: 0 | ZY43: 0 | AAA43: 0 | AAC43: 0 | AAE43: 0 | AAG43: 0 | AAI43: 0 | AAK43: 0 | AAM43: 0 | AAO43: 0 | AAQ43: 0 | AAS43: 0 | AAU43: 0 | AAW43: 0 | AAY43: 0 | ABA43: 0 | ABC43: 0 | ABE43: 0 | ABG43: 0 | ABI43: 0 | ABK43: 0 | ABM43: 0 | ABO43: 0 | ABQ43: 0 | ABS43: 0 | ABU43: 0 | ABW43: 0 | ABY43: 0 | ACA43: 0 | ACC43: 0 | ACE43: 0 | ACG43: 0 | ACI43: 0 | ACK43: 0 | ACM43: 0 | ACO43: 0 | ACQ43: 0 | ACS43: 0 | ACU43: 0 | ACW43: 0 | ACY43: 0 | ADA43: 0 | ADC43: 0 | ADE43: 0 | ADG43: 0 | ADI43: 0 | ADK43: 0 | ADM43: 0 | ADO43: 0 | ADQ43: 0 | ADS43: 0 | ADU43: 0 | ADW43: 0 | ADY43: 0 | AEA43: 0 | AEC43: 0 | AEE43: 0 | AEG43: 0 | AEI43: 0 | AEK43: 0 | AEM43: 0 | AEO43: 0 | AEQ43: 0 | AES43: 0 | AEU43: 0 | AEW43: 0 | AEY43: 0 | AFA43: 0 | AFC43: 0 | AFE43: 0 | AFG43: 0 | AFI43: 0 | AFK43: 0 | AFM43: 0 | AFO43: 0 | AFQ43: 0 | AFS43: 0 | AFU43: 0 | AFW43: 0 | AFY43: 0 | AGA43: 0 | AGC43: 0 | AGE43: 0 | AGG43: 0 | AGI43: 0 | AGK43: 0 | AGM43: 0 | AGO43: 0 | AGQ43: 0 | AGS43: 0 | AGU43: 0 | AGW43: 0 | AGY43: 0 | AHA43: 0 | AHC43: 0 | AHE43: 0 | AHG43: 0 | AHI43: 0 | AHK43: 0 | AHM43: 0 | AHO43: 0 | AHQ43: 0 | AHS43: 0 | AHU43: 0 | AHW43: 0 | AHY43: 0 | AIA43: 0 | AIC43: 0 | AIE43: 0 | AIG43: 0 | AII43: 0 | AIK43: 0 | AIM43: 0 | AIO43: 0 | AIQ43: 0 | AIS43: 0 | AIU43: 0 | AIW43: 0 | AIY43: 0 | AJA43: 0 | AJC43: 0 | AJE43: 0 | AJG43: 0 | AJI43: 0 | AJK43: 0 | AJM43: 0 | AJO43: 0 | AJQ43: 0 | AJS43: 0 | AJU43: 0 | AJW43: 0 | AJY43: 0 | AKA43: 0 | AKC43: 0 | AKE43: 0 | AKG43: 0 | AKI43: 0 | AKK43: 0 | AKM43: 0 | AKO43: 0 | AKQ43: 0 | AKS43: 0 | AKU43: 0 | AKW43: 0 | AKY43: 0 | ALA43: 0 | ALC43: 0 | ALE43: 0 | ALG43: 0 | ALI43: 0 | ALK43: 0 | ALM43: 0 | ALO43: 0 | ALQ43: 0 | ALS43: 0 | ALU43: 0 | ALW43: 0 | ALY43: 0 | AMA43: 0 | AMC43: 0 | AME43: 0 | AMG43: 0 | AMI43: 0 | AMK43: 0 | AMM43: 0 | AMO43: 0 | AMQ43: 0 | AMS43: 0 | AMU43: 0 | AMW43: 0 | AMY43: 0 | ANA43: 0 | ANC43: 0 | ANE43: 0 | ANG43: 0 | ANI43: 0 | ANK43: 0 | ANM43: 0 | ANO43: 0 | ANQ43: 0 | ANS43: 0 | ANU43: 0 | ANW43: 0 | ANY43: 0 | AOA43: 0 | AOC43: 0 | AOE43: 0 | AOG43: 0 | AOI43: 0 | AOK43: 0 | AOM43: 0 | AOO43: 0 | AOQ43: 0 | AOS43: 0 | AOU43: 0 | AOW43: 0 | AOY43: 0 | APA43: 0 | APC43: 0 | APE43: 0 | APG43: 0 | API43: 0 | APK43: 0 | APM43: 0 | APO43: 0 | APQ43: 0 | APS43: 0 | APU43: 0 | APW43: 0 | APY43: 0 | AQA43: 0 | AQC43: 0 | AQE43: 0 | AQG43: 0 | AQI43: 0 | AQK43: 0 | AQM43: 0 | AQO43: 0 | AQQ43: 0 | AQS43: 0 | AQU43: 0 | AQW43: 0 | AQY43: 0 | ARA43: 0 | ARC43: 0 | ARE43: 0 | ARG43: 0 | ARI43: 0 | ARK43: 0 | ARM43: 0 | ARO43: 0 | ARQ43: 0 | ARS43: 0 | ARU43: 0 | ARW43: 0 | ARY43: 0 | ASA43: 0 | ASC43: 0 | ASE43: 0 | ASG43: 0 | ASI43: 0 | ASK43: 0 | ASM43: 0 | ASO43: 0 | ASQ43: 0 | ASS43: 0 | ASU43: 0 | ASW43: 0 | ASY43: 0 | ATA43: 0 | ATC43: 0 | ATE43: 0 | ATG43: 0 | ATI43: 0 | ATK43: 0 | ATM43: 0 | ATO43: 0 | ATQ43: 0 | ATS43: 0 | ATU43: 0 | ATW43: 0 | ATY43: 0 | AUA43: 0 | AUC43: 0 | AUE43: 0 | AUG43: 0 | AUI43: 0 | AUK43: 0 | AUM43: 0 | AUO43: 0 | AUQ43: 0 | AUS43: 0 | AUU43: 0 | AUW43: 0 | AUY43: 0 | AVA43: 0 | AVC43: 0 | AVE43: 0 | AVG43: 0 | AVI43: 0 | AVK43: 0 | AVM43: 0 | AVO43: 0 | AVQ43: 0 | AVS43: 0 | AVU43: 0 | AVW43: 0 | AVY43: 0 | AWA43: 0 | AWC43: 0 | AWE43: 0 | AWG43: 0 | AWI43: 0 | AWK43: 0 | AWM43: 0 | AWO43: 0 | AWQ43: 0 | AWS43: 0 | AWU43: 0 | AWW43: 0 | AWY43: 0 | AXA43: 0 | AXC43: 0 | AXE43: 0 | AXG43: 0 | AXI43: 0 | AXK43: 0 | AXM43: 0 | AXO43: 0 | AXQ43: 0 | AXS43: 0 | AXU43: 0 | AXW43: 0 | AXY43: 0 | AYA43: 0 | AYC43: 0 | AYE43: 0 | AYG43: 0 | AYI43: 0 | AYK43: 0 | AYM43: 0 | AYO43: 0 | AYQ43: 0 | AYS43: 0 | AYU43: 0 | AYW43: 0 | AYY43: 0 | AZA43: 0 | AZC43: 0 | AZE43: 0 | AZG43: 0 | AZI43: 0 | AZK43: 0 | AZM43: 0 | AZO43: 0 | AZQ43: 0 | AZS43: 0 | AZU43: 0 | AZW43: 0 | AZY43: 0 | BAA43: 0 | BAC43: 0 | BAE43: 0 | BAG43: 0 | BAI43: 0 | BAK43: 0 | BAM43: 0 | BAO43: 0 | BAQ43: 0 | BAS43: 0 | BAU43: 0 | BAW43: 0 | BAY43: 0 | BBA43: 0 | BBC43: 0 | BBE43: 0 | BBG43: 0 | BBI43: 0 | BBK43: 0 | BBM43: 0 | BBO43: 0 | BBQ43: 0 | BBS43: 0 | BBU43: 0 | BBW43: 0 | BBY43: 0 | BCA43: 0 | BCC43: 0 | BCE43: 0 | BCG43: 0 | BCI43: 0 | BCK43: 0 | BCM43: 0 | BCO43: 0 | BCQ43: 0 | BCS43: 0 | BCU43: 0 | BCW43: 0 | BCY43: 0 | BDA43: 0 | BDC43: 0 | BDE43: 0 | BDG43: 0 | BDI43: 0 | BDK43: 0 | BDM43: 0 | BDO43: 0 | BDQ43: 0 | BDS43: 0 | BDU43: 0 | BDW43: 0 | BDY43: 0 | BEA43: 0 | BEC43: 0 | BEE43: 0 | BEG43: 0 | BEI43: 0 | BEK43: 0 | BEM43: 0 | BEO43: 0 | BEQ43: 0 | BES43: 0 | BEU43: 0 | BEW43: 0 | BEY43: 0 | BFA43: 0 | BFC43: 0 | BFE43: 0 | BFG43: 0 | BFI43: 0 | BFK43: 0 | BFM43: 0 | BFO43: 0 | BFQ43: 0 | BFS43: 0 | BFU43: 0 | BFW43: 0 | BFY43: 0 | BGA43: 0 | BGC43: 0 | BGE43: 0 | BGG43: 0 | BGI43: 0 | BGK43: 0 | BGM43: 0 | BGO43: 0 | BGQ43: 0 | BGS43: 0 | BGU43: 0 | BGW43: 0 | BGY43: 0 | BHA43: 0 | BHC43: 0 | BHE43: 0 | BHG43: 0 | BHI43: 0 | BHK43: 0 | BHM43: 0 | BHO43: 0 | BHQ43: 0 | BHS43: 0 | BHU43: 0 | BHW43: 0 | BHY43: 0 | BIA43: 0 | BIC43: 0 | BIE43: 0 | BIG43: 0 | BII43: 0 | BIK43: 0 | BIM43: 0 | BIO43: 0 | BIQ43: 0 | BIS43: 0 | BIU43: 0 | BIW43: 0 | BIY43: 0 | BJA43: 0 | BJC43: 0 | BJE43: 0 | BJG43: 0 | BJI43: 0 | BJK43: 0 | BJM43: 0 | BJO43: 0 | BJQ43: 0 | BJS43: 0 | BJU43: 0 | BJW43: 0 | BJY43: 0 | BKA43: 0 | BKC43: 0 | BKE43: 0 | BKG43: 0 | BKI43: 0 | BKK43: 0 | BKM43: 0 | BKO43: 0 | BKQ43: 0 | BKS43: 0 | BKU43: 0 | BKW43: 0 | BKY43: 0 | BLA43: 0 | BLC43: 0 | BLE43: 0 | BLG43: 0 | BLI43: 0 | BLK43: 0 | BLM43: 0 | BLO43: 0 | BLQ43: 0 | BLS43: 0 | BLU43: 0 | BLW43: 0 | BLY43: 0 | BMA43: 0 | BMC43: 0 | BME43: 0 | BMG43: 0 | BMI43: 0 | BMK43: 0 | BMM43: 0 | BMO43: 0 | BMQ43: 0 | BMS43: 0 | BMU43: 0 | BMW43: 0 | BMY43: 0 | BNA43: 0 | BNC43: 0 | BNE43: 0 | BNG43: 0 | BNI43: 0 | BNK43: 0 | BNM43: 0 | BNO43: 0 | BNQ43: 0 | BNS43: 0 | BNU43: 0 | BNW43: 0 | BNY43: 0 | BOA43: 0 | BOC43: 0 | BOE43: 0 | BOG43: 0 | BOI43: 0 | BOK43: 0 | BOM43: 0 | BOO43: 0 | BOQ43: 0 | BOS43: 0 | BOU43: 0 | BOW43: 0 | BOY43: 0 | BPA43: 0 | BPC43: 0 | BPE43: 0 | BPG43: 0 | BPI43: 0 | BPK43: 0 | BPM43: 0 | BPO43: 0 | BPQ43: 0 | BPS43: 0 | BPU43: 0 | BPW43: 0 | BPY43: 0 | BQA43: 0 | BQC43: 0 | BQE43: 0 | BQG43: 0 | BQI43: 0 | BQK43: 0 | BQM43: 0 | BQO43: 0 | BQQ43: 0 | BQS43: 0 | BQU43: 0 | BQW43: 0 | BQY43: 0 | BRA43: 0 | BRC43: 0 | BRE43: 0 | BRG43: 0 | BRI43: 0 | BRK43: 0 | BRM43: 0 | BRO43: 0 | BRQ43: 0 | BRS43: 0 | BRU43: 0 | BRW43: 0 | BRY43: 0 | BSA43: 0 | BSC43: 0 | BSE43: 0 | BSG43: 0 | BSI43: 0 | BSK43: 0 | BSM43: 0 | BSO43: 0 | BSQ43: 0 | BSS43: 0 | BSU43: 0 | BSW43: 0 | BSY43: 0 | BTA43: 0 | BTC43: 0 | BTE43: 0 | BTG43: 0 | BTI43: 0 | BTK43: 0 | BTM43: 0 | BTO43: 0 | BTQ43: 0 | BTS43: 0 | BTU43: 0 | BTW43: 0 | BTY43: 0 | BUA43: 0 | BUC43: 0 | BUE43: 0 | BUG43: 0 | BUI43: 0 | BUK43: 0 | BUM43: 0 | BUO43: 0 | BUQ43: 0 | BUS43: 0 | BUU43: 0 | BUW43: 0 | BUY43: 0 | BVA43: 0 | BVC43: 0 | BVE43: 0 | BVG43: 0 | BVI43: 0 | BVK43: 0 | BVM43: 0 | BVO43: 0 | BVQ43: 0 | BVS43: 0 | BVU43: 0 | BVW43: 0 | BVY43: 0 | BWA43: 0 | BWC43: 0 | BWE43: 0 | BWG43: 0 | BWI43: 0 | BWK43: 0 | BWM43: 0 | BWO43: 0 | BWQ43: 0 | BWS43: 0 | BWU43: 0 | BWW43: 0 | BWY43: 0 | BXA43: 0 | BXC43: 0 | BXE43: 0 | BXG43: 0 | BXI43: 0 | BXK43: 0 | BXM43: 0 | BXO43: 0 | BXQ43: 0 | BXS43: 0 | BXU43: 0 | BXW43: 0 | BXY43: 0 | BYA43: 0 | BYC43: 0 | BYE43: 0 | BYG43: 0 | BYI43: 0 | BYK43: 0 | BYM43: 0 | BYO43: 0 | BYQ43: 0 | BYS43: 0 | BYU43: 0 | BYW43: 0 | BYY43: 0 | BZA43: 0 | BZC43: 0 | BZE43: 0 | BZG43: 0 | BZI43: 0 | BZK43: 0 | BZM43: 0 | BZO43: 0 | BZQ43: 0 | BZS43: 0 | BZU43: 0 | BZW43: 0 | BZY43: 0 | CAA43: 0 | CAC43: 0 | CAE43: 0 | CAG43: 0 | CAI43: 0 | CAK43: 0 | CAM43: 0 | CAO43: 0 | CAQ43: 0 | CAS43: 0 | CAU43: 0 | CAW43: 0 | CAY43: 0 | CBA43: 0 | CBC43: 0 | CBE43: 0 | CBG43: 0
A44: 5 | C44: 0 | E44: 0 | G44: 0 | I44: 0 | K44: 0 | M44: 0 | O44: 0 | Q44: 0 | S44: 0 | U44: 0 | W44: 0 | Y44: 0 | AA44: 0 | AC44: 0 | AE44: 0 | AG44: 0 | AI44: 0 | AK44: 0 | AM44: 0 | AO44: 0 | AQ44: 0 | AS44: 0 | AU44: 0 | AW44: 0 | AY44: 0 | BA44: 0 | BC44: 0 | BE44: 0 | BG44: 0 | BI44: 0 | BK44: 0 | BM44: 0 | BO44: 0 | BQ44: 0 | BS44: 0 | BU44: 0 | BW44: 0 | BY44: 0 | CA44: 0 | CC44: 0 | CE44: 0 | CG44: 0 | CI44: 0 | CK44: 0 | CM44: 0 | CO44: 0 | CQ44: 0 | CS44: 0 | CU44: 0 | CW44: 0 | CY44: 0 | DA44: 0 | DC44: 0 | DE44: 0 | DG44: 0 | DI44: 0 | DK44: 0 | DM44: 0 | DO44: 0 | DQ44: 0 | DS44: 0 | DU44: 0 | DW44: 0 | DY44: 0 | EA44: 0 | EC44: 0 | EE44: 0 | EG44: 0 | EI44: 0 | EK44: 0 | EM44: 0 | EO44: 0 | EQ44: 0 | ES44: 0 | EU44: 0 | EW44: 0 | EY44: 0 | FA44: 0 | FC44: 0 | FE44: 0 | FG44: 0 | FI44: 0 | FK44: 0 | FM44: 0 | FO44: 0 | FQ44: 0 | FS44: 0 | FU44: 0 | FW44: 0 | FY44: 0 | GA44: 0 | GC44: 0 | GE44: 0 | GG44: 0 | GI44: 0 | GK44: 0 | GM44: 0 | GO44: 0 | GQ44: 0 | GS44: 0 | GU44: 0 | GW44: 0 | GY44: 0 | HA44: 0 | HC44: 0 | HE44: 0 | HG44: 0 | HI44: 0 | HK44: 0 | HM44: 0 | HO44: 0 | HQ44: 0 | HS44: 0 | HU44: 0 | HW44: 0 | HY44: 0 | IA44: 0 | IC44: 0 | IE44: 0 | IG44: 0 | II44: 0 | IK44: 0 | IM44: 0 | IO44: 0 | IQ44: 0 | IS44: 0 | IU44: 0 | IW44: 0 | IY44: 0 | JA44: 0 | JC44: 0 | JE44: 0 | JG44: 0 | JI44: 0 | JK44: 0 | JM44: 0 | JO44: 0 | JQ44: 0 | JS44: 0 | JU44: 0 | JW44: 0 | JY44: 0 | KA44: 0 | KC44: 0 | KE44: 0 | KG44: 0 | KI44: 0 | KK44: 0 | KM44: 0 | KO44: 0 | KQ44: 0 | KS44: 0 | KU44: 0 | KW44: 0 | KY44: 0 | LA44: 0 | LC44: 0 | LE44: 0 | LG44: 0 | LI44: 0 | LK44: 0 | LM44: 0 | LO44: 0 | LQ44: 0 | LS44: 0 | LU44: 0 | LW44: 0 | LY44: 0 | MA44: 0 | MC44: 0 | ME44: 0 | MG44: 0 | MI44: 0 | MK44: 0 | MM44: 0 | MO44: 0 | MQ44: 0 | MS44: 0 | MU44: 0 | MW44: 0 | MY44: 0 | NA44: 0 | NC44: 0 | NE44: 0 | NG44: 0 | NI44: 0 | NK44: 0 | NM44: 0 | NO44: 0 | NQ44: 0 | NS44: 0 | NU44: 0 | NW44: 0 | NY44: 0 | OA44: 0 | OC44: 0 | OE44: 0 | OG44: 0 | OI44: 0 | OK44: 0 | OM44: 0 | OO44: 0 | OQ44: 0 | OS44: 0 | OU44: 0 | OW44: 0 | OY44: 0 | PA44: 0 | PC44: 0 | PE44: 0 | PG44: 0 | PI44: 0 | PK44: 0 | PM44: 0 | PO44: 0 | PQ44: 0 | PS44: 0 | PU44: 0 | PW44: 0 | PY44: 0 | QA44: 0 | QC44: 0 | QE44: 0 | QG44: 0 | QI44: 0 | QK44: 0 | QM44: 0 | QO44: 0 | QQ44: 0 | QS44: 0 | QU44: 0 | QW44: 0 | QY44: 0 | RA44: 0 | RC44: 0 | RE44: 0 | RG44: 0 | RI44: 0 | RK44: 0 | RM44: 0 | RO44: 0 | RQ44: 0 | RS44: 0 | RU44: 0 | RW44: 0 | RY44: 0 | SA44: 0 | SC44: 0 | SE44: 0 | SG44: 0 | SI44: 0 | SK44: 0 | SM44: 0 | SO44: 0 | SQ44: 0 | SS44: 0 | SU44: 0 | SW44: 0 | SY44: 0 | TA44: 0 | TC44: 0 | TE44: 0 | TG44: 0 | TI44: 0 | TK44: 0 | TM44: 0 | TO44: 0 | TQ44: 0 | TS44: 0 | TU44: 0 | TW44: 0 | TY44: 0 | UA44: 0 | UC44: 0 | UE44: 0 | UG44: 0 | UI44: 0 | UK44: 0 | UM44: 0 | UO44: 0 | UQ44: 0 | US44: 0 | UU44: 0 | UW44: 0 | UY44: 0 | VA44: 0 | VC44: 0 | VE44: 0 | VG44: 0 | VI44: 0 | VK44: 0 | VM44: 0 | VO44: 0 | VQ44: 0 | VS44: 0 | VU44: 0 | VW44: 0 | VY44: 0 | WA44: 0 | WC44: 0 | WE44: 0 | WG44: 0 | WI44: 0 | WK44: 0 | WM44: 0 | WO44: 0 | WQ44: 0 | WS44: 0 | WU44: 0 | WW44: 0 | WY44: 0 | XA44: 0 | XC44: 0 | XE44: 0 | XG44: 0 | XI44: 0 | XK44: 0 | XM44: 0 | XO44: 0 | XQ44: 0 | XS44: 0 | XU44: 0 | XW44: 0 | XY44: 0 | YA44: 0 | YC44: 0 | YE44: 0 | YG44: 0 | YI44: 0 | YK44: 0 | YM44: 0 | YO44: 0 | YQ44: 0 | YS44: 0 | YU44: 0 | YW44: 0 | YY44: 0 | ZA44: 0 | ZC44: 0 | ZE44: 0 | ZG44: 0 | ZI44: 0 | ZK44: 0 | ZM44: 0 | ZO44: 0 | ZQ44: 0 | ZS44: 0 | ZU44: 0 | ZW44: 0 | ZY44: 0 | AAA44: 0 | AAC44: 0 | AAE44: 0 | AAG44: 0 | AAI44: 0 | AAK44: 0 | AAM44: 0 | AAO44: 0 | AAQ44: 0 | AAS44: 0 | AAU44: 0 | AAW44: 0 | AAY44: 0 | ABA44: 0 | ABC44: 0 | ABE44: 0 | ABG44: 0 | ABI44: 0 | ABK44: 0 | ABM44: 0 | ABO44: 0 | ABQ44: 0 | ABS44: 0 | ABU44: 0 | ABW44: 0 | ABY44: 0 | ACA44: 0 | ACC44: 0 | ACE44: 0 | ACG44: 0 | ACI44: 0 | ACK44: 0 | ACM44: 0 | ACO44: 0 | ACQ44: 0 | ACS44: 0 | ACU44: 0 | ACW44: 0 | ACY44: 0 | ADA44: 0 | ADC44: 0 | ADE44: 0 | ADG44: 0 | ADI44: 0 | ADK44: 0 | ADM44: 0 | ADO44: 0 | ADQ44: 0 | ADS44: 0 | ADU44: 0 | ADW44: 0 | ADY44: 0 | AEA44: 0 | AEC44: 0 | AEE44: 0 | AEG44: 0 | AEI44: 0 | AEK44: 0 | AEM44: 0 | AEO44: 0 | AEQ44: 0 | AES44: 0 | AEU44: 0 | AEW44: 0 | AEY44: 0 | AFA44: 0 | AFC44: 0 | AFE44: 0 | AFG44: 0 | AFI44: 0 | AFK44: 0 | AFM44: 0 | AFO44: 0 | AFQ44: 0 | AFS44: 0 | AFU44: 0 | AFW44: 0 | AFY44: 0 | AGA44: 0 | AGC44: 0 | AGE44: 0 | AGG44: 0 | AGI44: 0 | AGK44: 0 | AGM44: 0 | AGO44: 0 | AGQ44: 0 | AGS44: 0 | AGU44: 0 | AGW44: 0 | AGY44: 0 | AHA44: 0 | AHC44: 0 | AHE44: 0 | AHG44: 0 | AHI44: 0 | AHK44: 0 | AHM44: 0 | AHO44: 0 | AHQ44: 0 | AHS44: 0 | AHU44: 0 | AHW44: 0 | AHY44: 0 | AIA44: 0 | AIC44: 0 | AIE44: 0 | AIG44: 0 | AII44: 0 | AIK44: 0 | AIM44: 0 | AIO44: 0 | AIQ44: 0 | AIS44: 0 | AIU44: 0 | AIW44: 0 | AIY44: 0 | AJA44: 0 | AJC44: 0 | AJE44: 0 | AJG44: 0 | AJI44: 0 | AJK44: 0 | AJM44: 0 | AJO44: 0 | AJQ44: 0 | AJS44: 0 | AJU44: 0 | AJW44: 0 | AJY44: 0 | AKA44: 0 | AKC44: 0 | AKE44: 0 | AKG44: 0 | AKI44: 0 | AKK44: 0 | AKM44: 0 | AKO44: 0 | AKQ44: 0 | AKS44: 0 | AKU44: 0 | AKW44: 0 | AKY44: 0 | ALA44: 0 | ALC44: 0 | ALE44: 0 | ALG44: 0 | ALI44: 0 | ALK44: 0 | ALM44: 0 | ALO44: 0 | ALQ44: 0 | ALS44: 0 | ALU44: 0 | ALW44: 0 | ALY44: 0 | AMA44: 0 | AMC44: 0 | AME44: 0 | AMG44: 0 | AMI44: 0 | AMK44: 0 | AMM44: 0 | AMO44: 0 | AMQ44: 0 | AMS44: 0 | AMU44: 0 | AMW44: 0 | AMY44: 0 | ANA44: 0 | ANC44: 0 | ANE44: 0 | ANG44: 0 | ANI44: 0 | ANK44: 0 | ANM44: 0 | ANO44: 0 | ANQ44: 0 | ANS44: 0 | ANU44: 0 | ANW44: 0 | ANY44: 0 | AOA44: 0 | AOC44: 0 | AOE44: 0 | AOG44: 0 | AOI44: 0 | AOK44: 0 | AOM44: 0 | AOO44: 0 | AOQ44: 0 | AOS44: 0 | AOU44: 0 | AOW44: 0 | AOY44: 0 | APA44: 0 | APC44: 0 | APE44: 0 | APG44: 0 | API44: 0 | APK44: 0 | APM44: 0 | APO44: 0 | APQ44: 0 | APS44: 0 | APU44: 0 | APW44: 0 | APY44: 0 | AQA44: 0 | AQC44: 0 | AQE44: 0 | AQG44: 0 | AQI44: 0 | AQK44: 0 | AQM44: 0 | AQO44: 0 | AQQ44: 0 | AQS44: 0 | AQU44: 0 | AQW44: 0 | AQY44: 0 | ARA44: 0 | ARC44: 0 | ARE44: 0 | ARG44: 0 | ARI44: 0 | ARK44: 0 | ARM44: 0 | ARO44: 0 | ARQ44: 0 | ARS44: 0 | ARU44: 0 | ARW44: 0 | ARY44: 0 | ASA44: 0 | ASC44: 0 | ASE44: 0 | ASG44: 0 | ASI44: 0 | ASK44: 0 | ASM44: 0 | ASO44: 0 | ASQ44: 0 | ASS44: 0 | ASU44: 0 | ASW44: 0 | ASY44: 0 | ATA44: 0 | ATC44: 0 | ATE44: 0 | ATG44: 0 | ATI44: 0 | ATK44: 0 | ATM44: 0 | ATO44: 0 | ATQ44: 0 | ATS44: 0 | ATU44: 0 | ATW44: 0 | ATY44: 0 | AUA44: 0 | AUC44: 0 | AUE44: 0 | AUG44: 0 | AUI44: 0 | AUK44: 0 | AUM44: 0 | AUO44: 0 | AUQ44: 0 | AUS44: 0 | AUU44: 0 | AUW44: 0 | AUY44: 0 | AVA44: 0 | AVC44: 0 | AVE44: 0 | AVG44: 0 | AVI44: 0 | AVK44: 0 | AVM44: 0 | AVO44: 0 | AVQ44: 0 | AVS44: 0 | AVU44: 0 | AVW44: 0 | AVY44: 0 | AWA44: 0 | AWC44: 0 | AWE44: 0 | AWG44: 0 | AWI44: 0 | AWK44: 0 | AWM44: 0 | AWO44: 0 | AWQ44: 0 | AWS44: 0 | AWU44: 0 | AWW44: 0 | AWY44: 0 | AXA44: 0 | AXC44: 0 | AXE44: 0 | AXG44: 0 | AXI44: 0 | AXK44: 0 | AXM44: 0 | AXO44: 0 | AXQ44: 0 | AXS44: 0 | AXU44: 0 | AXW44: 0 | AXY44: 0 | AYA44: 0 | AYC44: 0 | AYE44: 0 | AYG44: 0 | AYI44: 0 | AYK44: 0 | AYM44: 0 | AYO44: 0 | AYQ44: 0 | AYS44: 0 | AYU44: 0 | AYW44: 0 | AYY44: 0 | AZA44: 0 | AZC44: 0 | AZE44: 0 | AZG44: 0 | AZI44: 0 | AZK44: 0 | AZM44: 0 | AZO44: 0 | AZQ44: 0 | AZS44: 0 | AZU44: 0 | AZW44: 0 | AZY44: 0 | BAA44: 0 | BAC44: 0 | BAE44: 0 | BAG44: 0 | BAI44: 0 | BAK44: 0 | BAM44: 0 | BAO44: 0 | BAQ44: 0 | BAS44: 0 | BAU44: 0 | BAW44: 0 | BAY44: 0 | BBA44: 0 | BBC44: 0 | BBE44: 0 | BBG44: 0 | BBI44: 0 | BBK44: 0 | BBM44: 0 | BBO44: 0 | BBQ44: 0 | BBS44: 0 | BBU44: 0 | BBW44: 0 | BBY44: 0 | BCA44: 0 | BCC44: 0 | BCE44: 0 | BCG44: 0 | BCI44: 0 | BCK44: 0 | BCM44: 0 | BCO44: 0 | BCQ44: 0 | BCS44: 0 | BCU44: 0 | BCW44: 0 | BCY44: 0 | BDA44: 0 | BDC44: 0 | BDE44: 0 | BDG44: 0 | BDI44: 0 | BDK44: 0 | BDM44: 0 | BDO44: 0 | BDQ44: 0 | BDS44: 0 | BDU44: 0 | BDW44: 0 | BDY44: 0 | BEA44: 0 | BEC44: 0 | BEE44: 0 | BEG44: 0 | BEI44: 0 | BEK44: 0 | BEM44: 0 | BEO44: 0 | BEQ44: 0 | BES44: 0 | BEU44: 0 | BEW44: 0 | BEY44: 0 | BFA44: 0 | BFC44: 0 | BFE44: 0 | BFG44: 0 | BFI44: 0 | BFK44: 0 | BFM44: 0 | BFO44: 0 | BFQ44: 0 | BFS44: 0 | BFU44: 0 | BFW44: 0 | BFY44: 0 | BGA44: 0 | BGC44: 0 | BGE44: 0 | BGG44: 0 | BGI44: 0 | BGK44: 0 | BGM44: 0 | BGO44: 0 | BGQ44: 0 | BGS44: 0 | BGU44: 0 | BGW44: 0 | BGY44: 0 | BHA44: 0 | BHC44: 0 | BHE44: 0 | BHG44: 0 | BHI44: 0 | BHK44: 0 | BHM44: 0 | BHO44: 0 | BHQ44: 0 | BHS44: 0 | BHU44: 0 | BHW44: 0 | BHY44: 0 | BIA44: 0 | BIC44: 0 | BIE44: 0 | BIG44: 0 | BII44: 0 | BIK44: 0 | BIM44: 0 | BIO44: 0 | BIQ44: 0 | BIS44: 0 | BIU44: 0 | BIW44: 0 | BIY44: 0 | BJA44: 0 | BJC44: 0 | BJE44: 0 | BJG44: 0 | BJI44: 0 | BJK44: 0 | BJM44: 0 | BJO44: 0 | BJQ44: 0 | BJS44: 0 | BJU44: 0 | BJW44: 0 | BJY44: 0 | BKA44: 0 | BKC44: 0 | BKE44: 0 | BKG44: 0 | BKI44: 0 | BKK44: 0 | BKM44: 0 | BKO44: 0 | BKQ44: 0 | BKS44: 0 | BKU44: 0 | BKW44: 0 | BKY44: 0 | BLA44: 0 | BLC44: 0 | BLE44: 0 | BLG44: 0 | BLI44: 0 | BLK44: 0 | BLM44: 0 | BLO44: 0 | BLQ44: 0 | BLS44: 0 | BLU44: 0 | BLW44: 0 | BLY44: 0 | BMA44: 0 | BMC44: 0 | BME44: 0 | BMG44: 0 | BMI44: 0 | BMK44: 0 | BMM44: 0 | BMO44: 0 | BMQ44: 0 | BMS44: 0 | BMU44: 0 | BMW44: 0 | BMY44: 0 | BNA44: 0 | BNC44: 0 | BNE44: 0 | BNG44: 0 | BNI44: 0 | BNK44: 0 | BNM44: 0 | BNO44: 0 | BNQ44: 0 | BNS44: 0 | BNU44: 0 | BNW44: 0 | BNY44: 0 | BOA44: 0 | BOC44: 0 | BOE44: 0 | BOG44: 0 | BOI44: 0 | BOK44: 0 | BOM44: 0 | BOO44: 0 | BOQ44: 0 | BOS44: 0 | BOU44: 0 | BOW44: 0 | BOY44: 0 | BPA44: 0 | BPC44: 0 | BPE44: 0 | BPG44: 0 | BPI44: 0 | BPK44: 0 | BPM44: 0 | BPO44: 0 | BPQ44: 0 | BPS44: 0 | BPU44: 0 | BPW44: 0 | BPY44: 0 | BQA44: 0 | BQC44: 0 | BQE44: 0 | BQG44: 0 | BQI44: 0 | BQK44: 0 | BQM44: 0 | BQO44: 0 | BQQ44: 0 | BQS44: 0 | BQU44: 0 | BQW44: 0 | BQY44: 0 | BRA44: 0 | BRC44: 0 | BRE44: 0 | BRG44: 0 | BRI44: 0 | BRK44: 0 | BRM44: 0 | BRO44: 0 | BRQ44: 0 | BRS44: 0 | BRU44: 0 | BRW44: 0 | BRY44: 0 | BSA44: 0 | BSC44: 0 | BSE44: 0 | BSG44: 0 | BSI44: 0 | BSK44: 0 | BSM44: 0 | BSO44: 0 | BSQ44: 0 | BSS44: 0 | BSU44: 0 | BSW44: 0 | BSY44: 0 | BTA44: 0 | BTC44: 0 | BTE44: 0 | BTG44: 0 | BTI44: 0 | BTK44: 0 | BTM44: 0 | BTO44: 0 | BTQ44: 0 | BTS44: 0 | BTU44: 0 | BTW44: 0 | BTY44: 0 | BUA44: 0 | BUC44: 0 | BUE44: 0 | BUG44: 0 | BUI44: 0 | BUK44: 0 | BUM44: 0 | BUO44: 0 | BUQ44: 0 | BUS44: 0 | BUU44: 0 | BUW44: 0 | BUY44: 0 | BVA44: 0 | BVC44: 0 | BVE44: 0 | BVG44: 0 | BVI44: 0 | BVK44: 0 | BVM44: 0 | BVO44: 0 | BVQ44: 0 | BVS44: 0 | BVU44: 0 | BVW44: 0 | BVY44: 0 | BWA44: 0 | BWC44: 0 | BWE44: 0 | BWG44: 0 | BWI44: 0 | BWK44: 0 | BWM44: 0 | BWO44: 0 | BWQ44: 0 | BWS44: 0 | BWU44: 0 | BWW44: 0 | BWY44: 0 | BXA44: 0 | BXC44: 0 | BXE44: 0 | BXG44: 0 | BXI44: 0 | BXK44: 0 | BXM44: 0 | BXO44: 0 | BXQ44: 0 | BXS44: 0 | BXU44: 0 | BXW44: 0 | BXY44: 0 | BYA44: 0 | BYC44: 0 | BYE44: 0 | BYG44: 0 | BYI44: 0 | BYK44: 0 | BYM44: 0 | BYO44: 0 | BYQ44: 0 | BYS44: 0 | BYU44: 0 | BYW44: 0 | BYY44: 0 | BZA44: 0 | BZC44: 0 | BZE44: 0 | BZG44: 0 | BZI44: 0 | BZK44: 0 | BZM44: 0 | BZO44: 0 | BZQ44: 0 | BZS44: 0 | BZU44: 0 | BZW44: 0 | BZY44: 0 | CAA44: 0 | CAC44: 0 | CAE44: 0 | CAG44: 0 | CAI44: 0 | CAK44: 0 | CAM44: 0 | CAO44: 0 | CAQ44: 0 | CAS44: 0 | CAU44: 0 | CAW44: 0 | CAY44: 0 | CBA44: 0 | CBC44: 0 | CBE44: 0 | CBG44: 0
A45: 6 | C45: 0 | E45: 0 | G45: 0 | I45: 0 | K45: 0 | M45: 0 | O45: 0 | Q45: 0 | S45: 0 | U45: 0 | W45: 0 | Y45: 0 | AA45: 0 | AC45: 0 | AE45: 0 | AG45: 0 | AI45: 0 | AK45: 0 | AM45: 0 | AO45: 0 | AQ45: 0 | AS45: 0 | AU45: 0 | AW45: 0 | AY45: 0 | BA45: 0 | BC45: 0 | BE45: 0 | BG45: 0 | BI45: 0 | BK45: 0 | BM45: 0 | BO45: 0 | BQ45: 0 | BS45: 0 | BU45: 0 | BW45: 0 | BY45: 0 | CA45: 0 | CC45: 0 | CE45: 0 | CG45: 0 | CI45: 0 | CK45: 0 | CM45: 0 | CO45: 0 | CQ45: 0 | CS45: 0 | CU45: 0 | CW45: 0 | CY45: 0 | DA45: 0 | DC45: 0 | DE45: 0 | DG45: 0 | DI45: 0 | DK45: 0 | DM45: 0 | DO45: 0 | DQ45: 0 | DS45: 0 | DU45: 0 | DW45: 0 | DY45: 0 | EA45: 0 | EC45: 0 | EE45: 0 | EG45: 0 | EI45: 0 | EK45: 0 | EM45: 0 | EO45: 0 | EQ45: 0 | ES45: 0 | EU45: 0 | EW45: 0 | EY45: 0 | FA45: 0 | FC45: 0 | FE45: 0 | FG45: 0 | FI45: 0 | FK45: 0 | FM45: 0 | FO45: 0 | FQ45: 0 | FS45: 0 | FU45: 0 | FW45: 0 | FY45: 0 | GA45: 0 | GC45: 0 | GE45: 0 | GG45: 0 | GI45: 0 | GK45: 0 | GM45: 0 | GO45: 0 | GQ45: 0 | GS45: 0 | GU45: 0 | GW45: 0 | GY45: 0 | HA45: 0 | HC45: 0 | HE45: 0 | HG45: 0 | HI45: 0 | HK45: 0 | HM45: 0 | HO45: 0 | HQ45: 0 | HS45: 0 | HU45: 0 | HW45: 0 | HY45: 0 | IA45: 0 | IC45: 0 | IE45: 0 | IG45: 0 | II45: 0 | IK45: 0 | IM45: 0 | IO45: 0 | IQ45: 0 | IS45: 0 | IU45: 0 | IW45: 0 | IY45: 0 | JA45: 0 | JC45: 0 | JE45: 0 | JG45: 0 | JI45: 0 | JK45: 0 | JM45: 0 | JO45: 0 | JQ45: 0 | JS45: 0 | JU45: 0 | JW45: 0 | JY45: 0 | KA45: 0 | KC45: 0 | KE45: 0 | KG45: 0 | KI45: 0 | KK45: 0 | KM45: 0 | KO45: 0 | KQ45: 0 | KS45: 0 | KU45: 0 | KW45: 0 | KY45: 0 | LA45: 0 | LC45: 0 | LE45: 0 | LG45: 0 | LI45: 0 | LK45: 0 | LM45: 0 | LO45: 0 | LQ45: 0 | LS45: 0 | LU45: 0 | LW45: 0 | LY45: 0 | MA45: 0 | MC45: 0 | ME45: 0 | MG45: 0 | MI45: 0 | MK45: 0 | MM45: 0 | MO45: 0 | MQ45: 0 | MS45: 0 | MU45: 0 | MW45: 0 | MY45: 0 | NA45: 0 | NC45: 0 | NE45: 0 | NG45: 0 | NI45: 0 | NK45: 0 | NM45: 0 | NO45: 0 | NQ45: 0 | NS45: 0 | NU45: 0 | NW45: 0 | NY45: 0 | OA45: 0 | OC45: 0 | OE45: 0 | OG45: 0 | OI45: 0 | OK45: 0 | OM45: 0 | OO45: 0 | OQ45: 0 | OS45: 0 | OU45: 0 | OW45: 0 | OY45: 0 | PA45: 0 | PC45: 0 | PE45: 0 | PG45: 0 | PI45: 0 | PK45: 0 | PM45: 0 | PO45: 0 | PQ45: 0 | PS45: 0 | PU45: 0 | PW45: 0 | PY45: 0 | QA45: 0 | QC45: 0 | QE45: 0 | QG45: 0 | QI45: 0 | QK45: 0 | QM45: 0 | QO45: 0 | QQ45: 0 | QS45: 0 | QU45: 0 | QW45: 0 | QY45: 0 | RA45: 0 | RC45: 0 | RE45: 0 | RG45: 0 | RI45: 0 | RK45: 0 | RM45: 0 | RO45: 0 | RQ45: 0 | RS45: 0 | RU45: 0 | RW45: 0 | RY45: 0 | SA45: 0 | SC45: 0 | SE45: 0 | SG45: 0 | SI45: 0 | SK45: 0 | SM45: 0 | SO45: 0 | SQ45: 0 | SS45: 0 | SU45: 0 | SW45: 0 | SY45: 0 | TA45: 0 | TC45: 0 | TE45: 0 | TG45: 0 | TI45: 0 | TK45: 0 | TM45: 0 | TO45: 0 | TQ45: 0 | TS45: 0 | TU45: 0 | TW45: 0 | TY45: 0 | UA45: 0 | UC45: 0 | UE45: 0 | UG45: 0 | UI45: 0 | UK45: 0 | UM45: 0 | UO45: 0 | UQ45: 0 | US45: 0 | UU45: 0 | UW45: 0 | UY45: 0 | VA45: 0 | VC45: 0 | VE45: 0 | VG45: 0 | VI45: 0 | VK45: 0 | VM45: 0 | VO45: 0 | VQ45: 0 | VS45: 0 | VU45: 0 | VW45: 0 | VY45: 0 | WA45: 0 | WC45: 0 | WE45: 0 | WG45: 0 | WI45: 0 | WK45: 0 | WM45: 0 | WO45: 0 | WQ45: 0 | WS45: 0 | WU45: 0 | WW45: 0 | WY45: 0 | XA45: 0 | XC45: 0 | XE45: 0 | XG45: 0 | XI45: 0 | XK45: 0 | XM45: 0 | XO45: 0 | XQ45: 0 | XS45: 0 | XU45: 0 | XW45: 0 | XY45: 0 | YA45: 0 | YC45: 0 | YE45: 0 | YG45: 0 | YI45: 0 | YK45: 0 | YM45: 0 | YO45: 0 | YQ45: 0 | YS45: 0 | YU45: 0 | YW45: 0 | YY45: 0 | ZA45: 0 | ZC45: 0 | ZE45: 0 | ZG45: 0 | ZI45: 0 | ZK45: 0 | ZM45: 0 | ZO45: 0 | ZQ45: 0 | ZS45: 0 | ZU45: 0 | ZW45: 0 | ZY45: 0 | AAA45: 0 | AAC45: 0 | AAE45: 0 | AAG45: 0 | AAI45: 0 | AAK45: 0 | AAM45: 0 | AAO45: 0 | AAQ45: 0 | AAS45: 0 | AAU45: 0 | AAW45: 0 | AAY45: 0 | ABA45: 0 | ABC45: 0 | ABE45: 0 | ABG45: 0 | ABI45: 0 | ABK45: 0 | ABM45: 0 | ABO45: 0 | ABQ45: 0 | ABS45: 0 | ABU45: 0 | ABW45: 0 | ABY45: 0 | ACA45: 0 | ACC45: 0 | ACE45: 0 | ACG45: 0 | ACI45: 0 | ACK45: 0 | ACM45: 0 | ACO45: 0 | ACQ45: 0 | ACS45: 0 | ACU45: 0 | ACW45: 0 | ACY45: 0 | ADA45: 0 | ADC45: 0 | ADE45: 0 | ADG45: 0 | ADI45: 0 | ADK45: 0 | ADM45: 0 | ADO45: 0 | ADQ45: 0 | ADS45: 0 | ADU45: 0 | ADW45: 0 | ADY45: 0 | AEA45: 0 | AEC45: 0 | AEE45: 0 | AEG45: 0 | AEI45: 0 | AEK45: 0 | AEM45: 0 | AEO45: 0 | AEQ45: 0 | AES45: 0 | AEU45: 0 | AEW45: 0 | AEY45: 0 | AFA45: 0 | AFC45: 0 | AFE45: 0 | AFG45: 0 | AFI45: 0 | AFK45: 0 | AFM45: 0 | AFO45: 0 | AFQ45: 0 | AFS45: 0 | AFU45: 0 | AFW45: 0 | AFY45: 0 | AGA45: 0 | AGC45: 0 | AGE45: 0 | AGG45: 0 | AGI45: 0 | AGK45: 0 | AGM45: 0 | AGO45: 0 | AGQ45: 0 | AGS45: 0 | AGU45: 0 | AGW45: 0 | AGY45: 0 | AHA45: 0 | AHC45: 0 | AHE45: 0 | AHG45: 0 | AHI45: 0 | AHK45: 0 | AHM45: 0 | AHO45: 0 | AHQ45: 0 | AHS45: 0 | AHU45: 0 | AHW45: 0 | AHY45: 0 | AIA45: 0 | AIC45: 0 | AIE45: 0 | AIG45: 0 | AII45: 0 | AIK45: 0 | AIM45: 0 | AIO45: 0 | AIQ45: 0 | AIS45: 0 | AIU45: 0 | AIW45: 0 | AIY45: 0 | AJA45: 0 | AJC45: 0 | AJE45: 0 | AJG45: 0 | AJI45: 0 | AJK45: 0 | AJM45: 0 | AJO45: 0 | AJQ45: 0 | AJS45: 0 | AJU45: 0 | AJW45: 0 | AJY45: 0 | AKA45: 0 | AKC45: 0 | AKE45: 0 | AKG45: 0 | AKI45: 0 | AKK45: 0 | AKM45: 0 | AKO45: 0 | AKQ45: 0 | AKS45: 0 | AKU45: 0 | AKW45: 0 | AKY45: 0 | ALA45: 0 | ALC45: 0 | ALE45: 0 | ALG45: 0 | ALI45: 0 | ALK45: 0 | ALM45: 0 | ALO45: 0 | ALQ45: 0 | ALS45: 0 | ALU45: 0 | ALW45: 0 | ALY45: 0 | AMA45: 0 | AMC45: 0 | AME45: 0 | AMG45: 0 | AMI45: 0 | AMK45: 0 | AMM45: 0 | AMO45: 0 | AMQ45: 0 | AMS45: 0 | AMU45: 0 | AMW45: 0 | AMY45: 0 | ANA45: 0 | ANC45: 0 | ANE45: 0 | ANG45: 0 | ANI45: 0 | ANK45: 0 | ANM45: 0 | ANO45: 0 | ANQ45: 0 | ANS45: 0 | ANU45: 0 | ANW45: 0 | ANY45: 0 | AOA45: 0 | AOC45: 0 | AOE45: 0 | AOG45: 0 | AOI45: 0 | AOK45: 0 | AOM45: 0 | AOO45: 0 | AOQ45: 0 | AOS45: 0 | AOU45: 0 | AOW45: 0 | AOY45: 0 | APA45: 0 | APC45: 0 | APE45: 0 | APG45: 0 | API45: 0 | APK45: 0 | APM45: 0 | APO45: 0 | APQ45: 0 | APS45: 0 | APU45: 0 | APW45: 0 | APY45: 0 | AQA45: 0 | AQC45: 0 | AQE45: 0 | AQG45: 0 | AQI45: 0 | AQK45: 0 | AQM45: 0 | AQO45: 0 | AQQ45: 0 | AQS45: 0 | AQU45: 0 | AQW45: 0 | AQY45: 0 | ARA45: 0 | ARC45: 0 | ARE45: 0 | ARG45: 0 | ARI45: 0 | ARK45: 0 | ARM45: 0 | ARO45: 0 | ARQ45: 0 | ARS45: 0 | ARU45: 0 | ARW45: 0 | ARY45: 0 | ASA45: 0 | ASC45: 0 | ASE45: 0 | ASG45: 0 | ASI45: 0 | ASK45: 0 | ASM45: 0 | ASO45: 0 | ASQ45: 0 | ASS45: 0 | ASU45: 0 | ASW45: 0 | ASY45: 0 | ATA45: 0 | ATC45: 0 | ATE45: 0 | ATG45: 0 | ATI45: 0 | ATK45: 0 | ATM45: 0 | ATO45: 0 | ATQ45: 0 | ATS45: 0 | ATU45: 0 | ATW45: 0 | ATY45: 0 | AUA45: 0 | AUC45: 0 | AUE45: 0 | AUG45: 0 | AUI45: 0 | AUK45: 0 | AUM45: 0 | AUO45: 0 | AUQ45: 0 | AUS45: 0 | AUU45: 0 | AUW45: 0 | AUY45: 0 | AVA45: 0 | AVC45: 0 | AVE45: 0 | AVG45: 0 | AVI45: 0 | AVK45: 0 | AVM45: 0 | AVO45: 0 | AVQ45: 0 | AVS45: 0 | AVU45: 0 | AVW45: 0 | AVY45: 0 | AWA45: 0 | AWC45: 0 | AWE45: 0 | AWG45: 0 | AWI45: 0 | AWK45: 0 | AWM45: 0 | AWO45: 0 | AWQ45: 0 | AWS45: 0 | AWU45: 0 | AWW45: 0 | AWY45: 0 | AXA45: 0 | AXC45: 0 | AXE45: 0 | AXG45: 0 | AXI45: 0 | AXK45: 0 | AXM45: 0 | AXO45: 0 | AXQ45: 0 | AXS45: 0 | AXU45: 0 | AXW45: 0 | AXY45: 0 | AYA45: 0 | AYC45: 0 | AYE45: 0 | AYG45: 0 | AYI45: 0 | AYK45: 0 | AYM45: 0 | AYO45: 0 | AYQ45: 0 | AYS45: 0 | AYU45: 0 | AYW45: 0 | AYY45: 0 | AZA45: 0 | AZC45: 0 | AZE45: 0 | AZG45: 0 | AZI45: 0 | AZK45: 0 | AZM45: 0 | AZO45: 0 | AZQ45: 0 | AZS45: 0 | AZU45: 0 | AZW45: 0 | AZY45: 0 | BAA45: 0 | BAC45: 0 | BAE45: 0 | BAG45: 0 | BAI45: 0 | BAK45: 0 | BAM45: 0 | BAO45: 0 | BAQ45: 0 | BAS45: 0 | BAU45: 0 | BAW45: 0 | BAY45: 0 | BBA45: 0 | BBC45: 0 | BBE45: 0 | BBG45: 0 | BBI45: 0 | BBK45: 0 | BBM45: 0 | BBO45: 0 | BBQ45: 0 | BBS45: 0 | BBU45: 0 | BBW45: 0 | BBY45: 0 | BCA45: 0 | BCC45: 0 | BCE45: 0 | BCG45: 0 | BCI45: 0 | BCK45: 0 | BCM45: 0 | BCO45: 0 | BCQ45: 0 | BCS45: 0 | BCU45: 0 | BCW45: 0 | BCY45: 0 | BDA45: 0 | BDC45: 0 | BDE45: 0 | BDG45: 0 | BDI45: 0 | BDK45: 0 | BDM45: 0 | BDO45: 0 | BDQ45: 0 | BDS45: 0 | BDU45: 0 | BDW45: 0 | BDY45: 0 | BEA45: 0 | BEC45: 0 | BEE45: 0 | BEG45: 0 | BEI45: 0 | BEK45: 0 | BEM45: 0 | BEO45: 0 | BEQ45: 0 | BES45: 0 | BEU45: 0 | BEW45: 0 | BEY45: 0 | BFA45: 0 | BFC45: 0 | BFE45: 0 | BFG45: 0 | BFI45: 0 | BFK45: 0 | BFM45: 0 | BFO45: 0 | BFQ45: 0 | BFS45: 0 | BFU45: 0 | BFW45: 0 | BFY45: 0 | BGA45: 0 | BGC45: 0 | BGE45: 0 | BGG45: 0 | BGI45: 0 | BGK45: 0 | BGM45: 0 | BGO45: 0 | BGQ45: 0 | BGS45: 0 | BGU45: 0 | BGW45: 0 | BGY45: 0 | BHA45: 0 | BHC45: 0 | BHE45: 0 | BHG45: 0 | BHI45: 0 | BHK45: 0 | BHM45: 0 | BHO45: 0 | BHQ45: 0 | BHS45: 0 | BHU45: 0 | BHW45: 0 | BHY45: 0 | BIA45: 0 | BIC45: 0 | BIE45: 0 | BIG45: 0 | BII45: 0 | BIK45: 0 | BIM45: 0 | BIO45: 0 | BIQ45: 0 | BIS45: 0 | BIU45: 0 | BIW45: 0 | BIY45: 0 | BJA45: 0 | BJC45: 0 | BJE45: 0 | BJG45: 0 | BJI45: 0 | BJK45: 0 | BJM45: 0 | BJO45: 0 | BJQ45: 0 | BJS45: 0 | BJU45: 0 | BJW45: 0 | BJY45: 0 | BKA45: 0 | BKC45: 0 | BKE45: 0 | BKG45: 0 | BKI45: 0 | BKK45: 0 | BKM45: 0 | BKO45: 0 | BKQ45: 0 | BKS45: 0 | BKU45: 0 | BKW45: 0 | BKY45: 0 | BLA45: 0 | BLC45: 0 | BLE45: 0 | BLG45: 0 | BLI45: 0 | BLK45: 0 | BLM45: 0 | BLO45: 0 | BLQ45: 0 | BLS45: 0 | BLU45: 0 | BLW45: 0 | BLY45: 0 | BMA45: 0 | BMC45: 0 | BME45: 0 | BMG45: 0 | BMI45: 0 | BMK45: 0 | BMM45: 0 | BMO45: 0 | BMQ45: 0 | BMS45: 0 | BMU45: 0 | BMW45: 0 | BMY45: 0 | BNA45: 0 | BNC45: 0 | BNE45: 0 | BNG45: 0 | BNI45: 0 | BNK45: 0 | BNM45: 0 | BNO45: 0 | BNQ45: 0 | BNS45: 0 | BNU45: 0 | BNW45: 0 | BNY45: 0 | BOA45: 0 | BOC45: 0 | BOE45: 0 | BOG45: 0 | BOI45: 0 | BOK45: 0 | BOM45: 0 | BOO45: 0 | BOQ45: 0 | BOS45: 0 | BOU45: 0 | BOW45: 0 | BOY45: 0 | BPA45: 0 | BPC45: 0 | BPE45: 0 | BPG45: 0 | BPI45: 0 | BPK45: 0 | BPM45: 0 | BPO45: 0 | BPQ45: 0 | BPS45: 0 | BPU45: 0 | BPW45: 0 | BPY45: 0 | BQA45: 0 | BQC45: 0 | BQE45: 0 | BQG45: 0 | BQI45: 0 | BQK45: 0 | BQM45: 0 | BQO45: 0 | BQQ45: 0 | BQS45: 0 | BQU45: 0 | BQW45: 0 | BQY45: 0 | BRA45: 0 | BRC45: 0 | BRE45: 0 | BRG45: 0 | BRI45: 0 | BRK45: 0 | BRM45: 0 | BRO45: 0 | BRQ45: 0 | BRS45: 0 | BRU45: 0 | BRW45: 0 | BRY45: 0 | BSA45: 0 | BSC45: 0 | BSE45: 0 | BSG45: 0 | BSI45: 0 | BSK45: 0 | BSM45: 0 | BSO45: 0 | BSQ45: 0 | BSS45: 0 | BSU45: 0 | BSW45: 0 | BSY45: 0 | BTA45: 0 | BTC45: 0 | BTE45: 0 | BTG45: 0 | BTI45: 0 | BTK45: 0 | BTM45: 0 | BTO45: 0 | BTQ45: 0 | BTS45: 0 | BTU45: 0 | BTW45: 0 | BTY45: 0 | BUA45: 0 | BUC45: 0 | BUE45: 0 | BUG45: 0 | BUI45: 0 | BUK45: 0 | BUM45: 0 | BUO45: 0 | BUQ45: 0 | BUS45: 0 | BUU45: 0 | BUW45: 0 | BUY45: 0 | BVA45: 0 | BVC45: 0 | BVE45: 0 | BVG45: 0 | BVI45: 0 | BVK45: 0 | BVM45: 0 | BVO45: 0 | BVQ45: 0 | BVS45: 0 | BVU45: 0 | BVW45: 0 | BVY45: 0 | BWA45: 0 | BWC45: 0 | BWE45: 0 | BWG45: 0 | BWI45: 0 | BWK45: 0 | BWM45: 0 | BWO45: 0 | BWQ45: 0 | BWS45: 0 | BWU45: 0 | BWW45: 0 | BWY45: 0 | BXA45: 0 | BXC45: 0 | BXE45: 0 | BXG45: 0 | BXI45: 0 | BXK45: 0 | BXM45: 0 | BXO45: 0 | BXQ45: 0 | BXS45: 0 | BXU45: 0 | BXW45: 0 | BXY45: 0 | BYA45: 0 | BYC45: 0 | BYE45: 0 | BYG45: 0 | BYI45: 0 | BYK45: 0 | BYM45: 0 | BYO45: 0 | BYQ45: 0 | BYS45: 0 | BYU45: 0 | BYW45: 0 | BYY45: 0 | BZA45: 0 | BZC45: 0 | BZE45: 0 | BZG45: 0 | BZI45: 0 | BZK45: 0 | BZM45: 0 | BZO45: 0 | BZQ45: 0 | BZS45: 0 | BZU45: 0 | BZW45: 0 | BZY45: 0 | CAA45: 0 | CAC45: 0 | CAE45: 0 | CAG45: 0 | CAI45: 0 | CAK45: 0 | CAM45: 0 | CAO45: 0 | CAQ45: 0 | CAS45: 0 | CAU45: 0 | CAW45: 0 | CAY45: 0 | CBA45: 0 | CBC45: 0 | CBE45: 0 | CBG45: 0
A46: 7 | C46: 0 | E46: 0 | G46: 0 | I46: 0 | K46: 0 | M46: 0 | O46: 0 | Q46: 0 | S46: 0 | U46: 0 | W46: 0 | Y46: 0 | AA46: 0 | AC46: 0 | AE46: 0 | AG46: 0 | AI46: 0 | AK46: 0 | AM46: 0 | AO46: 0 | AQ46: 0 | AS46: 0 | AU46: 0 | AW46: 0 | AY46: 0 | BA46: 0 | BC46: 0 | BE46: 0 | BG46: 0 | BI46: 0 | BK46: 0 | BM46: 0 | BO46: 0 | BQ46: 0 | BS46: 0 | BU46: 0 | BW46: 0 | BY46: 0 | CA46: 0 | CC46: 0 | CE46: 0 | CG46: 0 | CI46: 0 | CK46: 0 | CM46: 0 | CO46: 0 | CQ46: 0 | CS46: 0 | CU46: 0 | CW46: 0 | CY46: 0 | DA46: 0 | DC46: 0 | DE46: 0 | DG46: 0 | DI46: 0 | DK46: 0 | DM46: 0 | DO46: 0 | DQ46: 0 | DS46: 0 | DU46: 0 | DW46: 0 | DY46: 0 | EA46: 0 | EC46: 0 | EE46: 0 | EG46: 0 | EI46: 0 | EK46: 0 | EM46: 0 | EO46: 0 | EQ46: 0 | ES46: 0 | EU46: 0 | EW46: 0 | EY46: 0 | FA46: 0 | FC46: 0 | FE46: 0 | FG46: 0 | FI46: 0 | FK46: 0 | FM46: 0 | FO46: 0 | FQ46: 0 | FS46: 0 | FU46: 0 | FW46: 0 | FY46: 0 | GA46: 0 | GC46: 0 | GE46: 0 | GG46: 0 | GI46: 0 | GK46: 0 | GM46: 0 | GO46: 0 | GQ46: 0 | GS46: 0 | GU46: 0 | GW46: 0 | GY46: 0 | HA46: 0 | HC46: 0 | HE46: 0 | HG46: 0 | HI46: 0 | HK46: 0 | HM46: 0 | HO46: 0 | HQ46: 0 | HS46: 0 | HU46: 0 | HW46: 0 | HY46: 0 | IA46: 0 | IC46: 0 | IE46: 0 | IG46: 0 | II46: 0 | IK46: 0 | IM46: 0 | IO46: 0 | IQ46: 0 | IS46: 0 | IU46: 0 | IW46: 0 | IY46: 0 | JA46: 0 | JC46: 0 | JE46: 0 | JG46: 0 | JI46: 0 | JK46: 0 | JM46: 0 | JO46: 0 | JQ46: 0 | JS46: 0 | JU46: 0 | JW46: 0 | JY46: 0 | KA46: 0 | KC46: 0 | KE46: 0 | KG46: 0 | KI46: 0 | KK46: 0 | KM46: 0 | KO46: 0 | KQ46: 0 | KS46: 0 | KU46: 0 | KW46: 0 | KY46: 0 | LA46: 0 | LC46: 0 | LE46: 0 | LG46: 0 | LI46: 0 | LK46: 0 | LM46: 0 | LO46: 0 | LQ46: 0 | LS46: 0 | LU46: 0 | LW46: 0 | LY46: 0 | MA46: 0 | MC46: 0 | ME46: 0 | MG46: 0 | MI46: 0 | MK46: 0 | MM46: 0 | MO46: 0 | MQ46: 0 | MS46: 0 | MU46: 0 | MW46: 0 | MY46: 0 | NA46: 0 | NC46: 0 | NE46: 0 | NG46: 0 | NI46: 0 | NK46: 0 | NM46: 0 | NO46: 0 | NQ46: 0 | NS46: 0 | NU46: 0 | NW46: 0 | NY46: 0 | OA46: 0 | OC46: 0 | OE46: 0 | OG46: 0 | OI46: 0 | OK46: 0 | OM46: 0 | OO46: 0 | OQ46: 0 | OS46: 0 | OU46: 0 | OW46: 0 | OY46: 0 | PA46: 0 | PC46: 0 | PE46: 0 | PG46: 0 | PI46: 0 | PK46: 0 | PM46: 0 | PO46: 0 | PQ46: 0 | PS46: 0 | PU46: 0 | PW46: 0 | PY46: 0 | QA46: 0 | QC46: 0 | QE46: 0 | QG46: 0 | QI46: 0 | QK46: 0 | QM46: 0 | QO46: 0 | QQ46: 0 | QS46: 0 | QU46: 0 | QW46: 0 | QY46: 0 | RA46: 0 | RC46: 0 | RE46: 0 | RG46: 0 | RI46: 0 | RK46: 0 | RM46: 0 | RO46: 0 | RQ46: 0 | RS46: 0 | RU46: 0 | RW46: 0 | RY46: 0 | SA46: 0 | SC46: 0 | SE46: 0 | SG46: 0 | SI46: 0 | SK46: 0 | SM46: 0 | SO46: 0 | SQ46: 0 | SS46: 0 | SU46: 0 | SW46: 0 | SY46: 0 | TA46: 0 | TC46: 0 | TE46: 0 | TG46: 0 | TI46: 0 | TK46: 0 | TM46: 0 | TO46: 0 | TQ46: 0 | TS46: 0 | TU46: 0 | TW46: 0 | TY46: 0 | UA46: 0 | UC46: 0 | UE46: 0 | UG46: 0 | UI46: 0 | UK46: 0 | UM46: 0 | UO46: 0 | UQ46: 0 | US46: 0 | UU46: 0 | UW46: 0 | UY46: 0 | VA46: 0 | VC46: 0 | VE46: 0 | VG46: 0 | VI46: 0 | VK46: 0 | VM46: 0 | VO46: 0 | VQ46: 0 | VS46: 0 | VU46: 0 | VW46: 0 | VY46: 0 | WA46: 0 | WC46: 0 | WE46: 0 | WG46: 0 | WI46: 0 | WK46: 0 | WM46: 0 | WO46: 0 | WQ46: 0 | WS46: 0 | WU46: 0 | WW46: 0 | WY46: 0 | XA46: 0 | XC46: 0 | XE46: 0 | XG46: 0 | XI46: 0 | XK46: 0 | XM46: 0 | XO46: 0 | XQ46: 0 | XS46: 0 | XU46: 0 | XW46: 0 | XY46: 0 | YA46: 0 | YC46: 0 | YE46: 0 | YG46: 0 | YI46: 0 | YK46: 0 | YM46: 0 | YO46: 0 | YQ46: 0 | YS46: 0 | YU46: 0 | YW46: 0 | YY46: 0 | ZA46: 0 | ZC46: 0 | ZE46: 0 | ZG46: 0 | ZI46: 0 | ZK46: 0 | ZM46: 0 | ZO46: 0 | ZQ46: 0 | ZS46: 0 | ZU46: 0 | ZW46: 0 | ZY46: 0 | AAA46: 0 | AAC46: 0 | AAE46: 0 | AAG46: 0 | AAI46: 0 | AAK46: 0 | AAM46: 0 | AAO46: 0 | AAQ46: 0 | AAS46: 0 | AAU46: 0 | AAW46: 0 | AAY46: 0 | ABA46: 0 | ABC46: 0 | ABE46: 0 | ABG46: 0 | ABI46: 0 | ABK46: 0 | ABM46: 0 | ABO46: 0 | ABQ46: 0 | ABS46: 0 | ABU46: 0 | ABW46: 0 | ABY46: 0 | ACA46: 0 | ACC46: 0 | ACE46: 0 | ACG46: 0 | ACI46: 0 | ACK46: 0 | ACM46: 0 | ACO46: 0 | ACQ46: 0 | ACS46: 0 | ACU46: 0 | ACW46: 0 | ACY46: 0 | ADA46: 0 | ADC46: 0 | ADE46: 0 | ADG46: 0 | ADI46: 0 | ADK46: 0 | ADM46: 0 | ADO46: 0 | ADQ46: 0 | ADS46: 0 | ADU46: 0 | ADW46: 0 | ADY46: 0 | AEA46: 0 | AEC46: 0 | AEE46: 0 | AEG46: 0 | AEI46: 0 | AEK46: 0 | AEM46: 0 | AEO46: 0 | AEQ46: 0 | AES46: 0 | AEU46: 0 | AEW46: 0 | AEY46: 0 | AFA46: 0 | AFC46: 0 | AFE46: 0 | AFG46: 0 | AFI46: 0 | AFK46: 0 | AFM46: 0 | AFO46: 0 | AFQ46: 0 | AFS46: 0 | AFU46: 0 | AFW46: 0 | AFY46: 0 | AGA46: 0 | AGC46: 0 | AGE46: 0 | AGG46: 0 | AGI46: 0 | AGK46: 0 | AGM46: 0 | AGO46: 0 | AGQ46: 0 | AGS46: 0 | AGU46: 0 | AGW46: 0 | AGY46: 0 | AHA46: 0 | AHC46: 0 | AHE46: 0 | AHG46: 0 | AHI46: 0 | AHK46: 0 | AHM46: 0 | AHO46: 0 | AHQ46: 0 | AHS46: 0 | AHU46: 0 | AHW46: 0 | AHY46: 0 | AIA46: 0 | AIC46: 0 | AIE46: 0 | AIG46: 0 | AII46: 0 | AIK46: 0 | AIM46: 0 | AIO46: 0 | AIQ46: 0 | AIS46: 0 | AIU46: 0 | AIW46: 0 | AIY46: 0 | AJA46: 0 | AJC46: 0 | AJE46: 0 | AJG46: 0 | AJI46: 0 | AJK46: 0 | AJM46: 0 | AJO46: 0 | AJQ46: 0 | AJS46: 0 | AJU46: 0 | AJW46: 0 | AJY46: 0 | AKA46: 0 | AKC46: 0 | AKE46: 0 | AKG46: 0 | AKI46: 0 | AKK46: 0 | AKM46: 0 | AKO46: 0 | AKQ46: 0 | AKS46: 0 | AKU46: 0 | AKW46: 0 | AKY46: 0 | ALA46: 0 | ALC46: 0 | ALE46: 0 | ALG46: 0 | ALI46: 0 | ALK46: 0 | ALM46: 0 | ALO46: 0 | ALQ46: 0 | ALS46: 0 | ALU46: 0 | ALW46: 0 | ALY46: 0 | AMA46: 0 | AMC46: 0 | AME46: 0 | AMG46: 0 | AMI46: 0 | AMK46: 0 | AMM46: 0 | AMO46: 0 | AMQ46: 0 | AMS46: 0 | AMU46: 0 | AMW46: 0 | AMY46: 0 | ANA46: 0 | ANC46: 0 | ANE46: 0 | ANG46: 0 | ANI46: 0 | ANK46: 0 | ANM46: 0 | ANO46: 0 | ANQ46: 0 | ANS46: 0 | ANU46: 0 | ANW46: 0 | ANY46: 0 | AOA46: 0 | AOC46: 0 | AOE46: 0 | AOG46: 0 | AOI46: 0 | AOK46: 0 | AOM46: 0 | AOO46: 0 | AOQ46: 0 | AOS46: 0 | AOU46: 0 | AOW46: 0 | AOY46: 0 | APA46: 0 | APC46: 0 | APE46: 0 | APG46: 0 | API46: 0 | APK46: 0 | APM46: 0 | APO46: 0 | APQ46: 0 | APS46: 0 | APU46: 0 | APW46: 0 | APY46: 0 | AQA46: 0 | AQC46: 0 | AQE46: 0 | AQG46: 0 | AQI46: 0 | AQK46: 0 | AQM46: 0 | AQO46: 0 | AQQ46: 0 | AQS46: 0 | AQU46: 0 | AQW46: 0 | AQY46: 0 | ARA46: 0 | ARC46: 0 | ARE46: 0 | ARG46: 0 | ARI46: 0 | ARK46: 0 | ARM46: 0 | ARO46: 0 | ARQ46: 0 | ARS46: 0 | ARU46: 0 | ARW46: 0 | ARY46: 0 | ASA46: 0 | ASC46: 0 | ASE46: 0 | ASG46: 0 | ASI46: 0 | ASK46: 0 | ASM46: 0 | ASO46: 0 | ASQ46: 0 | ASS46: 0 | ASU46: 0 | ASW46: 0 | ASY46: 0 | ATA46: 0 | ATC46: 0 | ATE46: 0 | ATG46: 0 | ATI46: 0 | ATK46: 0 | ATM46: 0 | ATO46: 0 | ATQ46: 0 | ATS46: 0 | ATU46: 0 | ATW46: 0 | ATY46: 0 | AUA46: 0 | AUC46: 0 | AUE46: 0 | AUG46: 0 | AUI46: 0 | AUK46: 0 | AUM46: 0 | AUO46: 0 | AUQ46: 0 | AUS46: 0 | AUU46: 0 | AUW46: 0 | AUY46: 0 | AVA46: 0 | AVC46: 0 | AVE46: 0 | AVG46: 0 | AVI46: 0 | AVK46: 0 | AVM46: 0 | AVO46: 0 | AVQ46: 0 | AVS46: 0 | AVU46: 0 | AVW46: 0 | AVY46: 0 | AWA46: 0 | AWC46: 0 | AWE46: 0 | AWG46: 0 | AWI46: 0 | AWK46: 0 | AWM46: 0 | AWO46: 0 | AWQ46: 0 | AWS46: 0 | AWU46: 0 | AWW46: 0 | AWY46: 0 | AXA46: 0 | AXC46: 0 | AXE46: 0 | AXG46: 0 | AXI46: 0 | AXK46: 0 | AXM46: 0 | AXO46: 0 | AXQ46: 0 | AXS46: 0 | AXU46: 0 | AXW46: 0 | AXY46: 0 | AYA46: 0 | AYC46: 0 | AYE46: 0 | AYG46: 0 | AYI46: 0 | AYK46: 0 | AYM46: 0 | AYO46: 0 | AYQ46: 0 | AYS46: 0 | AYU46: 0 | AYW46: 0 | AYY46: 0 | AZA46: 0 | AZC46: 0 | AZE46: 0 | AZG46: 0 | AZI46: 0 | AZK46: 0 | AZM46: 0 | AZO46: 0 | AZQ46: 0 | AZS46: 0 | AZU46: 0 | AZW46: 0 | AZY46: 0 | BAA46: 0 | BAC46: 0 | BAE46: 0 | BAG46: 0 | BAI46: 0 | BAK46: 0 | BAM46: 0 | BAO46: 0 | BAQ46: 0 | BAS46: 0 | BAU46: 0 | BAW46: 0 | BAY46: 0 | BBA46: 0 | BBC46: 0 | BBE46: 0 | BBG46: 0 | BBI46: 0 | BBK46: 0 | BBM46: 0 | BBO46: 0 | BBQ46: 0 | BBS46: 0 | BBU46: 0 | BBW46: 0 | BBY46: 0 | BCA46: 0 | BCC46: 0 | BCE46: 0 | BCG46: 0 | BCI46: 0 | BCK46: 0 | BCM46: 0 | BCO46: 0 | BCQ46: 0 | BCS46: 0 | BCU46: 0 | BCW46: 0 | BCY46: 0 | BDA46: 0 | BDC46: 0 | BDE46: 0 | BDG46: 0 | BDI46: 0 | BDK46: 0 | BDM46: 0 | BDO46: 0 | BDQ46: 0 | BDS46: 0 | BDU46: 0 | BDW46: 0 | BDY46: 0 | BEA46: 0 | BEC46: 0 | BEE46: 0 | BEG46: 0 | BEI46: 0 | BEK46: 0 | BEM46: 0 | BEO46: 0 | BEQ46: 0 | BES46: 0 | BEU46: 0 | BEW46: 0 | BEY46: 0 | BFA46: 0 | BFC46: 0 | BFE46: 0 | BFG46: 0 | BFI46: 0 | BFK46: 0 | BFM46: 0 | BFO46: 0 | BFQ46: 0 | BFS46: 0 | BFU46: 0 | BFW46: 0 | BFY46: 0 | BGA46: 0 | BGC46: 0 | BGE46: 0 | BGG46: 0 | BGI46: 0 | BGK46: 0 | BGM46: 0 | BGO46: 0 | BGQ46: 0 | BGS46: 0 | BGU46: 0 | BGW46: 0 | BGY46: 0 | BHA46: 0 | BHC46: 0 | BHE46: 0 | BHG46: 0 | BHI46: 0 | BHK46: 0 | BHM46: 0 | BHO46: 0 | BHQ46: 0 | BHS46: 0 | BHU46: 0 | BHW46: 0 | BHY46: 0 | BIA46: 0 | BIC46: 0 | BIE46: 0 | BIG46: 0 | BII46: 0 | BIK46: 0 | BIM46: 0 | BIO46: 0 | BIQ46: 0 | BIS46: 0 | BIU46: 0 | BIW46: 0 | BIY46: 0 | BJA46: 0 | BJC46: 0 | BJE46: 0 | BJG46: 0 | BJI46: 0 | BJK46: 0 | BJM46: 0 | BJO46: 0 | BJQ46: 0 | BJS46: 0 | BJU46: 0 | BJW46: 0 | BJY46: 0 | BKA46: 0 | BKC46: 0 | BKE46: 0 | BKG46: 0 | BKI46: 0 | BKK46: 0 | BKM46: 0 | BKO46: 0 | BKQ46: 0 | BKS46: 0 | BKU46: 0 | BKW46: 0 | BKY46: 0 | BLA46: 0 | BLC46: 0 | BLE46: 0 | BLG46: 0 | BLI46: 0 | BLK46: 0 | BLM46: 0 | BLO46: 0 | BLQ46: 0 | BLS46: 0 | BLU46: 0 | BLW46: 0 | BLY46: 0 | BMA46: 0 | BMC46: 0 | BME46: 0 | BMG46: 0 | BMI46: 0 | BMK46: 0 | BMM46: 0 | BMO46: 0 | BMQ46: 0 | BMS46: 0 | BMU46: 0 | BMW46: 0 | BMY46: 0 | BNA46: 0 | BNC46: 0 | BNE46: 0 | BNG46: 0 | BNI46: 0 | BNK46: 0 | BNM46: 0 | BNO46: 0 | BNQ46: 0 | BNS46: 0 | BNU46: 0 | BNW46: 0 | BNY46: 0 | BOA46: 0 | BOC46: 0 | BOE46: 0 | BOG46: 0 | BOI46: 0 | BOK46: 0 | BOM46: 0 | BOO46: 0 | BOQ46: 0 | BOS46: 0 | BOU46: 0 | BOW46: 0 | BOY46: 0 | BPA46: 0 | BPC46: 0 | BPE46: 0 | BPG46: 0 | BPI46: 0 | BPK46: 0 | BPM46: 0 | BPO46: 0 | BPQ46: 0 | BPS46: 0 | BPU46: 0 | BPW46: 0 | BPY46: 0 | BQA46: 0 | BQC46: 0 | BQE46: 0 | BQG46: 0 | BQI46: 0 | BQK46: 0 | BQM46: 0 | BQO46: 0 | BQQ46: 0 | BQS46: 0 | BQU46: 0 | BQW46: 0 | BQY46: 0 | BRA46: 0 | BRC46: 0 | BRE46: 0 | BRG46: 0 | BRI46: 0 | BRK46: 0 | BRM46: 0 | BRO46: 0 | BRQ46: 0 | BRS46: 0 | BRU46: 0 | BRW46: 0 | BRY46: 0 | BSA46: 0 | BSC46: 0 | BSE46: 0 | BSG46: 0 | BSI46: 0 | BSK46: 0 | BSM46: 0 | BSO46: 0 | BSQ46: 0 | BSS46: 0 | BSU46: 0 | BSW46: 0 | BSY46: 0 | BTA46: 0 | BTC46: 0 | BTE46: 0 | BTG46: 0 | BTI46: 0 | BTK46: 0 | BTM46: 0 | BTO46: 0 | BTQ46: 0 | BTS46: 0 | BTU46: 0 | BTW46: 0 | BTY46: 0 | BUA46: 0 | BUC46: 0 | BUE46: 0 | BUG46: 0 | BUI46: 0 | BUK46: 0 | BUM46: 0 | BUO46: 0 | BUQ46: 0 | BUS46: 0 | BUU46: 0 | BUW46: 0 | BUY46: 0 | BVA46: 0 | BVC46: 0 | BVE46: 0 | BVG46: 0 | BVI46: 0 | BVK46: 0 | BVM46: 0 | BVO46: 0 | BVQ46: 0 | BVS46: 0 | BVU46: 0 | BVW46: 0 | BVY46: 0 | BWA46: 0 | BWC46: 0 | BWE46: 0 | BWG46: 0 | BWI46: 0 | BWK46: 0 | BWM46: 0 | BWO46: 0 | BWQ46: 0 | BWS46: 0 | BWU46: 0 | BWW46: 0 | BWY46: 0 | BXA46: 0 | BXC46: 0 | BXE46: 0 | BXG46: 0 | BXI46: 0 | BXK46: 0 | BXM46: 0 | BXO46: 0 | BXQ46: 0 | BXS46: 0 | BXU46: 0 | BXW46: 0 | BXY46: 0 | BYA46: 0 | BYC46: 0 | BYE46: 0 | BYG46: 0 | BYI46: 0 | BYK46: 0 | BYM46: 0 | BYO46: 0 | BYQ46: 0 | BYS46: 0 | BYU46: 0 | BYW46: 0 | BYY46: 0 | BZA46: 0 | BZC46: 0 | BZE46: 0 | BZG46: 0 | BZI46: 0 | BZK46: 0 | BZM46: 0 | BZO46: 0 | BZQ46: 0 | BZS46: 0 | BZU46: 0 | BZW46: 0 | BZY46: 0 | CAA46: 0 | CAC46: 0 | CAE46: 0 | CAG46: 0 | CAI46: 0 | CAK46: 0 | CAM46: 0 | CAO46: 0 | CAQ46: 0 | CAS46: 0 | CAU46: 0 | CAW46: 0 | CAY46: 0 | CBA46: 0 | CBC46: 0 | CBE46: 0 | CBG46: 0
A47: 8 | C47: 0 | E47: 0 | G47: 0 | I47: 0 | K47: 0 | M47: 0 | O47: 0 | Q47: 0 | S47: 0 | U47: 0 | W47: 0 | Y47: 0 | AA47: 0 | AC47: 0 | AE47: 0 | AG47: 0 | AI47: 0 | AK47: 0 | AM47: 0 | AO47: 0 | AQ47: 0 | AS47: 0 | AU47: 0 | AW47: 0 | AY47: 0 | BA47: 0 | BC47: 0 | BE47: 0 | BG47: 0 | BI47: 0 | BK47: 0 | BM47: 0 | BO47: 0 | BQ47: 0 | BS47: 0 | BU47: 0 | BW47: 0 | BY47: 0 | CA47: 0 | CC47: 0 | CE47: 0 | CG47: 0 | CI47: 0 | CK47: 0 | CM47: 0 | CO47: 0 | CQ47: 0 | CS47: 0 | CU47: 0 | CW47: 0 | CY47: 0 | DA47: 0 | DC47: 0 | DE47: 0 | DG47: 0 | DI47: 0 | DK47: 0 | DM47: 0 | DO47: 0 | DQ47: 0 | DS47: 0 | DU47: 0 | DW47: 0 | DY47: 0 | EA47: 0 | EC47: 0 | EE47: 0 | EG47: 0 | EI47: 0 | EK47: 0 | EM47: 0 | EO47: 0 | EQ47: 0 | ES47: 0 | EU47: 0 | EW47: 0 | EY47: 0 | FA47: 0 | FC47: 0 | FE47: 0 | FG47: 0 | FI47: 0 | FK47: 0 | FM47: 0 | FO47: 0 | FQ47: 0 | FS47: 0 | FU47: 0 | FW47: 0 | FY47: 0 | GA47: 0 | GC47: 0 | GE47: 0 | GG47: 0 | GI47: 0 | GK47: 0 | GM47: 0 | GO47: 0 | GQ47: 0 | GS47: 0 | GU47: 0 | GW47: 0 | GY47: 0 | HA47: 0 | HC47: 0 | HE47: 0 | HG47: 0 | HI47: 0 | HK47: 0 | HM47: 0 | HO47: 0 | HQ47: 0 | HS47: 0 | HU47: 0 | HW47: 0 | HY47: 0 | IA47: 0 | IC47: 0 | IE47: 0 | IG47: 0 | II47: 0 | IK47: 0 | IM47: 0 | IO47: 0 | IQ47: 0 | IS47: 0 | IU47: 0 | IW47: 0 | IY47: 0 | JA47: 0 | JC47: 0 | JE47: 0 | JG47: 0 | JI47: 0 | JK47: 0 | JM47: 0 | JO47: 0 | JQ47: 0 | JS47: 0 | JU47: 0 | JW47: 0 | JY47: 0 | KA47: 0 | KC47: 0 | KE47: 0 | KG47: 0 | KI47: 0 | KK47: 0 | KM47: 0 | KO47: 0 | KQ47: 0 | KS47: 0 | KU47: 0 | KW47: 0 | KY47: 0 | LA47: 0 | LC47: 0 | LE47: 0 | LG47: 0 | LI47: 0 | LK47: 0 | LM47: 0 | LO47: 0 | LQ47: 0 | LS47: 0 | LU47: 0 | LW47: 0 | LY47: 0 | MA47: 0 | MC47: 0 | ME47: 0 | MG47: 0 | MI47: 0 | MK47: 0 | MM47: 0 | MO47: 0 | MQ47: 0 | MS47: 0 | MU47: 0 | MW47: 0 | MY47: 0 | NA47: 0 | NC47: 0 | NE47: 0 | NG47: 0 | NI47: 0 | NK47: 0 | NM47: 0 | NO47: 0 | NQ47: 0 | NS47: 0 | NU47: 0 | NW47: 0 | NY47: 0 | OA47: 0 | OC47: 0 | OE47: 0 | OG47: 0 | OI47: 0 | OK47: 0 | OM47: 0 | OO47: 0 | OQ47: 0 | OS47: 0 | OU47: 0 | OW47: 0 | OY47: 0 | PA47: 0 | PC47: 0 | PE47: 0 | PG47: 0 | PI47: 0 | PK47: 0 | PM47: 0 | PO47: 0 | PQ47: 0 | PS47: 0 | PU47: 0 | PW47: 0 | PY47: 0 | QA47: 0 | QC47: 0 | QE47: 0 | QG47: 0 | QI47: 0 | QK47: 0 | QM47: 0 | QO47: 0 | QQ47: 0 | QS47: 0 | QU47: 0 | QW47: 0 | QY47: 0 | RA47: 0 | RC47: 0 | RE47: 0 | RG47: 0 | RI47: 0 | RK47: 0 | RM47: 0 | RO47: 0 | RQ47: 0 | RS47: 0 | RU47: 0 | RW47: 0 | RY47: 0 | SA47: 0 | SC47: 0 | SE47: 0 | SG47: 0 | SI47: 0 | SK47: 0 | SM47: 0 | SO47: 0 | SQ47: 0 | SS47: 0 | SU47: 0 | SW47: 0 | SY47: 0 | TA47: 0 | TC47: 0 | TE47: 0 | TG47: 0 | TI47: 0 | TK47: 0 | TM47: 0 | TO47: 0 | TQ47: 0 | TS47: 0 | TU47: 0 | TW47: 0 | TY47: 0 | UA47: 0 | UC47: 0 | UE47: 0 | UG47: 0 | UI47: 0 | UK47: 0 | UM47: 0 | UO47: 0 | UQ47: 0 | US47: 0 | UU47: 0 | UW47: 0 | UY47: 0 | VA47: 0 | VC47: 0 | VE47: 0 | VG47: 0 | VI47: 0 | VK47: 0 | VM47: 0 | VO47: 0 | VQ47: 0 | VS47: 0 | VU47: 0 | VW47: 0 | VY47: 0 | WA47: 0 | WC47: 0 | WE47: 0 | WG47: 0 | WI47: 0 | WK47: 0 | WM47: 0 | WO47: 0 | WQ47: 0 | WS47: 0 | WU47: 0 | WW47: 0 | WY47: 0 | XA47: 0 | XC47: 0 | XE47: 0 | XG47: 0 | XI47: 0 | XK47: 0 | XM47: 0 | XO47: 0 | XQ47: 0 | XS47: 0 | XU47: 0 | XW47: 0 | XY47: 0 | YA47: 0 | YC47: 0 | YE47: 0 | YG47: 0 | YI47: 0 | YK47: 0 | YM47: 0 | YO47: 0 | YQ47: 0 | YS47: 0 | YU47: 0 | YW47: 0 | YY47: 0 | ZA47: 0 | ZC47: 0 | ZE47: 0 | ZG47: 0 | ZI47: 0 | ZK47: 0 | ZM47: 0 | ZO47: 0 | ZQ47: 0 | ZS47: 0 | ZU47: 0 | ZW47: 0 | ZY47: 0 | AAA47: 0 | AAC47: 0 | AAE47: 0 | AAG47: 0 | AAI47: 0 | AAK47: 0 | AAM47: 0 | AAO47: 0 | AAQ47: 0 | AAS47: 0 | AAU47: 0 | AAW47: 0 | AAY47: 0 | ABA47: 0 | ABC47: 0 | ABE47: 0 | ABG47: 0 | ABI47: 0 | ABK47: 0 | ABM47: 0 | ABO47: 0 | ABQ47: 0 | ABS47: 0 | ABU47: 0 | ABW47: 0 | ABY47: 0 | ACA47: 0 | ACC47: 0 | ACE47: 0 | ACG47: 0 | ACI47: 0 | ACK47: 0 | ACM47: 0 | ACO47: 0 | ACQ47: 0 | ACS47: 0 | ACU47: 0 | ACW47: 0 | ACY47: 0 | ADA47: 0 | ADC47: 0 | ADE47: 0 | ADG47: 0 | ADI47: 0 | ADK47: 0 | ADM47: 0 | ADO47: 0 | ADQ47: 0 | ADS47: 0 | ADU47: 0 | ADW47: 0 | ADY47: 0 | AEA47: 0 | AEC47: 0 | AEE47: 0 | AEG47: 0 | AEI47: 0 | AEK47: 0 | AEM47: 0 | AEO47: 0 | AEQ47: 0 | AES47: 0 | AEU47: 0 | AEW47: 0 | AEY47: 0 | AFA47: 0 | AFC47: 0 | AFE47: 0 | AFG47: 0 | AFI47: 0 | AFK47: 0 | AFM47: 0 | AFO47: 0 | AFQ47: 0 | AFS47: 0 | AFU47: 0 | AFW47: 0 | AFY47: 0 | AGA47: 0 | AGC47: 0 | AGE47: 0 | AGG47: 0 | AGI47: 0 | AGK47: 0 | AGM47: 0 | AGO47: 0 | AGQ47: 0 | AGS47: 0 | AGU47: 0 | AGW47: 0 | AGY47: 0 | AHA47: 0 | AHC47: 0 | AHE47: 0 | AHG47: 0 | AHI47: 0 | AHK47: 0 | AHM47: 0 | AHO47: 0 | AHQ47: 0 | AHS47: 0 | AHU47: 0 | AHW47: 0 | AHY47: 0 | AIA47: 0 | AIC47: 0 | AIE47: 0 | AIG47: 0 | AII47: 0 | AIK47: 0 | AIM47: 0 | AIO47: 0 | AIQ47: 0 | AIS47: 0 | AIU47: 0 | AIW47: 0 | AIY47: 0 | AJA47: 0 | AJC47: 0 | AJE47: 0 | AJG47: 0 | AJI47: 0 | AJK47: 0 | AJM47: 0 | AJO47: 0 | AJQ47: 0 | AJS47: 0 | AJU47: 0 | AJW47: 0 | AJY47: 0 | AKA47: 0 | AKC47: 0 | AKE47: 0 | AKG47: 0 | AKI47: 0 | AKK47: 0 | AKM47: 0 | AKO47: 0 | AKQ47: 0 | AKS47: 0 | AKU47: 0 | AKW47: 0 | AKY47: 0 | ALA47: 0 | ALC47: 0 | ALE47: 0 | ALG47: 0 | ALI47: 0 | ALK47: 0 | ALM47: 0 | ALO47: 0 | ALQ47: 0 | ALS47: 0 | ALU47: 0 | ALW47: 0 | ALY47: 0 | AMA47: 0 | AMC47: 0 | AME47: 0 | AMG47: 0 | AMI47: 0 | AMK47: 0 | AMM47: 0 | AMO47: 0 | AMQ47: 0 | AMS47: 0 | AMU47: 0 | AMW47: 0 | AMY47: 0 | ANA47: 0 | ANC47: 0 | ANE47: 0 | ANG47: 0 | ANI47: 0 | ANK47: 0 | ANM47: 0 | ANO47: 0 | ANQ47: 0 | ANS47: 0 | ANU47: 0 | ANW47: 0 | ANY47: 0 | AOA47: 0 | AOC47: 0 | AOE47: 0 | AOG47: 0 | AOI47: 0 | AOK47: 0 | AOM47: 0 | AOO47: 0 | AOQ47: 0 | AOS47: 0 | AOU47: 0 | AOW47: 0 | AOY47: 0 | APA47: 0 | APC47: 0 | APE47: 0 | APG47: 0 | API47: 0 | APK47: 0 | APM47: 0 | APO47: 0 | APQ47: 0 | APS47: 0 | APU47: 0 | APW47: 0 | APY47: 0 | AQA47: 0 | AQC47: 0 | AQE47: 0 | AQG47: 0 | AQI47: 0 | AQK47: 0 | AQM47: 0 | AQO47: 0 | AQQ47: 0 | AQS47: 0 | AQU47: 0 | AQW47: 0 | AQY47: 0 | ARA47: 0 | ARC47: 0 | ARE47: 0 | ARG47: 0 | ARI47: 0 | ARK47: 0 | ARM47: 0 | ARO47: 0 | ARQ47: 0 | ARS47: 0 | ARU47: 0 | ARW47: 0 | ARY47: 0 | ASA47: 0 | ASC47: 0 | ASE47: 0 | ASG47: 0 | ASI47: 0 | ASK47: 0 | ASM47: 0 | ASO47: 0 | ASQ47: 0 | ASS47: 0 | ASU47: 0 | ASW47: 0 | ASY47: 0 | ATA47: 0 | ATC47: 0 | ATE47: 0 | ATG47: 0 | ATI47: 0 | ATK47: 0 | ATM47: 0 | ATO47: 0 | ATQ47: 0 | ATS47: 0 | ATU47: 0 | ATW47: 0 | ATY47: 0 | AUA47: 0 | AUC47: 0 | AUE47: 0 | AUG47: 0 | AUI47: 0 | AUK47: 0 | AUM47: 0 | AUO47: 0 | AUQ47: 0 | AUS47: 0 | AUU47: 0 | AUW47: 0 | AUY47: 0 | AVA47: 0 | AVC47: 0 | AVE47: 0 | AVG47: 0 | AVI47: 0 | AVK47: 0 | AVM47: 0 | AVO47: 0 | AVQ47: 0 | AVS47: 0 | AVU47: 0 | AVW47: 0 | AVY47: 0 | AWA47: 0 | AWC47: 0 | AWE47: 0 | AWG47: 0 | AWI47: 0 | AWK47: 0 | AWM47: 0 | AWO47: 0 | AWQ47: 0 | AWS47: 0 | AWU47: 0 | AWW47: 0 | AWY47: 0 | AXA47: 0 | AXC47: 0 | AXE47: 0 | AXG47: 0 | AXI47: 0 | AXK47: 0 | AXM47: 0 | AXO47: 0 | AXQ47: 0 | AXS47: 0 | AXU47: 0 | AXW47: 0 | AXY47: 0 | AYA47: 0 | AYC47: 0 | AYE47: 0 | AYG47: 0 | AYI47: 0 | AYK47: 0 | AYM47: 0 | AYO47: 0 | AYQ47: 0 | AYS47: 0 | AYU47: 0 | AYW47: 0 | AYY47: 0 | AZA47: 0 | AZC47: 0 | AZE47: 0 | AZG47: 0 | AZI47: 0 | AZK47: 0 | AZM47: 0 | AZO47: 0 | AZQ47: 0 | AZS47: 0 | AZU47: 0 | AZW47: 0 | AZY47: 0 | BAA47: 0 | BAC47: 0 | BAE47: 0 | BAG47: 0 | BAI47: 0 | BAK47: 0 | BAM47: 0 | BAO47: 0 | BAQ47: 0 | BAS47: 0 | BAU47: 0 | BAW47: 0 | BAY47: 0 | BBA47: 0 | BBC47: 0 | BBE47: 0 | BBG47: 0 | BBI47: 0 | BBK47: 0 | BBM47: 0 | BBO47: 0 | BBQ47: 0 | BBS47: 0 | BBU47: 0 | BBW47: 0 | BBY47: 0 | BCA47: 0 | BCC47: 0 | BCE47: 0 | BCG47: 0 | BCI47: 0 | BCK47: 0 | BCM47: 0 | BCO47: 0 | BCQ47: 0 | BCS47: 0 | BCU47: 0 | BCW47: 0 | BCY47: 0 | BDA47: 0 | BDC47: 0 | BDE47: 0 | BDG47: 0 | BDI47: 0 | BDK47: 0 | BDM47: 0 | BDO47: 0 | BDQ47: 0 | BDS47: 0 | BDU47: 0 | BDW47: 0 | BDY47: 0 | BEA47: 0 | BEC47: 0 | BEE47: 0 | BEG47: 0 | BEI47: 0 | BEK47: 0 | BEM47: 0 | BEO47: 0 | BEQ47: 0 | BES47: 0 | BEU47: 0 | BEW47: 0 | BEY47: 0 | BFA47: 0 | BFC47: 0 | BFE47: 0 | BFG47: 0 | BFI47: 0 | BFK47: 0 | BFM47: 0 | BFO47: 0 | BFQ47: 0 | BFS47: 0 | BFU47: 0 | BFW47: 0 | BFY47: 0 | BGA47: 0 | BGC47: 0 | BGE47: 0 | BGG47: 0 | BGI47: 0 | BGK47: 0 | BGM47: 0 | BGO47: 0 | BGQ47: 0 | BGS47: 0 | BGU47: 0 | BGW47: 0 | BGY47: 0 | BHA47: 0 | BHC47: 0 | BHE47: 0 | BHG47: 0 | BHI47: 0 | BHK47: 0 | BHM47: 0 | BHO47: 0 | BHQ47: 0 | BHS47: 0 | BHU47: 0 | BHW47: 0 | BHY47: 0 | BIA47: 0 | BIC47: 0 | BIE47: 0 | BIG47: 0 | BII47: 0 | BIK47: 0 | BIM47: 0 | BIO47: 0 | BIQ47: 0 | BIS47: 0 | BIU47: 0 | BIW47: 0 | BIY47: 0 | BJA47: 0 | BJC47: 0 | BJE47: 0 | BJG47: 0 | BJI47: 0 | BJK47: 0 | BJM47: 0 | BJO47: 0 | BJQ47: 0 | BJS47: 0 | BJU47: 0 | BJW47: 0 | BJY47: 0 | BKA47: 0 | BKC47: 0 | BKE47: 0 | BKG47: 0 | BKI47: 0 | BKK47: 0 | BKM47: 0 | BKO47: 0 | BKQ47: 0 | BKS47: 0 | BKU47: 0 | BKW47: 0 | BKY47: 0 | BLA47: 0 | BLC47: 0 | BLE47: 0 | BLG47: 0 | BLI47: 0 | BLK47: 0 | BLM47: 0 | BLO47: 0 | BLQ47: 0 | BLS47: 0 | BLU47: 0 | BLW47: 0 | BLY47: 0 | BMA47: 0 | BMC47: 0 | BME47: 0 | BMG47: 0 | BMI47: 0 | BMK47: 0 | BMM47: 0 | BMO47: 0 | BMQ47: 0 | BMS47: 0 | BMU47: 0 | BMW47: 0 | BMY47: 0 | BNA47: 0 | BNC47: 0 | BNE47: 0 | BNG47: 0 | BNI47: 0 | BNK47: 0 | BNM47: 0 | BNO47: 0 | BNQ47: 0 | BNS47: 0 | BNU47: 0 | BNW47: 0 | BNY47: 0 | BOA47: 0 | BOC47: 0 | BOE47: 0 | BOG47: 0 | BOI47: 0 | BOK47: 0 | BOM47: 0 | BOO47: 0 | BOQ47: 0 | BOS47: 0 | BOU47: 0 | BOW47: 0 | BOY47: 0 | BPA47: 0 | BPC47: 0 | BPE47: 0 | BPG47: 0 | BPI47: 0 | BPK47: 0 | BPM47: 0 | BPO47: 0 | BPQ47: 0 | BPS47: 0 | BPU47: 0 | BPW47: 0 | BPY47: 0 | BQA47: 0 | BQC47: 0 | BQE47: 0 | BQG47: 0 | BQI47: 0 | BQK47: 0 | BQM47: 0 | BQO47: 0 | BQQ47: 0 | BQS47: 0 | BQU47: 0 | BQW47: 0 | BQY47: 0 | BRA47: 0 | BRC47: 0 | BRE47: 0 | BRG47: 0 | BRI47: 0 | BRK47: 0 | BRM47: 0 | BRO47: 0 | BRQ47: 0 | BRS47: 0 | BRU47: 0 | BRW47: 0 | BRY47: 0 | BSA47: 0 | BSC47: 0 | BSE47: 0 | BSG47: 0 | BSI47: 0 | BSK47: 0 | BSM47: 0 | BSO47: 0 | BSQ47: 0 | BSS47: 0 | BSU47: 0 | BSW47: 0 | BSY47: 0 | BTA47: 0 | BTC47: 0 | BTE47: 0 | BTG47: 0 | BTI47: 0 | BTK47: 0 | BTM47: 0 | BTO47: 0 | BTQ47: 0 | BTS47: 0 | BTU47: 0 | BTW47: 0 | BTY47: 0 | BUA47: 0 | BUC47: 0 | BUE47: 0 | BUG47: 0 | BUI47: 0 | BUK47: 0 | BUM47: 0 | BUO47: 0 | BUQ47: 0 | BUS47: 0 | BUU47: 0 | BUW47: 0 | BUY47: 0 | BVA47: 0 | BVC47: 0 | BVE47: 0 | BVG47: 0 | BVI47: 0 | BVK47: 0 | BVM47: 0 | BVO47: 0 | BVQ47: 0 | BVS47: 0 | BVU47: 0 | BVW47: 0 | BVY47: 0 | BWA47: 0 | BWC47: 0 | BWE47: 0 | BWG47: 0 | BWI47: 0 | BWK47: 0 | BWM47: 0 | BWO47: 0 | BWQ47: 0 | BWS47: 0 | BWU47: 0 | BWW47: 0 | BWY47: 0 | BXA47: 0 | BXC47: 0 | BXE47: 0 | BXG47: 0 | BXI47: 0 | BXK47: 0 | BXM47: 0 | BXO47: 0 | BXQ47: 0 | BXS47: 0 | BXU47: 0 | BXW47: 0 | BXY47: 0 | BYA47: 0 | BYC47: 0 | BYE47: 0 | BYG47: 0 | BYI47: 0 | BYK47: 0 | BYM47: 0 | BYO47: 0 | BYQ47: 0 | BYS47: 0 | BYU47: 0 | BYW47: 0 | BYY47: 0 | BZA47: 0 | BZC47: 0 | BZE47: 0 | BZG47: 0 | BZI47: 0 | BZK47: 0 | BZM47: 0 | BZO47: 0 | BZQ47: 0 | BZS47: 0 | BZU47: 0 | BZW47: 0 | BZY47: 0 | CAA47: 0 | CAC47: 0 | CAE47: 0 | CAG47: 0 | CAI47: 0 | CAK47: 0 | CAM47: 0 | CAO47: 0 | CAQ47: 0 | CAS47: 0 | CAU47: 0 | CAW47: 0 | CAY47: 0 | CBA47: 0 | CBC47: 0 | CBE47: 0 | CBG47: 0
A48: 9 | C48: 0 | E48: 0 | G48: 0 | I48: 0 | K48: 0 | M48: 0 | O48: 0 | Q48: 0 | S48: 0 | U48: 0 | W48: 0 | Y48: 0 | AA48: 0 | AC48: 0 | AE48: 0 | AG48: 0 | AI48: 0 | AK48: 0 | AM48: 0 | AO48: 0 | AQ48: 0 | AS48: 0 | AU48: 0 | AW48: 0 | AY48: 0 | BA48: 0 | BC48: 0 | BE48: 0 | BG48: 0 | BI48: 0 | BK48: 0 | BM48: 0 | BO48: 0 | BQ48: 0 | BS48: 0 | BU48: 0 | BW48: 0 | BY48: 0 | CA48: 0 | CC48: 0 | CE48: 0 | CG48: 0 | CI48: 0 | CK48: 0 | CM48: 0 | CO48: 0 | CQ48: 0 | CS48: 0 | CU48: 0 | CW48: 0 | CY48: 0 | DA48: 0 | DC48: 0 | DE48: 0 | DG48: 0 | DI48: 0 | DK48: 0 | DM48: 0 | DO48: 0 | DQ48: 0 | DS48: 0 | DU48: 0 | DW48: 0 | DY48: 0 | EA48: 0 | EC48: 0 | EE48: 0 | EG48: 0 | EI48: 0 | EK48: 0 | EM48: 0 | EO48: 0 | EQ48: 0 | ES48: 0 | EU48: 0 | EW48: 0 | EY48: 0 | FA48: 0 | FC48: 0 | FE48: 0 | FG48: 0 | FI48: 0 | FK48: 0 | FM48: 0 | FO48: 0 | FQ48: 0 | FS48: 0 | FU48: 0 | FW48: 0 | FY48: 0 | GA48: 0 | GC48: 0 | GE48: 0 | GG48: 0 | GI48: 0 | GK48: 0 | GM48: 0 | GO48: 0 | GQ48: 0 | GS48: 0 | GU48: 0 | GW48: 0 | GY48: 0 | HA48: 0 | HC48: 0 | HE48: 0 | HG48: 0 | HI48: 0 | HK48: 0 | HM48: 0 | HO48: 0 | HQ48: 0 | HS48: 0 | HU48: 0 | HW48: 0 | HY48: 0 | IA48: 0 | IC48: 0 | IE48: 0 | IG48: 0 | II48: 0 | IK48: 0 | IM48: 0 | IO48: 0 | IQ48: 0 | IS48: 0 | IU48: 0 | IW48: 0 | IY48: 0 | JA48: 0 | JC48: 0 | JE48: 0 | JG48: 0 | JI48: 0 | JK48: 0 | JM48: 0 | JO48: 0 | JQ48: 0 | JS48: 0 | JU48: 0 | JW48: 0 | JY48: 0 | KA48: 0 | KC48: 0 | KE48: 0 | KG48: 0 | KI48: 0 | KK48: 0 | KM48: 0 | KO48: 0 | KQ48: 0 | KS48: 0 | KU48: 0 | KW48: 0 | KY48: 0 | LA48: 0 | LC48: 0 | LE48: 0 | LG48: 0 | LI48: 0 | LK48: 0 | LM48: 0 | LO48: 0 | LQ48: 0 | LS48: 0 | LU48: 0 | LW48: 0 | LY48: 0 | MA48: 0 | MC48: 0 | ME48: 0 | MG48: 0 | MI48: 0 | MK48: 0 | MM48: 0 | MO48: 0 | MQ48: 0 | MS48: 0 | MU48: 0 | MW48: 0 | MY48: 0 | NA48: 0 | NC48: 0 | NE48: 0 | NG48: 0 | NI48: 0 | NK48: 0 | NM48: 0 | NO48: 0 | NQ48: 0 | NS48: 0 | NU48: 0 | NW48: 0 | NY48: 0 | OA48: 0 | OC48: 0 | OE48: 0 | OG48: 0 | OI48: 0 | OK48: 0 | OM48: 0 | OO48: 0 | OQ48: 0 | OS48: 0 | OU48: 0 | OW48: 0 | OY48: 0 | PA48: 0 | PC48: 0 | PE48: 0 | PG48: 0 | PI48: 0 | PK48: 0 | PM48: 0 | PO48: 0 | PQ48: 0 | PS48: 0 | PU48: 0 | PW48: 0 | PY48: 0 | QA48: 0 | QC48: 0 | QE48: 0 | QG48: 0 | QI48: 0 | QK48: 0 | QM48: 0 | QO48: 0 | QQ48: 0 | QS48: 0 | QU48: 0 | QW48: 0 | QY48: 0 | RA48: 0 | RC48: 0 | RE48: 0 | RG48: 0 | RI48: 0 | RK48: 0 | RM48: 0 | RO48: 0 | RQ48: 0 | RS48: 0 | RU48: 0 | RW48: 0 | RY48: 0 | SA48: 0 | SC48: 0 | SE48: 0 | SG48: 0 | SI48: 0 | SK48: 0 | SM48: 0 | SO48: 0 | SQ48: 0 | SS48: 0 | SU48: 0 | SW48: 0 | SY48: 0 | TA48: 0 | TC48: 0 | TE48: 0 | TG48: 0 | TI48: 0 | TK48: 0 | TM48: 0 | TO48: 0 | TQ48: 0 | TS48: 0 | TU48: 0 | TW48: 0 | TY48: 0 | UA48: 0 | UC48: 0 | UE48: 0 | UG48: 0 | UI48: 0 | UK48: 0 | UM48: 0 | UO48: 0 | UQ48: 0 | US48: 0 | UU48: 0 | UW48: 0 | UY48: 0 | VA48: 0 | VC48: 0 | VE48: 0 | VG48: 0 | VI48: 0 | VK48: 0 | VM48: 0 | VO48: 0 | VQ48: 0 | VS48: 0 | VU48: 0 | VW48: 0 | VY48: 0 | WA48: 0 | WC48: 0 | WE48: 0 | WG48: 0 | WI48: 0 | WK48: 0 | WM48: 0 | WO48: 0 | WQ48: 0 | WS48: 0 | WU48: 0 | WW48: 0 | WY48: 0 | XA48: 0 | XC48: 0 | XE48: 0 | XG48: 0 | XI48: 0 | XK48: 0 | XM48: 0 | XO48: 0 | XQ48: 0 | XS48: 0 | XU48: 0 | XW48: 0 | XY48: 0 | YA48: 0 | YC48: 0 | YE48: 0 | YG48: 0 | YI48: 0 | YK48: 0 | YM48: 0 | YO48: 0 | YQ48: 0 | YS48: 0 | YU48: 0 | YW48: 0 | YY48: 0 | ZA48: 0 | ZC48: 0 | ZE48: 0 | ZG48: 0 | ZI48: 0 | ZK48: 0 | ZM48: 0 | ZO48: 0 | ZQ48: 0 | ZS48: 0 | ZU48: 0 | ZW48: 0 | ZY48: 0 | AAA48: 0 | AAC48: 0 | AAE48: 0 | AAG48: 0 | AAI48: 0 | AAK48: 0 | AAM48: 0 | AAO48: 0 | AAQ48: 0 | AAS48: 0 | AAU48: 0 | AAW48: 0 | AAY48: 0 | ABA48: 0 | ABC48: 0 | ABE48: 0 | ABG48: 0 | ABI48: 0 | ABK48: 0 | ABM48: 0 | ABO48: 0 | ABQ48: 0 | ABS48: 0 | ABU48: 0 | ABW48: 0 | ABY48: 0 | ACA48: 0 | ACC48: 0 | ACE48: 0 | ACG48: 0 | ACI48: 0 | ACK48: 0 | ACM48: 0 | ACO48: 0 | ACQ48: 0 | ACS48: 0 | ACU48: 0 | ACW48: 0 | ACY48: 0 | ADA48: 0 | ADC48: 0 | ADE48: 0 | ADG48: 0 | ADI48: 0 | ADK48: 0 | ADM48: 0 | ADO48: 0 | ADQ48: 0 | ADS48: 0 | ADU48: 0 | ADW48: 0 | ADY48: 0 | AEA48: 0 | AEC48: 0 | AEE48: 0 | AEG48: 0 | AEI48: 0 | AEK48: 0 | AEM48: 0 | AEO48: 0 | AEQ48: 0 | AES48: 0 | AEU48: 0 | AEW48: 0 | AEY48: 0 | AFA48: 0 | AFC48: 0 | AFE48: 0 | AFG48: 0 | AFI48: 0 | AFK48: 0 | AFM48: 0 | AFO48: 0 | AFQ48: 0 | AFS48: 0 | AFU48: 0 | AFW48: 0 | AFY48: 0 | AGA48: 0 | AGC48: 0 | AGE48: 0 | AGG48: 0 | AGI48: 0 | AGK48: 0 | AGM48: 0 | AGO48: 0 | AGQ48: 0 | AGS48: 0 | AGU48: 0 | AGW48: 0 | AGY48: 0 | AHA48: 0 | AHC48: 0 | AHE48: 0 | AHG48: 0 | AHI48: 0 | AHK48: 0 | AHM48: 0 | AHO48: 0 | AHQ48: 0 | AHS48: 0 | AHU48: 0 | AHW48: 0 | AHY48: 0 | AIA48: 0 | AIC48: 0 | AIE48: 0 | AIG48: 0 | AII48: 0 | AIK48: 0 | AIM48: 0 | AIO48: 0 | AIQ48: 0 | AIS48: 0 | AIU48: 0 | AIW48: 0 | AIY48: 0 | AJA48: 0 | AJC48: 0 | AJE48: 0 | AJG48: 0 | AJI48: 0 | AJK48: 0 | AJM48: 0 | AJO48: 0 | AJQ48: 0 | AJS48: 0 | AJU48: 0 | AJW48: 0 | AJY48: 0 | AKA48: 0 | AKC48: 0 | AKE48: 0 | AKG48: 0 | AKI48: 0 | AKK48: 0 | AKM48: 0 | AKO48: 0 | AKQ48: 0 | AKS48: 0 | AKU48: 0 | AKW48: 0 | AKY48: 0 | ALA48: 0 | ALC48: 0 | ALE48: 0 | ALG48: 0 | ALI48: 0 | ALK48: 0 | ALM48: 0 | ALO48: 0 | ALQ48: 0 | ALS48: 0 | ALU48: 0 | ALW48: 0 | ALY48: 0 | AMA48: 0 | AMC48: 0 | AME48: 0 | AMG48: 0 | AMI48: 0 | AMK48: 0 | AMM48: 0 | AMO48: 0 | AMQ48: 0 | AMS48: 0 | AMU48: 0 | AMW48: 0 | AMY48: 0 | ANA48: 0 | ANC48: 0 | ANE48: 0 | ANG48: 0 | ANI48: 0 | ANK48: 0 | ANM48: 0 | ANO48: 0 | ANQ48: 0 | ANS48: 0 | ANU48: 0 | ANW48: 0 | ANY48: 0 | AOA48: 0 | AOC48: 0 | AOE48: 0 | AOG48: 0 | AOI48: 0 | AOK48: 0 | AOM48: 0 | AOO48: 0 | AOQ48: 0 | AOS48: 0 | AOU48: 0 | AOW48: 0 | AOY48: 0 | APA48: 0 | APC48: 0 | APE48: 0 | APG48: 0 | API48: 0 | APK48: 0 | APM48: 0 | APO48: 0 | APQ48: 0 | APS48: 0 | APU48: 0 | APW48: 0 | APY48: 0 | AQA48: 0 | AQC48: 0 | AQE48: 0 | AQG48: 0 | AQI48: 0 | AQK48: 0 | AQM48: 0 | AQO48: 0 | AQQ48: 0 | AQS48: 0 | AQU48: 0 | AQW48: 0 | AQY48: 0 | ARA48: 0 | ARC48: 0 | ARE48: 0 | ARG48: 0 | ARI48: 0 | ARK48: 0 | ARM48: 0 | ARO48: 0 | ARQ48: 0 | ARS48: 0 | ARU48: 0 | ARW48: 0 | ARY48: 0 | ASA48: 0 | ASC48: 0 | ASE48: 0 | ASG48: 0 | ASI48: 0 | ASK48: 0 | ASM48: 0 | ASO48: 0 | ASQ48: 0 | ASS48: 0 | ASU48: 0 | ASW48: 0 | ASY48: 0 | ATA48: 0 | ATC48: 0 | ATE48: 0 | ATG48: 0 | ATI48: 0 | ATK48: 0 | ATM48: 0 | ATO48: 0 | ATQ48: 0 | ATS48: 0 | ATU48: 0 | ATW48: 0 | ATY48: 0 | AUA48: 0 | AUC48: 0 | AUE48: 0 | AUG48: 0 | AUI48: 0 | AUK48: 0 | AUM48: 0 | AUO48: 0 | AUQ48: 0 | AUS48: 0 | AUU48: 0 | AUW48: 0 | AUY48: 0 | AVA48: 0 | AVC48: 0 | AVE48: 0 | AVG48: 0 | AVI48: 0 | AVK48: 0 | AVM48: 0 | AVO48: 0 | AVQ48: 0 | AVS48: 0 | AVU48: 0 | AVW48: 0 | AVY48: 0 | AWA48: 0 | AWC48: 0 | AWE48: 0 | AWG48: 0 | AWI48: 0 | AWK48: 0 | AWM48: 0 | AWO48: 0 | AWQ48: 0 | AWS48: 0 | AWU48: 0 | AWW48: 0 | AWY48: 0 | AXA48: 0 | AXC48: 0 | AXE48: 0 | AXG48: 0 | AXI48: 0 | AXK48: 0 | AXM48: 0 | AXO48: 0 | AXQ48: 0 | AXS48: 0 | AXU48: 0 | AXW48: 0 | AXY48: 0 | AYA48: 0 | AYC48: 0 | AYE48: 0 | AYG48: 0 | AYI48: 0 | AYK48: 0 | AYM48: 0 | AYO48: 0 | AYQ48: 0 | AYS48: 0 | AYU48: 0 | AYW48: 0 | AYY48: 0 | AZA48: 0 | AZC48: 0 | AZE48: 0 | AZG48: 0 | AZI48: 0 | AZK48: 0 | AZM48: 0 | AZO48: 0 | AZQ48: 0 | AZS48: 0 | AZU48: 0 | AZW48: 0 | AZY48: 0 | BAA48: 0 | BAC48: 0 | BAE48: 0 | BAG48: 0 | BAI48: 0 | BAK48: 0 | BAM48: 0 | BAO48: 0 | BAQ48: 0 | BAS48: 0 | BAU48: 0 | BAW48: 0 | BAY48: 0 | BBA48: 0 | BBC48: 0 | BBE48: 0 | BBG48: 0 | BBI48: 0 | BBK48: 0 | BBM48: 0 | BBO48: 0 | BBQ48: 0 | BBS48: 0 | BBU48: 0 | BBW48: 0 | BBY48: 0 | BCA48: 0 | BCC48: 0 | BCE48: 0 | BCG48: 0 | BCI48: 0 | BCK48: 0 | BCM48: 0 | BCO48: 0 | BCQ48: 0 | BCS48: 0 | BCU48: 0 | BCW48: 0 | BCY48: 0 | BDA48: 0 | BDC48: 0 | BDE48: 0 | BDG48: 0 | BDI48: 0 | BDK48: 0 | BDM48: 0 | BDO48: 0 | BDQ48: 0 | BDS48: 0 | BDU48: 0 | BDW48: 0 | BDY48: 0 | BEA48: 0 | BEC48: 0 | BEE48: 0 | BEG48: 0 | BEI48: 0 | BEK48: 0 | BEM48: 0 | BEO48: 0 | BEQ48: 0 | BES48: 0 | BEU48: 0 | BEW48: 0 | BEY48: 0 | BFA48: 0 | BFC48: 0 | BFE48: 0 | BFG48: 0 | BFI48: 0 | BFK48: 0 | BFM48: 0 | BFO48: 0 | BFQ48: 0 | BFS48: 0 | BFU48: 0 | BFW48: 0 | BFY48: 0 | BGA48: 0 | BGC48: 0 | BGE48: 0 | BGG48: 0 | BGI48: 0 | BGK48: 0 | BGM48: 0 | BGO48: 0 | BGQ48: 0 | BGS48: 0 | BGU48: 0 | BGW48: 0 | BGY48: 0 | BHA48: 0 | BHC48: 0 | BHE48: 0 | BHG48: 0 | BHI48: 0 | BHK48: 0 | BHM48: 0 | BHO48: 0 | BHQ48: 0 | BHS48: 0 | BHU48: 0 | BHW48: 0 | BHY48: 0 | BIA48: 0 | BIC48: 0 | BIE48: 0 | BIG48: 0 | BII48: 0 | BIK48: 0 | BIM48: 0 | BIO48: 0 | BIQ48: 0 | BIS48: 0 | BIU48: 0 | BIW48: 0 | BIY48: 0 | BJA48: 0 | BJC48: 0 | BJE48: 0 | BJG48: 0 | BJI48: 0 | BJK48: 0 | BJM48: 0 | BJO48: 0 | BJQ48: 0 | BJS48: 0 | BJU48: 0 | BJW48: 0 | BJY48: 0 | BKA48: 0 | BKC48: 0 | BKE48: 0 | BKG48: 0 | BKI48: 0 | BKK48: 0 | BKM48: 0 | BKO48: 0 | BKQ48: 0 | BKS48: 0 | BKU48: 0 | BKW48: 0 | BKY48: 0 | BLA48: 0 | BLC48: 0 | BLE48: 0 | BLG48: 0 | BLI48: 0 | BLK48: 0 | BLM48: 0 | BLO48: 0 | BLQ48: 0 | BLS48: 0 | BLU48: 0 | BLW48: 0 | BLY48: 0 | BMA48: 0 | BMC48: 0 | BME48: 0 | BMG48: 0 | BMI48: 0 | BMK48: 0 | BMM48: 0 | BMO48: 0 | BMQ48: 0 | BMS48: 0 | BMU48: 0 | BMW48: 0 | BMY48: 0 | BNA48: 0 | BNC48: 0 | BNE48: 0 | BNG48: 0 | BNI48: 0 | BNK48: 0 | BNM48: 0 | BNO48: 0 | BNQ48: 0 | BNS48: 0 | BNU48: 0 | BNW48: 0 | BNY48: 0 | BOA48: 0 | BOC48: 0 | BOE48: 0 | BOG48: 0 | BOI48: 0 | BOK48: 0 | BOM48: 0 | BOO48: 0 | BOQ48: 0 | BOS48: 0 | BOU48: 0 | BOW48: 0 | BOY48: 0 | BPA48: 0 | BPC48: 0 | BPE48: 0 | BPG48: 0 | BPI48: 0 | BPK48: 0 | BPM48: 0 | BPO48: 0 | BPQ48: 0 | BPS48: 0 | BPU48: 0 | BPW48: 0 | BPY48: 0 | BQA48: 0 | BQC48: 0 | BQE48: 0 | BQG48: 0 | BQI48: 0 | BQK48: 0 | BQM48: 0 | BQO48: 0 | BQQ48: 0 | BQS48: 0 | BQU48: 0 | BQW48: 0 | BQY48: 0 | BRA48: 0 | BRC48: 0 | BRE48: 0 | BRG48: 0 | BRI48: 0 | BRK48: 0 | BRM48: 0 | BRO48: 0 | BRQ48: 0 | BRS48: 0 | BRU48: 0 | BRW48: 0 | BRY48: 0 | BSA48: 0 | BSC48: 0 | BSE48: 0 | BSG48: 0 | BSI48: 0 | BSK48: 0 | BSM48: 0 | BSO48: 0 | BSQ48: 0 | BSS48: 0 | BSU48: 0 | BSW48: 0 | BSY48: 0 | BTA48: 0 | BTC48: 0 | BTE48: 0 | BTG48: 0 | BTI48: 0 | BTK48: 0 | BTM48: 0 | BTO48: 0 | BTQ48: 0 | BTS48: 0 | BTU48: 0 | BTW48: 0 | BTY48: 0 | BUA48: 0 | BUC48: 0 | BUE48: 0 | BUG48: 0 | BUI48: 0 | BUK48: 0 | BUM48: 0 | BUO48: 0 | BUQ48: 0 | BUS48: 0 | BUU48: 0 | BUW48: 0 | BUY48: 0 | BVA48: 0 | BVC48: 0 | BVE48: 0 | BVG48: 0 | BVI48: 0 | BVK48: 0 | BVM48: 0 | BVO48: 0 | BVQ48: 0 | BVS48: 0 | BVU48: 0 | BVW48: 0 | BVY48: 0 | BWA48: 0 | BWC48: 0 | BWE48: 0 | BWG48: 0 | BWI48: 0 | BWK48: 0 | BWM48: 0 | BWO48: 0 | BWQ48: 0 | BWS48: 0 | BWU48: 0 | BWW48: 0 | BWY48: 0 | BXA48: 0 | BXC48: 0 | BXE48: 0 | BXG48: 0 | BXI48: 0 | BXK48: 0 | BXM48: 0 | BXO48: 0 | BXQ48: 0 | BXS48: 0 | BXU48: 0 | BXW48: 0 | BXY48: 0 | BYA48: 0 | BYC48: 0 | BYE48: 0 | BYG48: 0 | BYI48: 0 | BYK48: 0 | BYM48: 0 | BYO48: 0 | BYQ48: 0 | BYS48: 0 | BYU48: 0 | BYW48: 0 | BYY48: 0 | BZA48: 0 | BZC48: 0 | BZE48: 0 | BZG48: 0 | BZI48: 0 | BZK48: 0 | BZM48: 0 | BZO48: 0 | BZQ48: 0 | BZS48: 0 | BZU48: 0 | BZW48: 0 | BZY48: 0 | CAA48: 0 | CAC48: 0 | CAE48: 0 | CAG48: 0 | CAI48: 0 | CAK48: 0 | CAM48: 0 | CAO48: 0 | CAQ48: 0 | CAS48: 0 | CAU48: 0 | CAW48: 0 | CAY48: 0 | CBA48: 0 | CBC48: 0 | CBE48: 0 | CBG48: 0
